Workbook

Sheet Main
E1: Soluzione ETF+FPN+FPA dopo il 5º anno | T1: Soluzione ETF+FPN+FPA | AI1: Soluzione ETF+FPA dopo il 5º anno | AU1: Soluzione ETF+FPA | BG1: Soluzione ETF+FPN | BS1: Soluzione solo ETF | CA1: Soluzione ETF+FPN+FPA dopo il 5º anno + trasferimenti | CP1: Soluzione ETF+FPN+FPA + trasferimenti
A2: RAL | B2: 30000 | D2: Anno | E2: ETF | F2: ETF versato | G2: ETF plusval. | H2: FPA | I2: FPA versato | J2: FPA plusval. | K2: FPN | L2: FPN versato | M2: FPN plusval. | N2: TFR | O2: TFR versato | P2: TFR plusval. | Q2: ETF+FPN+FPA (5+) | R2: ETF+FPN+FPA (5+) tassato | T2: ETF | U2: ETF versato | V2: ETF plusval. | W2: FPA | X2: FPA versato | Y2: FPA plusval. | Z2: FPN | AA2: FPN versato | AB2: FPN plusval. | AC2: TFR | AD2: TFR versato | AE2: TFR plusval. | AF2: ETF+FPN+FPA | AG2: ETF+FPN+FPA tassato | AI2: ETF | AJ2: ETF versato | AK2: ETF plusval. | AL2: FPA | AM2: FPA versato | AN2: FPA plusval. | AO2: TFR | AP2: TFR versato | AQ2: TFR plusval. | AR2: ETF+FPA (5+) | AS2: ETF+FPA (5+) tassato | AU2: ETF | AV2: ETF versato | AW2: ETF plusval. | AX2: FPA | AY2: FPA versato | AZ2: FPA plusval. | BA2: TFR | BB2: TFR versato | BC2: TFR plusval. | BD2: ETF+FPA | BE2: ETF+FPA tassato | BG2: ETF | BH2: ETF versato | BI2: ETF plusval. | BJ2: FPN | BK2: FPN versato | BL2: FPN plusval. | BM2: TFR | BN2: TFR versato | BO2: TFR plusval. | BP2: ETF+FPN | BQ2: ETF+FPN tassato | BS2: ETF | BT2: ETF versato | BU2: ETF plusval. | BV2: TFR | BW2: TFR versato | BX2: TFR plusval. | BY2: ETF tassato | CA2: ETF | CB2: ETF versato | CC2: ETF plusval. | CD2: FPA | CE2: FPA versato | CF2: FPA plusval. | CG2: FPN | CH2: FPN versato | CI2: FPN plusval. | CJ2: TFR | CK2: TFR versato | CL2: TFR plusval. | CM2: ETF+FPN+FPA (5t+) | CN2: ETF+FPN+FPA (5t+) tassato | CP2: ETF | CQ2: ETF versato | CR2: ETF plusval. | CS2: FPA | CT2: FPA versato | CU2: FPA plusval. | CV2: FPN | CW2: FPN versato | CX2: FPN plusval. | CY2: TFR | CZ2: TFR versato | DA2: TFR plusval. | DB2: ETF+FPN+FPA (t) | DC2: ETF+FPN+FPA (t) tassato
D3: 0 | E3: =IF(RAL>SgrvFP-SgrvFPN,MAX(0,SgrvFP-SgrvFPN+Tassazione_RAL!$E$10-Tassazione_RAL!$E$20),0) -> 3073.7189 | F3: =IF(RAL>SgrvFP-SgrvFPN,MAX(0,SgrvFP-SgrvFPN+Tassazione_RAL!$E$10-Tassazione_RAL!$E$20),0) -> 3073.7189 | G3: 0 | H3: 0 | I3: 0 | J3: 0 | K3: =(1-costFPN)*(SgrvFPN+RAL*$B$6) -> 1678.656 | L3: =SgrvFPN+RAL*$B$6 -> 1680 | M3: 0 | N3: =(1-costFPN)*(TFR-RAL*0.5%) -> 2070.564444 | O3: =TFR-RAL*0.5% -> 2072.222222 | P3: 0 | Q3: =E3+H3+K3+N3 -> 6822.939344 | R3: =F3+G3*(1-26%)+(H3+K3+N3)*(1-IF($D3>15,MAX(9%,15%-(($D3-15)*0.3%)),15%)) -> 6260.556278 | T3: =IF(RAL>SgrvFP-SgrvFPN,MAX(0,Tassazione_RAL!$E$20-Tassazione_RAL!$E$10),0) -> 1070.8511 | U3: =IF(RAL>SgrvFP-SgrvFPN,MAX(0,Tassazione_RAL!$E$20-Tassazione_RAL!$E$10),0) -> 1070.8511 | V3: 0 | W3: =(1-costFPA)*(IF(RAL>SgrvFP-SgrvFPN,MAX(0,(Tassazione_RAL!$E$19-Tassazione_RAL!$E$9)-(Tassazione_RAL!$E$20-Tassazione_RAL!$E$10)),0)) -> 3049.129149 | X3: =IF(RAL>SgrvFP-SgrvFPN,MAX(0,(Tassazione_RAL!$E$19-Tassazione_RAL!$E$9)-(Tassazione_RAL!$E$20-Tassazione_RAL!$E$10)),0) -> 3073.7189 | Y3: 0 | Z3: =(1-costFPN)*(SgrvFPN+RAL*$B$6) -> 1678.656 | AA3: =SgrvFPN+RAL*$B$6 -> 1680 | AB3: 0 | AC3: =(1-costFPN)*(RAL/13.5-RAL*0.5%) -> 2070.564444 | AD3: =RAL/13.5-RAL*0.5% -> 2072.222222 | AE3: 0 | AF3: =T3+W3+Z3+AC3 -> 7869.200693 | AG3: =U3+V3*(1-26%)+(W3+Z3+AC3)*(1-IF($D3>15,MAX(9%,15%-(($D3-15)*0.3%)),15%)) -> 6849.448254 | AI3: =IF(RAL>SgrvFP,MAX(0,SgrvFP+Tassazione_RAL!$E$10-Tassazione_RAL!$E$5),0) -> 3736.7189 | AJ3: =IF(RAL>SgrvFP,MAX(0,SgrvFP+Tassazione_RAL!$E$10-Tassazione_RAL!$E$5),0) -> 3736.7189 | AK3: 0 | AL3: 0 | AM3: 0 | AN3: 0 | AO3: =(1-costFPA)*(TFR-RAL*0.5%) -> 2055.644444 | AP3: =TFR-RAL*0.5% -> 2072.222222 | AQ3: 0 | AR3: =AI3+AL3+AO3 -> 5792.363344 | AS3: =AJ3+AK3*(1-26%)+(AL3+AO3)*(1-IF($D3>15,MAX(9%,15%-(($D3-15)*0.3%)),15%)) -> 5484.016678 | AU3: 0 | AV3: 0 | AW3: 0 | AX3: =(1-costFPA)*(IF(RAL>SgrvFP,MAX(0,SgrvFP),0)) -> 5123.25344 | AY3: =IF(RAL>SgrvFP,MAX(0,SgrvFP),0) -> 5164.57 | AZ3: 0 | BA3: =(1-costFPA)*(TFR-RAL*0.5%) -> 2055.644444 | BB3: =TFR-RAL*0.5% -> 2072.222222 | BC3: 0 | BD3: =AU3+AX3+BA3 -> 7178.897884 | BE3: =AV3+AW3*(1-26%)+(AX3+BA3)*(1-IF($D3>15,MAX(9%,15%-(($D3-15)*0.3%)),15%)) -> 6102.063202 | BG3: =IF(RAL>SgrvFP-SgrvFPN,MAX(0,SgrvFP-SgrvFPN+Tassazione_RAL!$E$10-Tassazione_RAL!$E$20),0) -> 3073.7189 | BH3: =IF(RAL>SgrvFP-SgrvFPN,MAX(0,SgrvFP-SgrvFPN+Tassazione_RAL!$E$10-Tassazione_RAL!$E$20),0) -> 3073.7189 | BI3: 0 | BJ3: =(1-costFPN)*(SgrvFPN+RAL*$B$6) -> 1678.656 | BK3: =SgrvFPN+RAL*$B$6 -> 1680 | BL3: 0 | BM3: =(1-costFPN)*(TFR-RAL*0.5%) -> 2070.564444 | BN3: =TFR-RAL*0.5% -> 2072.222222 | BO3: 0 | BP3: =BG3+BJ3 -> 4752.3749 | BQ3: =BH3+BI3*(1-26%)+(BJ3+BM3)*(1-IF($D3>15,MAX(9%,15%-(($D3-15)*0.3%)),15%)) -> 6260.556278 | BS3: =IF(RAL>SgrvFP-SgrvFPN,MAX(0,SgrvFP+Tassazione_RAL!$E$10-Tassazione_RAL!$E$5),0) -> 3736.7189 | BT3: =IF(RAL>SgrvFP-SgrvFPN,MAX(0,SgrvFP+Tassazione_RAL!$E$10-Tassazione_RAL!$E$5),0) -> 3736.7189 | BU3: 0 | BV3: =(TFR-RAL*0.5%)*(1+INFL*75%+1.5%) -> 2149.930556 | BW3: =(TFR-RAL*0.5%) -> 2072.222222 | BX3: =(TFR-RAL*0.5%)*(INFL*75%+1.5%) -> 77.70833333 | BY3: =BT3+BU3*(1-26%)+(BV3*TFR_N/TFR) -> 5374.965983 | CA3: =IF(RAL>SgrvFP-SgrvFPN,MAX(0,SgrvFP-SgrvFPN+Tassazione_RAL!$E$10-Tassazione_RAL!$E$20),0) -> 3073.7189 | CB3: =IF(RAL>SgrvFP-SgrvFPN,MAX(0,SgrvFP-SgrvFPN+Tassazione_RAL!$E$10-Tassazione_RAL!$E$20),0) -> 3073.7189 | CC3: 0 | CD3: 0 | CE3: 0 | CF3: 0 | CG3: =(1-costFPN)*(SgrvFPN+RAL*$B$6) -> 1678.656 | CH3: =SgrvFPN+RAL*$B$6 -> 1680 | CI3: 0 | CJ3: =(1-costFPN)*(TFR-RAL*0.5%) -> 2070.564444 | CK3: =TFR-RAL*0.5% -> 2072.222222 | CL3: 0 | CM3: =CA3+CD3+CG3+CJ3 -> 6822.939344 | CN3: =CB3+CC3*(1-26%)+(CD3)*(1-IF($D3>15,MAX(9%,15%-(($D3-15)*0.3%)),15%))+(CG3+CJ3)*(1-15%) -> 6260.556278 | CP3: =IF(RAL>SgrvFP-SgrvFPN,MAX(0,Tassazione_RAL!$E$20-Tassazione_RAL!$E$10),0) -> 1070.8511 | CQ3: =IF(RAL>SgrvFP-SgrvFPN,MAX(0,Tassazione_RAL!$E$20-Tassazione_RAL!$E$10),0) -> 1070.8511 | CR3: 0 | CS3: =(1-costFPA)*(IF(RAL>SgrvFP-SgrvFPN,MAX(0,(Tassazione_RAL!$E$19-Tassazione_RAL!$E$9)-(Tassazione_RAL!$E$20-Tassazione_RAL!$E$10)),0)) -> 3049.129149 | CT3: =IF(RAL>SgrvFP-SgrvFPN,MAX(0,(Tassazione_RAL!$E$19-Tassazione_RAL!$E$9)-(Tassazione_RAL!$E$20-Tassazione_RAL!$E$10)),0) -> 3073.7189 | CU3: 0 | CV3: =(1-costFPN)*(SgrvFPN+RAL*$B$6) -> 1678.656 | CW3: =SgrvFPN+RAL*$B$6 -> 1680 | CX3: 0 | CY3: =(1-costFPN)*(RAL/13.5-RAL*0.5%) -> 2070.564444 | CZ3: =RAL/13.5-RAL*0.5% -> 2072.222222 | DA3: 0 | DB3: =CP3+CS3+CV3+CY3 -> 7869.200693 | DC3: =CQ3+CR3*(1-26%)+CS3*(1-IF($D3>15,MAX(9%,15%-(($D3-15)*0.3%)),15%))+(CV3+CY3)*(1-15%) -> 6849.448254
A4: Inflazione media | B4: 0.03 | D4: 1 | E4: =IF(RAL>SgrvFP-SgrvFPN,MAX(0,SgrvFP-SgrvFPN+Tassazione_RAL!$E$10-Tassazione_RAL!$E$20),0)+E3*(1+rateETF) -> 6356.450685 | F4: =IF(RAL>SgrvFP-SgrvFPN,MAX(0,SgrvFP-SgrvFPN+Tassazione_RAL!$E$10-Tassazione_RAL!$E$20),0)+F3 -> 6147.4378 | G4: =E3*(rateETF)+G3 -> 209.0128852 | H4: 0 | I4: 0 | J4: 0 | K4: =(1-costFPN)*(SgrvFPN+K3*(1+(rateFPN*(1-plustaxFPN)))+RAL*$B$6) -> 3392.165491 | L4: =SgrvFPN+L3+RAL*$B$6 -> 3360 | M4: =L3*rateFPN+M3 -> 43.68 | N4: =(1-costFPN)*(TFR-RAL*0.5%+N3*(1+(rateFPN*(1-plustaxFPN)))) -> 4184.119472 | O4: =TFR-RAL*0.5%+O3 -> 4144.444444 | P4: =N3*rateFPN+P3 -> 53.83467556 | Q4: =E4+H4+K4+N4 -> 13932.73565 | R4: =F4+G4*(1-26%)+(H4+K4+N4)*(1-IF($D4>15,MAX(9%,15%-(($D4-15)*0.3%)),15%)) -> 12741.94955 | T4: =IF(RAL>SgrvFP-SgrvFPN,MAX(0,Tassazione_RAL!$E$20-Tassazione_RAL!$E$10),0)+T3*(1+rateETF) -> 2214.520075 | U4: =IF(RAL>SgrvFP-SgrvFPN,MAX(0,Tassazione_RAL!$E$20-Tassazione_RAL!$E$10),0)+U3 -> 2141.7022 | V4: =T3*(rateETF)+V3 -> 72.8178748 | W4: =(1-costFPA)*(IF(RAL>SgrvFP-SgrvFPN,MAX(0,(Tassazione_RAL!$E$19-Tassazione_RAL!$E$9)-(Tassazione_RAL!$E$20-Tassazione_RAL!$E$10)),0)+W3*(1+(rateFPA*(1-plustaxFPA)))) -> 6236.751085 | X4: =IF(RAL>SgrvFP-SgrvFPN,MAX(0,(Tassazione_RAL!$E$19-Tassazione_RAL!$E$9)-(Tassazione_RAL!$E$20-Tassazione_RAL!$E$10)),0)+X3 -> 6147.4378 | Y4: =W3*(rateFPA)+Y3 -> 204.291653 | Z4: =(1-costFPN)*(SgrvFPN+Z3*(1+(rateFPN*(1-plustaxFPN)))+RAL*$B$6) -> 3392.165491 | AA4: =SgrvFPN+AA3+RAL*$B$6 -> 3360 | AB4: =AA3*rateFPN+AB3 -> 43.68 | AC4: =(1-costFPN)*(RAL/13.5-RAL*0.5%+AC3*(1+(rateFPN*(1-plustaxFPN)))) -> 4184.119472 | AD4: =RAL/13.5-RAL*0.5%+AD3 -> 4144.444444 | AE4: =AC3*rateFPN+AE3 -> 53.83467556 | AF4: =T4+W4+Z4+AC4 -> 16027.55612 | AG4: =U4+V4*(1-26%)+(W4+Z4+AC4)*(1-IF($D4>15,MAX(9%,15%-(($D4-15)*0.3%)),15%)) -> 13936.66807 | AI4: =IF(RAL>SgrvFP,MAX(0,SgrvFP+Tassazione_RAL!$E$10-Tassazione_RAL!$E$5),0)+AI3*(1+rateETF) -> 7727.534685 | AJ4: =IF(RAL>SgrvFP,MAX(0,SgrvFP+Tassazione_RAL!$E$10-Tassazione_RAL!$E$5),0)+AJ3 -> 7473.4378 | AK4: =AI3*(rateETF)+AK3 -> 254.0968852 | AL4: 0 | AM4: 0 | AN4: 0 | AO4: =(1-costFPA)*(TFR-RAL*0.5%+AO3*(1+(rateFPA*(1-plustaxFPA)))) -> 4204.657164 | AP4: =TFR-RAL*0.5%+AP3 -> 4144.444444 | AQ4: =AO3*rateFPA+AQ3 -> 137.7281778 | AR4: =AI4+AL4+AO4 -> 11932.19185 | AS4: =AJ4+AK4*(1-26%)+(AL4+AO4)*(1-IF($D4>15,MAX(9%,15%-(($D4-15)*0.3%)),15%)) -> 11235.42808 | AU4: =AU3*(1+rateETF) -> 0 | AV4: 0 | AW4: =AU3*(rateETF)+AW3 -> 0 | AX4: =(1-costFPA)*(IF(RAL>SgrvFP,MAX(0,SgrvFP),0)+AX3*(1+(rateFPA*(1-plustaxFPA)))) -> 10479.20731 | AY4: =IF(RAL>SgrvFP,MAX(0,SgrvFP),0)+AY3 -> 10329.14 | AZ4: =AX3*(rateFPA)+AZ3 -> 343.2579805 | BA4: =(1-costFPA)*(TFR-RAL*0.5%+BA3*(1+(rateFPA*(1-plustaxFPA)))) -> 4204.657164 | BB4: =TFR-RAL*0.5%+BB3 -> 4144.444444 | BC4: =BA3*rateFPA+BC3 -> 137.7281778 | BD4: =AU4+AX4+BA4 -> 14683.86447 | BE4: 12481.2848 | BG4: =IF(RAL>SgrvFP-SgrvFPN,MAX(0,SgrvFP-SgrvFPN+Tassazione_RAL!$E$10-Tassazione_RAL!$E$20),0)+BG3*(1+rateETF) -> 6356.450685 | BH4: =IF(RAL>SgrvFP-SgrvFPN,MAX(0,SgrvFP-SgrvFPN+Tassazione_RAL!$E$10-Tassazione_RAL!$E$20),0)+BH3 -> 6147.4378 | BI4: =BG3*rateETF+BI3 -> 209.0128852 | BJ4: =(1-costFPN)*(SgrvFPN+BJ3*(1+(rateFPN*(1-plustaxFPN)))+RAL*$B$6) -> 3392.165491 | BK4: =SgrvFPN+BK3+RAL*$B$6 -> 3360 | BL4: =BK3*rateFPN+BL3 -> 43.68 | BM4: =(1-costFPN)*(TFR-RAL*0.5%+BM3*(1+(rateFPN*(1-plustaxFPN)))) -> 4184.119472 | BN4: =TFR-RAL*0.5%+BN3 -> 4144.444444 | BO4: =BM3*rateFPN+BO3 -> 53.83467556 | BP4: =BG4+BJ4 -> 9748.616177 | BQ4: =BH4+BI4*(1-26%)+(BJ4+BM4)*(1-IF($D4>15,MAX(9%,15%-(($D4-15)*0.3%)),15%)) -> 12741.94955 | BS4: =IF(RAL>SgrvFP-SgrvFPN,MAX(0,SgrvFP+Tassazione_RAL!$E$10-Tassazione_RAL!$E$5),0)+BS3*(1+rateETF) -> 7727.534685 | BT4: =IF(RAL>SgrvFP-SgrvFPN,MAX(0,SgrvFP+Tassazione_RAL!$E$10-Tassazione_RAL!$E$5),0)+BT3 -> 7473.4378 | BU4: =BS3*rateETF+BU3 -> 254.0968852 | BV4: =BV3+((TFR-RAL*0.5%)*(1+INFL*75%+1.5%)) -> 4299.861111 | BW4: =TFR-RAL*0.5%+BW3 -> 4144.444444 | BX4: =(TFR-RAL*0.5%)*(INFL*75%+1.5%)+BX3 -> 155.4166667 | BY4: 10937.96366 | CA4: =IF(RAL>SgrvFP-SgrvFPN,MAX(0,SgrvFP-SgrvFPN+Tassazione_RAL!$E$10-Tassazione_RAL!$E$20),0)+CA3*(1+rateETF) -> 6356.450685 | CB4: =IF(RAL>SgrvFP-SgrvFPN,MAX(0,SgrvFP-SgrvFPN+Tassazione_RAL!$E$10-Tassazione_RAL!$E$20),0)+CB3 -> 6147.4378 | CC4: =CA3*(rateETF)+CC3 -> 209.0128852 | CD4: 0 | CE4: 0 | CF4: 0 | CG4: =((1-costFPN)*(SgrvFPN+CG3*(1+(rateFPN*(1-plustaxFPN)))+RAL*$B$6))*MIN(MOD($D4,annitrasfFP+1),1) -> 3392.165491 | CH4: =SgrvFPN+CH3+RAL*$B$6 -> 3360 | CI4: =CH3*rateFPN+CI3 -> 43.68 | CJ4: =((1-costFPN)*(TFR-RAL*0.5%+CJ3*(1+(rateFPN*(1-plustaxFPN)))))*MIN(MOD($D4,annitrasfFP+1),1) -> 4184.119472 | CK4: =TFR-RAL*0.5%+CK3 -> 4144.444444 | CL4: =CJ3*rateFPN+CL3 -> 53.83467556 | CM4: =CA4+CD4+CG4+CJ4 -> 13932.73565 | CN4: =CB4+CC4*(1-26%)+(CD4)*(1-IF($D4>15,MAX(9%,15%-(($D4-15)*0.3%)),15%))+(CG4+CJ4)*(1-15%) -> 12741.94955 | CP4: =IF(RAL>SgrvFP-SgrvFPN,MAX(0,Tassazione_RAL!$E$20-Tassazione_RAL!$E$10),0)+CP3*(1+rateETF) -> 2214.520075 | CQ4: =IF(RAL>SgrvFP-SgrvFPN,MAX(0,Tassazione_RAL!$E$20-Tassazione_RAL!$E$10),0)+CQ3 -> 2141.7022 | CR4: =CP3*(rateETF)+CR3 -> 72.8178748 | CS4: =(1-costFPA)*(IF(RAL>SgrvFP-SgrvFPN,MAX(0,(Tassazione_RAL!$E$19-Tassazione_RAL!$E$9)-(Tassazione_RAL!$E$20-Tassazione_RAL!$E$10)),0)+((CS3+IF(AND(CV4=0,CY4=0,CV3<>0,CY3<>0),CV3+CY3,0))*(1+rateFPA*(1-plustaxFPA)))) -> 6236.751085 | CT4: =IF(RAL>SgrvFP-SgrvFPN,MAX(0,(Tassazione_RAL!$E$19-Tassazione_RAL!$E$9)-(Tassazione_RAL!$E$20-Tassazione_RAL!$E$10)),0)+CT3 -> 6147.4378 | CU4: =CS3*(rateFPA)+CU3 -> 204.291653 | CV4: =(1-costFPN)*(SgrvFPN+CV3*(1+(rateFPN*(1-plustaxFPN)))+RAL*$B$6)*MIN(MOD($D4,annitrasfFP+1),1) -> 3392.165491 | CW4: =SgrvFPN+CW3+RAL*$B$6 -> 3360 | CX4: =CW3*rateFPN+CX3 -> 43.68 | CY4: =((1-costFPN)*(RAL/13.5-RAL*0.5%+CY3*(1+(rateFPN*(1-plustaxFPN)))))*MIN(MOD($D4,annitrasfFP+1),1) -> 4184.119472 | CZ4: =RAL/13.5-RAL*0.5%+CZ3 -> 4144.444444 | DA4: =CY3*rateFPN+DA3 -> 53.83467556 | DB4: =CP4+CS4+CV4+CY4 -> 16027.55612 | DC4: =CQ4+CR4*(1-26%)+CS4*(1-IF($D4>15,MAX(9%,15%-(($D4-15)*0.3%)),15%))+(CV4+CY4)*(1-15%) -> 13936.66807
D5: 2 | E5: =IF(RAL>SgrvFP-SgrvFPN,MAX(0,SgrvFP-SgrvFPN+Tassazione_RAL!$E$10-Tassazione_RAL!$E$20),0)+E4*(1+rateETF) -> 9862.408232 | F5: =IF(RAL>SgrvFP-SgrvFPN,MAX(0,SgrvFP-SgrvFPN+Tassazione_RAL!$E$10-Tassazione_RAL!$E$20),0)+F4 -> 9221.1567 | G5: 641.2515318 | H5: 0 | I5: 0 | J5: 0 | K5: 5141.252128 | L5: 5040 | M5: 131.04 | N5: 6341.557684 | O5: 6216.666667 | P5: 162.6217818 | Q5: 21345.21804 | R5: 19456.07117 | T5: =IF(RAL>SgrvFP-SgrvFPN,MAX(0,Tassazione_RAL!$E$20-Tassazione_RAL!$E$10),0)+T4*(1+rateETF) -> 3435.95854 | U5: =IF(RAL>SgrvFP-SgrvFPN,MAX(0,Tassazione_RAL!$E$20-Tassazione_RAL!$E$10),0)+U4 -> 3212.5533 | V5: 223.4052399 | W5: =(1-costFPA)*(IF(RAL>SgrvFP-SgrvFPN,MAX(0,(Tassazione_RAL!$E$19-Tassazione_RAL!$E$9)-(Tassazione_RAL!$E$20-Tassazione_RAL!$E$10)),0)+W4*(1+(rateFPA*(1-plustaxFPA)))) -> 9569.156212 | X5: =IF(RAL>SgrvFP-SgrvFPN,MAX(0,(Tassazione_RAL!$E$19-Tassazione_RAL!$E$9)-(Tassazione_RAL!$E$20-Tassazione_RAL!$E$10)),0)+X4 -> 9221.1567 | Y5: 622.1539757 | Z5: 5141.252128 | AA5: 5040 | AB5: 131.04 | AC5: 6341.557684 | AD5: 6216.666667 | AE5: 162.6217818 | AF5: 24487.92456 | AG5: =U5+V5*(1-26%)+(W5+Z5+AC5)*(1-IF($D5>15,MAX(9%,15%-(($D5-15)*0.3%)),15%)) -> 21272.0443 | AI5: =IF(RAL>SgrvFP,MAX(0,SgrvFP+Tassazione_RAL!$E$10-Tassazione_RAL!$E$5),0)+AI4*(1+rateETF) -> 11989.72594 | AJ5: =IF(RAL>SgrvFP,MAX(0,SgrvFP+Tassazione_RAL!$E$10-Tassazione_RAL!$E$5),0)+AJ4 -> 11210.1567 | AK5: 779.5692438 | AL5: 0 | AM5: 0 | AN5: 0 | AO5: 6451.278987 | AP5: 6216.666667 | AQ5: 419.4402078 | AR5: 18441.00493 | AS5: 17270.62508 | AU5: =AU4*(1+rateETF) -> 0 | AV5: 0 | AW5: 0 | AX5: 16078.43095 | AY5: 15493.71 | AZ5: 1045.36487 | BA5: 6451.278987 | BB5: 6216.666667 | BC5: 419.4402078 | BD5: 22529.70994 | BE5: 19150.25345 | BG5: =IF(RAL>SgrvFP-SgrvFPN,MAX(0,SgrvFP-SgrvFPN+Tassazione_RAL!$E$10-Tassazione_RAL!$E$20),0)+BG4*(1+rateETF) -> 9862.408232 | BH5: =IF(RAL>SgrvFP-SgrvFPN,MAX(0,SgrvFP-SgrvFPN+Tassazione_RAL!$E$10-Tassazione_RAL!$E$20),0)+BH4 -> 9221.1567 | BI5: 641.2515318 | BJ5: 5141.252128 | BK5: 5040 | BL5: 131.04 | BM5: 6341.557684 | BN5: 6216.666667 | BO5: 162.6217818 | BP5: 15003.66036 | BQ5: =BH5+BI5*(1-26%)+(BJ5+BM5)*(1-IF($D5>15,MAX(9%,15%-(($D5-15)*0.3%)),15%)) -> 19456.07117 | BS5: =IF(RAL>SgrvFP-SgrvFPN,MAX(0,SgrvFP+Tassazione_RAL!$E$10-Tassazione_RAL!$E$5),0)+BS4*(1+rateETF) -> 11989.72594 | BT5: =IF(RAL>SgrvFP-SgrvFPN,MAX(0,SgrvFP+Tassazione_RAL!$E$10-Tassazione_RAL!$E$5),0)+BT4 -> 11210.1567 | BU5: 779.5692438 | BV5: 6449.791667 | BW5: 6216.666667 | BX5: 233.125 | BY5: 16701.77919 | CA5: =IF(RAL>SgrvFP-SgrvFPN,MAX(0,SgrvFP-SgrvFPN+Tassazione_RAL!$E$10-Tassazione_RAL!$E$20),0)+CA4*(1+rateETF) -> 9862.408232 | CB5: =IF(RAL>SgrvFP-SgrvFPN,MAX(0,SgrvFP-SgrvFPN+Tassazione_RAL!$E$10-Tassazione_RAL!$E$20),0)+CB4 -> 9221.1567 | CC5: 641.2515318 | CD5: 0 | CE5: 0 | CF5: 0 | CG5: 5141.252128 | CH5: 5040 | CI5: 131.04 | CJ5: 6341.557684 | CK5: 6216.666667 | CL5: 162.6217818 | CM5: 21345.21804 | CN5: 19456.07117 | CP5: =IF(RAL>SgrvFP-SgrvFPN,MAX(0,Tassazione_RAL!$E$20-Tassazione_RAL!$E$10),0)+CP4*(1+rateETF) -> 3435.95854 | CQ5: =IF(RAL>SgrvFP-SgrvFPN,MAX(0,Tassazione_RAL!$E$20-Tassazione_RAL!$E$10),0)+CQ4 -> 3212.5533 | CR5: 223.4052399 | CS5: =(1-costFPA)*(IF(RAL>SgrvFP-SgrvFPN,MAX(0,(Tassazione_RAL!$E$19-Tassazione_RAL!$E$9)-(Tassazione_RAL!$E$20-Tassazione_RAL!$E$10)),0)+((CS4+IF(AND(CV5=0,CY5=0,CV4<>0,CY4<>0),CV4+CY4,0))*(1+rateFPA*(1-plustaxFPA)))) -> 9569.156212 | CT5: =IF(RAL>SgrvFP-SgrvFPN,MAX(0,(Tassazione_RAL!$E$19-Tassazione_RAL!$E$9)-(Tassazione_RAL!$E$20-Tassazione_RAL!$E$10)),0)+CT4 -> 9221.1567 | CU5: 622.1539757 | CV5: 5141.252128 | CW5: 5040 | CX5: 131.04 | CY5: 6341.557684 | CZ5: 6216.666667 | DA5: 162.6217818 | DB5: 24487.92456 | DC5: 21272.0443
A6: Contributo datoriale | B6: 0.022 | D6: 3 | E6: =IF(RAL>SgrvFP-SgrvFPN,MAX(0,SgrvFP-SgrvFPN+Tassazione_RAL!$E$10-Tassazione_RAL!$E$20),0)+E5*(1+rateETF) -> 13606.77089 | F6: =IF(RAL>SgrvFP-SgrvFPN,MAX(0,SgrvFP-SgrvFPN+Tassazione_RAL!$E$10-Tassazione_RAL!$E$20),0)+F5 -> 12294.8756 | G6: 1311.895292 | H6: 0 | I6: 0 | J6: 0 | K6: 6926.654589 | L6: 6720 | M6: 262.08 | N6: 8543.790217 | O6: 8288.888889 | P6: 327.5022816 | Q6: 29077.2157 | R6: 26415.5562 | T6: =IF(RAL>SgrvFP-SgrvFPN,MAX(0,Tassazione_RAL!$E$20-Tassazione_RAL!$E$10),0)+T5*(1+rateETF) -> 4740.454821 | U6: =IF(RAL>SgrvFP-SgrvFPN,MAX(0,Tassazione_RAL!$E$20-Tassazione_RAL!$E$10),0)+U5 -> 4283.4044 | V6: 457.0504206 | W6: =(1-costFPA)*(IF(RAL>SgrvFP-SgrvFPN,MAX(0,(Tassazione_RAL!$E$19-Tassazione_RAL!$E$9)-(Tassazione_RAL!$E$20-Tassazione_RAL!$E$10)),0)+W5*(1+(rateFPA*(1-plustaxFPA)))) -> 13052.92065 | X6: =IF(RAL>SgrvFP-SgrvFPN,MAX(0,(Tassazione_RAL!$E$19-Tassazione_RAL!$E$9)-(Tassazione_RAL!$E$20-Tassazione_RAL!$E$10)),0)+X5 -> 12294.8756 | Y6: 1263.287442 | Z6: 6926.654589 | AA6: 6720 | AB6: 262.08 | AC6: 8543.790217 | AD6: 8288.888889 | AE6: 327.5022816 | AF6: 33263.82027 | AG6: 28866.48235 | AI6: =IF(RAL>SgrvFP,MAX(0,SgrvFP+Tassazione_RAL!$E$10-Tassazione_RAL!$E$5),0)+AI5*(1+rateETF) -> 16541.74621 | AJ6: =IF(RAL>SgrvFP,MAX(0,SgrvFP+Tassazione_RAL!$E$10-Tassazione_RAL!$E$5),0)+AJ5 -> 14946.8756 | AK6: 1594.870608 | AL6: 0 | AM6: 0 | AN6: 0 | AO6: 8799.943362 | AP6: 8288.888889 | AQ6: 851.6758999 | AR6: 25341.68957 | AS6: 23607.03171 | AU6: =AU5*(1+rateETF) -> 0 | AV6: 0 | AW6: 0 | AX6: 21931.9738 | AY6: 20658.28 | AZ6: 2122.619744 | BA6: 8799.943362 | BB6: 8288.888889 | BC6: 851.6758999 | BD6: 30731.91716 | BE6: 26122.12959 | BG6: =IF(RAL>SgrvFP-SgrvFPN,MAX(0,SgrvFP-SgrvFPN+Tassazione_RAL!$E$10-Tassazione_RAL!$E$20),0)+BG5*(1+rateETF) -> 13606.77089 | BH6: =IF(RAL>SgrvFP-SgrvFPN,MAX(0,SgrvFP-SgrvFPN+Tassazione_RAL!$E$10-Tassazione_RAL!$E$20),0)+BH5 -> 12294.8756 | BI6: 1311.895292 | BJ6: 6926.654589 | BK6: 6720 | BL6: 262.08 | BM6: 8543.790217 | BN6: 8288.888889 | BO6: 327.5022816 | BP6: 20533.42548 | BQ6: 26415.5562 | BS6: =IF(RAL>SgrvFP-SgrvFPN,MAX(0,SgrvFP+Tassazione_RAL!$E$10-Tassazione_RAL!$E$5),0)+BS5*(1+rateETF) -> 16541.74621 | BT6: =IF(RAL>SgrvFP-SgrvFPN,MAX(0,SgrvFP+Tassazione_RAL!$E$10-Tassazione_RAL!$E$5),0)+BT5 -> 14946.8756 | BU6: 1594.870608 | BV6: 8599.722222 | BW6: 8288.888889 | BX6: 310.8333333 | BY6: 22680.06818 | CA6: =IF(RAL>SgrvFP-SgrvFPN,MAX(0,SgrvFP-SgrvFPN+Tassazione_RAL!$E$10-Tassazione_RAL!$E$20),0)+CA5*(1+rateETF) -> 13606.77089 | CB6: =IF(RAL>SgrvFP-SgrvFPN,MAX(0,SgrvFP-SgrvFPN+Tassazione_RAL!$E$10-Tassazione_RAL!$E$20),0)+CB5 -> 12294.8756 | CC6: 1311.895292 | CD6: 0 | CE6: 0 | CF6: 0 | CG6: 6926.654589 | CH6: 6720 | CI6: 262.08 | CJ6: 8543.790217 | CK6: 8288.888889 | CL6: 327.5022816 | CM6: 29077.2157 | CN6: 26415.5562 | CP6: =IF(RAL>SgrvFP-SgrvFPN,MAX(0,Tassazione_RAL!$E$20-Tassazione_RAL!$E$10),0)+CP5*(1+rateETF) -> 4740.454821 | CQ6: =IF(RAL>SgrvFP-SgrvFPN,MAX(0,Tassazione_RAL!$E$20-Tassazione_RAL!$E$10),0)+CQ5 -> 4283.4044 | CR6: 457.0504206 | CS6: =(1-costFPA)*(IF(RAL>SgrvFP-SgrvFPN,MAX(0,(Tassazione_RAL!$E$19-Tassazione_RAL!$E$9)-(Tassazione_RAL!$E$20-Tassazione_RAL!$E$10)),0)+((CS5+IF(AND(CV6=0,CY6=0,CV5<>0,CY5<>0),CV5+CY5,0))*(1+rateFPA*(1-plustaxFPA)))) -> 13052.92065 | CT6: =IF(RAL>SgrvFP-SgrvFPN,MAX(0,(Tassazione_RAL!$E$19-Tassazione_RAL!$E$9)-(Tassazione_RAL!$E$20-Tassazione_RAL!$E$10)),0)+CT5 -> 12294.8756 | CU6: 1263.287442 | CV6: 6926.654589 | CW6: 6720 | CX6: 262.08 | CY6: 8543.790217 | CZ6: 8288.888889 | DA6: 327.5022816 | DB6: 33263.82027 | DC6: 28866.48235
A7: Contributo lavoratore | B7: 0.012 | D7: 4 | E7: =IF(RAL>SgrvFP-SgrvFPN,MAX(0,SgrvFP-SgrvFPN+Tassazione_RAL!$E$10-Tassazione_RAL!$E$20),0)+E6*(1+rateETF) -> 17605.75021 | F7: =IF(RAL>SgrvFP-SgrvFPN,MAX(0,SgrvFP-SgrvFPN+Tassazione_RAL!$E$10-Tassazione_RAL!$E$20),0)+F6 -> 15368.5945 | G7: 2237.155712 | H7: 0 | I7: 0 | J7: 0 | K7: 8749.126889 | L7: 8400 | M7: 436.8 | N7: 10791.74712 | O7: 10361.11111 | P7: 549.6408272 | Q7: 37146.62422 | R7: 33633.83264 | T7: =IF(RAL>SgrvFP-SgrvFPN,MAX(0,Tassazione_RAL!$E$20-Tassazione_RAL!$E$10),0)+T6*(1+rateETF) -> 6133.656848 | U7: =IF(RAL>SgrvFP-SgrvFPN,MAX(0,Tassazione_RAL!$E$20-Tassazione_RAL!$E$10),0)+U6 -> 5354.2555 | V7: 779.4013484 | W7: =(1-costFPA)*(IF(RAL>SgrvFP-SgrvFPN,MAX(0,(Tassazione_RAL!$E$19-Tassazione_RAL!$E$9)-(Tassazione_RAL!$E$20-Tassazione_RAL!$E$10)),0)+W6*(1+(rateFPA*(1-plustaxFPA)))) -> 16694.91919 | X7: =IF(RAL>SgrvFP-SgrvFPN,MAX(0,(Tassazione_RAL!$E$19-Tassazione_RAL!$E$9)-(Tassazione_RAL!$E$20-Tassazione_RAL!$E$10)),0)+X6 -> 15368.5945 | Y7: 2137.833125 | Z7: 8749.126889 | AA7: 8400 | AB7: 436.8 | AC7: 10791.74712 | AD7: 10361.11111 | AE7: 549.6408272 | AF7: 42369.45005 | AG7: 36731.43672 | AI7: =IF(RAL>SgrvFP,MAX(0,SgrvFP+Tassazione_RAL!$E$10-Tassazione_RAL!$E$5),0)+AI6*(1+rateETF) -> 21403.30385 | AJ7: =IF(RAL>SgrvFP,MAX(0,SgrvFP+Tassazione_RAL!$E$10-Tassazione_RAL!$E$5),0)+AJ6 -> 18683.5945 | AK7: 2719.70935 | AL7: 0 | AM7: 0 | AN7: 0 | AO7: 11255.28511 | AP7: 10361.11111 | AQ7: 1441.272105 | AR7: 32658.58896 | AS7: 30263.17176 | AU7: =AU6*(1+rateETF) -> 0 | AV7: 0 | AW7: 0 | AX7: 28051.38714 | AY7: 25822.85 | AZ7: 3592.061988 | BA7: 11255.28511 | BB7: 10361.11111 | BC7: 1441.272105 | BD7: 39306.67225 | BE7: 33410.67141 | BG7: =IF(RAL>SgrvFP-SgrvFPN,MAX(0,SgrvFP-SgrvFPN+Tassazione_RAL!$E$10-Tassazione_RAL!$E$20),0)+BG6*(1+rateETF) -> 17605.75021 | BH7: =IF(RAL>SgrvFP-SgrvFPN,MAX(0,SgrvFP-SgrvFPN+Tassazione_RAL!$E$10-Tassazione_RAL!$E$20),0)+BH6 -> 15368.5945 | BI7: 2237.155712 | BJ7: 8749.126889 | BK7: 8400 | BL7: 436.8 | BM7: 10791.74712 | BN7: 10361.11111 | BO7: 549.6408272 | BP7: 26354.8771 | BQ7: 33633.83264 | BS7: =IF(RAL>SgrvFP-SgrvFPN,MAX(0,SgrvFP+Tassazione_RAL!$E$10-Tassazione_RAL!$E$5),0)+BS6*(1+rateETF) -> 21403.30385 | BT7: =IF(RAL>SgrvFP-SgrvFPN,MAX(0,SgrvFP+Tassazione_RAL!$E$10-Tassazione_RAL!$E$5),0)+BT6 -> 18683.5945 | BU7: 2719.70935 | BV7: 10749.65278 | BW7: 10361.11111 | BX7: 388.5416667 | BY7: 28887.41484 | CA7: =IF(RAL>SgrvFP-SgrvFPN,MAX(0,SgrvFP-SgrvFPN+Tassazione_RAL!$E$10-Tassazione_RAL!$E$20),0)+CA6*(1+rateETF) -> 17605.75021 | CB7: =IF(RAL>SgrvFP-SgrvFPN,MAX(0,SgrvFP-SgrvFPN+Tassazione_RAL!$E$10-Tassazione_RAL!$E$20),0)+CB6 -> 15368.5945 | CC7: 2237.155712 | CD7: 0 | CE7: 0 | CF7: 0 | CG7: 8749.126889 | CH7: 8400 | CI7: 436.8 | CJ7: 10791.74712 | CK7: 10361.11111 | CL7: 549.6408272 | CM7: 37146.62422 | CN7: 33633.83264 | CP7: =IF(RAL>SgrvFP-SgrvFPN,MAX(0,Tassazione_RAL!$E$20-Tassazione_RAL!$E$10),0)+CP6*(1+rateETF) -> 6133.656848 | CQ7: =IF(RAL>SgrvFP-SgrvFPN,MAX(0,Tassazione_RAL!$E$20-Tassazione_RAL!$E$10),0)+CQ6 -> 5354.2555 | CR7: 779.4013484 | CS7: =(1-costFPA)*(IF(RAL>SgrvFP-SgrvFPN,MAX(0,(Tassazione_RAL!$E$19-Tassazione_RAL!$E$9)-(Tassazione_RAL!$E$20-Tassazione_RAL!$E$10)),0)+((CS6+IF(AND(CV7=0,CY7=0,CV6<>0,CY6<>0),CV6+CY6,0))*(1+rateFPA*(1-plustaxFPA)))) -> 16694.91919 | CT7: =IF(RAL>SgrvFP-SgrvFPN,MAX(0,(Tassazione_RAL!$E$19-Tassazione_RAL!$E$9)-(Tassazione_RAL!$E$20-Tassazione_RAL!$E$10)),0)+CT6 -> 15368.5945 | CU7: 2137.833125 | CV7: 8749.126889 | CW7: 8400 | CX7: 436.8 | CY7: 10791.74712 | CZ7: 10361.11111 | DA7: 549.6408272 | DB7: 42369.45005 | DC7: 36731.43672
D8: 5 | E8: =IF(RAL>SgrvFP-SgrvFPN,MAX(0,IF($B$17>=$D8-4,MAX(0,Tassazione_RAL!$E$20-Tassazione_RAL!$E$15),IF(AND($B$18>0,$B$17+1=$D8-4),MAX(0,(Tassazione_RAL!$E$20-Tassazione_RAL!$E$10+Tassazione_RAL!$E$5-Tassazione_RAL!$E$25)+(SgrvEXT-Main!$B$18-Tassazione_RAL!$E$10+Tassazione_RAL!$E$15+Tassazione_RAL!$E$5-Tassazione_RAL!$E$25)),MAX(0,(Tassazione_RAL!$E$20-Tassazione_RAL!$E$10)+(SgrvEXT-Tassazione_RAL!$E$10+Tassazione_RAL!$E$15))))))+E7*(1+rateETF) -> 20467.71903 | F8: =IF(RAL>SgrvFP-SgrvFPN,MAX(0,IF($B$17>=$D8-4,MAX(0,Tassazione_RAL!$E$20-Tassazione_RAL!$E$15),IF(AND($B$18>0,$B$17+1=$D8-4),MAX(0,(Tassazione_RAL!$E$20-Tassazione_RAL!$E$10+Tassazione_RAL!$E$5-Tassazione_RAL!$E$25)+(SgrvEXT-Main!$B$18-Tassazione_RAL!$E$10+Tassazione_RAL!$E$15+Tassazione_RAL!$E$5-Tassazione_RAL!$E$25)),MAX(0,(Tassazione_RAL!$E$20-Tassazione_RAL!$E$10)+(SgrvEXT-Tassazione_RAL!$E$10+Tassazione_RAL!$E$15))))))+F7 -> 17033.3723 | G8: 3434.346727 | H8: =(1-costFPA)*(IF(RAL>SgrvFP-SgrvFPN,MAX(0,IF($B$17>=$D8-4,MAX(0,(Tassazione_RAL!$E$19-Tassazione_RAL!$E$14)-(Tassazione_RAL!$E$20-Tassazione_RAL!$E$15)),IF(AND($B$18>0,$B$17+1=$D8-4),MAX(0,(Tassazione_RAL!$E$19-Tassazione_RAL!$E$9)-(Tassazione_RAL!$E$20-Tassazione_RAL!$E$10+Tassazione_RAL!$E$5-Tassazione_RAL!$E$25)),MAX(0,(Tassazione_RAL!$E$19-Tassazione_RAL!$E$9)-(Tassazione_RAL!$E$20-Tassazione_RAL!$E$10))))))+H7*(1+rateFPA*(1-plustaxFPA))) -> 5021.585542 | I8: =IF(RAL>SgrvFP-SgrvFPN,MAX(0,IF($B$17>=$D8-4,MAX(0,(Tassazione_RAL!$E$19-Tassazione_RAL!$E$14)-(Tassazione_RAL!$E$20-Tassazione_RAL!$E$15)),IF(AND($B$18>0,$B$17+1=$D8-4),MAX(0,(Tassazione_RAL!$E$19-Tassazione_RAL!$E$9)-(Tassazione_RAL!$E$20-Tassazione_RAL!$E$10+Tassazione_RAL!$E$5-Tassazione_RAL!$E$25)),MAX(0,(Tassazione_RAL!$E$19-Tassazione_RAL!$E$9)-(Tassazione_RAL!$E$20-Tassazione_RAL!$E$10))))))+I7 -> 5062.0822 | J8: =H7*(rateFPA)+J7 -> 0 | K8: 10609.4387 | L8: 10080 | M8: 655.2 | N8: 13086.37776 | O8: 12433.33333 | P8: 830.2262524 | Q8: 49185.12103 | R8: 43984.58058 | T8: =IF(RAL>SgrvFP-SgrvFPN,MAX(0,(Tassazione_RAL!$E$20-Tassazione_RAL!$E$10)+(SgrvEXT-Tassazione_RAL!$E$10+Tassazione_RAL!$E$15)),0)+T7*(1+rateETF) -> 9609.959914 | U8: =IF(RAL>SgrvFP-SgrvFPN,MAX(0,(Tassazione_RAL!$E$20-Tassazione_RAL!$E$10)+(SgrvEXT-Tassazione_RAL!$E$10+Tassazione_RAL!$E$15)),0)+U7 -> 8413.4699 | V8: 1196.490014 | W8: =(1-costFPA)*(IF(RAL>SgrvFP-SgrvFPN,MAX(0,(Tassazione_RAL!$E$19-Tassazione_RAL!$E$9)-(Tassazione_RAL!$E$20-Tassazione_RAL!$E$10)),0)+W7*(1+(rateFPA*(1-plustaxFPA)))) -> 20502.33892 | X8: =IF(RAL>SgrvFP-SgrvFPN,MAX(0,(Tassazione_RAL!$E$19-Tassazione_RAL!$E$9)-(Tassazione_RAL!$E$20-Tassazione_RAL!$E$10)),0)+X7 -> 18442.3134 | Y8: 3256.392711 | Z8: 10609.4387 | AA8: 10080 | AB8: 655.2 | AC8: 13086.37776 | AD8: 12433.33333 | AE8: 830.2262524 | AF8: 53808.1153 | AG8: 46867.30459 | AI8: =IF(RAL>SgrvFP,MAX(0,IF($B$17>=$D8-4,0,IF(AND($B$18>0,$B$17+1=$D8-4),MAX(0,(SgrvEXT-Main!$B$18-Tassazione_RAL!$E$10+Tassazione_RAL!$E$15+Tassazione_RAL!$E$5-Tassazione_RAL!$E$25)),MAX(0,(SgrvEXT-Tassazione_RAL!$E$10+Tassazione_RAL!$E$15))))))+AI7*(1+rateETF) -> 22858.72851 | AJ8: =IF(RAL>SgrvFP,MAX(0,IF($B$17>=$D8-4,0,IF(AND($B$18>0,$B$17+1=$D8-4),MAX(0,(SgrvEXT-Main!$B$18-Tassazione_RAL!$E$10+Tassazione_RAL!$E$15+Tassazione_RAL!$E$5-Tassazione_RAL!$E$25)),MAX(0,(SgrvEXT-Tassazione_RAL!$E$10+Tassazione_RAL!$E$15))))))+AJ7 -> 18683.5945 | AK8: 4175.134012 | AL8: =(1-costFPA)*(IF(RAL>SgrvFP,MAX(0,IF($B$17>=$D8-4,MAX(0,SgrvFP+SgrvEXT),IF(AND($B$18>0,$B$17+1=$D8-4),MAX(0,SgrvFP+$B$18),MAX(0,SgrvFP)))))+AL7*(1+(rateFPA*(1-plustaxFPA)))) -> 7684.88512 | AM8: =IF(RAL>SgrvFP,MAX(0,IF($B$17>=$D8-4,MAX(0,SgrvFP+SgrvEXT),IF(AND($B$18>0,$B$17+1=$D8-4),MAX(0,SgrvFP+$B$18),MAX(0,SgrvFP)))))+AM7 -> 7746.86 | AN8: =AL7*(rateFPA)+AN7 -> 0 | AO8: 13822.14955 | AP8: 12433.33333 | AQ8: 2195.376207 | AR8: 44365.76318 | AS8: 40054.17314 | AU8: =IF(RAL>SgrvFP,MAX(0,SgrvEXT-Tassazione_RAL!$E$10+Tassazione_RAL!$E$15,0)+AU7*(1+rateETF)) -> 1988.3633 | AV8: =IF(RAL>SgrvFP,MAX(0,(SgrvEXT-Tassazione_RAL!$E$10+Tassazione_RAL!$E$15)),0)+AV7 -> 1988.3633 | AW8: 0 | AX8: 34448.74693 | AY8: 30987.42 | AZ8: 5471.504927 | BA8: 13822.14955 | BB8: 12433.33333 | BC8: 2195.376207 | BD8: 50259.25978 | BE8: 43018.62531 | BG8: =IF(RAL>SgrvFP-SgrvFPN,MAX(0,SgrvFP-SgrvFPN+Tassazione_RAL!$E$10-Tassazione_RAL!$E$20+(SgrvEXT-Tassazione_RAL!$E$10+Tassazione_RAL!$E$15)),0)+BG7*(1+rateETF) -> 23865.02343 | BH8: =IF(RAL>SgrvFP-SgrvFPN,MAX(0,SgrvFP-SgrvFPN+Tassazione_RAL!$E$10-Tassazione_RAL!$E$20+(SgrvEXT-Tassazione_RAL!$E$10+Tassazione_RAL!$E$15)),0)+BH7 -> 20430.6767 | BI8: 3434.346727 | BJ8: 10609.4387 | BK8: 10080 | BL8: 655.2 | BM8: 13086.37776 | BN8: 12433.33333 | BO8: 830.2262524 | BP8: 34474.46213 | BQ8: 43113.53727 | BS8: =IF(RAL>SgrvFP-SgrvFPN,MAX(0,SgrvFP+Tassazione_RAL!$E$10-Tassazione_RAL!$E$5+(SgrvEXT-Tassazione_RAL!$E$10+Tassazione_RAL!$E$15)),0)+BS7*(1+rateETF) -> 28583.81071 | BT8: =IF(RAL>SgrvFP-SgrvFPN,MAX(0,SgrvFP+Tassazione_RAL!$E$10-Tassazione_RAL!$E$5+(SgrvEXT-Tassazione_RAL!$E$10+Tassazione_RAL!$E$15)),0)+BT7 -> 24408.6767 | BU8: 4175.134012 | BV8: 12899.58333 | BW8: 12433.33333 | BX8: 466.25 | BY8: 37327.75837 | CA8: =IF(RAL>SgrvFP-SgrvFPN,MAX(0,IF($B$17>=$D8-4,MAX(0,Tassazione_RAL!$E$20-Tassazione_RAL!$E$15),IF(AND($B$18>0,$B$17+1=$D8-4),MAX(0,(Tassazione_RAL!$E$20-Tassazione_RAL!$E$10+Tassazione_RAL!$E$5-Tassazione_RAL!$E$25)+(SgrvEXT-Main!$B$18-Tassazione_RAL!$E$10+Tassazione_RAL!$E$15+Tassazione_RAL!$E$5-Tassazione_RAL!$E$25)),MAX(0,(Tassazione_RAL!$E$20-Tassazione_RAL!$E$10)+(SgrvEXT-Tassazione_RAL!$E$10+Tassazione_RAL!$E$15))))))+CA7*(1+rateETF) -> 20467.71903 | CB8: =IF(RAL>SgrvFP-SgrvFPN,MAX(0,IF($B$17>=$D8-4,MAX(0,Tassazione_RAL!$E$20-Tassazione_RAL!$E$15),IF(AND($B$18>0,$B$17+1=$D8-4),MAX(0,(Tassazione_RAL!$E$20-Tassazione_RAL!$E$10+Tassazione_RAL!$E$5-Tassazione_RAL!$E$25)+(SgrvEXT-Main!$B$18-Tassazione_RAL!$E$10+Tassazione_RAL!$E$15+Tassazione_RAL!$E$5-Tassazione_RAL!$E$25)),MAX(0,(Tassazione_RAL!$E$20-Tassazione_RAL!$E$10)+(SgrvEXT-Tassazione_RAL!$E$10+Tassazione_RAL!$E$15))))))+CB7 -> 17033.3723 | CC8: 3434.346727 | CD8: =(1-costFPA)*(IF(RAL>SgrvFP-SgrvFPN,MAX(0,IF($B$17>=$D8-4,MAX(0,(Tassazione_RAL!$E$19-Tassazione_RAL!$E$14)-(Tassazione_RAL!$E$20-Tassazione_RAL!$E$15)),IF(AND($B$18>0,$B$17+1=$D8-4),MAX(0,(Tassazione_RAL!$E$19-Tassazione_RAL!$E$9)-(Tassazione_RAL!$E$20-Tassazione_RAL!$E$10+Tassazione_RAL!$E$5-Tassazione_RAL!$E$25)),MAX(0,(Tassazione_RAL!$E$19-Tassazione_RAL!$E$9)-(Tassazione_RAL!$E$20-Tassazione_RAL!$E$10))))))+((CD7+IF(AND(CG8=0,CJ8=0,CG7<>0,CJ7<>0),CG7+CJ7,0))*(1+rateFPA*(1-plustaxFPA)))) -> 5021.585542 | CE8: =IF(RAL>SgrvFP-SgrvFPN,MAX(0,IF($B$17>=$D8-4,MAX(0,(Tassazione_RAL!$E$19-Tassazione_RAL!$E$14)-(Tassazione_RAL!$E$20-Tassazione_RAL!$E$15)),IF(AND($B$18>0,$B$17+1=$D8-4),MAX(0,(Tassazione_RAL!$E$19-Tassazione_RAL!$E$9)-(Tassazione_RAL!$E$20-Tassazione_RAL!$E$10+Tassazione_RAL!$E$5-Tassazione_RAL!$E$25)),MAX(0,(Tassazione_RAL!$E$19-Tassazione_RAL!$E$9)-(Tassazione_RAL!$E$20-Tassazione_RAL!$E$10))))))+CE7 -> 5062.0822 | CF8: =CD7*(rateFPA)+CF7 -> 0 | CG8: 10609.4387 | CH8: 10080 | CI8: 655.2 | CJ8: 13086.37776 | CK8: 12433.33333 | CL8: 830.2262524 | CM8: 49185.12103 | CN8: 43984.58058 | CP8: =IF(RAL>SgrvFP-SgrvFPN,MAX(0,(Tassazione_RAL!$E$20-Tassazione_RAL!$E$10)+(SgrvEXT-Tassazione_RAL!$E$10+Tassazione_RAL!$E$15)),0)+CP7*(1+rateETF) -> 9609.959914 | CQ8: =IF(RAL>SgrvFP-SgrvFPN,MAX(0,(Tassazione_RAL!$E$20-Tassazione_RAL!$E$10)+(SgrvEXT-Tassazione_RAL!$E$10+Tassazione_RAL!$E$15)),0)+CQ7 -> 8413.4699 | CR8: 1196.490014 | CS8: =(1-costFPA)*(IF(RAL>SgrvFP-SgrvFPN,MAX(0,(Tassazione_RAL!$E$19-Tassazione_RAL!$E$9)-(Tassazione_RAL!$E$20-Tassazione_RAL!$E$10)),0)+((CS7+IF(AND(CV8=0,CY8=0,CV7<>0,CY7<>0),CV7+CY7,0))*(1+rateFPA*(1-plustaxFPA)))) -> 20502.33892 | CT8: =IF(RAL>SgrvFP-SgrvFPN,MAX(0,(Tassazione_RAL!$E$19-Tassazione_RAL!$E$9)-(Tassazione_RAL!$E$20-Tassazione_RAL!$E$10)),0)+CT7 -> 18442.3134 | CU8: 3256.392711 | CV8: 10609.4387 | CW8: 10080 | CX8: 655.2 | CY8: 13086.37776 | CZ8: 12433.33333 | DA8: 830.2262524 | DB8: 53808.1153 | DC8: 46867.30459
A9: Tasso ETF | B9: 0.068 | D9: 6 | E9: =IF(RAL>SgrvFP-SgrvFPN,MAX(0,IF($B$17>=$D9-4,MAX(0,Tassazione_RAL!$E$20-Tassazione_RAL!$E$15),IF(AND($B$18>0,$B$17+1=$D9-4),MAX(0,(Tassazione_RAL!$E$20-Tassazione_RAL!$E$10+Tassazione_RAL!$E$5-Tassazione_RAL!$E$25)+(SgrvEXT-Main!$B$18-Tassazione_RAL!$E$10+Tassazione_RAL!$E$15+Tassazione_RAL!$E$5-Tassazione_RAL!$E$25)),MAX(0,(Tassazione_RAL!$E$20-Tassazione_RAL!$E$10)+(SgrvEXT-Tassazione_RAL!$E$10+Tassazione_RAL!$E$15))))))+E8*(1+rateETF) -> 23524.30172 | F9: =IF(RAL>SgrvFP-SgrvFPN,MAX(0,IF($B$17>=$D9-4,MAX(0,Tassazione_RAL!$E$20-Tassazione_RAL!$E$15),IF(AND($B$18>0,$B$17+1=$D9-4),MAX(0,(Tassazione_RAL!$E$20-Tassazione_RAL!$E$10+Tassazione_RAL!$E$5-Tassazione_RAL!$E$25)+(SgrvEXT-Main!$B$18-Tassazione_RAL!$E$10+Tassazione_RAL!$E$15+Tassazione_RAL!$E$5-Tassazione_RAL!$E$25)),MAX(0,(Tassazione_RAL!$E$20-Tassazione_RAL!$E$10)+(SgrvEXT-Tassazione_RAL!$E$10+Tassazione_RAL!$E$15))))))+F8 -> 18698.1501 | G9: 4826.15162 | H9: =(1-costFPA)*(IF(RAL>SgrvFP-SgrvFPN,MAX(0,IF($B$17>=$D9-4,MAX(0,(Tassazione_RAL!$E$19-Tassazione_RAL!$E$14)-(Tassazione_RAL!$E$20-Tassazione_RAL!$E$15)),IF(AND($B$18>0,$B$17+1=$D9-4),MAX(0,(Tassazione_RAL!$E$19-Tassazione_RAL!$E$9)-(Tassazione_RAL!$E$20-Tassazione_RAL!$E$10+Tassazione_RAL!$E$5-Tassazione_RAL!$E$25)),MAX(0,(Tassazione_RAL!$E$19-Tassazione_RAL!$E$9)-(Tassazione_RAL!$E$20-Tassazione_RAL!$E$10))))))+H8*(1+rateFPA*(1-plustaxFPA))) -> 10271.25371 | I9: =IF(RAL>SgrvFP-SgrvFPN,MAX(0,IF($B$17>=$D9-4,MAX(0,(Tassazione_RAL!$E$19-Tassazione_RAL!$E$14)-(Tassazione_RAL!$E$20-Tassazione_RAL!$E$15)),IF(AND($B$18>0,$B$17+1=$D9-4),MAX(0,(Tassazione_RAL!$E$19-Tassazione_RAL!$E$9)-(Tassazione_RAL!$E$20-Tassazione_RAL!$E$10+Tassazione_RAL!$E$5-Tassazione_RAL!$E$25)),MAX(0,(Tassazione_RAL!$E$19-Tassazione_RAL!$E$9)-(Tassazione_RAL!$E$20-Tassazione_RAL!$E$10))))))+I8 -> 10124.1644 | J9: 336.4462313 | K9: 12508.37568 | L9: 11760 | M9: 917.28 | N9: 15428.65121 | O9: 14505.55556 | P9: 1170.472074 | Q9: 61732.58232 | R9: 54746.54081 | T9: =IF(RAL>SgrvFP-SgrvFPN,MAX(0,(Tassazione_RAL!$E$20-Tassazione_RAL!$E$10)+(SgrvEXT-Tassazione_RAL!$E$10+Tassazione_RAL!$E$15)),0)+T8*(1+rateETF) -> 13322.65159 | U9: =IF(RAL>SgrvFP-SgrvFPN,MAX(0,(Tassazione_RAL!$E$20-Tassazione_RAL!$E$10)+(SgrvEXT-Tassazione_RAL!$E$10+Tassazione_RAL!$E$15)),0)+U8 -> 11472.6843 | V9: 1849.967288 | W9: =(1-costFPA)*(IF(RAL>SgrvFP-SgrvFPN,MAX(0,(Tassazione_RAL!$E$19-Tassazione_RAL!$E$9)-(Tassazione_RAL!$E$20-Tassazione_RAL!$E$10)),0)+W8*(1+(rateFPA*(1-plustaxFPA)))) -> 24482.69332 | X9: =IF(RAL>SgrvFP-SgrvFPN,MAX(0,(Tassazione_RAL!$E$19-Tassazione_RAL!$E$9)-(Tassazione_RAL!$E$20-Tassazione_RAL!$E$10)),0)+X8 -> 21516.0323 | Y9: 4630.049419 | Z9: 12508.37568 | AA9: 11760 | AB9: 917.28 | AC9: 15428.65121 | AD9: 14505.55556 | AE9: 1170.472074 | AF9: 65742.3718 | AG9: 57398.42227 | AI9: =IF(RAL>SgrvFP,MAX(0,IF($B$17>=$D9-4,0,IF(AND($B$18>0,$B$17+1=$D9-4),MAX(0,(SgrvEXT-Main!$B$18-Tassazione_RAL!$E$10+Tassazione_RAL!$E$15+Tassazione_RAL!$E$5-Tassazione_RAL!$E$25)),MAX(0,(SgrvEXT-Tassazione_RAL!$E$10+Tassazione_RAL!$E$15))))))+AI8*(1+rateETF) -> 24413.12205 | AJ9: =IF(RAL>SgrvFP,MAX(0,IF($B$17>=$D9-4,0,IF(AND($B$18>0,$B$17+1=$D9-4),MAX(0,(SgrvEXT-Main!$B$18-Tassazione_RAL!$E$10+Tassazione_RAL!$E$15+Tassazione_RAL!$E$5-Tassazione_RAL!$E$25)),MAX(0,(SgrvEXT-Tassazione_RAL!$E$10+Tassazione_RAL!$E$15))))))+AJ8 -> 18683.5945 | AK9: 5729.527551 | AL9: 15718.8211 | AM9: 15493.72 | AN9: 514.887303 | AO9: 16505.60211 | AP9: 14505.55556 | AQ9: 3121.460227 | AR9: 56637.54526 | AS9: 50314.20462 | AU9: =IF(RAL>SgrvFP,MAX(0,SgrvEXT-Tassazione_RAL!$E$10+Tassazione_RAL!$E$15,0)+AU8*(1+rateETF)) -> 4111.935304 | AV9: =IF(RAL>SgrvFP,MAX(0,(SgrvEXT-Tassazione_RAL!$E$10+Tassazione_RAL!$E$15)),0)+AV8 -> 3976.7266 | AW9: 135.2087044 | AX9: 41136.67761 | AY9: 36151.99 | AZ9: 7779.570971 | BA9: 16505.60211 | BB9: 14505.55556 | BC9: 3121.460227 | BD9: 61754.21502 | BE9: 53072.7188 | BG9: =IF(RAL>SgrvFP-SgrvFPN,MAX(0,SgrvFP-SgrvFPN+Tassazione_RAL!$E$10-Tassazione_RAL!$E$20+(SgrvEXT-Tassazione_RAL!$E$10+Tassazione_RAL!$E$15)),0)+BG8*(1+rateETF) -> 30549.92722 | BH9: =IF(RAL>SgrvFP-SgrvFPN,MAX(0,SgrvFP-SgrvFPN+Tassazione_RAL!$E$10-Tassazione_RAL!$E$20+(SgrvEXT-Tassazione_RAL!$E$10+Tassazione_RAL!$E$15)),0)+BH8 -> 25492.7589 | BI9: 5057.16832 | BJ9: 12508.37568 | BK9: 11760 | BL9: 917.28 | BM9: 15428.65121 | BN9: 14505.55556 | BO9: 1170.472074 | BP9: 43058.3029 | BQ9: 52981.53631 | BS9: =IF(RAL>SgrvFP-SgrvFPN,MAX(0,SgrvFP+Tassazione_RAL!$E$10-Tassazione_RAL!$E$5+(SgrvEXT-Tassazione_RAL!$E$10+Tassazione_RAL!$E$15)),0)+BS8*(1+rateETF) -> 36252.59204 | BT9: =IF(RAL>SgrvFP-SgrvFPN,MAX(0,SgrvFP+Tassazione_RAL!$E$10-Tassazione_RAL!$E$5+(SgrvEXT-Tassazione_RAL!$E$10+Tassazione_RAL!$E$15)),0)+BT8 -> 30133.7589 | BU9: 6118.83314 | BV9: 15049.51389 | BW9: 14505.55556 | BX9: 543.9583333 | BY9: 46129.42501 | CA9: =IF(RAL>SgrvFP-SgrvFPN,MAX(0,IF($B$17>=$D9-4,MAX(0,Tassazione_RAL!$E$20-Tassazione_RAL!$E$15),IF(AND($B$18>0,$B$17+1=$D9-4),MAX(0,(Tassazione_RAL!$E$20-Tassazione_RAL!$E$10+Tassazione_RAL!$E$5-Tassazione_RAL!$E$25)+(SgrvEXT-Main!$B$18-Tassazione_RAL!$E$10+Tassazione_RAL!$E$15+Tassazione_RAL!$E$5-Tassazione_RAL!$E$25)),MAX(0,(Tassazione_RAL!$E$20-Tassazione_RAL!$E$10)+(SgrvEXT-Tassazione_RAL!$E$10+Tassazione_RAL!$E$15))))))+CA8*(1+rateETF) -> 23524.30172 | CB9: =IF(RAL>SgrvFP-SgrvFPN,MAX(0,IF($B$17>=$D9-4,MAX(0,Tassazione_RAL!$E$20-Tassazione_RAL!$E$15),IF(AND($B$18>0,$B$17+1=$D9-4),MAX(0,(Tassazione_RAL!$E$20-Tassazione_RAL!$E$10+Tassazione_RAL!$E$5-Tassazione_RAL!$E$25)+(SgrvEXT-Main!$B$18-Tassazione_RAL!$E$10+Tassazione_RAL!$E$15+Tassazione_RAL!$E$5-Tassazione_RAL!$E$25)),MAX(0,(Tassazione_RAL!$E$20-Tassazione_RAL!$E$10)+(SgrvEXT-Tassazione_RAL!$E$10+Tassazione_RAL!$E$15))))))+CB8 -> 18698.1501 | CC9: 4826.15162 | CD9: =(1-costFPA)*(IF(RAL>SgrvFP-SgrvFPN,MAX(0,IF($B$17>=$D9-4,MAX(0,(Tassazione_RAL!$E$19-Tassazione_RAL!$E$14)-(Tassazione_RAL!$E$20-Tassazione_RAL!$E$15)),IF(AND($B$18>0,$B$17+1=$D9-4),MAX(0,(Tassazione_RAL!$E$19-Tassazione_RAL!$E$9)-(Tassazione_RAL!$E$20-Tassazione_RAL!$E$10+Tassazione_RAL!$E$5-Tassazione_RAL!$E$25)),MAX(0,(Tassazione_RAL!$E$19-Tassazione_RAL!$E$9)-(Tassazione_RAL!$E$20-Tassazione_RAL!$E$10))))))+((CD8+IF(AND(CG9=0,CJ9=0,CG8<>0,CJ8<>0),CG8+CJ8,0))*(1+rateFPA*(1-plustaxFPA)))) -> 10271.25371 | CE9: =IF(RAL>SgrvFP-SgrvFPN,MAX(0,IF($B$17>=$D9-4,MAX(0,(Tassazione_RAL!$E$19-Tassazione_RAL!$E$14)-(Tassazione_RAL!$E$20-Tassazione_RAL!$E$15)),IF(AND($B$18>0,$B$17+1=$D9-4),MAX(0,(Tassazione_RAL!$E$19-Tassazione_RAL!$E$9)-(Tassazione_RAL!$E$20-Tassazione_RAL!$E$10+Tassazione_RAL!$E$5-Tassazione_RAL!$E$25)),MAX(0,(Tassazione_RAL!$E$19-Tassazione_RAL!$E$9)-(Tassazione_RAL!$E$20-Tassazione_RAL!$E$10))))))+CE8 -> 10124.1644 | CF9: 336.4462313 | CG9: 12508.37568 | CH9: 11760 | CI9: 917.28 | CJ9: 15428.65121 | CK9: 14505.55556 | CL9: 1170.472074 | CM9: 61732.58232 | CN9: 54746.54081 | CP9: =IF(RAL>SgrvFP-SgrvFPN,MAX(0,(Tassazione_RAL!$E$20-Tassazione_RAL!$E$10)+(SgrvEXT-Tassazione_RAL!$E$10+Tassazione_RAL!$E$15)),0)+CP8*(1+rateETF) -> 13322.65159 | CQ9: =IF(RAL>SgrvFP-SgrvFPN,MAX(0,(Tassazione_RAL!$E$20-Tassazione_RAL!$E$10)+(SgrvEXT-Tassazione_RAL!$E$10+Tassazione_RAL!$E$15)),0)+CQ8 -> 11472.6843 | CR9: 1849.967288 | CS9: =(1-costFPA)*(IF(RAL>SgrvFP-SgrvFPN,MAX(0,(Tassazione_RAL!$E$19-Tassazione_RAL!$E$9)-(Tassazione_RAL!$E$20-Tassazione_RAL!$E$10)),0)+((CS8+IF(AND(CV9=0,CY9=0,CV8<>0,CY8<>0),CV8+CY8,0))*(1+rateFPA*(1-plustaxFPA)))) -> 24482.69332 | CT9: =IF(RAL>SgrvFP-SgrvFPN,MAX(0,(Tassazione_RAL!$E$19-Tassazione_RAL!$E$9)-(Tassazione_RAL!$E$20-Tassazione_RAL!$E$10)),0)+CT8 -> 21516.0323 | CU9: 4630.049419 | CV9: 12508.37568 | CW9: 11760 | CX9: 917.28 | CY9: 15428.65121 | CZ9: 14505.55556 | DA9: 1170.472074 | DB9: 65742.3718 | DC9: 57398.42227
A10: Tasso FPA | B10: 0.067 | D10: 7 | E10: =IF(RAL>SgrvFP-SgrvFPN,MAX(0,IF($B$17>=$D10-4,MAX(0,Tassazione_RAL!$E$20-Tassazione_RAL!$E$15),IF(AND($B$18>0,$B$17+1=$D10-4),MAX(0,(Tassazione_RAL!$E$20-Tassazione_RAL!$E$10+Tassazione_RAL!$E$5-Tassazione_RAL!$E$25)+(SgrvEXT-Main!$B$18-Tassazione_RAL!$E$10+Tassazione_RAL!$E$15+Tassazione_RAL!$E$5-Tassazione_RAL!$E$25)),MAX(0,(Tassazione_RAL!$E$20-Tassazione_RAL!$E$10)+(SgrvEXT-Tassazione_RAL!$E$10+Tassazione_RAL!$E$15))))))+E9*(1+rateETF) -> 26788.73204 | F10: =IF(RAL>SgrvFP-SgrvFPN,MAX(0,IF($B$17>=$D10-4,MAX(0,Tassazione_RAL!$E$20-Tassazione_RAL!$E$15),IF(AND($B$18>0,$B$17+1=$D10-4),MAX(0,(Tassazione_RAL!$E$20-Tassazione_RAL!$E$10+Tassazione_RAL!$E$5-Tassazione_RAL!$E$25)+(SgrvEXT-Main!$B$18-Tassazione_RAL!$E$10+Tassazione_RAL!$E$15+Tassazione_RAL!$E$5-Tassazione_RAL!$E$25)),MAX(0,(Tassazione_RAL!$E$20-Tassazione_RAL!$E$10)+(SgrvEXT-Tassazione_RAL!$E$10+Tassazione_RAL!$E$15))))))+F9 -> 20362.9279 | G10: 6425.804137 | H10: =(1-costFPA)*(IF(RAL>SgrvFP-SgrvFPN,MAX(0,IF($B$17>=$D10-4,MAX(0,(Tassazione_RAL!$E$19-Tassazione_RAL!$E$14)-(Tassazione_RAL!$E$20-Tassazione_RAL!$E$15)),IF(AND($B$18>0,$B$17+1=$D10-4),MAX(0,(Tassazione_RAL!$E$19-Tassazione_RAL!$E$9)-(Tassazione_RAL!$E$20-Tassazione_RAL!$E$10+Tassazione_RAL!$E$5-Tassazione_RAL!$E$25)),MAX(0,(Tassazione_RAL!$E$19-Tassazione_RAL!$E$9)-(Tassazione_RAL!$E$20-Tassazione_RAL!$E$10))))))+H9*(1+rateFPA*(1-plustaxFPA))) -> 15759.36411 | I10: =IF(RAL>SgrvFP-SgrvFPN,MAX(0,IF($B$17>=$D10-4,MAX(0,(Tassazione_RAL!$E$19-Tassazione_RAL!$E$14)-(Tassazione_RAL!$E$20-Tassazione_RAL!$E$15)),IF(AND($B$18>0,$B$17+1=$D10-4),MAX(0,(Tassazione_RAL!$E$19-Tassazione_RAL!$E$9)-(Tassazione_RAL!$E$20-Tassazione_RAL!$E$10+Tassazione_RAL!$E$5-Tassazione_RAL!$E$25)),MAX(0,(Tassazione_RAL!$E$19-Tassazione_RAL!$E$9)-(Tassazione_RAL!$E$20-Tassazione_RAL!$E$10))))))+I9 -> 15186.2466 | J10: 1024.62023 | K10: 14446.73978 | L10: 13440 | M10: 1223.04 | N10: 17819.55667 | O10: 16577.77778 | P10: 1571.617006 | Q10: 74814.3926 | R10: 65939.83444 | T10: =IF(RAL>SgrvFP-SgrvFPN,MAX(0,(Tassazione_RAL!$E$20-Tassazione_RAL!$E$10)+(SgrvEXT-Tassazione_RAL!$E$10+Tassazione_RAL!$E$15)),0)+T9*(1+rateETF) -> 17287.8063 | U10: =IF(RAL>SgrvFP-SgrvFPN,MAX(0,(Tassazione_RAL!$E$20-Tassazione_RAL!$E$10)+(SgrvEXT-Tassazione_RAL!$E$10+Tassazione_RAL!$E$15)),0)+U9 -> 14531.8987 | V10: 2755.907596 | W10: =(1-costFPA)*(IF(RAL>SgrvFP-SgrvFPN,MAX(0,(Tassazione_RAL!$E$19-Tassazione_RAL!$E$9)-(Tassazione_RAL!$E$20-Tassazione_RAL!$E$10)),0)+W9*(1+(rateFPA*(1-plustaxFPA)))) -> 28643.83717 | X10: =IF(RAL>SgrvFP-SgrvFPN,MAX(0,(Tassazione_RAL!$E$19-Tassazione_RAL!$E$9)-(Tassazione_RAL!$E$20-Tassazione_RAL!$E$10)),0)+X9 -> 24589.7512 | Y10: 6270.389871 | Z10: 14446.73978 | AA10: 13440 | AB10: 1223.04 | AC10: 17819.55667 | AD10: 16577.77778 | AE10: 1571.617006 | AF10: 78197.93992 | AG10: 68344.8839 | AI10: =IF(RAL>SgrvFP,MAX(0,IF($B$17>=$D10-4,0,IF(AND($B$18>0,$B$17+1=$D10-4),MAX(0,(SgrvEXT-Main!$B$18-Tassazione_RAL!$E$10+Tassazione_RAL!$E$15+Tassazione_RAL!$E$5-Tassazione_RAL!$E$25)),MAX(0,(SgrvEXT-Tassazione_RAL!$E$10+Tassazione_RAL!$E$15))))))+AI9*(1+rateETF) -> 26073.21435 | AJ10: =IF(RAL>SgrvFP,MAX(0,IF($B$17>=$D10-4,0,IF(AND($B$18>0,$B$17+1=$D10-4),MAX(0,(SgrvEXT-Main!$B$18-Tassazione_RAL!$E$10+Tassazione_RAL!$E$15+Tassazione_RAL!$E$5-Tassazione_RAL!$E$25)),MAX(0,(SgrvEXT-Tassazione_RAL!$E$10+Tassazione_RAL!$E$15))))))+AJ9 -> 18683.5945 | AK10: 7389.61985 | AL10: 24117.66199 | AM10: 23240.58 | AN10: 1568.048317 | AO10: 19310.93827 | AP10: 16577.77778 | AQ10: 4227.335569 | AR10: 69501.81461 | AS10: 61066.22341 | AU10: =IF(RAL>SgrvFP,MAX(0,SgrvEXT-Tassazione_RAL!$E$10+Tassazione_RAL!$E$15,0)+AU9*(1+rateETF)) -> 6379.910205 | AV10: =IF(RAL>SgrvFP,MAX(0,(SgrvEXT-Tassazione_RAL!$E$10+Tassazione_RAL!$E$15)),0)+AV9 -> 5965.0899 | AW10: 414.8203051 | AX10: 48128.37705 | AY10: 41316.56 | AZ10: 10535.72837 | BA10: 19310.93827 | BB10: 16577.77778 | BC10: 4227.335569 | BD10: 73819.22552 | BE10: 63595.47494 | BG10: =IF(RAL>SgrvFP-SgrvFPN,MAX(0,SgrvFP-SgrvFPN+Tassazione_RAL!$E$10-Tassazione_RAL!$E$20+(SgrvEXT-Tassazione_RAL!$E$10+Tassazione_RAL!$E$15)),0)+BG9*(1+rateETF) -> 37689.40447 | BH10: =IF(RAL>SgrvFP-SgrvFPN,MAX(0,SgrvFP-SgrvFPN+Tassazione_RAL!$E$10-Tassazione_RAL!$E$20+(SgrvEXT-Tassazione_RAL!$E$10+Tassazione_RAL!$E$15)),0)+BH9 -> 30554.8411 | BI10: 7134.563371 | BJ10: 14446.73978 | BK10: 13440 | BL10: 1223.04 | BM10: 17819.55667 | BN10: 16577.77778 | BO10: 1571.617006 | BP10: 52136.14425 | BQ10: 63260.76998 | BS10: =IF(RAL>SgrvFP-SgrvFPN,MAX(0,SgrvFP+Tassazione_RAL!$E$10-Tassazione_RAL!$E$5+(SgrvEXT-Tassazione_RAL!$E$10+Tassazione_RAL!$E$15)),0)+BS9*(1+rateETF) -> 44442.8505 | BT10: =IF(RAL>SgrvFP-SgrvFPN,MAX(0,SgrvFP+Tassazione_RAL!$E$10-Tassazione_RAL!$E$5+(SgrvEXT-Tassazione_RAL!$E$10+Tassazione_RAL!$E$15)),0)+BT9 -> 35858.8411 | BU10: 8584.009399 | BV10: 17199.44444 | BW10: 16577.77778 | BX10: 621.6666667 | BY10: 55316.98472 | CA10: =IF(RAL>SgrvFP-SgrvFPN,MAX(0,IF($B$17>=$D10-4,MAX(0,Tassazione_RAL!$E$20-Tassazione_RAL!$E$15),IF(AND($B$18>0,$B$17+1=$D10-4),MAX(0,(Tassazione_RAL!$E$20-Tassazione_RAL!$E$10+Tassazione_RAL!$E$5-Tassazione_RAL!$E$25)+(SgrvEXT-Main!$B$18-Tassazione_RAL!$E$10+Tassazione_RAL!$E$15+Tassazione_RAL!$E$5-Tassazione_RAL!$E$25)),MAX(0,(Tassazione_RAL!$E$20-Tassazione_RAL!$E$10)+(SgrvEXT-Tassazione_RAL!$E$10+Tassazione_RAL!$E$15))))))+CA9*(1+rateETF) -> 26788.73204 | CB10: =IF(RAL>SgrvFP-SgrvFPN,MAX(0,IF($B$17>=$D10-4,MAX(0,Tassazione_RAL!$E$20-Tassazione_RAL!$E$15),IF(AND($B$18>0,$B$17+1=$D10-4),MAX(0,(Tassazione_RAL!$E$20-Tassazione_RAL!$E$10+Tassazione_RAL!$E$5-Tassazione_RAL!$E$25)+(SgrvEXT-Main!$B$18-Tassazione_RAL!$E$10+Tassazione_RAL!$E$15+Tassazione_RAL!$E$5-Tassazione_RAL!$E$25)),MAX(0,(Tassazione_RAL!$E$20-Tassazione_RAL!$E$10)+(SgrvEXT-Tassazione_RAL!$E$10+Tassazione_RAL!$E$15))))))+CB9 -> 20362.9279 | CC10: 6425.804137 | CD10: =(1-costFPA)*(IF(RAL>SgrvFP-SgrvFPN,MAX(0,IF($B$17>=$D10-4,MAX(0,(Tassazione_RAL!$E$19-Tassazione_RAL!$E$14)-(Tassazione_RAL!$E$20-Tassazione_RAL!$E$15)),IF(AND($B$18>0,$B$17+1=$D10-4),MAX(0,(Tassazione_RAL!$E$19-Tassazione_RAL!$E$9)-(Tassazione_RAL!$E$20-Tassazione_RAL!$E$10+Tassazione_RAL!$E$5-Tassazione_RAL!$E$25)),MAX(0,(Tassazione_RAL!$E$19-Tassazione_RAL!$E$9)-(Tassazione_RAL!$E$20-Tassazione_RAL!$E$10))))))+((CD9+IF(AND(CG10=0,CJ10=0,CG9<>0,CJ9<>0),CG9+CJ9,0))*(1+rateFPA*(1-plustaxFPA)))) -> 15759.36411 | CE10: =IF(RAL>SgrvFP-SgrvFPN,MAX(0,IF($B$17>=$D10-4,MAX(0,(Tassazione_RAL!$E$19-Tassazione_RAL!$E$14)-(Tassazione_RAL!$E$20-Tassazione_RAL!$E$15)),IF(AND($B$18>0,$B$17+1=$D10-4),MAX(0,(Tassazione_RAL!$E$19-Tassazione_RAL!$E$9)-(Tassazione_RAL!$E$20-Tassazione_RAL!$E$10+Tassazione_RAL!$E$5-Tassazione_RAL!$E$25)),MAX(0,(Tassazione_RAL!$E$19-Tassazione_RAL!$E$9)-(Tassazione_RAL!$E$20-Tassazione_RAL!$E$10))))))+CE9 -> 15186.2466 | CF10: 1024.62023 | CG10: 14446.73978 | CH10: 13440 | CI10: 1223.04 | CJ10: 17819.55667 | CK10: 16577.77778 | CL10: 1571.617006 | CM10: 74814.3926 | CN10: 65939.83444 | CP10: =IF(RAL>SgrvFP-SgrvFPN,MAX(0,(Tassazione_RAL!$E$20-Tassazione_RAL!$E$10)+(SgrvEXT-Tassazione_RAL!$E$10+Tassazione_RAL!$E$15)),0)+CP9*(1+rateETF) -> 17287.8063 | CQ10: =IF(RAL>SgrvFP-SgrvFPN,MAX(0,(Tassazione_RAL!$E$20-Tassazione_RAL!$E$10)+(SgrvEXT-Tassazione_RAL!$E$10+Tassazione_RAL!$E$15)),0)+CQ9 -> 14531.8987 | CR10: 2755.907596 | CS10: =(1-costFPA)*(IF(RAL>SgrvFP-SgrvFPN,MAX(0,(Tassazione_RAL!$E$19-Tassazione_RAL!$E$9)-(Tassazione_RAL!$E$20-Tassazione_RAL!$E$10)),0)+((CS9+IF(AND(CV10=0,CY10=0,CV9<>0,CY9<>0),CV9+CY9,0))*(1+rateFPA*(1-plustaxFPA)))) -> 28643.83717 | CT10: =IF(RAL>SgrvFP-SgrvFPN,MAX(0,(Tassazione_RAL!$E$19-Tassazione_RAL!$E$9)-(Tassazione_RAL!$E$20-Tassazione_RAL!$E$10)),0)+CT9 -> 24589.7512 | CU10: 6270.389871 | CV10: 14446.73978 | CW10: 13440 | CX10: 1223.04 | CY10: 17819.55667 | CZ10: 16577.77778 | DA10: 1571.617006 | DB10: 78197.93992 | DC10: 68344.8839
A11: Tasso FPN | B11: 0.026 | D11: 8 | E11: =IF(RAL>SgrvFP-SgrvFPN,MAX(0,IF($B$17>=$D11-4,MAX(0,Tassazione_RAL!$E$20-Tassazione_RAL!$E$15),IF(AND($B$18>0,$B$17+1=$D11-4),MAX(0,(Tassazione_RAL!$E$20-Tassazione_RAL!$E$10+Tassazione_RAL!$E$5-Tassazione_RAL!$E$25)+(SgrvEXT-Main!$B$18-Tassazione_RAL!$E$10+Tassazione_RAL!$E$15+Tassazione_RAL!$E$5-Tassazione_RAL!$E$25)),MAX(0,(Tassazione_RAL!$E$20-Tassazione_RAL!$E$10)+(SgrvEXT-Tassazione_RAL!$E$10+Tassazione_RAL!$E$15))))))+E10*(1+rateETF) -> 30275.14362 | F11: =IF(RAL>SgrvFP-SgrvFPN,MAX(0,IF($B$17>=$D11-4,MAX(0,Tassazione_RAL!$E$20-Tassazione_RAL!$E$15),IF(AND($B$18>0,$B$17+1=$D11-4),MAX(0,(Tassazione_RAL!$E$20-Tassazione_RAL!$E$10+Tassazione_RAL!$E$5-Tassazione_RAL!$E$25)+(SgrvEXT-Main!$B$18-Tassazione_RAL!$E$10+Tassazione_RAL!$E$15+Tassazione_RAL!$E$5-Tassazione_RAL!$E$25)),MAX(0,(Tassazione_RAL!$E$20-Tassazione_RAL!$E$10)+(SgrvEXT-Tassazione_RAL!$E$10+Tassazione_RAL!$E$15))))))+F10 -> 22027.7057 | G11: 8247.437916 | H11: =(1-costFPA)*(IF(RAL>SgrvFP-SgrvFPN,MAX(0,IF($B$17>=$D11-4,MAX(0,(Tassazione_RAL!$E$19-Tassazione_RAL!$E$14)-(Tassazione_RAL!$E$20-Tassazione_RAL!$E$15)),IF(AND($B$18>0,$B$17+1=$D11-4),MAX(0,(Tassazione_RAL!$E$19-Tassazione_RAL!$E$9)-(Tassazione_RAL!$E$20-Tassazione_RAL!$E$10+Tassazione_RAL!$E$5-Tassazione_RAL!$E$25)),MAX(0,(Tassazione_RAL!$E$19-Tassazione_RAL!$E$9)-(Tassazione_RAL!$E$20-Tassazione_RAL!$E$10))))))+H10*(1+rateFPA*(1-plustaxFPA))) -> 21496.74691 | I11: =IF(RAL>SgrvFP-SgrvFPN,MAX(0,IF($B$17>=$D11-4,MAX(0,(Tassazione_RAL!$E$19-Tassazione_RAL!$E$14)-(Tassazione_RAL!$E$20-Tassazione_RAL!$E$15)),IF(AND($B$18>0,$B$17+1=$D11-4),MAX(0,(Tassazione_RAL!$E$19-Tassazione_RAL!$E$9)-(Tassazione_RAL!$E$20-Tassazione_RAL!$E$10+Tassazione_RAL!$E$5-Tassazione_RAL!$E$25)),MAX(0,(Tassazione_RAL!$E$19-Tassazione_RAL!$E$9)-(Tassazione_RAL!$E$20-Tassazione_RAL!$E$10))))))+I10 -> 20248.3288 | J11: 2080.497626 | K11: 16425.34962 | L11: 15120 | M11: 1572.48 | N11: 20260.10387 | O11: 18650 | P11: 2034.925479 | Q11: 88457.34401 | R11: 77585.6801 | T11: =IF(RAL>SgrvFP-SgrvFPN,MAX(0,(Tassazione_RAL!$E$20-Tassazione_RAL!$E$10)+(SgrvEXT-Tassazione_RAL!$E$10+Tassazione_RAL!$E$15)),0)+T10*(1+rateETF) -> 21522.59152 | U11: =IF(RAL>SgrvFP-SgrvFPN,MAX(0,(Tassazione_RAL!$E$20-Tassazione_RAL!$E$10)+(SgrvEXT-Tassazione_RAL!$E$10+Tassazione_RAL!$E$15)),0)+U10 -> 17591.1131 | V11: 3931.478424 | W11: =(1-costFPA)*(IF(RAL>SgrvFP-SgrvFPN,MAX(0,(Tassazione_RAL!$E$19-Tassazione_RAL!$E$9)-(Tassazione_RAL!$E$20-Tassazione_RAL!$E$10)),0)+W10*(1+(rateFPA*(1-plustaxFPA)))) -> 32993.98201 | X11: =IF(RAL>SgrvFP-SgrvFPN,MAX(0,(Tassazione_RAL!$E$19-Tassazione_RAL!$E$9)-(Tassazione_RAL!$E$20-Tassazione_RAL!$E$10)),0)+X10 -> 27663.4701 | Y11: 8189.526962 | Z11: 16425.34962 | AA11: 15120 | AB11: 1572.48 | AC11: 20260.10387 | AD11: 18650 | AE11: 2034.925479 | AF11: 91202.02702 | AG11: 79727.92731 | AI11: =IF(RAL>SgrvFP,MAX(0,IF($B$17>=$D11-4,0,IF(AND($B$18>0,$B$17+1=$D11-4),MAX(0,(SgrvEXT-Main!$B$18-Tassazione_RAL!$E$10+Tassazione_RAL!$E$15+Tassazione_RAL!$E$5-Tassazione_RAL!$E$25)),MAX(0,(SgrvEXT-Tassazione_RAL!$E$10+Tassazione_RAL!$E$15))))))+AI10*(1+rateETF) -> 27846.19293 | AJ11: =IF(RAL>SgrvFP,MAX(0,IF($B$17>=$D11-4,0,IF(AND($B$18>0,$B$17+1=$D11-4),MAX(0,(SgrvEXT-Main!$B$18-Tassazione_RAL!$E$10+Tassazione_RAL!$E$15+Tassazione_RAL!$E$5-Tassazione_RAL!$E$25)),MAX(0,(SgrvEXT-Tassazione_RAL!$E$10+Tassazione_RAL!$E$15))))))+AJ10 -> 18683.5945 | AK11: 9162.598426 | AL11: 32897.98193 | AM11: 30987.44 | AN11: 3183.931671 | AO11: 22243.69402 | AP11: 18650 | AQ11: 5521.168432 | AR11: 82987.86888 | AS11: 72334.3419 | AU11: =IF(RAL>SgrvFP,MAX(0,SgrvEXT-Tassazione_RAL!$E$10+Tassazione_RAL!$E$15,0)+AU10*(1+rateETF)) -> 8802.107399 | AV11: =IF(RAL>SgrvFP,MAX(0,(SgrvEXT-Tassazione_RAL!$E$10+Tassazione_RAL!$E$15)),0)+AV10 -> 7953.4532 | AW11: 848.654199 | AX11: 55437.64255 | AY11: 46481.13 | AZ11: 13760.32963 | BA11: 22243.69402 | BB11: 18650 | BC11: 5521.168432 | BD11: 86483.44397 | BE11: 74610.59339 | BG11: =IF(RAL>SgrvFP-SgrvFPN,MAX(0,SgrvFP-SgrvFPN+Tassazione_RAL!$E$10-Tassazione_RAL!$E$20+(SgrvEXT-Tassazione_RAL!$E$10+Tassazione_RAL!$E$15)),0)+BG10*(1+rateETF) -> 45314.36617 | BH11: =IF(RAL>SgrvFP-SgrvFPN,MAX(0,SgrvFP-SgrvFPN+Tassazione_RAL!$E$10-Tassazione_RAL!$E$20+(SgrvEXT-Tassazione_RAL!$E$10+Tassazione_RAL!$E$15)),0)+BH10 -> 35616.9233 | BI11: 9697.442875 | BJ11: 16425.34962 | BK11: 15120 | BL11: 1572.48 | BM11: 20260.10387 | BN11: 18650 | BO11: 2034.925479 | BP11: 61739.7158 | BQ11: 73975.66649 | BS11: =IF(RAL>SgrvFP-SgrvFPN,MAX(0,SgrvFP+Tassazione_RAL!$E$10-Tassazione_RAL!$E$5+(SgrvEXT-Tassazione_RAL!$E$10+Tassazione_RAL!$E$15)),0)+BS10*(1+rateETF) -> 53190.04653 | BT11: =IF(RAL>SgrvFP-SgrvFPN,MAX(0,SgrvFP+Tassazione_RAL!$E$10-Tassazione_RAL!$E$5+(SgrvEXT-Tassazione_RAL!$E$10+Tassazione_RAL!$E$15)),0)+BT10 -> 41583.9233 | BU11: 11606.12323 | BV11: 19349.375 | BW11: 18650 | BX11: 699.375 | BY11: 64916.67824 | CA11: =IF(RAL>SgrvFP-SgrvFPN,MAX(0,IF($B$17>=$D11-4,MAX(0,Tassazione_RAL!$E$20-Tassazione_RAL!$E$15),IF(AND($B$18>0,$B$17+1=$D11-4),MAX(0,(Tassazione_RAL!$E$20-Tassazione_RAL!$E$10+Tassazione_RAL!$E$5-Tassazione_RAL!$E$25)+(SgrvEXT-Main!$B$18-Tassazione_RAL!$E$10+Tassazione_RAL!$E$15+Tassazione_RAL!$E$5-Tassazione_RAL!$E$25)),MAX(0,(Tassazione_RAL!$E$20-Tassazione_RAL!$E$10)+(SgrvEXT-Tassazione_RAL!$E$10+Tassazione_RAL!$E$15))))))+CA10*(1+rateETF) -> 30275.14362 | CB11: =IF(RAL>SgrvFP-SgrvFPN,MAX(0,IF($B$17>=$D11-4,MAX(0,Tassazione_RAL!$E$20-Tassazione_RAL!$E$15),IF(AND($B$18>0,$B$17+1=$D11-4),MAX(0,(Tassazione_RAL!$E$20-Tassazione_RAL!$E$10+Tassazione_RAL!$E$5-Tassazione_RAL!$E$25)+(SgrvEXT-Main!$B$18-Tassazione_RAL!$E$10+Tassazione_RAL!$E$15+Tassazione_RAL!$E$5-Tassazione_RAL!$E$25)),MAX(0,(Tassazione_RAL!$E$20-Tassazione_RAL!$E$10)+(SgrvEXT-Tassazione_RAL!$E$10+Tassazione_RAL!$E$15))))))+CB10 -> 22027.7057 | CC11: 8247.437916 | CD11: =(1-costFPA)*(IF(RAL>SgrvFP-SgrvFPN,MAX(0,IF($B$17>=$D11-4,MAX(0,(Tassazione_RAL!$E$19-Tassazione_RAL!$E$14)-(Tassazione_RAL!$E$20-Tassazione_RAL!$E$15)),IF(AND($B$18>0,$B$17+1=$D11-4),MAX(0,(Tassazione_RAL!$E$19-Tassazione_RAL!$E$9)-(Tassazione_RAL!$E$20-Tassazione_RAL!$E$10+Tassazione_RAL!$E$5-Tassazione_RAL!$E$25)),MAX(0,(Tassazione_RAL!$E$19-Tassazione_RAL!$E$9)-(Tassazione_RAL!$E$20-Tassazione_RAL!$E$10))))))+((CD10+IF(AND(CG11=0,CJ11=0,CG10<>0,CJ10<>0),CG10+CJ10,0))*(1+rateFPA*(1-plustaxFPA)))) -> 21496.74691 | CE11: =IF(RAL>SgrvFP-SgrvFPN,MAX(0,IF($B$17>=$D11-4,MAX(0,(Tassazione_RAL!$E$19-Tassazione_RAL!$E$14)-(Tassazione_RAL!$E$20-Tassazione_RAL!$E$15)),IF(AND($B$18>0,$B$17+1=$D11-4),MAX(0,(Tassazione_RAL!$E$19-Tassazione_RAL!$E$9)-(Tassazione_RAL!$E$20-Tassazione_RAL!$E$10+Tassazione_RAL!$E$5-Tassazione_RAL!$E$25)),MAX(0,(Tassazione_RAL!$E$19-Tassazione_RAL!$E$9)-(Tassazione_RAL!$E$20-Tassazione_RAL!$E$10))))))+CE10 -> 20248.3288 | CF11: 2080.497626 | CG11: 16425.34962 | CH11: 15120 | CI11: 1572.48 | CJ11: 20260.10387 | CK11: 18650 | CL11: 2034.925479 | CM11: 88457.34401 | CN11: 77585.6801 | CP11: =IF(RAL>SgrvFP-SgrvFPN,MAX(0,(Tassazione_RAL!$E$20-Tassazione_RAL!$E$10)+(SgrvEXT-Tassazione_RAL!$E$10+Tassazione_RAL!$E$15)),0)+CP10*(1+rateETF) -> 21522.59152 | CQ11: =IF(RAL>SgrvFP-SgrvFPN,MAX(0,(Tassazione_RAL!$E$20-Tassazione_RAL!$E$10)+(SgrvEXT-Tassazione_RAL!$E$10+Tassazione_RAL!$E$15)),0)+CQ10 -> 17591.1131 | CR11: 3931.478424 | CS11: =(1-costFPA)*(IF(RAL>SgrvFP-SgrvFPN,MAX(0,(Tassazione_RAL!$E$19-Tassazione_RAL!$E$9)-(Tassazione_RAL!$E$20-Tassazione_RAL!$E$10)),0)+((CS10+IF(AND(CV11=0,CY11=0,CV10<>0,CY10<>0),CV10+CY10,0))*(1+rateFPA*(1-plustaxFPA)))) -> 32993.98201 | CT11: =IF(RAL>SgrvFP-SgrvFPN,MAX(0,(Tassazione_RAL!$E$19-Tassazione_RAL!$E$9)-(Tassazione_RAL!$E$20-Tassazione_RAL!$E$10)),0)+CT10 -> 27663.4701 | CU11: 8189.526962 | CV11: 16425.34962 | CW11: 15120 | CX11: 1572.48 | CY11: 20260.10387 | CZ11: 18650 | DA11: 2034.925479 | DB11: 91202.02702 | DC11: 79727.92731
D12: 9 | E12: =IF(RAL>SgrvFP-SgrvFPN,MAX(0,IF($B$17>=$D12-4,MAX(0,Tassazione_RAL!$E$20-Tassazione_RAL!$E$15),IF(AND($B$18>0,$B$17+1=$D12-4),MAX(0,(Tassazione_RAL!$E$20-Tassazione_RAL!$E$10+Tassazione_RAL!$E$5-Tassazione_RAL!$E$25)+(SgrvEXT-Main!$B$18-Tassazione_RAL!$E$10+Tassazione_RAL!$E$15+Tassazione_RAL!$E$5-Tassazione_RAL!$E$25)),MAX(0,(Tassazione_RAL!$E$20-Tassazione_RAL!$E$10)+(SgrvEXT-Tassazione_RAL!$E$10+Tassazione_RAL!$E$15))))))+E11*(1+rateETF) -> 33998.63118 | F12: =IF(RAL>SgrvFP-SgrvFPN,MAX(0,IF($B$17>=$D12-4,MAX(0,Tassazione_RAL!$E$20-Tassazione_RAL!$E$15),IF(AND($B$18>0,$B$17+1=$D12-4),MAX(0,(Tassazione_RAL!$E$20-Tassazione_RAL!$E$10+Tassazione_RAL!$E$5-Tassazione_RAL!$E$25)+(SgrvEXT-Main!$B$18-Tassazione_RAL!$E$10+Tassazione_RAL!$E$15+Tassazione_RAL!$E$5-Tassazione_RAL!$E$25)),MAX(0,(Tassazione_RAL!$E$20-Tassazione_RAL!$E$10)+(SgrvEXT-Tassazione_RAL!$E$10+Tassazione_RAL!$E$15))))))+F11 -> 23692.4835 | G12: 10306.14768 | H12: =(1-costFPA)*(IF(RAL>SgrvFP-SgrvFPN,MAX(0,IF($B$17>=$D12-4,MAX(0,(Tassazione_RAL!$E$19-Tassazione_RAL!$E$14)-(Tassazione_RAL!$E$20-Tassazione_RAL!$E$15)),IF(AND($B$18>0,$B$17+1=$D12-4),MAX(0,(Tassazione_RAL!$E$19-Tassazione_RAL!$E$9)-(Tassazione_RAL!$E$20-Tassazione_RAL!$E$10+Tassazione_RAL!$E$5-Tassazione_RAL!$E$25)),MAX(0,(Tassazione_RAL!$E$19-Tassazione_RAL!$E$9)-(Tassazione_RAL!$E$20-Tassazione_RAL!$E$10))))))+H11*(1+rateFPA*(1-plustaxFPA))) -> 27494.72416 | I12: =IF(RAL>SgrvFP-SgrvFPN,MAX(0,IF($B$17>=$D12-4,MAX(0,(Tassazione_RAL!$E$19-Tassazione_RAL!$E$14)-(Tassazione_RAL!$E$20-Tassazione_RAL!$E$15)),IF(AND($B$18>0,$B$17+1=$D12-4),MAX(0,(Tassazione_RAL!$E$19-Tassazione_RAL!$E$9)-(Tassazione_RAL!$E$20-Tassazione_RAL!$E$10+Tassazione_RAL!$E$5-Tassazione_RAL!$E$25)),MAX(0,(Tassazione_RAL!$E$19-Tassazione_RAL!$E$9)-(Tassazione_RAL!$E$20-Tassazione_RAL!$E$10))))))+I11 -> 25310.411 | J12: 3520.779669 | K12: 18445.04082 | L12: 16800 | M12: 1965.6 | N12: 22751.3235 | O12: 20722.22222 | P12: 2561.68818 | Q12: 102689.7197 | R12: 89706.45799 | T12: =IF(RAL>SgrvFP-SgrvFPN,MAX(0,(Tassazione_RAL!$E$20-Tassazione_RAL!$E$10)+(SgrvEXT-Tassazione_RAL!$E$10+Tassazione_RAL!$E$15)),0)+T11*(1+rateETF) -> 26045.34215 | U12: =IF(RAL>SgrvFP-SgrvFPN,MAX(0,(Tassazione_RAL!$E$20-Tassazione_RAL!$E$10)+(SgrvEXT-Tassazione_RAL!$E$10+Tassazione_RAL!$E$15)),0)+U11 -> 20650.3275 | V12: 5395.014648 | W12: =(1-costFPA)*(IF(RAL>SgrvFP-SgrvFPN,MAX(0,(Tassazione_RAL!$E$19-Tassazione_RAL!$E$9)-(Tassazione_RAL!$E$20-Tassazione_RAL!$E$10)),0)+W11*(1+(rateFPA*(1-plustaxFPA)))) -> 37541.71234 | X12: =IF(RAL>SgrvFP-SgrvFPN,MAX(0,(Tassazione_RAL!$E$19-Tassazione_RAL!$E$9)-(Tassazione_RAL!$E$20-Tassazione_RAL!$E$10)),0)+X11 -> 30737.189 | Y12: 10400.12376 | Z12: 18445.04082 | AA12: 16800 | AB12: 1965.6 | AC12: 22751.3235 | AD12: 20722.22222 | AE12: 2561.68818 | AF12: 104783.4188 | AG12: 91570.0035 | AI12: =IF(RAL>SgrvFP,MAX(0,IF($B$17>=$D12-4,0,IF(AND($B$18>0,$B$17+1=$D12-4),MAX(0,(SgrvEXT-Main!$B$18-Tassazione_RAL!$E$10+Tassazione_RAL!$E$15+Tassazione_RAL!$E$5-Tassazione_RAL!$E$25)),MAX(0,(SgrvEXT-Tassazione_RAL!$E$10+Tassazione_RAL!$E$15))))))+AI11*(1+rateETF) -> 29739.73404 | AJ12: =IF(RAL>SgrvFP,MAX(0,IF($B$17>=$D12-4,0,IF(AND($B$18>0,$B$17+1=$D12-4),MAX(0,(SgrvEXT-Main!$B$18-Tassazione_RAL!$E$10+Tassazione_RAL!$E$15+Tassazione_RAL!$E$5-Tassazione_RAL!$E$25)),MAX(0,(SgrvEXT-Tassazione_RAL!$E$10+Tassazione_RAL!$E$15))))))+AJ11 -> 18683.5945 | AK12: 11056.13954 | AL12: 42077.10787 | AM12: 38734.3 | AN12: 5388.09646 | AO12: 25309.65684 | AP12: 20722.22222 | AQ12: 7011.495932 | AR12: 97126.49875 | AS12: 84143.88776 | AU12: =IF(RAL>SgrvFP,MAX(0,SgrvEXT-Tassazione_RAL!$E$10+Tassazione_RAL!$E$15,0)+AU11*(1+rateETF)) -> 11389.014 | AV12: =IF(RAL>SgrvFP,MAX(0,(SgrvEXT-Tassazione_RAL!$E$10+Tassazione_RAL!$E$15)),0)+AV11 -> 9941.8165 | AW12: 1447.197502 | AX12: 63078.89811 | AY12: 51645.7 | AZ12: 17474.65168 | BA12: 25309.65684 | BB12: 20722.22222 | BC12: 7011.495932 | BD12: 99777.56895 | BE12: 86143.01435 | BG12: =IF(RAL>SgrvFP-SgrvFPN,MAX(0,SgrvFP-SgrvFPN+Tassazione_RAL!$E$10-Tassazione_RAL!$E$20+(SgrvEXT-Tassazione_RAL!$E$10+Tassazione_RAL!$E$15)),0)+BG11*(1+rateETF) -> 53457.82527 | BH12: =IF(RAL>SgrvFP-SgrvFPN,MAX(0,SgrvFP-SgrvFPN+Tassazione_RAL!$E$10-Tassazione_RAL!$E$20+(SgrvEXT-Tassazione_RAL!$E$10+Tassazione_RAL!$E$15)),0)+BH11 -> 40679.0055 | BI12: 12778.81977 | BJ12: 18445.04082 | BK12: 16800 | BL12: 1965.6 | BM12: 22751.3235 | BN12: 20722.22222 | BO12: 2561.68818 | BP12: 71902.86609 | BQ12: 85152.2418 | BS12: =IF(RAL>SgrvFP-SgrvFPN,MAX(0,SgrvFP+Tassazione_RAL!$E$10-Tassazione_RAL!$E$5+(SgrvEXT-Tassazione_RAL!$E$10+Tassazione_RAL!$E$15)),0)+BS11*(1+rateETF) -> 62532.0519 | BT12: =IF(RAL>SgrvFP-SgrvFPN,MAX(0,SgrvFP+Tassazione_RAL!$E$10-Tassazione_RAL!$E$5+(SgrvEXT-Tassazione_RAL!$E$10+Tassazione_RAL!$E$15)),0)+BT11 -> 47309.0055 | BU12: 15223.0464 | BV12: 21499.30556 | BW12: 20722.22222 | BX12: 777.0833333 | BY12: 74956.53067 | CA12: =IF(RAL>SgrvFP-SgrvFPN,MAX(0,IF($B$17>=$D12-4,MAX(0,Tassazione_RAL!$E$20-Tassazione_RAL!$E$15),IF(AND($B$18>0,$B$17+1=$D12-4),MAX(0,(Tassazione_RAL!$E$20-Tassazione_RAL!$E$10+Tassazione_RAL!$E$5-Tassazione_RAL!$E$25)+(SgrvEXT-Main!$B$18-Tassazione_RAL!$E$10+Tassazione_RAL!$E$15+Tassazione_RAL!$E$5-Tassazione_RAL!$E$25)),MAX(0,(Tassazione_RAL!$E$20-Tassazione_RAL!$E$10)+(SgrvEXT-Tassazione_RAL!$E$10+Tassazione_RAL!$E$15))))))+CA11*(1+rateETF) -> 33998.63118 | CB12: =IF(RAL>SgrvFP-SgrvFPN,MAX(0,IF($B$17>=$D12-4,MAX(0,Tassazione_RAL!$E$20-Tassazione_RAL!$E$15),IF(AND($B$18>0,$B$17+1=$D12-4),MAX(0,(Tassazione_RAL!$E$20-Tassazione_RAL!$E$10+Tassazione_RAL!$E$5-Tassazione_RAL!$E$25)+(SgrvEXT-Main!$B$18-Tassazione_RAL!$E$10+Tassazione_RAL!$E$15+Tassazione_RAL!$E$5-Tassazione_RAL!$E$25)),MAX(0,(Tassazione_RAL!$E$20-Tassazione_RAL!$E$10)+(SgrvEXT-Tassazione_RAL!$E$10+Tassazione_RAL!$E$15))))))+CB11 -> 23692.4835 | CC12: 10306.14768 | CD12: =(1-costFPA)*(IF(RAL>SgrvFP-SgrvFPN,MAX(0,IF($B$17>=$D12-4,MAX(0,(Tassazione_RAL!$E$19-Tassazione_RAL!$E$14)-(Tassazione_RAL!$E$20-Tassazione_RAL!$E$15)),IF(AND($B$18>0,$B$17+1=$D12-4),MAX(0,(Tassazione_RAL!$E$19-Tassazione_RAL!$E$9)-(Tassazione_RAL!$E$20-Tassazione_RAL!$E$10+Tassazione_RAL!$E$5-Tassazione_RAL!$E$25)),MAX(0,(Tassazione_RAL!$E$19-Tassazione_RAL!$E$9)-(Tassazione_RAL!$E$20-Tassazione_RAL!$E$10))))))+((CD11+IF(AND(CG12=0,CJ12=0,CG11<>0,CJ11<>0),CG11+CJ11,0))*(1+rateFPA*(1-plustaxFPA)))) -> 65846.44708 | CE12: =IF(RAL>SgrvFP-SgrvFPN,MAX(0,IF($B$17>=$D12-4,MAX(0,(Tassazione_RAL!$E$19-Tassazione_RAL!$E$14)-(Tassazione_RAL!$E$20-Tassazione_RAL!$E$15)),IF(AND($B$18>0,$B$17+1=$D12-4),MAX(0,(Tassazione_RAL!$E$19-Tassazione_RAL!$E$9)-(Tassazione_RAL!$E$20-Tassazione_RAL!$E$10+Tassazione_RAL!$E$5-Tassazione_RAL!$E$25)),MAX(0,(Tassazione_RAL!$E$19-Tassazione_RAL!$E$9)-(Tassazione_RAL!$E$20-Tassazione_RAL!$E$10))))))+CE11 -> 25310.411 | CF12: 3520.779669 | CG12: 0 | CH12: 16800 | CI12: 1965.6 | CJ12: 0 | CK12: 20722.22222 | CL12: 2561.68818 | CM12: 99845.07826 | CN12: 87288.5128 | CP12: =IF(RAL>SgrvFP-SgrvFPN,MAX(0,(Tassazione_RAL!$E$20-Tassazione_RAL!$E$10)+(SgrvEXT-Tassazione_RAL!$E$10+Tassazione_RAL!$E$15)),0)+CP11*(1+rateETF) -> 26045.34215 | CQ12: =IF(RAL>SgrvFP-SgrvFPN,MAX(0,(Tassazione_RAL!$E$20-Tassazione_RAL!$E$10)+(SgrvEXT-Tassazione_RAL!$E$10+Tassazione_RAL!$E$15)),0)+CQ11 -> 20650.3275 | CR12: 5395.014648 | CS12: =(1-costFPA)*(IF(RAL>SgrvFP-SgrvFPN,MAX(0,(Tassazione_RAL!$E$19-Tassazione_RAL!$E$9)-(Tassazione_RAL!$E$20-Tassazione_RAL!$E$10)),0)+((CS11+IF(AND(CV12=0,CY12=0,CV11<>0,CY11<>0),CV11+CY11,0))*(1+rateFPA*(1-plustaxFPA)))) -> 75893.43527 | CT12: =IF(RAL>SgrvFP-SgrvFPN,MAX(0,(Tassazione_RAL!$E$19-Tassazione_RAL!$E$9)-(Tassazione_RAL!$E$20-Tassazione_RAL!$E$10)),0)+CT11 -> 30737.189 | CU12: 10400.12376 | CV12: 0 | CW12: 16800 | CX12: 1965.6 | CY12: 0 | CZ12: 20722.22222 | DA12: 2561.68818 | DB12: 101938.7774 | DC12: 89152.05832
A13: Sgravio fiscale FP | B13: 5164.57 | D13: 10 | E13: =IF(RAL>SgrvFP-SgrvFPN,MAX(0,IF($B$17>=$D13-4,MAX(0,Tassazione_RAL!$E$20-Tassazione_RAL!$E$15),IF(AND($B$18>0,$B$17+1=$D13-4),MAX(0,(Tassazione_RAL!$E$20-Tassazione_RAL!$E$10+Tassazione_RAL!$E$5-Tassazione_RAL!$E$25)+(SgrvEXT-Main!$B$18-Tassazione_RAL!$E$10+Tassazione_RAL!$E$15+Tassazione_RAL!$E$5-Tassazione_RAL!$E$25)),MAX(0,(Tassazione_RAL!$E$20-Tassazione_RAL!$E$10)+(SgrvEXT-Tassazione_RAL!$E$10+Tassazione_RAL!$E$15))))))+E12*(1+rateETF) -> 37975.3159 | F13: =IF(RAL>SgrvFP-SgrvFPN,MAX(0,IF($B$17>=$D13-4,MAX(0,Tassazione_RAL!$E$20-Tassazione_RAL!$E$15),IF(AND($B$18>0,$B$17+1=$D13-4),MAX(0,(Tassazione_RAL!$E$20-Tassazione_RAL!$E$10+Tassazione_RAL!$E$5-Tassazione_RAL!$E$25)+(SgrvEXT-Main!$B$18-Tassazione_RAL!$E$10+Tassazione_RAL!$E$15+Tassazione_RAL!$E$5-Tassazione_RAL!$E$25)),MAX(0,(Tassazione_RAL!$E$20-Tassazione_RAL!$E$10)+(SgrvEXT-Tassazione_RAL!$E$10+Tassazione_RAL!$E$15))))))+F12 -> 25357.2613 | G13: 12618.0546 | H13: =(1-costFPA)*(IF(RAL>SgrvFP-SgrvFPN,MAX(0,IF($B$17>=$D13-4,MAX(0,(Tassazione_RAL!$E$19-Tassazione_RAL!$E$14)-(Tassazione_RAL!$E$20-Tassazione_RAL!$E$15)),IF(AND($B$18>0,$B$17+1=$D13-4),MAX(0,(Tassazione_RAL!$E$19-Tassazione_RAL!$E$9)-(Tassazione_RAL!$E$20-Tassazione_RAL!$E$10+Tassazione_RAL!$E$5-Tassazione_RAL!$E$25)),MAX(0,(Tassazione_RAL!$E$19-Tassazione_RAL!$E$9)-(Tassazione_RAL!$E$20-Tassazione_RAL!$E$10))))))+H12*(1+rateFPA*(1-plustaxFPA))) -> 33765.13217 | I13: =IF(RAL>SgrvFP-SgrvFPN,MAX(0,IF($B$17>=$D13-4,MAX(0,(Tassazione_RAL!$E$19-Tassazione_RAL!$E$14)-(Tassazione_RAL!$E$20-Tassazione_RAL!$E$15)),IF(AND($B$18>0,$B$17+1=$D13-4),MAX(0,(Tassazione_RAL!$E$19-Tassazione_RAL!$E$9)-(Tassazione_RAL!$E$20-Tassazione_RAL!$E$10+Tassazione_RAL!$E$5-Tassazione_RAL!$E$25)),MAX(0,(Tassazione_RAL!$E$19-Tassazione_RAL!$E$9)-(Tassazione_RAL!$E$20-Tassazione_RAL!$E$10))))))+I12 -> 30372.4932 | J13: 5362.926187 | K13: 20506.66633 | L13: 18480 | M13: 2402.4 | N13: 25294.26767 | O13: 22794.44444 | P13: 3153.222591 | Q13: 117541.3821 | R13: 102325.7779 | T13: =IF(RAL>SgrvFP-SgrvFPN,MAX(0,(Tassazione_RAL!$E$20-Tassazione_RAL!$E$10)+(SgrvEXT-Tassazione_RAL!$E$10+Tassazione_RAL!$E$15)),0)+T12*(1+rateETF) -> 30875.63981 | U13: =IF(RAL>SgrvFP-SgrvFPN,MAX(0,(Tassazione_RAL!$E$20-Tassazione_RAL!$E$10)+(SgrvEXT-Tassazione_RAL!$E$10+Tassazione_RAL!$E$15)),0)+U12 -> 23709.5419 | V13: 7166.097914 | W13: =(1-costFPA)*(IF(RAL>SgrvFP-SgrvFPN,MAX(0,(Tassazione_RAL!$E$19-Tassazione_RAL!$E$9)-(Tassazione_RAL!$E$20-Tassazione_RAL!$E$10)),0)+W12*(1+(rateFPA*(1-plustaxFPA)))) -> 42296.00258 | X13: =IF(RAL>SgrvFP-SgrvFPN,MAX(0,(Tassazione_RAL!$E$19-Tassazione_RAL!$E$9)-(Tassazione_RAL!$E$20-Tassazione_RAL!$E$10)),0)+X12 -> 33810.9079 | Y13: 12915.41848 | Z13: 20506.66633 | AA13: 18480 | AB13: 2402.4 | AC13: 25294.26767 | AD13: 22794.44444 | AE13: 3153.222591 | AF13: 118972.5764 | AG13: 103894.8504 | AI13: =IF(RAL>SgrvFP,MAX(0,IF($B$17>=$D13-4,0,IF(AND($B$18>0,$B$17+1=$D13-4),MAX(0,(SgrvEXT-Main!$B$18-Tassazione_RAL!$E$10+Tassazione_RAL!$E$15+Tassazione_RAL!$E$5-Tassazione_RAL!$E$25)),MAX(0,(SgrvEXT-Tassazione_RAL!$E$10+Tassazione_RAL!$E$15))))))+AI12*(1+rateETF) -> 31762.03596 | AJ13: =IF(RAL>SgrvFP,MAX(0,IF($B$17>=$D13-4,0,IF(AND($B$18>0,$B$17+1=$D13-4),MAX(0,(SgrvEXT-Main!$B$18-Tassazione_RAL!$E$10+Tassazione_RAL!$E$15+Tassazione_RAL!$E$5-Tassazione_RAL!$E$25)),MAX(0,(SgrvEXT-Tassazione_RAL!$E$10+Tassazione_RAL!$E$15))))))+AJ12 -> 18683.5945 | AK13: 13078.44146 | AL13: 51673.15374 | AM13: 46481.16 | AN13: 8207.262687 | AO13: 28514.87703 | AP13: 22794.44444 | AQ13: 8707.24294 | AR13: 111950.0667 | AS13: 96521.46734 | AU13: =IF(RAL>SgrvFP,MAX(0,SgrvEXT-Tassazione_RAL!$E$10+Tassazione_RAL!$E$15,0)+AU12*(1+rateETF)) -> 14151.83025 | AV13: =IF(RAL>SgrvFP,MAX(0,(SgrvEXT-Tassazione_RAL!$E$10+Tassazione_RAL!$E$15)),0)+AV12 -> 11930.1798 | AW13: 2221.650454 | AX13: 71067.22285 | AY13: 56810.27 | AZ13: 21700.93786 | BA13: 28514.87703 | BB13: 22794.44444 | BC13: 8707.24294 | BD13: 113733.9301 | BE13: 98218.98604 | BG13: =IF(RAL>SgrvFP-SgrvFPN,MAX(0,SgrvFP-SgrvFPN+Tassazione_RAL!$E$10-Tassazione_RAL!$E$20+(SgrvEXT-Tassazione_RAL!$E$10+Tassazione_RAL!$E$15)),0)+BG12*(1+rateETF) -> 62155.03959 | BH13: =IF(RAL>SgrvFP-SgrvFPN,MAX(0,SgrvFP-SgrvFPN+Tassazione_RAL!$E$10-Tassazione_RAL!$E$20+(SgrvEXT-Tassazione_RAL!$E$10+Tassazione_RAL!$E$15)),0)+BH12 -> 45741.0877 | BI13: 16413.95189 | BJ13: 20506.66633 | BK13: 18480 | BL13: 2402.4 | BM13: 25294.26767 | BN13: 22794.44444 | BO13: 3153.222591 | BP13: 82661.70593 | BQ13: 96818.206 | BS13: =IF(RAL>SgrvFP-SgrvFPN,MAX(0,SgrvFP+Tassazione_RAL!$E$10-Tassazione_RAL!$E$5+(SgrvEXT-Tassazione_RAL!$E$10+Tassazione_RAL!$E$15)),0)+BS12*(1+rateETF) -> 72509.31363 | BT13: =IF(RAL>SgrvFP-SgrvFPN,MAX(0,SgrvFP+Tassazione_RAL!$E$10-Tassazione_RAL!$E$5+(SgrvEXT-Tassazione_RAL!$E$10+Tassazione_RAL!$E$15)),0)+BT12 -> 53034.0877 | BU13: 19475.22593 | BV13: 23649.23611 | BW13: 22794.44444 | BX13: 854.7916667 | BY13: 85466.4728 | CA13: =IF(RAL>SgrvFP-SgrvFPN,MAX(0,IF($B$17>=$D13-4,MAX(0,Tassazione_RAL!$E$20-Tassazione_RAL!$E$15),IF(AND($B$18>0,$B$17+1=$D13-4),MAX(0,(Tassazione_RAL!$E$20-Tassazione_RAL!$E$10+Tassazione_RAL!$E$5-Tassazione_RAL!$E$25)+(SgrvEXT-Main!$B$18-Tassazione_RAL!$E$10+Tassazione_RAL!$E$15+Tassazione_RAL!$E$5-Tassazione_RAL!$E$25)),MAX(0,(Tassazione_RAL!$E$20-Tassazione_RAL!$E$10)+(SgrvEXT-Tassazione_RAL!$E$10+Tassazione_RAL!$E$15))))))+CA12*(1+rateETF) -> 37975.3159 | CB13: =IF(RAL>SgrvFP-SgrvFPN,MAX(0,IF($B$17>=$D13-4,MAX(0,Tassazione_RAL!$E$20-Tassazione_RAL!$E$15),IF(AND($B$18>0,$B$17+1=$D13-4),MAX(0,(Tassazione_RAL!$E$20-Tassazione_RAL!$E$10+Tassazione_RAL!$E$5-Tassazione_RAL!$E$25)+(SgrvEXT-Main!$B$18-Tassazione_RAL!$E$10+Tassazione_RAL!$E$15+Tassazione_RAL!$E$5-Tassazione_RAL!$E$25)),MAX(0,(Tassazione_RAL!$E$20-Tassazione_RAL!$E$10)+(SgrvEXT-Tassazione_RAL!$E$10+Tassazione_RAL!$E$15))))))+CB12 -> 25357.2613 | CC13: 12618.0546 | CD13: =(1-costFPA)*(IF(RAL>SgrvFP-SgrvFPN,MAX(0,IF($B$17>=$D13-4,MAX(0,(Tassazione_RAL!$E$19-Tassazione_RAL!$E$14)-(Tassazione_RAL!$E$20-Tassazione_RAL!$E$15)),IF(AND($B$18>0,$B$17+1=$D13-4),MAX(0,(Tassazione_RAL!$E$19-Tassazione_RAL!$E$9)-(Tassazione_RAL!$E$20-Tassazione_RAL!$E$10+Tassazione_RAL!$E$5-Tassazione_RAL!$E$25)),MAX(0,(Tassazione_RAL!$E$19-Tassazione_RAL!$E$9)-(Tassazione_RAL!$E$20-Tassazione_RAL!$E$10))))))+((CD12+IF(AND(CG13=0,CJ13=0,CG12<>0,CJ12<>0),CG12+CJ12,0))*(1+rateFPA*(1-plustaxFPA)))) -> 73858.80722 | CE13: =IF(RAL>SgrvFP-SgrvFPN,MAX(0,IF($B$17>=$D13-4,MAX(0,(Tassazione_RAL!$E$19-Tassazione_RAL!$E$14)-(Tassazione_RAL!$E$20-Tassazione_RAL!$E$15)),IF(AND($B$18>0,$B$17+1=$D13-4),MAX(0,(Tassazione_RAL!$E$19-Tassazione_RAL!$E$9)-(Tassazione_RAL!$E$20-Tassazione_RAL!$E$10+Tassazione_RAL!$E$5-Tassazione_RAL!$E$25)),MAX(0,(Tassazione_RAL!$E$19-Tassazione_RAL!$E$9)-(Tassazione_RAL!$E$20-Tassazione_RAL!$E$10))))))+CE12 -> 30372.4932 | CF13: 7932.491623 | CG13: 1678.656 | CH13: 18480 | CI13: 2402.4 | CJ13: 2070.564444 | CK13: 22794.44444 | CL13: 2561.68818 | CM13: 115583.3436 | CN13: 100661.4452 | CP13: =IF(RAL>SgrvFP-SgrvFPN,MAX(0,(Tassazione_RAL!$E$20-Tassazione_RAL!$E$10)+(SgrvEXT-Tassazione_RAL!$E$10+Tassazione_RAL!$E$15)),0)+CP12*(1+rateETF) -> 30875.63981 | CQ13: =IF(RAL>SgrvFP-SgrvFPN,MAX(0,(Tassazione_RAL!$E$20-Tassazione_RAL!$E$10)+(SgrvEXT-Tassazione_RAL!$E$10+Tassazione_RAL!$E$15)),0)+CQ12 -> 23709.5419 | CR13: 7166.097914 | CS13: =(1-costFPA)*(IF(RAL>SgrvFP-SgrvFPN,MAX(0,(Tassazione_RAL!$E$19-Tassazione_RAL!$E$9)-(Tassazione_RAL!$E$20-Tassazione_RAL!$E$10)),0)+((CS12+IF(AND(CV13=0,CY13=0,CV12<>0,CY12<>0),CV12+CY12,0))*(1+rateFPA*(1-plustaxFPA)))) -> 82389.67764 | CT13: =IF(RAL>SgrvFP-SgrvFPN,MAX(0,(Tassazione_RAL!$E$19-Tassazione_RAL!$E$9)-(Tassazione_RAL!$E$20-Tassazione_RAL!$E$10)),0)+CT12 -> 33810.9079 | CU13: 15484.98392 | CV13: 1678.656 | CW13: 18480 | CX13: 2402.4 | CY13: 2070.564444 | CZ13: 22794.44444 | DA13: 2561.68818 | DB13: 117014.5379 | DC13: 102230.5177
A14: Sgravio extra FP | B14: 2582.29 | D14: 11 | E14: =IF(RAL>SgrvFP-SgrvFPN,MAX(0,IF($B$17>=$D14-4,MAX(0,Tassazione_RAL!$E$20-Tassazione_RAL!$E$15),IF(AND($B$18>0,$B$17+1=$D14-4),MAX(0,(Tassazione_RAL!$E$20-Tassazione_RAL!$E$10+Tassazione_RAL!$E$5-Tassazione_RAL!$E$25)+(SgrvEXT-Main!$B$18-Tassazione_RAL!$E$10+Tassazione_RAL!$E$15+Tassazione_RAL!$E$5-Tassazione_RAL!$E$25)),MAX(0,(Tassazione_RAL!$E$20-Tassazione_RAL!$E$10)+(SgrvEXT-Tassazione_RAL!$E$10+Tassazione_RAL!$E$15))))))+E13*(1+rateETF) -> 42222.41518 | F14: =IF(RAL>SgrvFP-SgrvFPN,MAX(0,IF($B$17>=$D14-4,MAX(0,Tassazione_RAL!$E$20-Tassazione_RAL!$E$15),IF(AND($B$18>0,$B$17+1=$D14-4),MAX(0,(Tassazione_RAL!$E$20-Tassazione_RAL!$E$10+Tassazione_RAL!$E$5-Tassazione_RAL!$E$25)+(SgrvEXT-Main!$B$18-Tassazione_RAL!$E$10+Tassazione_RAL!$E$15+Tassazione_RAL!$E$5-Tassazione_RAL!$E$25)),MAX(0,(Tassazione_RAL!$E$20-Tassazione_RAL!$E$10)+(SgrvEXT-Tassazione_RAL!$E$10+Tassazione_RAL!$E$15))))))+F13 -> 27022.0391 | G14: 15200.37608 | H14: =(1-costFPA)*(IF(RAL>SgrvFP-SgrvFPN,MAX(0,IF($B$17>=$D14-4,MAX(0,(Tassazione_RAL!$E$19-Tassazione_RAL!$E$14)-(Tassazione_RAL!$E$20-Tassazione_RAL!$E$15)),IF(AND($B$18>0,$B$17+1=$D14-4),MAX(0,(Tassazione_RAL!$E$19-Tassazione_RAL!$E$9)-(Tassazione_RAL!$E$20-Tassazione_RAL!$E$10+Tassazione_RAL!$E$5-Tassazione_RAL!$E$25)),MAX(0,(Tassazione_RAL!$E$19-Tassazione_RAL!$E$9)-(Tassazione_RAL!$E$20-Tassazione_RAL!$E$10))))))+H13*(1+rateFPA*(1-plustaxFPA))) -> 40320.34487 | I14: =IF(RAL>SgrvFP-SgrvFPN,MAX(0,IF($B$17>=$D14-4,MAX(0,(Tassazione_RAL!$E$19-Tassazione_RAL!$E$14)-(Tassazione_RAL!$E$20-Tassazione_RAL!$E$15)),IF(AND($B$18>0,$B$17+1=$D14-4),MAX(0,(Tassazione_RAL!$E$19-Tassazione_RAL!$E$9)-(Tassazione_RAL!$E$20-Tassazione_RAL!$E$10+Tassazione_RAL!$E$5-Tassazione_RAL!$E$25)),MAX(0,(Tassazione_RAL!$E$19-Tassazione_RAL!$E$9)-(Tassazione_RAL!$E$20-Tassazione_RAL!$E$10))))))+I13 -> 35434.5754 | J14: 7625.190042 | K14: 22611.09683 | L14: 20160 | M14: 2882.88 | N14: 27890.01031 | O14: 24866.66667 | P14: 3810.87355 | Q14: 133043.8672 | R14: 115468.5516 | T14: =IF(RAL>SgrvFP-SgrvFPN,MAX(0,(Tassazione_RAL!$E$20-Tassazione_RAL!$E$10)+(SgrvEXT-Tassazione_RAL!$E$10+Tassazione_RAL!$E$15)),0)+T13*(1+rateETF) -> 36034.39772 | U14: =IF(RAL>SgrvFP-SgrvFPN,MAX(0,(Tassazione_RAL!$E$20-Tassazione_RAL!$E$10)+(SgrvEXT-Tassazione_RAL!$E$10+Tassazione_RAL!$E$15)),0)+U13 -> 26768.7563 | V14: 9265.641421 | W14: =(1-costFPA)*(IF(RAL>SgrvFP-SgrvFPN,MAX(0,(Tassazione_RAL!$E$19-Tassazione_RAL!$E$9)-(Tassazione_RAL!$E$20-Tassazione_RAL!$E$10)),0)+W13*(1+(rateFPA*(1-plustaxFPA)))) -> 47266.23478 | X14: =IF(RAL>SgrvFP-SgrvFPN,MAX(0,(Tassazione_RAL!$E$19-Tassazione_RAL!$E$9)-(Tassazione_RAL!$E$20-Tassazione_RAL!$E$10)),0)+X13 -> 36884.6268 | Y14: 15749.25066 | Z14: 22611.09683 | AA14: 20160 | AB14: 2882.88 | AC14: 27890.01031 | AD14: 24866.66667 | AE14: 3810.87355 | AF14: 133801.7396 | AG14: 116727.5716 | AI14: =IF(RAL>SgrvFP,MAX(0,IF($B$17>=$D14-4,0,IF(AND($B$18>0,$B$17+1=$D14-4),MAX(0,(SgrvEXT-Main!$B$18-Tassazione_RAL!$E$10+Tassazione_RAL!$E$15+Tassazione_RAL!$E$5-Tassazione_RAL!$E$25)),MAX(0,(SgrvEXT-Tassazione_RAL!$E$10+Tassazione_RAL!$E$15))))))+AI13*(1+rateETF) -> 33921.85441 | AJ14: =IF(RAL>SgrvFP,MAX(0,IF($B$17>=$D14-4,0,IF(AND($B$18>0,$B$17+1=$D14-4),MAX(0,(SgrvEXT-Main!$B$18-Tassazione_RAL!$E$10+Tassazione_RAL!$E$15+Tassazione_RAL!$E$5-Tassazione_RAL!$E$25)),MAX(0,(SgrvEXT-Tassazione_RAL!$E$10+Tassazione_RAL!$E$15))))))+AJ13 -> 18683.5945 | AK14: 15238.25991 | AL14: 61705.05624 | AM14: 54228.02 | AN14: 11669.36399 | AO14: 31865.67974 | AP14: 24866.66667 | AQ14: 10617.7397 | AR14: 127492.5904 | AS14: 109495.0324 | AU14: =IF(RAL>SgrvFP,MAX(0,SgrvEXT-Tassazione_RAL!$E$10+Tassazione_RAL!$E$15,0)+AU13*(1+rateETF)) -> 17102.51801 | AV14: =IF(RAL>SgrvFP,MAX(0,(SgrvEXT-Tassazione_RAL!$E$10+Tassazione_RAL!$E$15)),0)+AV13 -> 13918.5431 | AW14: 3183.974912 | AX14: 79418.38082 | AY14: 61974.84 | AZ14: 26462.44179 | BA14: 31865.67974 | BB14: 24866.66667 | BC14: 10617.7397 | BD14: 128386.5786 | BE14: 110866.136 | BG14: =IF(RAL>SgrvFP-SgrvFPN,MAX(0,SgrvFP-SgrvFPN+Tassazione_RAL!$E$10-Tassazione_RAL!$E$20+(SgrvEXT-Tassazione_RAL!$E$10+Tassazione_RAL!$E$15)),0)+BG13*(1+rateETF) -> 71443.66449 | BH14: =IF(RAL>SgrvFP-SgrvFPN,MAX(0,SgrvFP-SgrvFPN+Tassazione_RAL!$E$10-Tassazione_RAL!$E$20+(SgrvEXT-Tassazione_RAL!$E$10+Tassazione_RAL!$E$15)),0)+BH13 -> 50803.1699 | BI14: 20640.49459 | BJ14: 22611.09683 | BK14: 20160 | BL14: 2882.88 | BM14: 27890.01031 | BN14: 24866.66667 | BO14: 3810.87355 | BP14: 94054.76132 | BQ14: 109003.077 | BS14: =IF(RAL>SgrvFP-SgrvFPN,MAX(0,SgrvFP+Tassazione_RAL!$E$10-Tassazione_RAL!$E$5+(SgrvEXT-Tassazione_RAL!$E$10+Tassazione_RAL!$E$15)),0)+BS13*(1+rateETF) -> 83165.02915 | BT14: =IF(RAL>SgrvFP-SgrvFPN,MAX(0,SgrvFP+Tassazione_RAL!$E$10-Tassazione_RAL!$E$5+(SgrvEXT-Tassazione_RAL!$E$10+Tassazione_RAL!$E$15)),0)+BT13 -> 58759.1699 | BU14: 24405.85925 | BV14: 25799.16667 | BW14: 24866.66667 | BX14: 932.5 | BY14: 96478.47075 | CA14: =IF(RAL>SgrvFP-SgrvFPN,MAX(0,IF($B$17>=$D14-4,MAX(0,Tassazione_RAL!$E$20-Tassazione_RAL!$E$15),IF(AND($B$18>0,$B$17+1=$D14-4),MAX(0,(Tassazione_RAL!$E$20-Tassazione_RAL!$E$10+Tassazione_RAL!$E$5-Tassazione_RAL!$E$25)+(SgrvEXT-Main!$B$18-Tassazione_RAL!$E$10+Tassazione_RAL!$E$15+Tassazione_RAL!$E$5-Tassazione_RAL!$E$25)),MAX(0,(Tassazione_RAL!$E$20-Tassazione_RAL!$E$10)+(SgrvEXT-Tassazione_RAL!$E$10+Tassazione_RAL!$E$15))))))+CA13*(1+rateETF) -> 42222.41518 | CB14: =IF(RAL>SgrvFP-SgrvFPN,MAX(0,IF($B$17>=$D14-4,MAX(0,Tassazione_RAL!$E$20-Tassazione_RAL!$E$15),IF(AND($B$18>0,$B$17+1=$D14-4),MAX(0,(Tassazione_RAL!$E$20-Tassazione_RAL!$E$10+Tassazione_RAL!$E$5-Tassazione_RAL!$E$25)+(SgrvEXT-Main!$B$18-Tassazione_RAL!$E$10+Tassazione_RAL!$E$15+Tassazione_RAL!$E$5-Tassazione_RAL!$E$25)),MAX(0,(Tassazione_RAL!$E$20-Tassazione_RAL!$E$10)+(SgrvEXT-Tassazione_RAL!$E$10+Tassazione_RAL!$E$15))))))+CB13 -> 27022.0391 | CC14: 15200.37608 | CD14: =(1-costFPA)*(IF(RAL>SgrvFP-SgrvFPN,MAX(0,IF($B$17>=$D14-4,MAX(0,(Tassazione_RAL!$E$19-Tassazione_RAL!$E$14)-(Tassazione_RAL!$E$20-Tassazione_RAL!$E$15)),IF(AND($B$18>0,$B$17+1=$D14-4),MAX(0,(Tassazione_RAL!$E$19-Tassazione_RAL!$E$9)-(Tassazione_RAL!$E$20-Tassazione_RAL!$E$10+Tassazione_RAL!$E$5-Tassazione_RAL!$E$25)),MAX(0,(Tassazione_RAL!$E$19-Tassazione_RAL!$E$9)-(Tassazione_RAL!$E$20-Tassazione_RAL!$E$10))))))+((CD13+IF(AND(CG14=0,CJ14=0,CG13<>0,CJ13<>0),CG13+CJ13,0))*(1+rateFPA*(1-plustaxFPA)))) -> 82235.09229 | CE14: =IF(RAL>SgrvFP-SgrvFPN,MAX(0,IF($B$17>=$D14-4,MAX(0,(Tassazione_RAL!$E$19-Tassazione_RAL!$E$14)-(Tassazione_RAL!$E$20-Tassazione_RAL!$E$15)),IF(AND($B$18>0,$B$17+1=$D14-4),MAX(0,(Tassazione_RAL!$E$19-Tassazione_RAL!$E$9)-(Tassazione_RAL!$E$20-Tassazione_RAL!$E$10+Tassazione_RAL!$E$5-Tassazione_RAL!$E$25)),MAX(0,(Tassazione_RAL!$E$19-Tassazione_RAL!$E$9)-(Tassazione_RAL!$E$20-Tassazione_RAL!$E$10))))))+CE13 -> 35434.5754 | CF14: 12881.03171 | CG14: 3392.165491 | CH14: 20160 | CI14: 2882.88 | CJ14: 4184.119472 | CK14: 24866.66667 | CL14: 2615.522855 | CM14: 132033.7924 | CN14: 114609.9881 | CP14: =IF(RAL>SgrvFP-SgrvFPN,MAX(0,(Tassazione_RAL!$E$20-Tassazione_RAL!$E$10)+(SgrvEXT-Tassazione_RAL!$E$10+Tassazione_RAL!$E$15)),0)+CP13*(1+rateETF) -> 36034.39772 | CQ14: =IF(RAL>SgrvFP-SgrvFPN,MAX(0,(Tassazione_RAL!$E$20-Tassazione_RAL!$E$10)+(SgrvEXT-Tassazione_RAL!$E$10+Tassazione_RAL!$E$15)),0)+CQ13 -> 26768.7563 | CR14: =CP13*(rateETF)+CR13 -> 9265.641421 | CS14: =(1-costFPA)*(IF(RAL>SgrvFP-SgrvFPN,MAX(0,(Tassazione_RAL!$E$19-Tassazione_RAL!$E$9)-(Tassazione_RAL!$E$20-Tassazione_RAL!$E$10)),0)+((CS13+IF(AND(CV14=0,CY14=0,CV13<>0,CY13<>0),CV13+CY13,0))*(1+rateFPA*(1-plustaxFPA)))) -> 89180.9822 | CT14: =IF(RAL>SgrvFP-SgrvFPN,MAX(0,(Tassazione_RAL!$E$19-Tassazione_RAL!$E$9)-(Tassazione_RAL!$E$20-Tassazione_RAL!$E$10)),0)+CT13 -> 36884.6268 | CU14: 21005.09232 | CV14: 3392.165491 | CW14: 20160 | CX14: 2882.88 | CY14: 4184.119472 | CZ14: 24866.66667 | DA14: 2615.522855 | DB14: 132791.6649 | DC14: 115869.008
A15: Sgravio FPN | B15: =MAX(0,MIN(RAL*($B$6+$B$7),SgrvFP)) -> 1020 | D15: 12 | E15: =IF(RAL>SgrvFP-SgrvFPN,MAX(0,IF($B$17>=$D15-4,MAX(0,Tassazione_RAL!$E$20-Tassazione_RAL!$E$15),IF(AND($B$18>0,$B$17+1=$D15-4),MAX(0,(Tassazione_RAL!$E$20-Tassazione_RAL!$E$10+Tassazione_RAL!$E$5-Tassazione_RAL!$E$25)+(SgrvEXT-Main!$B$18-Tassazione_RAL!$E$10+Tassazione_RAL!$E$15+Tassazione_RAL!$E$5-Tassazione_RAL!$E$25)),MAX(0,(Tassazione_RAL!$E$20-Tassazione_RAL!$E$10)+(SgrvEXT-Tassazione_RAL!$E$10+Tassazione_RAL!$E$15))))))+E14*(1+rateETF) -> 46758.31722 | F15: =IF(RAL>SgrvFP-SgrvFPN,MAX(0,IF($B$17>=$D15-4,MAX(0,Tassazione_RAL!$E$20-Tassazione_RAL!$E$15),IF(AND($B$18>0,$B$17+1=$D15-4),MAX(0,(Tassazione_RAL!$E$20-Tassazione_RAL!$E$10+Tassazione_RAL!$E$5-Tassazione_RAL!$E$25)+(SgrvEXT-Main!$B$18-Tassazione_RAL!$E$10+Tassazione_RAL!$E$15+Tassazione_RAL!$E$5-Tassazione_RAL!$E$25)),MAX(0,(Tassazione_RAL!$E$20-Tassazione_RAL!$E$10)+(SgrvEXT-Tassazione_RAL!$E$10+Tassazione_RAL!$E$15))))))+F14 -> 28686.8169 | G15: 18071.50032 | H15: =(1-costFPA)*(IF(RAL>SgrvFP-SgrvFPN,MAX(0,IF($B$17>=$D15-4,MAX(0,(Tassazione_RAL!$E$19-Tassazione_RAL!$E$14)-(Tassazione_RAL!$E$20-Tassazione_RAL!$E$15)),IF(AND($B$18>0,$B$17+1=$D15-4),MAX(0,(Tassazione_RAL!$E$19-Tassazione_RAL!$E$9)-(Tassazione_RAL!$E$20-Tassazione_RAL!$E$10+Tassazione_RAL!$E$5-Tassazione_RAL!$E$25)),MAX(0,(Tassazione_RAL!$E$19-Tassazione_RAL!$E$9)-(Tassazione_RAL!$E$20-Tassazione_RAL!$E$10))))))+H14*(1+rateFPA*(1-plustaxFPA))) -> 47173.29822 | I15: =IF(RAL>SgrvFP-SgrvFPN,MAX(0,IF($B$17>=$D15-4,MAX(0,(Tassazione_RAL!$E$19-Tassazione_RAL!$E$14)-(Tassazione_RAL!$E$20-Tassazione_RAL!$E$15)),IF(AND($B$18>0,$B$17+1=$D15-4),MAX(0,(Tassazione_RAL!$E$19-Tassazione_RAL!$E$9)-(Tassazione_RAL!$E$20-Tassazione_RAL!$E$10+Tassazione_RAL!$E$5-Tassazione_RAL!$E$25)),MAX(0,(Tassazione_RAL!$E$19-Tassazione_RAL!$E$9)-(Tassazione_RAL!$E$20-Tassazione_RAL!$E$10))))))+I14 -> 40496.6576 | J15: 10326.65315 | K15: 24759.22107 | L15: 21840 | M15: 3407.04 | N15: 30539.64768 | O15: 26938.88889 | P15: 4536.013818 | Q15: 149230.4842 | R15: 129161.069 | T15: =IF(RAL>SgrvFP-SgrvFPN,MAX(0,(Tassazione_RAL!$E$20-Tassazione_RAL!$E$10)+(SgrvEXT-Tassazione_RAL!$E$10+Tassazione_RAL!$E$15)),0)+T14*(1+rateETF) -> 41543.95117 | U15: =IF(RAL>SgrvFP-SgrvFPN,MAX(0,(Tassazione_RAL!$E$20-Tassazione_RAL!$E$10)+(SgrvEXT-Tassazione_RAL!$E$10+Tassazione_RAL!$E$15)),0)+U14 -> 29827.9707 | V15: 11715.98047 | W15: =(1-costFPA)*(IF(RAL>SgrvFP-SgrvFPN,MAX(0,(Tassazione_RAL!$E$19-Tassazione_RAL!$E$9)-(Tassazione_RAL!$E$20-Tassazione_RAL!$E$10)),0)+W14*(1+(rateFPA*(1-plustaxFPA)))) -> 52462.21711 | X15: =IF(RAL>SgrvFP-SgrvFPN,MAX(0,(Tassazione_RAL!$E$19-Tassazione_RAL!$E$9)-(Tassazione_RAL!$E$20-Tassazione_RAL!$E$10)),0)+X14 -> 39958.3457 | Y15: 18916.08839 | Z15: 24759.22107 | AA15: 21840 | AB15: 3407.04 | AC15: 30539.64768 | AD15: 26938.88889 | AE15: 4536.013818 | AF15: 149305.037 | AG15: 130094.7192 | AI15: =IF(RAL>SgrvFP,MAX(0,IF($B$17>=$D15-4,0,IF(AND($B$18>0,$B$17+1=$D15-4),MAX(0,(SgrvEXT-Main!$B$18-Tassazione_RAL!$E$10+Tassazione_RAL!$E$15+Tassazione_RAL!$E$5-Tassazione_RAL!$E$25)),MAX(0,(SgrvEXT-Tassazione_RAL!$E$10+Tassazione_RAL!$E$15))))))+AI14*(1+rateETF) -> 36228.5405 | AJ15: =IF(RAL>SgrvFP,MAX(0,IF($B$17>=$D15-4,0,IF(AND($B$18>0,$B$17+1=$D15-4),MAX(0,(SgrvEXT-Main!$B$18-Tassazione_RAL!$E$10+Tassazione_RAL!$E$15+Tassazione_RAL!$E$5-Tassazione_RAL!$E$25)),MAX(0,(SgrvEXT-Tassazione_RAL!$E$10+Tassazione_RAL!$E$15))))))+AJ14 -> 18683.5945 | AK15: 17544.946 | AL15: 72192.61217 | AM15: 61974.88 | AN15: 15803.60276 | AO15: 35368.67738 | AP15: 26938.88889 | AQ15: 12752.74024 | AR15: 143789.83 | AS15: 123093.9507 | AU15: =IF(RAL>SgrvFP,MAX(0,SgrvEXT-Tassazione_RAL!$E$10+Tassazione_RAL!$E$15,0)+AU14*(1+rateETF)) -> 20253.85254 | AV15: =IF(RAL>SgrvFP,MAX(0,(SgrvEXT-Tassazione_RAL!$E$10+Tassazione_RAL!$E$15)),0)+AV14 -> 15906.9064 | AW15: 4346.946136 | AX15: 88148.85207 | AY15: 67139.41 | AZ15: 31783.4733 | BA15: 35368.67738 | BB15: 26938.88889 | BC15: 12752.74024 | BD15: 143771.382 | BE15: 124113.5466 | BG15: =IF(RAL>SgrvFP-SgrvFPN,MAX(0,SgrvFP-SgrvFPN+Tassazione_RAL!$E$10-Tassazione_RAL!$E$20+(SgrvEXT-Tassazione_RAL!$E$10+Tassazione_RAL!$E$15)),0)+BG14*(1+rateETF) -> 81363.91587 | BH15: =IF(RAL>SgrvFP-SgrvFPN,MAX(0,SgrvFP-SgrvFPN+Tassazione_RAL!$E$10-Tassazione_RAL!$E$20+(SgrvEXT-Tassazione_RAL!$E$10+Tassazione_RAL!$E$15)),0)+BH14 -> 55865.2521 | BI15: 25498.66377 | BJ15: 24759.22107 | BK15: 21840 | BL15: 3407.04 | BM15: 30539.64768 | BN15: 26938.88889 | BO15: 4536.013818 | BP15: 106123.1369 | BQ15: 121738.3017 | BS15: =IF(RAL>SgrvFP-SgrvFPN,MAX(0,SgrvFP+Tassazione_RAL!$E$10-Tassazione_RAL!$E$5+(SgrvEXT-Tassazione_RAL!$E$10+Tassazione_RAL!$E$15)),0)+BS14*(1+rateETF) -> 94545.33334 | BT15: =IF(RAL>SgrvFP-SgrvFPN,MAX(0,SgrvFP+Tassazione_RAL!$E$10-Tassazione_RAL!$E$5+(SgrvEXT-Tassazione_RAL!$E$10+Tassazione_RAL!$E$15)),0)+BT14 -> 64484.2521 | BU15: 30061.08124 | BV15: 27949.09722 | BW15: 26938.88889 | BX15: 1010.208333 | BY15: 108026.6643 | CA15: =IF(RAL>SgrvFP-SgrvFPN,MAX(0,IF($B$17>=$D15-4,MAX(0,Tassazione_RAL!$E$20-Tassazione_RAL!$E$15),IF(AND($B$18>0,$B$17+1=$D15-4),MAX(0,(Tassazione_RAL!$E$20-Tassazione_RAL!$E$10+Tassazione_RAL!$E$5-Tassazione_RAL!$E$25)+(SgrvEXT-Main!$B$18-Tassazione_RAL!$E$10+Tassazione_RAL!$E$15+Tassazione_RAL!$E$5-Tassazione_RAL!$E$25)),MAX(0,(Tassazione_RAL!$E$20-Tassazione_RAL!$E$10)+(SgrvEXT-Tassazione_RAL!$E$10+Tassazione_RAL!$E$15))))))+CA14*(1+rateETF) -> 46758.31722 | CB15: =IF(RAL>SgrvFP-SgrvFPN,MAX(0,IF($B$17>=$D15-4,MAX(0,Tassazione_RAL!$E$20-Tassazione_RAL!$E$15),IF(AND($B$18>0,$B$17+1=$D15-4),MAX(0,(Tassazione_RAL!$E$20-Tassazione_RAL!$E$10+Tassazione_RAL!$E$5-Tassazione_RAL!$E$25)+(SgrvEXT-Main!$B$18-Tassazione_RAL!$E$10+Tassazione_RAL!$E$15+Tassazione_RAL!$E$5-Tassazione_RAL!$E$25)),MAX(0,(Tassazione_RAL!$E$20-Tassazione_RAL!$E$10)+(SgrvEXT-Tassazione_RAL!$E$10+Tassazione_RAL!$E$15))))))+CB14 -> 28686.8169 | CC15: 18071.50032 | CD15: =(1-costFPA)*(IF(RAL>SgrvFP-SgrvFPN,MAX(0,IF($B$17>=$D15-4,MAX(0,(Tassazione_RAL!$E$19-Tassazione_RAL!$E$14)-(Tassazione_RAL!$E$20-Tassazione_RAL!$E$15)),IF(AND($B$18>0,$B$17+1=$D15-4),MAX(0,(Tassazione_RAL!$E$19-Tassazione_RAL!$E$9)-(Tassazione_RAL!$E$20-Tassazione_RAL!$E$10+Tassazione_RAL!$E$5-Tassazione_RAL!$E$25)),MAX(0,(Tassazione_RAL!$E$19-Tassazione_RAL!$E$9)-(Tassazione_RAL!$E$20-Tassazione_RAL!$E$10))))))+((CD14+IF(AND(CG15=0,CJ15=0,CG14<>0,CJ14<>0),CG14+CJ14,0))*(1+rateFPA*(1-plustaxFPA)))) -> 90991.8319 | CE15: =IF(RAL>SgrvFP-SgrvFPN,MAX(0,IF($B$17>=$D15-4,MAX(0,(Tassazione_RAL!$E$19-Tassazione_RAL!$E$14)-(Tassazione_RAL!$E$20-Tassazione_RAL!$E$15)),IF(AND($B$18>0,$B$17+1=$D15-4),MAX(0,(Tassazione_RAL!$E$19-Tassazione_RAL!$E$9)-(Tassazione_RAL!$E$20-Tassazione_RAL!$E$10+Tassazione_RAL!$E$5-Tassazione_RAL!$E$25)),MAX(0,(Tassazione_RAL!$E$19-Tassazione_RAL!$E$9)-(Tassazione_RAL!$E$20-Tassazione_RAL!$E$10))))))+CE14 -> 40496.6576 | CF15: 18390.78289 | CG15: 5141.252128 | CH15: 21840 | CI15: 3407.04 | CJ15: 6341.557684 | CK15: 26938.88889 | CL15: 2724.309962 | CM15: 149232.9589 | CN15: 129163.1726 | CP15: =IF(RAL>SgrvFP-SgrvFPN,MAX(0,(Tassazione_RAL!$E$20-Tassazione_RAL!$E$10)+(SgrvEXT-Tassazione_RAL!$E$10+Tassazione_RAL!$E$15)),0)+CP14*(1+rateETF) -> 41543.95117 | CQ15: =IF(RAL>SgrvFP-SgrvFPN,MAX(0,(Tassazione_RAL!$E$20-Tassazione_RAL!$E$10)+(SgrvEXT-Tassazione_RAL!$E$10+Tassazione_RAL!$E$15)),0)+CQ14 -> 29827.9707 | CR15: 11715.98047 | CS15: =(1-costFPA)*(IF(RAL>SgrvFP-SgrvFPN,MAX(0,(Tassazione_RAL!$E$19-Tassazione_RAL!$E$9)-(Tassazione_RAL!$E$20-Tassazione_RAL!$E$10)),0)+((CS14+IF(AND(CV15=0,CY15=0,CV14<>0,CY14<>0),CV14+CY14,0))*(1+rateFPA*(1-plustaxFPA)))) -> 96280.7508 | CT15: =IF(RAL>SgrvFP-SgrvFPN,MAX(0,(Tassazione_RAL!$E$19-Tassazione_RAL!$E$9)-(Tassazione_RAL!$E$20-Tassazione_RAL!$E$10)),0)+CT14 -> 39958.3457 | CU15: 26980.21813 | CV15: 5141.252128 | CW15: 21840 | CX15: 3407.04 | CY15: 6341.557684 | CZ15: 26938.88889 | DA15: 2724.309962 | DB15: 149307.5118 | DC15: 130096.8228
D16: 13 | E16: =IF(RAL>SgrvFP-SgrvFPN,MAX(0,IF($B$17>=$D16-4,MAX(0,Tassazione_RAL!$E$20-Tassazione_RAL!$E$15),IF(AND($B$18>0,$B$17+1=$D16-4),MAX(0,(Tassazione_RAL!$E$20-Tassazione_RAL!$E$10+Tassazione_RAL!$E$5-Tassazione_RAL!$E$25)+(SgrvEXT-Main!$B$18-Tassazione_RAL!$E$10+Tassazione_RAL!$E$15+Tassazione_RAL!$E$5-Tassazione_RAL!$E$25)),MAX(0,(Tassazione_RAL!$E$20-Tassazione_RAL!$E$10)+(SgrvEXT-Tassazione_RAL!$E$10+Tassazione_RAL!$E$15))))))+E15*(1+rateETF) -> 52977.73819 | F16: =IF(RAL>SgrvFP-SgrvFPN,MAX(0,IF($B$17>=$D16-4,MAX(0,Tassazione_RAL!$E$20-Tassazione_RAL!$E$15),IF(AND($B$18>0,$B$17+1=$D16-4),MAX(0,(Tassazione_RAL!$E$20-Tassazione_RAL!$E$10+Tassazione_RAL!$E$5-Tassazione_RAL!$E$25)+(SgrvEXT-Main!$B$18-Tassazione_RAL!$E$10+Tassazione_RAL!$E$15+Tassazione_RAL!$E$5-Tassazione_RAL!$E$25)),MAX(0,(Tassazione_RAL!$E$20-Tassazione_RAL!$E$10)+(SgrvEXT-Tassazione_RAL!$E$10+Tassazione_RAL!$E$15))))))+F15 -> 31726.6723 | G16: 21251.06589 | H16: =(1-costFPA)*(IF(RAL>SgrvFP-SgrvFPN,MAX(0,IF($B$17>=$D16-4,MAX(0,(Tassazione_RAL!$E$19-Tassazione_RAL!$E$14)-(Tassazione_RAL!$E$20-Tassazione_RAL!$E$15)),IF(AND($B$18>0,$B$17+1=$D16-4),MAX(0,(Tassazione_RAL!$E$19-Tassazione_RAL!$E$9)-(Tassazione_RAL!$E$20-Tassazione_RAL!$E$10+Tassazione_RAL!$E$5-Tassazione_RAL!$E$25)),MAX(0,(Tassazione_RAL!$E$19-Tassazione_RAL!$E$9)-(Tassazione_RAL!$E$20-Tassazione_RAL!$E$10))))))+H15*(1+rateFPA*(1-plustaxFPA))) -> 52342.65451 | I16: =IF(RAL>SgrvFP-SgrvFPN,MAX(0,IF($B$17>=$D16-4,MAX(0,(Tassazione_RAL!$E$19-Tassazione_RAL!$E$14)-(Tassazione_RAL!$E$20-Tassazione_RAL!$E$15)),IF(AND($B$18>0,$B$17+1=$D16-4),MAX(0,(Tassazione_RAL!$E$19-Tassazione_RAL!$E$9)-(Tassazione_RAL!$E$20-Tassazione_RAL!$E$10+Tassazione_RAL!$E$5-Tassazione_RAL!$E$25)),MAX(0,(Tassazione_RAL!$E$19-Tassazione_RAL!$E$9)-(Tassazione_RAL!$E$20-Tassazione_RAL!$E$10))))))+I15 -> 43547.791 | J16: 13487.26413 | K16: 26951.94624 | L16: 23520 | M16: 3974.88 | N16: 33244.29876 | O16: 29011.11111 | P16: 5330.044658 | Q16: 165516.6377 | R16: 143110.5256 | T16: =IF(RAL>SgrvFP-SgrvFPN,MAX(0,(Tassazione_RAL!$E$20-Tassazione_RAL!$E$10)+(SgrvEXT-Tassazione_RAL!$E$10+Tassazione_RAL!$E$15)),0)+T15*(1+rateETF) -> 47428.15425 | U16: =IF(RAL>SgrvFP-SgrvFPN,MAX(0,(Tassazione_RAL!$E$20-Tassazione_RAL!$E$10)+(SgrvEXT-Tassazione_RAL!$E$10+Tassazione_RAL!$E$15)),0)+U15 -> 32887.1851 | V16: 14540.96915 | W16: =(1-costFPA)*(IF(RAL>SgrvFP-SgrvFPN,MAX(0,(Tassazione_RAL!$E$19-Tassazione_RAL!$E$9)-(Tassazione_RAL!$E$20-Tassazione_RAL!$E$10)),0)+W15*(1+(rateFPA*(1-plustaxFPA)))) -> 57894.20324 | X16: =IF(RAL>SgrvFP-SgrvFPN,MAX(0,(Tassazione_RAL!$E$19-Tassazione_RAL!$E$9)-(Tassazione_RAL!$E$20-Tassazione_RAL!$E$10)),0)+X15 -> 43032.0646 | Y16: 22431.05693 | Z16: 26951.94624 | AA16: 23520 | AB16: 3974.88 | AC16: 33244.29876 | AD16: 29011.11111 | AE16: 5330.044658 | AF16: 165518.6025 | AG16: 144024.3833 | AI16: =IF(RAL>SgrvFP,MAX(0,IF($B$17>=$D16-4,0,IF(AND($B$18>0,$B$17+1=$D16-4),MAX(0,(SgrvEXT-Main!$B$18-Tassazione_RAL!$E$10+Tassazione_RAL!$E$15+Tassazione_RAL!$E$5-Tassazione_RAL!$E$25)),MAX(0,(SgrvEXT-Tassazione_RAL!$E$10+Tassazione_RAL!$E$15))))))+AI15*(1+rateETF) -> 40638.50006 | AJ16: =IF(RAL>SgrvFP,MAX(0,IF($B$17>=$D16-4,0,IF(AND($B$18>0,$B$17+1=$D16-4),MAX(0,(SgrvEXT-Main!$B$18-Tassazione_RAL!$E$10+Tassazione_RAL!$E$15+Tassazione_RAL!$E$5-Tassazione_RAL!$E$25)),MAX(0,(SgrvEXT-Tassazione_RAL!$E$10+Tassazione_RAL!$E$15))))))+AJ15 -> 20630.0133 | AK16: 20008.48676 | AL16: 80658.89957 | AM16: 67203.98 | AN16: 20640.50777 | AO16: 39030.78271 | AP16: 29011.11111 | AQ16: 15122.44163 | AR16: 160328.1823 | AS16: 137172.5234 | AU16: =IF(RAL>SgrvFP,MAX(0,SgrvEXT-Tassazione_RAL!$E$10+Tassazione_RAL!$E$15,0)+AU15*(1+rateETF)) -> 23619.47781 | AV16: =IF(RAL>SgrvFP,MAX(0,(SgrvEXT-Tassazione_RAL!$E$10+Tassazione_RAL!$E$15)),0)+AV15 -> 17895.2697 | AW16: 5724.208109 | AX16: 97275.86515 | AY16: 72303.98 | AZ16: 37689.44639 | BA16: 39030.78271 | BB16: 29011.11111 | BC16: 15122.44163 | BD16: 159926.1257 | BE16: 137991.8344 | BG16: =IF(RAL>SgrvFP-SgrvFPN,MAX(0,SgrvFP-SgrvFPN+Tassazione_RAL!$E$10-Tassazione_RAL!$E$20+(SgrvEXT-Tassazione_RAL!$E$10+Tassazione_RAL!$E$15)),0)+BG15*(1+rateETF) -> 91958.74435 | BH16: =IF(RAL>SgrvFP-SgrvFPN,MAX(0,SgrvFP-SgrvFPN+Tassazione_RAL!$E$10-Tassazione_RAL!$E$20+(SgrvEXT-Tassazione_RAL!$E$10+Tassazione_RAL!$E$15)),0)+BH15 -> 60927.3343 | BI16: 31031.41005 | BJ16: 26951.94624 | BK16: 23520 | BL16: 3974.88 | BM16: 33244.29876 | BN16: 29011.11111 | BO16: 5330.044658 | BP16: 118910.6906 | BQ16: 135057.386 | BS16: =IF(RAL>SgrvFP-SgrvFPN,MAX(0,SgrvFP+Tassazione_RAL!$E$10-Tassazione_RAL!$E$5+(SgrvEXT-Tassazione_RAL!$E$10+Tassazione_RAL!$E$15)),0)+BS15*(1+rateETF) -> 106699.4982 | BT16: =IF(RAL>SgrvFP-SgrvFPN,MAX(0,SgrvFP+Tassazione_RAL!$E$10-Tassazione_RAL!$E$5+(SgrvEXT-Tassazione_RAL!$E$10+Tassazione_RAL!$E$15)),0)+BT15 -> 70209.3343 | BU16: 36490.1639 | BV16: 30099.02778 | BW16: 29011.11111 | BX16: 1087.916667 | BY16: 120147.5148 | CA16: =IF(RAL>SgrvFP-SgrvFPN,MAX(0,IF($B$17>=$D16-4,MAX(0,Tassazione_RAL!$E$20-Tassazione_RAL!$E$15),IF(AND($B$18>0,$B$17+1=$D16-4),MAX(0,(Tassazione_RAL!$E$20-Tassazione_RAL!$E$10+Tassazione_RAL!$E$5-Tassazione_RAL!$E$25)+(SgrvEXT-Main!$B$18-Tassazione_RAL!$E$10+Tassazione_RAL!$E$15+Tassazione_RAL!$E$5-Tassazione_RAL!$E$25)),MAX(0,(Tassazione_RAL!$E$20-Tassazione_RAL!$E$10)+(SgrvEXT-Tassazione_RAL!$E$10+Tassazione_RAL!$E$15))))))+CA15*(1+rateETF) -> 52977.73819 | CB16: =IF(RAL>SgrvFP-SgrvFPN,MAX(0,IF($B$17>=$D16-4,MAX(0,Tassazione_RAL!$E$20-Tassazione_RAL!$E$15),IF(AND($B$18>0,$B$17+1=$D16-4),MAX(0,(Tassazione_RAL!$E$20-Tassazione_RAL!$E$10+Tassazione_RAL!$E$5-Tassazione_RAL!$E$25)+(SgrvEXT-Main!$B$18-Tassazione_RAL!$E$10+Tassazione_RAL!$E$15+Tassazione_RAL!$E$5-Tassazione_RAL!$E$25)),MAX(0,(Tassazione_RAL!$E$20-Tassazione_RAL!$E$10)+(SgrvEXT-Tassazione_RAL!$E$10+Tassazione_RAL!$E$15))))))+CB15 -> 31726.6723 | CC16: 21251.06589 | CD16: =(1-costFPA)*(IF(RAL>SgrvFP-SgrvFPN,MAX(0,IF($B$17>=$D16-4,MAX(0,(Tassazione_RAL!$E$19-Tassazione_RAL!$E$14)-(Tassazione_RAL!$E$20-Tassazione_RAL!$E$15)),IF(AND($B$18>0,$B$17+1=$D16-4),MAX(0,(Tassazione_RAL!$E$19-Tassazione_RAL!$E$9)-(Tassazione_RAL!$E$20-Tassazione_RAL!$E$10+Tassazione_RAL!$E$5-Tassazione_RAL!$E$25)),MAX(0,(Tassazione_RAL!$E$19-Tassazione_RAL!$E$9)-(Tassazione_RAL!$E$20-Tassazione_RAL!$E$10))))))+((CD15+IF(AND(CG16=0,CJ16=0,CG15<>0,CJ15<>0),CG15+CJ15,0))*(1+rateFPA*(1-plustaxFPA)))) -> 98151.44528 | CE16: =IF(RAL>SgrvFP-SgrvFPN,MAX(0,IF($B$17>=$D16-4,MAX(0,(Tassazione_RAL!$E$19-Tassazione_RAL!$E$14)-(Tassazione_RAL!$E$20-Tassazione_RAL!$E$15)),IF(AND($B$18>0,$B$17+1=$D16-4),MAX(0,(Tassazione_RAL!$E$19-Tassazione_RAL!$E$9)-(Tassazione_RAL!$E$20-Tassazione_RAL!$E$10+Tassazione_RAL!$E$5-Tassazione_RAL!$E$25)),MAX(0,(Tassazione_RAL!$E$19-Tassazione_RAL!$E$9)-(Tassazione_RAL!$E$20-Tassazione_RAL!$E$10))))))+CE15 -> 43547.791 | CF16: 24487.23563 | CG16: 6926.654589 | CH16: 23520 | CI16: 3974.88 | CJ16: 8543.790217 | CK16: 29011.11111 | CL16: 2889.190461 | CM16: 166599.6283 | CN16: 144031.0676 | CP16: =IF(RAL>SgrvFP-SgrvFPN,MAX(0,(Tassazione_RAL!$E$20-Tassazione_RAL!$E$10)+(SgrvEXT-Tassazione_RAL!$E$10+Tassazione_RAL!$E$15)),0)+CP15*(1+rateETF) -> 47428.15425 | CQ16: =IF(RAL>SgrvFP-SgrvFPN,MAX(0,(Tassazione_RAL!$E$20-Tassazione_RAL!$E$10)+(SgrvEXT-Tassazione_RAL!$E$10+Tassazione_RAL!$E$15)),0)+CQ15 -> 32887.1851 | CR16: 14540.96915 | CS16: =(1-costFPA)*(IF(RAL>SgrvFP-SgrvFPN,MAX(0,(Tassazione_RAL!$E$19-Tassazione_RAL!$E$9)-(Tassazione_RAL!$E$20-Tassazione_RAL!$E$10)),0)+((CS15+IF(AND(CV16=0,CY16=0,CV15<>0,CY15<>0),CV15+CY15,0))*(1+rateFPA*(1-plustaxFPA)))) -> 103702.994 | CT16: =IF(RAL>SgrvFP-SgrvFPN,MAX(0,(Tassazione_RAL!$E$19-Tassazione_RAL!$E$9)-(Tassazione_RAL!$E$20-Tassazione_RAL!$E$10)),0)+CT15 -> 43032.0646 | CU16: 33431.02843 | CV16: 6926.654589 | CW16: 23520 | CX16: 3974.88 | CY16: 8543.790217 | CZ16: 29011.11111 | DA16: 2889.190461 | DB16: 166601.5931 | DC16: 144944.9253
A17: Q.ti anni | B17: =IF(SgrvFP>SgrvFPN,TRUNC((SgrvFP-SgrvFPN)*5/SgrvEXT),0) -> 8 | D17: 14 | E17: =IF(RAL>SgrvFP-SgrvFPN,MAX(0,IF($B$17>=$D17-4,MAX(0,Tassazione_RAL!$E$20-Tassazione_RAL!$E$15),IF(AND($B$18>0,$B$17+1=$D17-4),MAX(0,(Tassazione_RAL!$E$20-Tassazione_RAL!$E$10+Tassazione_RAL!$E$5-Tassazione_RAL!$E$25)+(SgrvEXT-Main!$B$18-Tassazione_RAL!$E$10+Tassazione_RAL!$E$15+Tassazione_RAL!$E$5-Tassazione_RAL!$E$25)),MAX(0,(Tassazione_RAL!$E$20-Tassazione_RAL!$E$10)+(SgrvEXT-Tassazione_RAL!$E$10+Tassazione_RAL!$E$15))))))+E16*(1+rateETF) -> 59639.43878 | F17: =IF(RAL>SgrvFP-SgrvFPN,MAX(0,IF($B$17>=$D17-4,MAX(0,Tassazione_RAL!$E$20-Tassazione_RAL!$E$15),IF(AND($B$18>0,$B$17+1=$D17-4),MAX(0,(Tassazione_RAL!$E$20-Tassazione_RAL!$E$10+Tassazione_RAL!$E$5-Tassazione_RAL!$E$25)+(SgrvEXT-Main!$B$18-Tassazione_RAL!$E$10+Tassazione_RAL!$E$15+Tassazione_RAL!$E$5-Tassazione_RAL!$E$25)),MAX(0,(Tassazione_RAL!$E$20-Tassazione_RAL!$E$10)+(SgrvEXT-Tassazione_RAL!$E$10+Tassazione_RAL!$E$15))))))+F16 -> 34785.8867 | G17: 24853.55208 | H17: =(1-costFPA)*(IF(RAL>SgrvFP-SgrvFPN,MAX(0,IF($B$17>=$D17-4,MAX(0,(Tassazione_RAL!$E$19-Tassazione_RAL!$E$14)-(Tassazione_RAL!$E$20-Tassazione_RAL!$E$15)),IF(AND($B$18>0,$B$17+1=$D17-4),MAX(0,(Tassazione_RAL!$E$19-Tassazione_RAL!$E$9)-(Tassazione_RAL!$E$20-Tassazione_RAL!$E$10+Tassazione_RAL!$E$5-Tassazione_RAL!$E$25)),MAX(0,(Tassazione_RAL!$E$19-Tassazione_RAL!$E$9)-(Tassazione_RAL!$E$20-Tassazione_RAL!$E$10))))))+H16*(1+rateFPA*(1-plustaxFPA))) -> 57769.21006 | I17: =IF(RAL>SgrvFP-SgrvFPN,MAX(0,IF($B$17>=$D17-4,MAX(0,(Tassazione_RAL!$E$19-Tassazione_RAL!$E$14)-(Tassazione_RAL!$E$20-Tassazione_RAL!$E$15)),IF(AND($B$18>0,$B$17+1=$D17-4),MAX(0,(Tassazione_RAL!$E$19-Tassazione_RAL!$E$9)-(Tassazione_RAL!$E$20-Tassazione_RAL!$E$10+Tassazione_RAL!$E$5-Tassazione_RAL!$E$25)),MAX(0,(Tassazione_RAL!$E$19-Tassazione_RAL!$E$9)-(Tassazione_RAL!$E$20-Tassazione_RAL!$E$10))))))+I16 -> 46621.5099 | J17: 16994.22198 | K17: 29190.19838 | L17: 25200 | M17: 4586.4 | N17: 36005.10581 | O17: 31083.33333 | P17: 6194.396426 | Q17: 182603.953 | R17: 157697.3524 | T17: =IF(RAL>SgrvFP-SgrvFPN,MAX(0,(Tassazione_RAL!$E$20-Tassazione_RAL!$E$10)+(SgrvEXT-Tassazione_RAL!$E$10+Tassazione_RAL!$E$15)),0)+T16*(1+rateETF) -> 53712.48313 | U17: =IF(RAL>SgrvFP-SgrvFPN,MAX(0,(Tassazione_RAL!$E$20-Tassazione_RAL!$E$10)+(SgrvEXT-Tassazione_RAL!$E$10+Tassazione_RAL!$E$15)),0)+U16 -> 35946.3995 | V17: 17766.08363 | W17: =(1-costFPA)*(IF(RAL>SgrvFP-SgrvFPN,MAX(0,(Tassazione_RAL!$E$19-Tassazione_RAL!$E$9)-(Tassazione_RAL!$E$20-Tassazione_RAL!$E$10)),0)+W16*(1+(rateFPA*(1-plustaxFPA)))) -> 63572.91257 | X17: =IF(RAL>SgrvFP-SgrvFPN,MAX(0,(Tassazione_RAL!$E$19-Tassazione_RAL!$E$9)-(Tassazione_RAL!$E$20-Tassazione_RAL!$E$10)),0)+X16 -> 46105.7835 | Y17: 26309.96855 | Z17: 29190.19838 | AA17: 25200 | AB17: 4586.4 | AC17: 36005.10581 | AD17: 31083.33333 | AE17: 6194.396426 | AF17: 182480.6999 | AG17: 158546.2856 | AI17: =IF(RAL>SgrvFP,MAX(0,IF($B$17>=$D17-4,0,IF(AND($B$18>0,$B$17+1=$D17-4),MAX(0,(SgrvEXT-Main!$B$18-Tassazione_RAL!$E$10+Tassazione_RAL!$E$15+Tassazione_RAL!$E$5-Tassazione_RAL!$E$25)),MAX(0,(SgrvEXT-Tassazione_RAL!$E$10+Tassazione_RAL!$E$15))))))+AI16*(1+rateETF) -> 45390.28136 | AJ17: =IF(RAL>SgrvFP,MAX(0,IF($B$17>=$D17-4,0,IF(AND($B$18>0,$B$17+1=$D17-4),MAX(0,(SgrvEXT-Main!$B$18-Tassazione_RAL!$E$10+Tassazione_RAL!$E$15+Tassazione_RAL!$E$5-Tassazione_RAL!$E$25)),MAX(0,(SgrvEXT-Tassazione_RAL!$E$10+Tassazione_RAL!$E$15))))))+AJ16 -> 22618.3766 | AK17: 22771.90476 | AL17: 89445.71572 | AM17: 72368.55 | AN17: 26044.65404 | AO17: 42859.22248 | AP17: 31083.33333 | AQ17: 17737.50407 | AR17: 177695.2196 | AS17: 151928.7836 | AU17: =IF(RAL>SgrvFP,MAX(0,SgrvEXT-Tassazione_RAL!$E$10+Tassazione_RAL!$E$15,0)+AU16*(1+rateETF)) -> 27213.9656 | AV17: =IF(RAL>SgrvFP,MAX(0,(SgrvEXT-Tassazione_RAL!$E$10+Tassazione_RAL!$E$15)),0)+AV16 -> 19883.633 | AW17: 7330.3326 | AX17: 106817.4312 | AY17: 77468.55 | AZ17: 44206.92936 | BA17: 42859.22248 | BB17: 31083.33333 | BC17: 17737.50407 | BD17: 176890.6193 | BE17: 152533.2347 | BG17: =IF(RAL>SgrvFP-SgrvFPN,MAX(0,SgrvFP-SgrvFPN+Tassazione_RAL!$E$10-Tassazione_RAL!$E$20+(SgrvEXT-Tassazione_RAL!$E$10+Tassazione_RAL!$E$15)),0)+BG16*(1+rateETF) -> 103274.0212 | BH17: =IF(RAL>SgrvFP-SgrvFPN,MAX(0,SgrvFP-SgrvFPN+Tassazione_RAL!$E$10-Tassazione_RAL!$E$20+(SgrvEXT-Tassazione_RAL!$E$10+Tassazione_RAL!$E$15)),0)+BH16 -> 65989.4165 | BI17: 37284.60467 | BJ17: 29190.19838 | BK17: 25200 | BL17: 4586.4 | BM17: 36005.10581 | BN17: 31083.33333 | BO17: 6194.396426 | BP17: 132464.2195 | BQ17: 148996.0325 | BS17: =IF(RAL>SgrvFP-SgrvFPN,MAX(0,SgrvFP+Tassazione_RAL!$E$10-Tassazione_RAL!$E$5+(SgrvEXT-Tassazione_RAL!$E$10+Tassazione_RAL!$E$15)),0)+BS16*(1+rateETF) -> 119680.1463 | BT17: =IF(RAL>SgrvFP-SgrvFPN,MAX(0,SgrvFP+Tassazione_RAL!$E$10-Tassazione_RAL!$E$5+(SgrvEXT-Tassazione_RAL!$E$10+Tassazione_RAL!$E$15)),0)+BT16 -> 75934.4165 | BU17: 43745.72978 | BV17: 32248.95833 | BW17: 31083.33333 | BX17: 1165.625 | BY17: 132879.9628 | CA17: =IF(RAL>SgrvFP-SgrvFPN,MAX(0,IF($B$17>=$D17-4,MAX(0,Tassazione_RAL!$E$20-Tassazione_RAL!$E$15),IF(AND($B$18>0,$B$17+1=$D17-4),MAX(0,(Tassazione_RAL!$E$20-Tassazione_RAL!$E$10+Tassazione_RAL!$E$5-Tassazione_RAL!$E$25)+(SgrvEXT-Main!$B$18-Tassazione_RAL!$E$10+Tassazione_RAL!$E$15+Tassazione_RAL!$E$5-Tassazione_RAL!$E$25)),MAX(0,(Tassazione_RAL!$E$20-Tassazione_RAL!$E$10)+(SgrvEXT-Tassazione_RAL!$E$10+Tassazione_RAL!$E$15))))))+CA16*(1+rateETF) -> 59639.43878 | CB17: =IF(RAL>SgrvFP-SgrvFPN,MAX(0,IF($B$17>=$D17-4,MAX(0,Tassazione_RAL!$E$20-Tassazione_RAL!$E$15),IF(AND($B$18>0,$B$17+1=$D17-4),MAX(0,(Tassazione_RAL!$E$20-Tassazione_RAL!$E$10+Tassazione_RAL!$E$5-Tassazione_RAL!$E$25)+(SgrvEXT-Main!$B$18-Tassazione_RAL!$E$10+Tassazione_RAL!$E$15+Tassazione_RAL!$E$5-Tassazione_RAL!$E$25)),MAX(0,(Tassazione_RAL!$E$20-Tassazione_RAL!$E$10)+(SgrvEXT-Tassazione_RAL!$E$10+Tassazione_RAL!$E$15))))))+CB16 -> 34785.8867 | CC17: 24853.55208 | CD17: =(1-costFPA)*(IF(RAL>SgrvFP-SgrvFPN,MAX(0,IF($B$17>=$D17-4,MAX(0,(Tassazione_RAL!$E$19-Tassazione_RAL!$E$14)-(Tassazione_RAL!$E$20-Tassazione_RAL!$E$15)),IF(AND($B$18>0,$B$17+1=$D17-4),MAX(0,(Tassazione_RAL!$E$19-Tassazione_RAL!$E$9)-(Tassazione_RAL!$E$20-Tassazione_RAL!$E$10+Tassazione_RAL!$E$5-Tassazione_RAL!$E$25)),MAX(0,(Tassazione_RAL!$E$19-Tassazione_RAL!$E$9)-(Tassazione_RAL!$E$20-Tassazione_RAL!$E$10))))))+((CD16+IF(AND(CG17=0,CJ17=0,CG16<>0,CJ16<>0),CG16+CJ16,0))*(1+rateFPA*(1-plustaxFPA)))) -> 105658.6563 | CE17: =IF(RAL>SgrvFP-SgrvFPN,MAX(0,IF($B$17>=$D17-4,MAX(0,(Tassazione_RAL!$E$19-Tassazione_RAL!$E$14)-(Tassazione_RAL!$E$20-Tassazione_RAL!$E$15)),IF(AND($B$18>0,$B$17+1=$D17-4),MAX(0,(Tassazione_RAL!$E$19-Tassazione_RAL!$E$9)-(Tassazione_RAL!$E$20-Tassazione_RAL!$E$10+Tassazione_RAL!$E$5-Tassazione_RAL!$E$25)),MAX(0,(Tassazione_RAL!$E$19-Tassazione_RAL!$E$9)-(Tassazione_RAL!$E$20-Tassazione_RAL!$E$10))))))+CE16 -> 46621.5099 | CF17: 31063.38246 | CG17: 8749.126889 | CH17: 25200 | CI17: 4586.4 | CJ17: 10791.74712 | CK17: 31083.33333 | CL17: 3111.329007 | CM17: 184838.9691 | CN17: 159597.116 | CP17: =IF(RAL>SgrvFP-SgrvFPN,MAX(0,(Tassazione_RAL!$E$20-Tassazione_RAL!$E$10)+(SgrvEXT-Tassazione_RAL!$E$10+Tassazione_RAL!$E$15)),0)+CP16*(1+rateETF) -> 53712.48313 | CQ17: =IF(RAL>SgrvFP-SgrvFPN,MAX(0,(Tassazione_RAL!$E$20-Tassazione_RAL!$E$10)+(SgrvEXT-Tassazione_RAL!$E$10+Tassazione_RAL!$E$15)),0)+CQ16 -> 35946.3995 | CR17: 17766.08363 | CS17: =(1-costFPA)*(IF(RAL>SgrvFP-SgrvFPN,MAX(0,(Tassazione_RAL!$E$19-Tassazione_RAL!$E$9)-(Tassazione_RAL!$E$20-Tassazione_RAL!$E$10)),0)+((CS16+IF(AND(CV17=0,CY17=0,CV16<>0,CY16<>0),CV16+CY16,0))*(1+rateFPA*(1-plustaxFPA)))) -> 111462.3588 | CT17: =IF(RAL>SgrvFP-SgrvFPN,MAX(0,(Tassazione_RAL!$E$19-Tassazione_RAL!$E$9)-(Tassazione_RAL!$E$20-Tassazione_RAL!$E$10)),0)+CT16 -> 46105.7835 | CU17: 40379.12903 | CV17: 8749.126889 | CW17: 25200 | CX17: 4586.4 | CY17: 10791.74712 | CZ17: 31083.33333 | DA17: 3111.329007 | DB17: 184715.7159 | DC17: 160446.0493
A18: Modulo | B18: =IF(SgrvFP>SgrvFPN,MOD((SgrvFP-SgrvFPN)*5,SgrvEXT),0) -> 64.53 | D18: 15 | E18: =IF(RAL>SgrvFP-SgrvFPN,MAX(0,IF($B$17>=$D18-4,MAX(0,Tassazione_RAL!$E$20-Tassazione_RAL!$E$15),IF(AND($B$18>0,$B$17+1=$D18-4),MAX(0,(Tassazione_RAL!$E$20-Tassazione_RAL!$E$10+Tassazione_RAL!$E$5-Tassazione_RAL!$E$25)+(SgrvEXT-Main!$B$18-Tassazione_RAL!$E$10+Tassazione_RAL!$E$15+Tassazione_RAL!$E$5-Tassazione_RAL!$E$25)),MAX(0,(Tassazione_RAL!$E$20-Tassazione_RAL!$E$10)+(SgrvEXT-Tassazione_RAL!$E$10+Tassazione_RAL!$E$15))))))+E17*(1+rateETF) -> 66754.13502 | F18: =IF(RAL>SgrvFP-SgrvFPN,MAX(0,IF($B$17>=$D18-4,MAX(0,Tassazione_RAL!$E$20-Tassazione_RAL!$E$15),IF(AND($B$18>0,$B$17+1=$D18-4),MAX(0,(Tassazione_RAL!$E$20-Tassazione_RAL!$E$10+Tassazione_RAL!$E$5-Tassazione_RAL!$E$25)+(SgrvEXT-Main!$B$18-Tassazione_RAL!$E$10+Tassazione_RAL!$E$15+Tassazione_RAL!$E$5-Tassazione_RAL!$E$25)),MAX(0,(Tassazione_RAL!$E$20-Tassazione_RAL!$E$10)+(SgrvEXT-Tassazione_RAL!$E$10+Tassazione_RAL!$E$15))))))+F17 -> 37845.1011 | G18: 28909.03392 | H18: =(1-costFPA)*(IF(RAL>SgrvFP-SgrvFPN,MAX(0,IF($B$17>=$D18-4,MAX(0,(Tassazione_RAL!$E$19-Tassazione_RAL!$E$14)-(Tassazione_RAL!$E$20-Tassazione_RAL!$E$15)),IF(AND($B$18>0,$B$17+1=$D18-4),MAX(0,(Tassazione_RAL!$E$19-Tassazione_RAL!$E$9)-(Tassazione_RAL!$E$20-Tassazione_RAL!$E$10+Tassazione_RAL!$E$5-Tassazione_RAL!$E$25)),MAX(0,(Tassazione_RAL!$E$19-Tassazione_RAL!$E$9)-(Tassazione_RAL!$E$20-Tassazione_RAL!$E$10))))))+H17*(1+rateFPA*(1-plustaxFPA))) -> 63442.24215 | I18: =IF(RAL>SgrvFP-SgrvFPN,MAX(0,IF($B$17>=$D18-4,MAX(0,(Tassazione_RAL!$E$19-Tassazione_RAL!$E$14)-(Tassazione_RAL!$E$20-Tassazione_RAL!$E$15)),IF(AND($B$18>0,$B$17+1=$D18-4),MAX(0,(Tassazione_RAL!$E$19-Tassazione_RAL!$E$9)-(Tassazione_RAL!$E$20-Tassazione_RAL!$E$10+Tassazione_RAL!$E$5-Tassazione_RAL!$E$25)),MAX(0,(Tassazione_RAL!$E$19-Tassazione_RAL!$E$9)-(Tassazione_RAL!$E$20-Tassazione_RAL!$E$10))))))+I17 -> 49695.2288 | J18: 20864.75905 | K18: 31474.92276 | L18: 26880 | M18: 5241.6 | N18: 38823.23476 | O18: 33155.55556 | P18: 7130.529177 | Q18: 200494.5347 | R18: 172917.1259 | T18: =IF(RAL>SgrvFP-SgrvFPN,MAX(0,(Tassazione_RAL!$E$20-Tassazione_RAL!$E$10)+(SgrvEXT-Tassazione_RAL!$E$10+Tassazione_RAL!$E$15)),0)+T17*(1+rateETF) -> 60424.14639 | U18: =IF(RAL>SgrvFP-SgrvFPN,MAX(0,(Tassazione_RAL!$E$20-Tassazione_RAL!$E$10)+(SgrvEXT-Tassazione_RAL!$E$10+Tassazione_RAL!$E$15)),0)+U17 -> 39005.6139 | V18: 21418.53249 | W18: =(1-costFPA)*(IF(RAL>SgrvFP-SgrvFPN,MAX(0,(Tassazione_RAL!$E$19-Tassazione_RAL!$E$9)-(Tassazione_RAL!$E$20-Tassazione_RAL!$E$10)),0)+W17*(1+(rateFPA*(1-plustaxFPA)))) -> 69509.55138 | X18: =IF(RAL>SgrvFP-SgrvFPN,MAX(0,(Tassazione_RAL!$E$19-Tassazione_RAL!$E$9)-(Tassazione_RAL!$E$20-Tassazione_RAL!$E$10)),0)+X17 -> 49179.5024 | Y18: 30569.35369 | Z18: 31474.92276 | AA18: 26880 | AB18: 5241.6 | AC18: 38823.23476 | AD18: 33155.55556 | AE18: 7130.529177 | AF18: 200231.8553 | AG18: 173691.8805 | AI18: =IF(RAL>SgrvFP,MAX(0,IF($B$17>=$D18-4,0,IF(AND($B$18>0,$B$17+1=$D18-4),MAX(0,(SgrvEXT-Main!$B$18-Tassazione_RAL!$E$10+Tassazione_RAL!$E$15+Tassazione_RAL!$E$5-Tassazione_RAL!$E$25)),MAX(0,(SgrvEXT-Tassazione_RAL!$E$10+Tassazione_RAL!$E$15))))))+AI17*(1+rateETF) -> 50465.1838 | AJ18: =IF(RAL>SgrvFP,MAX(0,IF($B$17>=$D18-4,0,IF(AND($B$18>0,$B$17+1=$D18-4),MAX(0,(SgrvEXT-Main!$B$18-Tassazione_RAL!$E$10+Tassazione_RAL!$E$15+Tassazione_RAL!$E$5-Tassazione_RAL!$E$25)),MAX(0,(SgrvEXT-Tassazione_RAL!$E$10+Tassazione_RAL!$E$15))))))+AJ17 -> 24606.7399 | AK18: 25858.4439 | AL18: 98631.63293 | AM18: 77533.12 | AN18: 32037.517 | AO18: 46861.55166 | AP18: 33155.55556 | AQ18: 20609.07197 | AR18: 195958.3684 | AS18: 167411.1953 | AU18: =IF(RAL>SgrvFP,MAX(0,SgrvEXT-Tassazione_RAL!$E$10+Tassazione_RAL!$E$15,0)+AU17*(1+rateETF)) -> 31052.87856 | AV18: =IF(RAL>SgrvFP,MAX(0,(SgrvEXT-Tassazione_RAL!$E$10+Tassazione_RAL!$E$15)),0)+AV17 -> 21871.9963 | AW18: 9180.882261 | AX18: 116792.3794 | AY18: 82633.12 | AZ18: 51363.69725 | BA18: 46861.55166 | BB18: 33155.55556 | BC18: 20609.07197 | BD18: 194706.8096 | BE18: 167771.6905 | BG18: =IF(RAL>SgrvFP-SgrvFPN,MAX(0,SgrvFP-SgrvFPN+Tassazione_RAL!$E$10-Tassazione_RAL!$E$20+(SgrvEXT-Tassazione_RAL!$E$10+Tassazione_RAL!$E$15)),0)+BG17*(1+rateETF) -> 115358.7368 | BH18: =IF(RAL>SgrvFP-SgrvFPN,MAX(0,SgrvFP-SgrvFPN+Tassazione_RAL!$E$10-Tassazione_RAL!$E$20+(SgrvEXT-Tassazione_RAL!$E$10+Tassazione_RAL!$E$15)),0)+BH17 -> 71051.4987 | BI18: 44307.2381 | BJ18: 31474.92276 | BK18: 26880 | BL18: 5241.6 | BM18: 38823.23476 | BN18: 33155.55556 | BO18: 7130.529177 | BP18: 146833.6596 | BQ18: 163592.2888 | BS18: =IF(RAL>SgrvFP-SgrvFPN,MAX(0,SgrvFP+Tassazione_RAL!$E$10-Tassazione_RAL!$E$5+(SgrvEXT-Tassazione_RAL!$E$10+Tassazione_RAL!$E$15)),0)+BS17*(1+rateETF) -> 133543.4784 | BT18: =IF(RAL>SgrvFP-SgrvFPN,MAX(0,SgrvFP+Tassazione_RAL!$E$10-Tassazione_RAL!$E$5+(SgrvEXT-Tassazione_RAL!$E$10+Tassazione_RAL!$E$15)),0)+BT17 -> 81659.4987 | BU18: 51883.97973 | BV18: 34398.88889 | BW18: 33155.55556 | BX18: 1243.333333 | BY18: 146265.597 | CA18: =IF(RAL>SgrvFP-SgrvFPN,MAX(0,IF($B$17>=$D18-4,MAX(0,Tassazione_RAL!$E$20-Tassazione_RAL!$E$15),IF(AND($B$18>0,$B$17+1=$D18-4),MAX(0,(Tassazione_RAL!$E$20-Tassazione_RAL!$E$10+Tassazione_RAL!$E$5-Tassazione_RAL!$E$25)+(SgrvEXT-Main!$B$18-Tassazione_RAL!$E$10+Tassazione_RAL!$E$15+Tassazione_RAL!$E$5-Tassazione_RAL!$E$25)),MAX(0,(Tassazione_RAL!$E$20-Tassazione_RAL!$E$10)+(SgrvEXT-Tassazione_RAL!$E$10+Tassazione_RAL!$E$15))))))+CA17*(1+rateETF) -> 66754.13502 | CB18: =IF(RAL>SgrvFP-SgrvFPN,MAX(0,IF($B$17>=$D18-4,MAX(0,Tassazione_RAL!$E$20-Tassazione_RAL!$E$15),IF(AND($B$18>0,$B$17+1=$D18-4),MAX(0,(Tassazione_RAL!$E$20-Tassazione_RAL!$E$10+Tassazione_RAL!$E$5-Tassazione_RAL!$E$25)+(SgrvEXT-Main!$B$18-Tassazione_RAL!$E$10+Tassazione_RAL!$E$15+Tassazione_RAL!$E$5-Tassazione_RAL!$E$25)),MAX(0,(Tassazione_RAL!$E$20-Tassazione_RAL!$E$10)+(SgrvEXT-Tassazione_RAL!$E$10+Tassazione_RAL!$E$15))))))+CB17 -> 37845.1011 | CC18: 28909.03392 | CD18: =(1-costFPA)*(IF(RAL>SgrvFP-SgrvFPN,MAX(0,IF($B$17>=$D18-4,MAX(0,(Tassazione_RAL!$E$19-Tassazione_RAL!$E$14)-(Tassazione_RAL!$E$20-Tassazione_RAL!$E$15)),IF(AND($B$18>0,$B$17+1=$D18-4),MAX(0,(Tassazione_RAL!$E$19-Tassazione_RAL!$E$9)-(Tassazione_RAL!$E$20-Tassazione_RAL!$E$10+Tassazione_RAL!$E$5-Tassazione_RAL!$E$25)),MAX(0,(Tassazione_RAL!$E$19-Tassazione_RAL!$E$9)-(Tassazione_RAL!$E$20-Tassazione_RAL!$E$10))))))+((CD17+IF(AND(CG18=0,CJ18=0,CG17<>0,CJ17<>0),CG17+CJ17,0))*(1+rateFPA*(1-plustaxFPA)))) -> 113506.8481 | CE18: =IF(RAL>SgrvFP-SgrvFPN,MAX(0,IF($B$17>=$D18-4,MAX(0,(Tassazione_RAL!$E$19-Tassazione_RAL!$E$14)-(Tassazione_RAL!$E$20-Tassazione_RAL!$E$15)),IF(AND($B$18>0,$B$17+1=$D18-4),MAX(0,(Tassazione_RAL!$E$19-Tassazione_RAL!$E$9)-(Tassazione_RAL!$E$20-Tassazione_RAL!$E$10+Tassazione_RAL!$E$5-Tassazione_RAL!$E$25)),MAX(0,(Tassazione_RAL!$E$19-Tassazione_RAL!$E$9)-(Tassazione_RAL!$E$20-Tassazione_RAL!$E$10))))))+CE17 -> 49695.2288 | CF18: 38142.51243 | CG18: 10609.4387 | CH18: 26880 | CI18: 5241.6 | CJ18: 13086.37776 | CK18: 33155.55556 | CL18: 3391.914432 | CM18: 203956.7995 | CN18: 175860.0511 | CP18: =IF(RAL>SgrvFP-SgrvFPN,MAX(0,(Tassazione_RAL!$E$20-Tassazione_RAL!$E$10)+(SgrvEXT-Tassazione_RAL!$E$10+Tassazione_RAL!$E$15)),0)+CP17*(1+rateETF) -> 60424.14639 | CQ18: =IF(RAL>SgrvFP-SgrvFPN,MAX(0,(Tassazione_RAL!$E$20-Tassazione_RAL!$E$10)+(SgrvEXT-Tassazione_RAL!$E$10+Tassazione_RAL!$E$15)),0)+CQ17 -> 39005.6139 | CR18: 21418.53249 | CS18: =(1-costFPA)*(IF(RAL>SgrvFP-SgrvFPN,MAX(0,(Tassazione_RAL!$E$19-Tassazione_RAL!$E$9)-(Tassazione_RAL!$E$20-Tassazione_RAL!$E$10)),0)+((CS17+IF(AND(CV18=0,CY18=0,CV17<>0,CY17<>0),CV17+CY17,0))*(1+rateFPA*(1-plustaxFPA)))) -> 119574.1573 | CT18: =IF(RAL>SgrvFP-SgrvFPN,MAX(0,(Tassazione_RAL!$E$19-Tassazione_RAL!$E$9)-(Tassazione_RAL!$E$20-Tassazione_RAL!$E$10)),0)+CT17 -> 49179.5024 | CU18: 47847.10707 | CV18: 10609.4387 | CW18: 26880 | CX18: 5241.6 | CY18: 13086.37776 | CZ18: 33155.55556 | DA18: 3391.914432 | DB18: 203694.1202 | DC18: 176634.8056
D19: 16 | E19: =IF(RAL>SgrvFP-SgrvFPN,MAX(0,IF($B$17>=$D19-4,MAX(0,Tassazione_RAL!$E$20-Tassazione_RAL!$E$15),IF(AND($B$18>0,$B$17+1=$D19-4),MAX(0,(Tassazione_RAL!$E$20-Tassazione_RAL!$E$10+Tassazione_RAL!$E$5-Tassazione_RAL!$E$25)+(SgrvEXT-Main!$B$18-Tassazione_RAL!$E$10+Tassazione_RAL!$E$15+Tassazione_RAL!$E$5-Tassazione_RAL!$E$25)),MAX(0,(Tassazione_RAL!$E$20-Tassazione_RAL!$E$10)+(SgrvEXT-Tassazione_RAL!$E$10+Tassazione_RAL!$E$15))))))+E18*(1+rateETF) -> 74352.6306 | F19: =IF(RAL>SgrvFP-SgrvFPN,MAX(0,IF($B$17>=$D19-4,MAX(0,Tassazione_RAL!$E$20-Tassazione_RAL!$E$15),IF(AND($B$18>0,$B$17+1=$D19-4),MAX(0,(Tassazione_RAL!$E$20-Tassazione_RAL!$E$10+Tassazione_RAL!$E$5-Tassazione_RAL!$E$25)+(SgrvEXT-Main!$B$18-Tassazione_RAL!$E$10+Tassazione_RAL!$E$15+Tassazione_RAL!$E$5-Tassazione_RAL!$E$25)),MAX(0,(Tassazione_RAL!$E$20-Tassazione_RAL!$E$10)+(SgrvEXT-Tassazione_RAL!$E$10+Tassazione_RAL!$E$15))))))+F18 -> 40904.3155 | G19: 33448.3151 | H19: =(1-costFPA)*(IF(RAL>SgrvFP-SgrvFPN,MAX(0,IF($B$17>=$D19-4,MAX(0,(Tassazione_RAL!$E$19-Tassazione_RAL!$E$14)-(Tassazione_RAL!$E$20-Tassazione_RAL!$E$15)),IF(AND($B$18>0,$B$17+1=$D19-4),MAX(0,(Tassazione_RAL!$E$19-Tassazione_RAL!$E$9)-(Tassazione_RAL!$E$20-Tassazione_RAL!$E$10+Tassazione_RAL!$E$5-Tassazione_RAL!$E$25)),MAX(0,(Tassazione_RAL!$E$19-Tassazione_RAL!$E$9)-(Tassazione_RAL!$E$20-Tassazione_RAL!$E$10))))))+H18*(1+rateFPA*(1-plustaxFPA))) -> 69372.94585 | I19: =IF(RAL>SgrvFP-SgrvFPN,MAX(0,IF($B$17>=$D19-4,MAX(0,(Tassazione_RAL!$E$19-Tassazione_RAL!$E$14)-(Tassazione_RAL!$E$20-Tassazione_RAL!$E$15)),IF(AND($B$18>0,$B$17+1=$D19-4),MAX(0,(Tassazione_RAL!$E$19-Tassazione_RAL!$E$9)-(Tassazione_RAL!$E$20-Tassazione_RAL!$E$10+Tassazione_RAL!$E$5-Tassazione_RAL!$E$25)),MAX(0,(Tassazione_RAL!$E$19-Tassazione_RAL!$E$9)-(Tassazione_RAL!$E$20-Tassazione_RAL!$E$10))))))+I18 -> 52768.9477 | J19: 25115.38928 | K19: 33807.08428 | L19: 28560 | M19: 5940.48 | N19: 41699.87578 | O19: 35227.77778 | P19: 8139.93328 | Q19: 219232.5365 | R19: 189238.6284 | T19: =IF(RAL>SgrvFP-SgrvFPN,MAX(0,(Tassazione_RAL!$E$20-Tassazione_RAL!$E$10)+(SgrvEXT-Tassazione_RAL!$E$10+Tassazione_RAL!$E$15)),0)+T18*(1+rateETF) -> 67592.20274 | U19: =IF(RAL>SgrvFP-SgrvFPN,MAX(0,(Tassazione_RAL!$E$20-Tassazione_RAL!$E$10)+(SgrvEXT-Tassazione_RAL!$E$10+Tassazione_RAL!$E$15)),0)+U18 -> 42064.8283 | V19: 25527.37444 | W19: =(1-costFPA)*(IF(RAL>SgrvFP-SgrvFPN,MAX(0,(Tassazione_RAL!$E$19-Tassazione_RAL!$E$9)-(Tassazione_RAL!$E$20-Tassazione_RAL!$E$10)),0)+W18*(1+(rateFPA*(1-plustaxFPA)))) -> 75715.83494 | X19: =IF(RAL>SgrvFP-SgrvFPN,MAX(0,(Tassazione_RAL!$E$19-Tassazione_RAL!$E$9)-(Tassazione_RAL!$E$20-Tassazione_RAL!$E$10)),0)+X18 -> 52253.2213 | Y19: 35226.49364 | Z19: 33807.08428 | AA19: 28560 | AB19: 5940.48 | AC19: 41699.87578 | AD19: 35227.77778 | AE19: 8139.93328 | AF19: 218814.9977 | AG19: 189948.1295 | AI19: =IF(RAL>SgrvFP,MAX(0,IF($B$17>=$D19-4,0,IF(AND($B$18>0,$B$17+1=$D19-4),MAX(0,(SgrvEXT-Main!$B$18-Tassazione_RAL!$E$10+Tassazione_RAL!$E$15+Tassazione_RAL!$E$5-Tassazione_RAL!$E$25)),MAX(0,(SgrvEXT-Tassazione_RAL!$E$10+Tassazione_RAL!$E$15))))))+AI18*(1+rateETF) -> 55885.17959 | AJ19: =IF(RAL>SgrvFP,MAX(0,IF($B$17>=$D19-4,0,IF(AND($B$18>0,$B$17+1=$D19-4),MAX(0,(SgrvEXT-Main!$B$18-Tassazione_RAL!$E$10+Tassazione_RAL!$E$15+Tassazione_RAL!$E$5-Tassazione_RAL!$E$25)),MAX(0,(SgrvEXT-Tassazione_RAL!$E$10+Tassazione_RAL!$E$15))))))+AJ18 -> 26595.1032 | AK19: 29290.07639 | AL19: 108234.7785 | AM19: 82697.69 | AN19: 38645.8364 | AO19: 51045.6684 | AP19: 35227.77778 | AQ19: 23748.79594 | AR19: 215165.6265 | AS19: 184135.981 | AU19: =IF(RAL>SgrvFP,MAX(0,SgrvEXT-Tassazione_RAL!$E$10+Tassazione_RAL!$E$15,0)+AU18*(1+rateETF)) -> 35152.8376 | AV19: =IF(RAL>SgrvFP,MAX(0,(SgrvEXT-Tassazione_RAL!$E$10+Tassazione_RAL!$E$15)),0)+AV18 -> 23860.3596 | AW19: 11292.478 | AX19: 127220.3941 | AY19: 87797.69 | AZ19: 59188.78666 | BA19: 51045.6684 | BB19: 35227.77778 | BC19: 23748.79594 | BD19: 213418.9001 | BE19: 184277.7446 | BG19: =IF(RAL>SgrvFP-SgrvFPN,MAX(0,SgrvFP-SgrvFPN+Tassazione_RAL!$E$10-Tassazione_RAL!$E$20+(SgrvEXT-Tassazione_RAL!$E$10+Tassazione_RAL!$E$15)),0)+BG18*(1+rateETF) -> 128265.2131 | BH19: =IF(RAL>SgrvFP-SgrvFPN,MAX(0,SgrvFP-SgrvFPN+Tassazione_RAL!$E$10-Tassazione_RAL!$E$20+(SgrvEXT-Tassazione_RAL!$E$10+Tassazione_RAL!$E$15)),0)+BH18 -> 76113.5809 | BI19: 52151.63221 | BJ19: 33807.08428 | BK19: 28560 | BL19: 5940.48 | BM19: 41699.87578 | BN19: 35227.77778 | BO19: 8139.93328 | BP19: 162072.2974 | BQ19: 179113.2257 | BS19: =IF(RAL>SgrvFP-SgrvFPN,MAX(0,SgrvFP+Tassazione_RAL!$E$10-Tassazione_RAL!$E$5+(SgrvEXT-Tassazione_RAL!$E$10+Tassazione_RAL!$E$15)),0)+BS18*(1+rateETF) -> 148349.5172 | BT19: =IF(RAL>SgrvFP-SgrvFPN,MAX(0,SgrvFP+Tassazione_RAL!$E$10-Tassazione_RAL!$E$5+(SgrvEXT-Tassazione_RAL!$E$10+Tassazione_RAL!$E$15)),0)+BT18 -> 87384.5809 | BU19: 60964.93626 | BV19: 36548.81944 | BW19: 35227.77778 | BX19: 1321.041667 | BY19: 160348.8341 | CA19: =IF(RAL>SgrvFP-SgrvFPN,MAX(0,IF($B$17>=$D19-4,MAX(0,Tassazione_RAL!$E$20-Tassazione_RAL!$E$15),IF(AND($B$18>0,$B$17+1=$D19-4),MAX(0,(Tassazione_RAL!$E$20-Tassazione_RAL!$E$10+Tassazione_RAL!$E$5-Tassazione_RAL!$E$25)+(SgrvEXT-Main!$B$18-Tassazione_RAL!$E$10+Tassazione_RAL!$E$15+Tassazione_RAL!$E$5-Tassazione_RAL!$E$25)),MAX(0,(Tassazione_RAL!$E$20-Tassazione_RAL!$E$10)+(SgrvEXT-Tassazione_RAL!$E$10+Tassazione_RAL!$E$15))))))+CA18*(1+rateETF) -> 74352.6306 | CB19: =IF(RAL>SgrvFP-SgrvFPN,MAX(0,IF($B$17>=$D19-4,MAX(0,Tassazione_RAL!$E$20-Tassazione_RAL!$E$15),IF(AND($B$18>0,$B$17+1=$D19-4),MAX(0,(Tassazione_RAL!$E$20-Tassazione_RAL!$E$10+Tassazione_RAL!$E$5-Tassazione_RAL!$E$25)+(SgrvEXT-Main!$B$18-Tassazione_RAL!$E$10+Tassazione_RAL!$E$15+Tassazione_RAL!$E$5-Tassazione_RAL!$E$25)),MAX(0,(Tassazione_RAL!$E$20-Tassazione_RAL!$E$10)+(SgrvEXT-Tassazione_RAL!$E$10+Tassazione_RAL!$E$15))))))+CB18 -> 40904.3155 | CC19: 33448.3151 | CD19: =(1-costFPA)*(IF(RAL>SgrvFP-SgrvFPN,MAX(0,IF($B$17>=$D19-4,MAX(0,(Tassazione_RAL!$E$19-Tassazione_RAL!$E$14)-(Tassazione_RAL!$E$20-Tassazione_RAL!$E$15)),IF(AND($B$18>0,$B$17+1=$D19-4),MAX(0,(Tassazione_RAL!$E$19-Tassazione_RAL!$E$9)-(Tassazione_RAL!$E$20-Tassazione_RAL!$E$10+Tassazione_RAL!$E$5-Tassazione_RAL!$E$25)),MAX(0,(Tassazione_RAL!$E$19-Tassazione_RAL!$E$9)-(Tassazione_RAL!$E$20-Tassazione_RAL!$E$10))))))+((CD18+IF(AND(CG19=0,CJ19=0,CG18<>0,CJ18<>0),CG18+CJ18,0))*(1+rateFPA*(1-plustaxFPA)))) -> 121711.5082 | CE19: =IF(RAL>SgrvFP-SgrvFPN,MAX(0,IF($B$17>=$D19-4,MAX(0,(Tassazione_RAL!$E$19-Tassazione_RAL!$E$14)-(Tassazione_RAL!$E$20-Tassazione_RAL!$E$15)),IF(AND($B$18>0,$B$17+1=$D19-4),MAX(0,(Tassazione_RAL!$E$19-Tassazione_RAL!$E$9)-(Tassazione_RAL!$E$20-Tassazione_RAL!$E$10+Tassazione_RAL!$E$5-Tassazione_RAL!$E$25)),MAX(0,(Tassazione_RAL!$E$19-Tassazione_RAL!$E$9)-(Tassazione_RAL!$E$20-Tassazione_RAL!$E$10))))))+CE18 -> 52768.9477 | CF19: 45747.47125 | CG19: 12508.37568 | CH19: 28560 | CI19: 5940.48 | CJ19: 15428.65121 | CK19: 35227.77778 | CL19: 3732.160254 | CM19: 224001.1657 | CN19: 193222.458 | CP19: =IF(RAL>SgrvFP-SgrvFPN,MAX(0,(Tassazione_RAL!$E$20-Tassazione_RAL!$E$10)+(SgrvEXT-Tassazione_RAL!$E$10+Tassazione_RAL!$E$15)),0)+CP18*(1+rateETF) -> 67592.20274 | CQ19: =IF(RAL>SgrvFP-SgrvFPN,MAX(0,(Tassazione_RAL!$E$20-Tassazione_RAL!$E$10)+(SgrvEXT-Tassazione_RAL!$E$10+Tassazione_RAL!$E$15)),0)+CQ18 -> 42064.8283 | CR19: 25527.37444 | CS19: =(1-costFPA)*(IF(RAL>SgrvFP-SgrvFPN,MAX(0,(Tassazione_RAL!$E$19-Tassazione_RAL!$E$9)-(Tassazione_RAL!$E$20-Tassazione_RAL!$E$10)),0)+((CS18+IF(AND(CV19=0,CY19=0,CV18<>0,CY18<>0),CV18+CY18,0))*(1+rateFPA*(1-plustaxFPA)))) -> 128054.3973 | CT19: =IF(RAL>SgrvFP-SgrvFPN,MAX(0,(Tassazione_RAL!$E$19-Tassazione_RAL!$E$9)-(Tassazione_RAL!$E$20-Tassazione_RAL!$E$10)),0)+CT18 -> 52253.2213 | CU19: 55858.57561 | CV19: 12508.37568 | CW19: 28560 | CX19: 5940.48 | CY19: 15428.65121 | CZ19: 35227.77778 | DA19: 3732.160254 | DB19: 223583.6269 | DC19: 193931.9591
A20: Percentuale azionaria FPA | B20: 0.95 | D20: 17 | E20: =IF(RAL>SgrvFP-SgrvFPN,MAX(0,IF($B$17>=$D20-4,MAX(0,Tassazione_RAL!$E$20-Tassazione_RAL!$E$15),IF(AND($B$18>0,$B$17+1=$D20-4),MAX(0,(Tassazione_RAL!$E$20-Tassazione_RAL!$E$10+Tassazione_RAL!$E$5-Tassazione_RAL!$E$25)+(SgrvEXT-Main!$B$18-Tassazione_RAL!$E$10+Tassazione_RAL!$E$15+Tassazione_RAL!$E$5-Tassazione_RAL!$E$25)),MAX(0,(Tassazione_RAL!$E$20-Tassazione_RAL!$E$10)+(SgrvEXT-Tassazione_RAL!$E$10+Tassazione_RAL!$E$15))))))+E19*(1+rateETF) -> 82467.82388 | F20: =IF(RAL>SgrvFP-SgrvFPN,MAX(0,IF($B$17>=$D20-4,MAX(0,Tassazione_RAL!$E$20-Tassazione_RAL!$E$15),IF(AND($B$18>0,$B$17+1=$D20-4),MAX(0,(Tassazione_RAL!$E$20-Tassazione_RAL!$E$10+Tassazione_RAL!$E$5-Tassazione_RAL!$E$25)+(SgrvEXT-Main!$B$18-Tassazione_RAL!$E$10+Tassazione_RAL!$E$15+Tassazione_RAL!$E$5-Tassazione_RAL!$E$25)),MAX(0,(Tassazione_RAL!$E$20-Tassazione_RAL!$E$10)+(SgrvEXT-Tassazione_RAL!$E$10+Tassazione_RAL!$E$15))))))+F19 -> 43963.5299 | G20: 38504.29398 | H20: =(1-costFPA)*(IF(RAL>SgrvFP-SgrvFPN,MAX(0,IF($B$17>=$D20-4,MAX(0,(Tassazione_RAL!$E$19-Tassazione_RAL!$E$14)-(Tassazione_RAL!$E$20-Tassazione_RAL!$E$15)),IF(AND($B$18>0,$B$17+1=$D20-4),MAX(0,(Tassazione_RAL!$E$19-Tassazione_RAL!$E$9)-(Tassazione_RAL!$E$20-Tassazione_RAL!$E$10+Tassazione_RAL!$E$5-Tassazione_RAL!$E$25)),MAX(0,(Tassazione_RAL!$E$19-Tassazione_RAL!$E$9)-(Tassazione_RAL!$E$20-Tassazione_RAL!$E$10))))))+H19*(1+rateFPA*(1-plustaxFPA))) -> 75573.02472 | I20: =IF(RAL>SgrvFP-SgrvFPN,MAX(0,IF($B$17>=$D20-4,MAX(0,(Tassazione_RAL!$E$19-Tassazione_RAL!$E$14)-(Tassazione_RAL!$E$20-Tassazione_RAL!$E$15)),IF(AND($B$18>0,$B$17+1=$D20-4),MAX(0,(Tassazione_RAL!$E$19-Tassazione_RAL!$E$9)-(Tassazione_RAL!$E$20-Tassazione_RAL!$E$10+Tassazione_RAL!$E$5-Tassazione_RAL!$E$25)),MAX(0,(Tassazione_RAL!$E$19-Tassazione_RAL!$E$9)-(Tassazione_RAL!$E$20-Tassazione_RAL!$E$10))))))+I19 -> 55842.6666 | J20: 29763.37665 | K20: 36187.66784 | L20: 30240 | M20: 6683.04 | N20: 44636.24373 | O20: 37300 | P20: 9224.130051 | Q20: 238864.7602 | R20: 206332.4849 | T20: =IF(RAL>SgrvFP-SgrvFPN,MAX(0,(Tassazione_RAL!$E$20-Tassazione_RAL!$E$10)+(SgrvEXT-Tassazione_RAL!$E$10+Tassazione_RAL!$E$15)),0)+T19*(1+rateETF) -> 75247.68693 | U20: =IF(RAL>SgrvFP-SgrvFPN,MAX(0,(Tassazione_RAL!$E$20-Tassazione_RAL!$E$10)+(SgrvEXT-Tassazione_RAL!$E$10+Tassazione_RAL!$E$15)),0)+U19 -> 45124.0427 | V20: 30123.64423 | W20: =(1-costFPA)*(IF(RAL>SgrvFP-SgrvFPN,MAX(0,(Tassazione_RAL!$E$19-Tassazione_RAL!$E$9)-(Tassazione_RAL!$E$20-Tassazione_RAL!$E$10)),0)+W19*(1+(rateFPA*(1-plustaxFPA)))) -> 82204.01063 | X20: =IF(RAL>SgrvFP-SgrvFPN,MAX(0,(Tassazione_RAL!$E$19-Tassazione_RAL!$E$9)-(Tassazione_RAL!$E$20-Tassazione_RAL!$E$10)),0)+X19 -> 55326.9402 | Y20: 40299.45458 | Z20: 36187.66784 | AA20: 30240 | AB20: 6683.04 | AC20: 44636.24373 | AD20: 37300 | AE20: 9224.130051 | AF20: 238275.6091 | AG20: 206967.4408 | AI20: =IF(RAL>SgrvFP,MAX(0,IF($B$17>=$D20-4,0,IF(AND($B$18>0,$B$17+1=$D20-4),MAX(0,(SgrvEXT-Main!$B$18-Tassazione_RAL!$E$10+Tassazione_RAL!$E$15+Tassazione_RAL!$E$5-Tassazione_RAL!$E$25)),MAX(0,(SgrvEXT-Tassazione_RAL!$E$10+Tassazione_RAL!$E$15))))))+AI19*(1+rateETF) -> 61673.73511 | AJ20: =IF(RAL>SgrvFP,MAX(0,IF($B$17>=$D20-4,0,IF(AND($B$18>0,$B$17+1=$D20-4),MAX(0,(SgrvEXT-Main!$B$18-Tassazione_RAL!$E$10+Tassazione_RAL!$E$15+Tassazione_RAL!$E$5-Tassazione_RAL!$E$25)),MAX(0,(SgrvEXT-Tassazione_RAL!$E$10+Tassazione_RAL!$E$15))))))+AJ19 -> 28583.4665 | AK20: 33090.26861 | AL20: 118274.1032 | AM20: 87862.26 | AN20: 45897.56656 | AO20: 55419.82957 | AP20: 37300 | AQ20: 27168.85572 | AR20: 235367.6679 | AS20: 201752.2718 | AU20: =IF(RAL>SgrvFP,MAX(0,SgrvEXT-Tassazione_RAL!$E$10+Tassazione_RAL!$E$15,0)+AU19*(1+rateETF)) -> 39531.59386 | AV20: =IF(RAL>SgrvFP,MAX(0,(SgrvEXT-Tassazione_RAL!$E$10+Tassazione_RAL!$E$15)),0)+AV19 -> 25848.7229 | AW20: 13682.87096 | AX20: 138122.0538 | AY20: 92962.26 | AZ20: 67712.55306 | BA20: 55419.82957 | BB20: 37300 | BC20: 27168.85572 | BD20: 233073.4772 | BE20: 201645.8995 | BG20: =IF(RAL>SgrvFP-SgrvFPN,MAX(0,SgrvFP-SgrvFPN+Tassazione_RAL!$E$10-Tassazione_RAL!$E$20+(SgrvEXT-Tassazione_RAL!$E$10+Tassazione_RAL!$E$15)),0)+BG19*(1+rateETF) -> 142049.3298 | BH20: =IF(RAL>SgrvFP-SgrvFPN,MAX(0,SgrvFP-SgrvFPN+Tassazione_RAL!$E$10-Tassazione_RAL!$E$20+(SgrvEXT-Tassazione_RAL!$E$10+Tassazione_RAL!$E$15)),0)+BH19 -> 81175.6631 | BI20: 60873.6667 | BJ20: 36187.66784 | BK20: 30240 | BL20: 6683.04 | BM20: 44636.24373 | BN20: 37300 | BO20: 9224.130051 | BP20: 178236.9976 | BQ20: 195407.4448 | BS20: =IF(RAL>SgrvFP-SgrvFPN,MAX(0,SgrvFP+Tassazione_RAL!$E$10-Tassazione_RAL!$E$5+(SgrvEXT-Tassazione_RAL!$E$10+Tassazione_RAL!$E$15)),0)+BS19*(1+rateETF) -> 164162.3665 | BT20: =IF(RAL>SgrvFP-SgrvFPN,MAX(0,SgrvFP+Tassazione_RAL!$E$10-Tassazione_RAL!$E$5+(SgrvEXT-Tassazione_RAL!$E$10+Tassazione_RAL!$E$15)),0)+BT19 -> 93109.6631 | BU20: 71052.70343 | BV20: 38698.75 | BW20: 37300 | BX20: 1398.75 | BY20: 175177.1111 | CA20: =IF(RAL>SgrvFP-SgrvFPN,MAX(0,IF($B$17>=$D20-4,MAX(0,Tassazione_RAL!$E$20-Tassazione_RAL!$E$15),IF(AND($B$18>0,$B$17+1=$D20-4),MAX(0,(Tassazione_RAL!$E$20-Tassazione_RAL!$E$10+Tassazione_RAL!$E$5-Tassazione_RAL!$E$25)+(SgrvEXT-Main!$B$18-Tassazione_RAL!$E$10+Tassazione_RAL!$E$15+Tassazione_RAL!$E$5-Tassazione_RAL!$E$25)),MAX(0,(Tassazione_RAL!$E$20-Tassazione_RAL!$E$10)+(SgrvEXT-Tassazione_RAL!$E$10+Tassazione_RAL!$E$15))))))+CA19*(1+rateETF) -> 82467.82388 | CB20: =IF(RAL>SgrvFP-SgrvFPN,MAX(0,IF($B$17>=$D20-4,MAX(0,Tassazione_RAL!$E$20-Tassazione_RAL!$E$15),IF(AND($B$18>0,$B$17+1=$D20-4),MAX(0,(Tassazione_RAL!$E$20-Tassazione_RAL!$E$10+Tassazione_RAL!$E$5-Tassazione_RAL!$E$25)+(SgrvEXT-Main!$B$18-Tassazione_RAL!$E$10+Tassazione_RAL!$E$15+Tassazione_RAL!$E$5-Tassazione_RAL!$E$25)),MAX(0,(Tassazione_RAL!$E$20-Tassazione_RAL!$E$10)+(SgrvEXT-Tassazione_RAL!$E$10+Tassazione_RAL!$E$15))))))+CB19 -> 43963.5299 | CC20: 38504.29398 | CD20: =(1-costFPA)*(IF(RAL>SgrvFP-SgrvFPN,MAX(0,IF($B$17>=$D20-4,MAX(0,(Tassazione_RAL!$E$19-Tassazione_RAL!$E$14)-(Tassazione_RAL!$E$20-Tassazione_RAL!$E$15)),IF(AND($B$18>0,$B$17+1=$D20-4),MAX(0,(Tassazione_RAL!$E$19-Tassazione_RAL!$E$9)-(Tassazione_RAL!$E$20-Tassazione_RAL!$E$10+Tassazione_RAL!$E$5-Tassazione_RAL!$E$25)),MAX(0,(Tassazione_RAL!$E$19-Tassazione_RAL!$E$9)-(Tassazione_RAL!$E$20-Tassazione_RAL!$E$10))))))+((CD19+IF(AND(CG20=0,CJ20=0,CG19<>0,CJ19<>0),CG19+CJ19,0))*(1+rateFPA*(1-plustaxFPA)))) -> 130288.8276 | CE20: =IF(RAL>SgrvFP-SgrvFPN,MAX(0,IF($B$17>=$D20-4,MAX(0,(Tassazione_RAL!$E$19-Tassazione_RAL!$E$14)-(Tassazione_RAL!$E$20-Tassazione_RAL!$E$15)),IF(AND($B$18>0,$B$17+1=$D20-4),MAX(0,(Tassazione_RAL!$E$19-Tassazione_RAL!$E$9)-(Tassazione_RAL!$E$20-Tassazione_RAL!$E$10+Tassazione_RAL!$E$5-Tassazione_RAL!$E$25)),MAX(0,(Tassazione_RAL!$E$19-Tassazione_RAL!$E$9)-(Tassazione_RAL!$E$20-Tassazione_RAL!$E$10))))))+CE19 -> 55842.6666 | CF20: 53902.1423 | CG20: 14446.73978 | CH20: 30240 | CI20: 6683.04 | CJ20: 17819.55667 | CK20: 37300 | CL20: 4133.305186 | CM20: 245022.9479 | CN20: 211410.2959 | CP20: =IF(RAL>SgrvFP-SgrvFPN,MAX(0,(Tassazione_RAL!$E$20-Tassazione_RAL!$E$10)+(SgrvEXT-Tassazione_RAL!$E$10+Tassazione_RAL!$E$15)),0)+CP19*(1+rateETF) -> 75247.68693 | CQ20: =IF(RAL>SgrvFP-SgrvFPN,MAX(0,(Tassazione_RAL!$E$20-Tassazione_RAL!$E$10)+(SgrvEXT-Tassazione_RAL!$E$10+Tassazione_RAL!$E$15)),0)+CQ19 -> 45124.0427 | CR20: 30123.64423 | CS20: =(1-costFPA)*(IF(RAL>SgrvFP-SgrvFPN,MAX(0,(Tassazione_RAL!$E$19-Tassazione_RAL!$E$9)-(Tassazione_RAL!$E$20-Tassazione_RAL!$E$10)),0)+((CS19+IF(AND(CV20=0,CY20=0,CV19<>0,CY19<>0),CV19+CY19,0))*(1+rateFPA*(1-plustaxFPA)))) -> 136919.8135 | CT20: =IF(RAL>SgrvFP-SgrvFPN,MAX(0,(Tassazione_RAL!$E$19-Tassazione_RAL!$E$9)-(Tassazione_RAL!$E$20-Tassazione_RAL!$E$10)),0)+CT19 -> 55326.9402 | CU20: 64438.22023 | CV20: 14446.73978 | CW20: 30240 | CX20: 6683.04 | CY20: 17819.55667 | CZ20: 37300 | DA20: 4133.305186 | DB20: 244433.7969 | DC20: 212045.2518
A21: Percentuale azionaria FPN | B21: 0.6 | D21: 18 | E21: =IF(RAL>SgrvFP-SgrvFPN,MAX(0,IF($B$17>=$D21-4,MAX(0,Tassazione_RAL!$E$20-Tassazione_RAL!$E$15),IF(AND($B$18>0,$B$17+1=$D21-4),MAX(0,(Tassazione_RAL!$E$20-Tassazione_RAL!$E$10+Tassazione_RAL!$E$5-Tassazione_RAL!$E$25)+(SgrvEXT-Main!$B$18-Tassazione_RAL!$E$10+Tassazione_RAL!$E$15+Tassazione_RAL!$E$5-Tassazione_RAL!$E$25)),MAX(0,(Tassazione_RAL!$E$20-Tassazione_RAL!$E$10)+(SgrvEXT-Tassazione_RAL!$E$10+Tassazione_RAL!$E$15))))))+E20*(1+rateETF) -> 91134.85031 | F21: =IF(RAL>SgrvFP-SgrvFPN,MAX(0,IF($B$17>=$D21-4,MAX(0,Tassazione_RAL!$E$20-Tassazione_RAL!$E$15),IF(AND($B$18>0,$B$17+1=$D21-4),MAX(0,(Tassazione_RAL!$E$20-Tassazione_RAL!$E$10+Tassazione_RAL!$E$5-Tassazione_RAL!$E$25)+(SgrvEXT-Main!$B$18-Tassazione_RAL!$E$10+Tassazione_RAL!$E$15+Tassazione_RAL!$E$5-Tassazione_RAL!$E$25)),MAX(0,(Tassazione_RAL!$E$20-Tassazione_RAL!$E$10)+(SgrvEXT-Tassazione_RAL!$E$10+Tassazione_RAL!$E$15))))))+F20 -> 47022.7443 | G21: 44112.10601 | H21: =(1-costFPA)*(IF(RAL>SgrvFP-SgrvFPN,MAX(0,IF($B$17>=$D21-4,MAX(0,(Tassazione_RAL!$E$19-Tassazione_RAL!$E$14)-(Tassazione_RAL!$E$20-Tassazione_RAL!$E$15)),IF(AND($B$18>0,$B$17+1=$D21-4),MAX(0,(Tassazione_RAL!$E$19-Tassazione_RAL!$E$9)-(Tassazione_RAL!$E$20-Tassazione_RAL!$E$10+Tassazione_RAL!$E$5-Tassazione_RAL!$E$25)),MAX(0,(Tassazione_RAL!$E$19-Tassazione_RAL!$E$9)-(Tassazione_RAL!$E$20-Tassazione_RAL!$E$10))))))+H20*(1+rateFPA*(1-plustaxFPA))) -> 82054.7139 | I21: =IF(RAL>SgrvFP-SgrvFPN,MAX(0,IF($B$17>=$D21-4,MAX(0,(Tassazione_RAL!$E$19-Tassazione_RAL!$E$14)-(Tassazione_RAL!$E$20-Tassazione_RAL!$E$15)),IF(AND($B$18>0,$B$17+1=$D21-4),MAX(0,(Tassazione_RAL!$E$19-Tassazione_RAL!$E$9)-(Tassazione_RAL!$E$20-Tassazione_RAL!$E$10+Tassazione_RAL!$E$5-Tassazione_RAL!$E$25)),MAX(0,(Tassazione_RAL!$E$19-Tassazione_RAL!$E$9)-(Tassazione_RAL!$E$20-Tassazione_RAL!$E$10))))))+I20 -> 58916.3855 | J21: 34826.76931 | K21: 38617.67884 | L21: 31920 | M21: 7469.28 | N21: 47633.57872 | O21: 39372.22222 | P21: 10384.67239 | Q21: 259440.8218 | R21: 224240.5322 | T21: =IF(RAL>SgrvFP-SgrvFPN,MAX(0,(Tassazione_RAL!$E$20-Tassazione_RAL!$E$10)+(SgrvEXT-Tassazione_RAL!$E$10+Tassazione_RAL!$E$15)),0)+T20*(1+rateETF) -> 83423.74404 | U21: =IF(RAL>SgrvFP-SgrvFPN,MAX(0,(Tassazione_RAL!$E$20-Tassazione_RAL!$E$10)+(SgrvEXT-Tassazione_RAL!$E$10+Tassazione_RAL!$E$15)),0)+U20 -> 48183.2571 | V21: 35240.48694 | W21: =(1-costFPA)*(IF(RAL>SgrvFP-SgrvFPN,MAX(0,(Tassazione_RAL!$E$19-Tassazione_RAL!$E$9)-(Tassazione_RAL!$E$20-Tassazione_RAL!$E$10)),0)+W20*(1+(rateFPA*(1-plustaxFPA)))) -> 88986.88211 | X21: =IF(RAL>SgrvFP-SgrvFPN,MAX(0,(Tassazione_RAL!$E$19-Tassazione_RAL!$E$9)-(Tassazione_RAL!$E$20-Tassazione_RAL!$E$10)),0)+X20 -> 58400.6591 | Y21: 45807.12329 | Z21: 38617.67884 | AA21: 31920 | AB21: 7469.28 | AC21: 47633.57872 | AD21: 39372.22222 | AE21: 10384.67239 | AF21: 258661.8837 | AG21: 224790.7794 | AI21: =IF(RAL>SgrvFP,MAX(0,IF($B$17>=$D21-4,0,IF(AND($B$18>0,$B$17+1=$D21-4),MAX(0,(SgrvEXT-Main!$B$18-Tassazione_RAL!$E$10+Tassazione_RAL!$E$15+Tassazione_RAL!$E$5-Tassazione_RAL!$E$25)),MAX(0,(SgrvEXT-Tassazione_RAL!$E$10+Tassazione_RAL!$E$15))))))+AI20*(1+rateETF) -> 67855.91239 | AJ21: =IF(RAL>SgrvFP,MAX(0,IF($B$17>=$D21-4,0,IF(AND($B$18>0,$B$17+1=$D21-4),MAX(0,(SgrvEXT-Main!$B$18-Tassazione_RAL!$E$10+Tassazione_RAL!$E$15+Tassazione_RAL!$E$5-Tassazione_RAL!$E$25)),MAX(0,(SgrvEXT-Tassazione_RAL!$E$10+Tassazione_RAL!$E$15))))))+AJ20 -> 30571.8298 | AK21: 37284.08259 | AL21: 128769.4185 | AM21: 93026.83 | AN21: 53821.93148 | AO21: 59992.66706 | AP21: 39372.22222 | AQ21: 30881.9843 | AR21: 256617.9979 | AS21: 220308.6824 | AU21: =IF(RAL>SgrvFP,MAX(0,SgrvEXT-Tassazione_RAL!$E$10+Tassazione_RAL!$E$15,0)+AU20*(1+rateETF)) -> 44208.10554 | AV21: =IF(RAL>SgrvFP,MAX(0,(SgrvEXT-Tassazione_RAL!$E$10+Tassazione_RAL!$E$15)),0)+AV20 -> 27837.0862 | AW21: 16371.01934 | AX21: 149518.8717 | AY21: 98126.83 | AZ21: 76966.73067 | BA21: 59992.66706 | BB21: 39372.22222 | BC21: 30881.9843 | BD21: 253719.6443 | BE21: 219922.0523 | BG21: =IF(RAL>SgrvFP-SgrvFPN,MAX(0,SgrvFP-SgrvFPN+Tassazione_RAL!$E$10-Tassazione_RAL!$E$20+(SgrvEXT-Tassazione_RAL!$E$10+Tassazione_RAL!$E$15)),0)+BG20*(1+rateETF) -> 156770.7664 | BH21: =IF(RAL>SgrvFP-SgrvFPN,MAX(0,SgrvFP-SgrvFPN+Tassazione_RAL!$E$10-Tassazione_RAL!$E$20+(SgrvEXT-Tassazione_RAL!$E$10+Tassazione_RAL!$E$15)),0)+BH20 -> 86237.7453 | BI21: 70533.02112 | BJ21: 38617.67884 | BK21: 31920 | BL21: 7469.28 | BM21: 47633.57872 | BN21: 39372.22222 | BO21: 10384.67239 | BP21: 195388.4453 | BQ21: 212522.0112 | BS21: =IF(RAL>SgrvFP-SgrvFPN,MAX(0,SgrvFP+Tassazione_RAL!$E$10-Tassazione_RAL!$E$5+(SgrvEXT-Tassazione_RAL!$E$10+Tassazione_RAL!$E$15)),0)+BS20*(1+rateETF) -> 181050.4897 | BT21: =IF(RAL>SgrvFP-SgrvFPN,MAX(0,SgrvFP+Tassazione_RAL!$E$10-Tassazione_RAL!$E$5+(SgrvEXT-Tassazione_RAL!$E$10+Tassazione_RAL!$E$15)),0)+BT20 -> 98834.7453 | BU21: 82215.74435 | BV21: 40848.68056 | BW21: 39372.22222 | BX21: 1476.458333 | BY21: 190801.0907 | CA21: =IF(RAL>SgrvFP-SgrvFPN,MAX(0,IF($B$17>=$D21-4,MAX(0,Tassazione_RAL!$E$20-Tassazione_RAL!$E$15),IF(AND($B$18>0,$B$17+1=$D21-4),MAX(0,(Tassazione_RAL!$E$20-Tassazione_RAL!$E$10+Tassazione_RAL!$E$5-Tassazione_RAL!$E$25)+(SgrvEXT-Main!$B$18-Tassazione_RAL!$E$10+Tassazione_RAL!$E$15+Tassazione_RAL!$E$5-Tassazione_RAL!$E$25)),MAX(0,(Tassazione_RAL!$E$20-Tassazione_RAL!$E$10)+(SgrvEXT-Tassazione_RAL!$E$10+Tassazione_RAL!$E$15))))))+CA20*(1+rateETF) -> 91134.85031 | CB21: =IF(RAL>SgrvFP-SgrvFPN,MAX(0,IF($B$17>=$D21-4,MAX(0,Tassazione_RAL!$E$20-Tassazione_RAL!$E$15),IF(AND($B$18>0,$B$17+1=$D21-4),MAX(0,(Tassazione_RAL!$E$20-Tassazione_RAL!$E$10+Tassazione_RAL!$E$5-Tassazione_RAL!$E$25)+(SgrvEXT-Main!$B$18-Tassazione_RAL!$E$10+Tassazione_RAL!$E$15+Tassazione_RAL!$E$5-Tassazione_RAL!$E$25)),MAX(0,(Tassazione_RAL!$E$20-Tassazione_RAL!$E$10)+(SgrvEXT-Tassazione_RAL!$E$10+Tassazione_RAL!$E$15))))))+CB20 -> 47022.7443 | CC21: 44112.10601 | CD21: =(1-costFPA)*(IF(RAL>SgrvFP-SgrvFPN,MAX(0,IF($B$17>=$D21-4,MAX(0,(Tassazione_RAL!$E$19-Tassazione_RAL!$E$14)-(Tassazione_RAL!$E$20-Tassazione_RAL!$E$15)),IF(AND($B$18>0,$B$17+1=$D21-4),MAX(0,(Tassazione_RAL!$E$19-Tassazione_RAL!$E$9)-(Tassazione_RAL!$E$20-Tassazione_RAL!$E$10+Tassazione_RAL!$E$5-Tassazione_RAL!$E$25)),MAX(0,(Tassazione_RAL!$E$19-Tassazione_RAL!$E$9)-(Tassazione_RAL!$E$20-Tassazione_RAL!$E$10))))))+((CD20+IF(AND(CG21=0,CJ21=0,CG20<>0,CJ20<>0),CG20+CJ20,0))*(1+rateFPA*(1-plustaxFPA)))) -> 172987.5785 | CE21: =IF(RAL>SgrvFP-SgrvFPN,MAX(0,IF($B$17>=$D21-4,MAX(0,(Tassazione_RAL!$E$19-Tassazione_RAL!$E$14)-(Tassazione_RAL!$E$20-Tassazione_RAL!$E$15)),IF(AND($B$18>0,$B$17+1=$D21-4),MAX(0,(Tassazione_RAL!$E$19-Tassazione_RAL!$E$9)-(Tassazione_RAL!$E$20-Tassazione_RAL!$E$10+Tassazione_RAL!$E$5-Tassazione_RAL!$E$25)),MAX(0,(Tassazione_RAL!$E$19-Tassazione_RAL!$E$9)-(Tassazione_RAL!$E$20-Tassazione_RAL!$E$10))))))+CE20 -> 58916.3855 | CF21: 62631.49375 | CG21: 0 | CH21: 31920 | CI21: 7469.28 | CJ21: 0 | CK21: 39372.22222 | CL21: 4596.613659 | CM21: 264122.4288 | CN21: 228262.0326 | CP21: =IF(RAL>SgrvFP-SgrvFPN,MAX(0,(Tassazione_RAL!$E$20-Tassazione_RAL!$E$10)+(SgrvEXT-Tassazione_RAL!$E$10+Tassazione_RAL!$E$15)),0)+CP20*(1+rateETF) -> 83423.74404 | CQ21: =IF(RAL>SgrvFP-SgrvFPN,MAX(0,(Tassazione_RAL!$E$20-Tassazione_RAL!$E$10)+(SgrvEXT-Tassazione_RAL!$E$10+Tassazione_RAL!$E$15)),0)+CQ20 -> 48183.2571 | CR21: 35240.48694 | CS21: =(1-costFPA)*(IF(RAL>SgrvFP-SgrvFPN,MAX(0,(Tassazione_RAL!$E$19-Tassazione_RAL!$E$9)-(Tassazione_RAL!$E$20-Tassazione_RAL!$E$10)),0)+((CS20+IF(AND(CV21=0,CY21=0,CV20<>0,CY20<>0),CV20+CY20,0))*(1+rateFPA*(1-plustaxFPA)))) -> 179919.7467 | CT21: =IF(RAL>SgrvFP-SgrvFPN,MAX(0,(Tassazione_RAL!$E$19-Tassazione_RAL!$E$9)-(Tassazione_RAL!$E$20-Tassazione_RAL!$E$10)),0)+CT20 -> 58400.6591 | CU21: 73611.84773 | CV21: 0 | CW21: 31920 | CX21: 7469.28 | CY21: 0 | CZ21: 39372.22222 | DA21: 4596.613659 | DB21: 263343.4907 | DC21: 228812.2798
A22: Tassazione plus. FPA | B22: =20%*B20+12.5%*(1-B20) -> 0.19625 | D22: 19 | E22: =IF(RAL>SgrvFP-SgrvFPN,MAX(0,IF($B$17>=$D22-4,MAX(0,Tassazione_RAL!$E$20-Tassazione_RAL!$E$15),IF(AND($B$18>0,$B$17+1=$D22-4),MAX(0,(Tassazione_RAL!$E$20-Tassazione_RAL!$E$10+Tassazione_RAL!$E$5-Tassazione_RAL!$E$25)+(SgrvEXT-Main!$B$18-Tassazione_RAL!$E$10+Tassazione_RAL!$E$15+Tassazione_RAL!$E$5-Tassazione_RAL!$E$25)),MAX(0,(Tassazione_RAL!$E$20-Tassazione_RAL!$E$10)+(SgrvEXT-Tassazione_RAL!$E$10+Tassazione_RAL!$E$15))))))+E21*(1+rateETF) -> 100391.2345 | F22: =IF(RAL>SgrvFP-SgrvFPN,MAX(0,IF($B$17>=$D22-4,MAX(0,Tassazione_RAL!$E$20-Tassazione_RAL!$E$15),IF(AND($B$18>0,$B$17+1=$D22-4),MAX(0,(Tassazione_RAL!$E$20-Tassazione_RAL!$E$10+Tassazione_RAL!$E$5-Tassazione_RAL!$E$25)+(SgrvEXT-Main!$B$18-Tassazione_RAL!$E$10+Tassazione_RAL!$E$15+Tassazione_RAL!$E$5-Tassazione_RAL!$E$25)),MAX(0,(Tassazione_RAL!$E$20-Tassazione_RAL!$E$10)+(SgrvEXT-Tassazione_RAL!$E$10+Tassazione_RAL!$E$15))))))+F21 -> 50081.9587 | G22: 50309.27583 | H22: =(1-costFPA)*(IF(RAL>SgrvFP-SgrvFPN,MAX(0,IF($B$17>=$D22-4,MAX(0,(Tassazione_RAL!$E$19-Tassazione_RAL!$E$14)-(Tassazione_RAL!$E$20-Tassazione_RAL!$E$15)),IF(AND($B$18>0,$B$17+1=$D22-4),MAX(0,(Tassazione_RAL!$E$19-Tassazione_RAL!$E$9)-(Tassazione_RAL!$E$20-Tassazione_RAL!$E$10+Tassazione_RAL!$E$5-Tassazione_RAL!$E$25)),MAX(0,(Tassazione_RAL!$E$19-Tassazione_RAL!$E$9)-(Tassazione_RAL!$E$20-Tassazione_RAL!$E$10))))))+H21*(1+rateFPA*(1-plustaxFPA))) -> 88830.80426 | I22: =IF(RAL>SgrvFP-SgrvFPN,MAX(0,IF($B$17>=$D22-4,MAX(0,(Tassazione_RAL!$E$19-Tassazione_RAL!$E$14)-(Tassazione_RAL!$E$20-Tassazione_RAL!$E$15)),IF(AND($B$18>0,$B$17+1=$D22-4),MAX(0,(Tassazione_RAL!$E$19-Tassazione_RAL!$E$9)-(Tassazione_RAL!$E$20-Tassazione_RAL!$E$10+Tassazione_RAL!$E$5-Tassazione_RAL!$E$25)),MAX(0,(Tassazione_RAL!$E$19-Tassazione_RAL!$E$9)-(Tassazione_RAL!$E$20-Tassazione_RAL!$E$10))))))+I21 -> 61990.1044 | J22: 40324.43514 | K22: 41098.14351 | L22: 33600 | M22: 8299.2 | N22: 50693.14659 | O22: 41444.44444 | P22: 11623.14543 | Q22: 281013.3289 | R22: 243007.0681 | T22: =IF(RAL>SgrvFP-SgrvFPN,MAX(0,(Tassazione_RAL!$E$20-Tassazione_RAL!$E$10)+(SgrvEXT-Tassazione_RAL!$E$10+Tassazione_RAL!$E$15)),0)+T21*(1+rateETF) -> 92155.77303 | U22: =IF(RAL>SgrvFP-SgrvFPN,MAX(0,(Tassazione_RAL!$E$20-Tassazione_RAL!$E$10)+(SgrvEXT-Tassazione_RAL!$E$10+Tassazione_RAL!$E$15)),0)+U21 -> 51242.4715 | V22: 40913.30153 | W22: =(1-costFPA)*(IF(RAL>SgrvFP-SgrvFPN,MAX(0,(Tassazione_RAL!$E$19-Tassazione_RAL!$E$9)-(Tassazione_RAL!$E$20-Tassazione_RAL!$E$10)),0)+W21*(1+(rateFPA*(1-plustaxFPA)))) -> 96077.8346 | X22: =IF(RAL>SgrvFP-SgrvFPN,MAX(0,(Tassazione_RAL!$E$19-Tassazione_RAL!$E$9)-(Tassazione_RAL!$E$20-Tassazione_RAL!$E$10)),0)+X21 -> 61474.378 | Y22: 51769.24439 | Z22: 41098.14351 | AA22: 33600 | AB22: 8299.2 | AC22: 50693.14659 | AD22: 41444.44444 | AE22: 11623.14543 | AF22: 280024.8977 | AG22: 243461.5001 | AI22: =IF(RAL>SgrvFP,MAX(0,IF($B$17>=$D22-4,0,IF(AND($B$18>0,$B$17+1=$D22-4),MAX(0,(SgrvEXT-Main!$B$18-Tassazione_RAL!$E$10+Tassazione_RAL!$E$15+Tassazione_RAL!$E$5-Tassazione_RAL!$E$25)),MAX(0,(SgrvEXT-Tassazione_RAL!$E$10+Tassazione_RAL!$E$15))))))+AI21*(1+rateETF) -> 74458.47774 | AJ22: =IF(RAL>SgrvFP,MAX(0,IF($B$17>=$D22-4,0,IF(AND($B$18>0,$B$17+1=$D22-4),MAX(0,(SgrvEXT-Main!$B$18-Tassazione_RAL!$E$10+Tassazione_RAL!$E$15+Tassazione_RAL!$E$5-Tassazione_RAL!$E$25)),MAX(0,(SgrvEXT-Tassazione_RAL!$E$10+Tassazione_RAL!$E$15))))))+AJ21 -> 32560.1931 | AK22: 41898.28464 | AL22: 139741.4356 | AM22: 98191.4 | AN22: 62449.48252 | AO22: 64773.20484 | AP22: 41444.44444 | AQ22: 34901.49299 | AR22: 278973.1181 | AS22: 239856.5438 | AU22: =IF(RAL>SgrvFP,MAX(0,SgrvEXT-Tassazione_RAL!$E$10+Tassazione_RAL!$E$15,0)+AU21*(1+rateETF)) -> 49202.62002 | AV22: =IF(RAL>SgrvFP,MAX(0,(SgrvEXT-Tassazione_RAL!$E$10+Tassazione_RAL!$E$15)),0)+AV21 -> 29825.4495 | AW22: 19377.17052 | AX22: 161433.338 | AY22: 103291.4 | AZ22: 86984.49507 | BA22: 64773.20484 | BB22: 41444.44444 | BC22: 34901.49299 | BD22: 275409.1629 | BE22: 239154.5956 | BG22: =IF(RAL>SgrvFP-SgrvFPN,MAX(0,SgrvFP-SgrvFPN+Tassazione_RAL!$E$10-Tassazione_RAL!$E$20+(SgrvEXT-Tassazione_RAL!$E$10+Tassazione_RAL!$E$15)),0)+BG21*(1+rateETF) -> 172493.2607 | BH22: =IF(RAL>SgrvFP-SgrvFPN,MAX(0,SgrvFP-SgrvFPN+Tassazione_RAL!$E$10-Tassazione_RAL!$E$20+(SgrvEXT-Tassazione_RAL!$E$10+Tassazione_RAL!$E$15)),0)+BH21 -> 91299.8275 | BI22: 81193.43324 | BJ22: 41098.14351 | BK22: 33600 | BL22: 8299.2 | BM22: 50693.14659 | BN22: 41444.44444 | BO22: 11623.14543 | BP22: 213591.4042 | BQ22: 230507.0602 | BS22: =IF(RAL>SgrvFP-SgrvFPN,MAX(0,SgrvFP+Tassazione_RAL!$E$10-Tassazione_RAL!$E$5+(SgrvEXT-Tassazione_RAL!$E$10+Tassazione_RAL!$E$15)),0)+BS21*(1+rateETF) -> 199087.0051 | BT22: =IF(RAL>SgrvFP-SgrvFPN,MAX(0,SgrvFP+Tassazione_RAL!$E$10-Tassazione_RAL!$E$5+(SgrvEXT-Tassazione_RAL!$E$10+Tassazione_RAL!$E$15)),0)+BT21 -> 104559.8275 | BU22: 94527.17765 | BV22: 42998.61111 | BW22: 41444.44444 | BX22: 1554.166667 | BY22: 207274.8806 | CA22: =IF(RAL>SgrvFP-SgrvFPN,MAX(0,IF($B$17>=$D22-4,MAX(0,Tassazione_RAL!$E$20-Tassazione_RAL!$E$15),IF(AND($B$18>0,$B$17+1=$D22-4),MAX(0,(Tassazione_RAL!$E$20-Tassazione_RAL!$E$10+Tassazione_RAL!$E$5-Tassazione_RAL!$E$25)+(SgrvEXT-Main!$B$18-Tassazione_RAL!$E$10+Tassazione_RAL!$E$15+Tassazione_RAL!$E$5-Tassazione_RAL!$E$25)),MAX(0,(Tassazione_RAL!$E$20-Tassazione_RAL!$E$10)+(SgrvEXT-Tassazione_RAL!$E$10+Tassazione_RAL!$E$15))))))+CA21*(1+rateETF) -> 100391.2345 | CB22: =IF(RAL>SgrvFP-SgrvFPN,MAX(0,IF($B$17>=$D22-4,MAX(0,Tassazione_RAL!$E$20-Tassazione_RAL!$E$15),IF(AND($B$18>0,$B$17+1=$D22-4),MAX(0,(Tassazione_RAL!$E$20-Tassazione_RAL!$E$10+Tassazione_RAL!$E$5-Tassazione_RAL!$E$25)+(SgrvEXT-Main!$B$18-Tassazione_RAL!$E$10+Tassazione_RAL!$E$15+Tassazione_RAL!$E$5-Tassazione_RAL!$E$25)),MAX(0,(Tassazione_RAL!$E$20-Tassazione_RAL!$E$10)+(SgrvEXT-Tassazione_RAL!$E$10+Tassazione_RAL!$E$15))))))+CB21 -> 50081.9587 | CC22: 50309.27583 | CD22: =(1-costFPA)*(IF(RAL>SgrvFP-SgrvFPN,MAX(0,IF($B$17>=$D22-4,MAX(0,(Tassazione_RAL!$E$19-Tassazione_RAL!$E$14)-(Tassazione_RAL!$E$20-Tassazione_RAL!$E$15)),IF(AND($B$18>0,$B$17+1=$D22-4),MAX(0,(Tassazione_RAL!$E$19-Tassazione_RAL!$E$9)-(Tassazione_RAL!$E$20-Tassazione_RAL!$E$10+Tassazione_RAL!$E$5-Tassazione_RAL!$E$25)),MAX(0,(Tassazione_RAL!$E$19-Tassazione_RAL!$E$9)-(Tassazione_RAL!$E$20-Tassazione_RAL!$E$10))))))+((CD21+IF(AND(CG22=0,CJ22=0,CG21<>0,CJ21<>0),CG21+CJ21,0))*(1+rateFPA*(1-plustaxFPA)))) -> 183893.8795 | CE22: =IF(RAL>SgrvFP-SgrvFPN,MAX(0,IF($B$17>=$D22-4,MAX(0,(Tassazione_RAL!$E$19-Tassazione_RAL!$E$14)-(Tassazione_RAL!$E$20-Tassazione_RAL!$E$15)),IF(AND($B$18>0,$B$17+1=$D22-4),MAX(0,(Tassazione_RAL!$E$19-Tassazione_RAL!$E$9)-(Tassazione_RAL!$E$20-Tassazione_RAL!$E$10+Tassazione_RAL!$E$5-Tassazione_RAL!$E$25)),MAX(0,(Tassazione_RAL!$E$19-Tassazione_RAL!$E$9)-(Tassazione_RAL!$E$20-Tassazione_RAL!$E$10))))))+CE21 -> 61990.1044 | CF22: 74221.66151 | CG22: 1678.656 | CH22: 33600 | CI22: 8299.2 | CJ22: 2070.564444 | CK22: 41444.44444 | CL22: 4596.613659 | CM22: 288034.3345 | CN22: 249014.1843 | CP22: =IF(RAL>SgrvFP-SgrvFPN,MAX(0,(Tassazione_RAL!$E$20-Tassazione_RAL!$E$10)+(SgrvEXT-Tassazione_RAL!$E$10+Tassazione_RAL!$E$15)),0)+CP21*(1+rateETF) -> 92155.77303 | CQ22: =IF(RAL>SgrvFP-SgrvFPN,MAX(0,(Tassazione_RAL!$E$20-Tassazione_RAL!$E$10)+(SgrvEXT-Tassazione_RAL!$E$10+Tassazione_RAL!$E$15)),0)+CQ21 -> 51242.4715 | CR22: 40913.30153 | CS22: =(1-costFPA)*(IF(RAL>SgrvFP-SgrvFPN,MAX(0,(Tassazione_RAL!$E$19-Tassazione_RAL!$E$9)-(Tassazione_RAL!$E$20-Tassazione_RAL!$E$10)),0)+((CS21+IF(AND(CV22=0,CY22=0,CV21<>0,CY21<>0),CV21+CY21,0))*(1+rateFPA*(1-plustaxFPA)))) -> 191140.9099 | CT22: =IF(RAL>SgrvFP-SgrvFPN,MAX(0,(Tassazione_RAL!$E$19-Tassazione_RAL!$E$9)-(Tassazione_RAL!$E$20-Tassazione_RAL!$E$10)),0)+CT21 -> 61474.378 | CU22: 85666.47076 | CV22: 1678.656 | CW22: 33600 | CX22: 8299.2 | CY22: 2070.564444 | CZ22: 41444.44444 | DA22: 4596.613659 | DB22: 287045.9033 | DC22: 249468.6163
A23: Tassazione plus. FPN | B23: =20%*B21+12.5%*(1-B21) -> 0.17 | D23: 20 | E23: =IF(RAL>SgrvFP-SgrvFPN,MAX(0,IF($B$17>=$D23-4,MAX(0,Tassazione_RAL!$E$20-Tassazione_RAL!$E$15),IF(AND($B$18>0,$B$17+1=$D23-4),MAX(0,(Tassazione_RAL!$E$20-Tassazione_RAL!$E$10+Tassazione_RAL!$E$5-Tassazione_RAL!$E$25)+(SgrvEXT-Main!$B$18-Tassazione_RAL!$E$10+Tassazione_RAL!$E$15+Tassazione_RAL!$E$5-Tassazione_RAL!$E$25)),MAX(0,(Tassazione_RAL!$E$20-Tassazione_RAL!$E$10)+(SgrvEXT-Tassazione_RAL!$E$10+Tassazione_RAL!$E$15))))))+E22*(1+rateETF) -> 110277.0529 | F23: =IF(RAL>SgrvFP-SgrvFPN,MAX(0,IF($B$17>=$D23-4,MAX(0,Tassazione_RAL!$E$20-Tassazione_RAL!$E$15),IF(AND($B$18>0,$B$17+1=$D23-4),MAX(0,(Tassazione_RAL!$E$20-Tassazione_RAL!$E$10+Tassazione_RAL!$E$5-Tassazione_RAL!$E$25)+(SgrvEXT-Main!$B$18-Tassazione_RAL!$E$10+Tassazione_RAL!$E$15+Tassazione_RAL!$E$5-Tassazione_RAL!$E$25)),MAX(0,(Tassazione_RAL!$E$20-Tassazione_RAL!$E$10)+(SgrvEXT-Tassazione_RAL!$E$10+Tassazione_RAL!$E$15))))))+F22 -> 53141.1731 | G23: 57135.87978 | H23: =(1-costFPA)*(IF(RAL>SgrvFP-SgrvFPN,MAX(0,IF($B$17>=$D23-4,MAX(0,(Tassazione_RAL!$E$19-Tassazione_RAL!$E$14)-(Tassazione_RAL!$E$20-Tassazione_RAL!$E$15)),IF(AND($B$18>0,$B$17+1=$D23-4),MAX(0,(Tassazione_RAL!$E$19-Tassazione_RAL!$E$9)-(Tassazione_RAL!$E$20-Tassazione_RAL!$E$10+Tassazione_RAL!$E$5-Tassazione_RAL!$E$25)),MAX(0,(Tassazione_RAL!$E$19-Tassazione_RAL!$E$9)-(Tassazione_RAL!$E$20-Tassazione_RAL!$E$10))))))+H22*(1+rateFPA*(1-plustaxFPA))) -> 95914.66763 | I23: =IF(RAL>SgrvFP-SgrvFPN,MAX(0,IF($B$17>=$D23-4,MAX(0,(Tassazione_RAL!$E$19-Tassazione_RAL!$E$14)-(Tassazione_RAL!$E$20-Tassazione_RAL!$E$15)),IF(AND($B$18>0,$B$17+1=$D23-4),MAX(0,(Tassazione_RAL!$E$19-Tassazione_RAL!$E$9)-(Tassazione_RAL!$E$20-Tassazione_RAL!$E$10+Tassazione_RAL!$E$5-Tassazione_RAL!$E$25)),MAX(0,(Tassazione_RAL!$E$19-Tassazione_RAL!$E$9)-(Tassazione_RAL!$E$20-Tassazione_RAL!$E$10))))))+I22 -> 65063.8233 | J23: 46276.09902 | K23: 43630.10941 | L23: 35280 | M23: 9172.8 | N23: 53816.23945 | O23: 43516.66667 | P23: 12941.16725 | Q23: 303638.0694 | R23: 262679.0034 | T23: =IF(RAL>SgrvFP-SgrvFPN,MAX(0,(Tassazione_RAL!$E$20-Tassazione_RAL!$E$10)+(SgrvEXT-Tassazione_RAL!$E$10+Tassazione_RAL!$E$15)),0)+T22*(1+rateETF) -> 101481.58 | U23: =IF(RAL>SgrvFP-SgrvFPN,MAX(0,(Tassazione_RAL!$E$20-Tassazione_RAL!$E$10)+(SgrvEXT-Tassazione_RAL!$E$10+Tassazione_RAL!$E$15)),0)+U22 -> 54301.6859 | V23: 47179.8941 | W23: =(1-costFPA)*(IF(RAL>SgrvFP-SgrvFPN,MAX(0,(Tassazione_RAL!$E$19-Tassazione_RAL!$E$9)-(Tassazione_RAL!$E$20-Tassazione_RAL!$E$10)),0)+W22*(1+(rateFPA*(1-plustaxFPA)))) -> 103490.8613 | X23: =IF(RAL>SgrvFP-SgrvFPN,MAX(0,(Tassazione_RAL!$E$19-Tassazione_RAL!$E$9)-(Tassazione_RAL!$E$20-Tassazione_RAL!$E$10)),0)+X22 -> 64548.0969 | Y23: 58206.45931 | Z23: 43630.10941 | AA23: 35280 | AB23: 9172.8 | AC23: 53816.23945 | AD23: 43516.66667 | AE23: 12941.16725 | AF23: 302418.7901 | AG23: 263025.4943 | AI23: =IF(RAL>SgrvFP,MAX(0,IF($B$17>=$D23-4,0,IF(AND($B$18>0,$B$17+1=$D23-4),MAX(0,(SgrvEXT-Main!$B$18-Tassazione_RAL!$E$10+Tassazione_RAL!$E$15+Tassazione_RAL!$E$5-Tassazione_RAL!$E$25)),MAX(0,(SgrvEXT-Tassazione_RAL!$E$10+Tassazione_RAL!$E$15))))))+AI22*(1+rateETF) -> 81510.01752 | AJ23: =IF(RAL>SgrvFP,MAX(0,IF($B$17>=$D23-4,0,IF(AND($B$18>0,$B$17+1=$D23-4),MAX(0,(SgrvEXT-Main!$B$18-Tassazione_RAL!$E$10+Tassazione_RAL!$E$15+Tassazione_RAL!$E$5-Tassazione_RAL!$E$25)),MAX(0,(SgrvEXT-Tassazione_RAL!$E$10+Tassazione_RAL!$E$15))))))+AJ22 -> 34548.5564 | AK23: 46961.46112 | AL23: 151211.8065 | AM23: 103355.97 | AN23: 71812.1587 | AO23: 69770.87674 | AP23: 43516.66667 | AQ23: 39241.29772 | AR23: 302492.7008 | AS23: 260450.0586 | AU23: =IF(RAL>SgrvFP,MAX(0,SgrvEXT-Tassazione_RAL!$E$10+Tassazione_RAL!$E$15,0)+AU22*(1+rateETF)) -> 54536.76148 | AV23: =IF(RAL>SgrvFP,MAX(0,(SgrvEXT-Tassazione_RAL!$E$10+Tassazione_RAL!$E$15)),0)+AV22 -> 31813.8128 | AW23: 22722.94868 | AX23: 173888.9647 | AY23: 108455.97 | AZ23: 97800.52872 | BA23: 69770.87674 | BB23: 43516.66667 | BC23: 39241.29772 | BD23: 298196.603 | BE23: 259394.5577 | BG23: =IF(RAL>SgrvFP-SgrvFPN,MAX(0,SgrvFP-SgrvFPN+Tassazione_RAL!$E$10-Tassazione_RAL!$E$20+(SgrvEXT-Tassazione_RAL!$E$10+Tassazione_RAL!$E$15)),0)+BG22*(1+rateETF) -> 189284.8847 | BH23: =IF(RAL>SgrvFP-SgrvFPN,MAX(0,SgrvFP-SgrvFPN+Tassazione_RAL!$E$10-Tassazione_RAL!$E$20+(SgrvEXT-Tassazione_RAL!$E$10+Tassazione_RAL!$E$15)),0)+BH22 -> 96361.9097 | BI23: 92922.97497 | BJ23: 43630.10941 | BK23: 35280 | BL23: 9172.8 | BM23: 53816.23945 | BN23: 43516.66667 | BO23: 12941.16725 | BP23: 232914.9941 | BQ23: 249416.0029 | BS23: =IF(RAL>SgrvFP-SgrvFPN,MAX(0,SgrvFP+Tassazione_RAL!$E$10-Tassazione_RAL!$E$5+(SgrvEXT-Tassazione_RAL!$E$10+Tassazione_RAL!$E$15)),0)+BS22*(1+rateETF) -> 218350.0037 | BT23: =IF(RAL>SgrvFP-SgrvFPN,MAX(0,SgrvFP+Tassazione_RAL!$E$10-Tassazione_RAL!$E$5+(SgrvEXT-Tassazione_RAL!$E$10+Tassazione_RAL!$E$15)),0)+BT22 -> 110284.9097 | BU23: 108065.094 | BV23: 45148.54167 | BW23: 43516.66667 | BX23: 1631.875 | BY23: 224656.268 | CA23: =IF(RAL>SgrvFP-SgrvFPN,MAX(0,IF($B$17>=$D23-4,MAX(0,Tassazione_RAL!$E$20-Tassazione_RAL!$E$15),IF(AND($B$18>0,$B$17+1=$D23-4),MAX(0,(Tassazione_RAL!$E$20-Tassazione_RAL!$E$10+Tassazione_RAL!$E$5-Tassazione_RAL!$E$25)+(SgrvEXT-Main!$B$18-Tassazione_RAL!$E$10+Tassazione_RAL!$E$15+Tassazione_RAL!$E$5-Tassazione_RAL!$E$25)),MAX(0,(Tassazione_RAL!$E$20-Tassazione_RAL!$E$10)+(SgrvEXT-Tassazione_RAL!$E$10+Tassazione_RAL!$E$15))))))+CA22*(1+rateETF) -> 110277.0529 | CB23: =IF(RAL>SgrvFP-SgrvFPN,MAX(0,IF($B$17>=$D23-4,MAX(0,Tassazione_RAL!$E$20-Tassazione_RAL!$E$15),IF(AND($B$18>0,$B$17+1=$D23-4),MAX(0,(Tassazione_RAL!$E$20-Tassazione_RAL!$E$10+Tassazione_RAL!$E$5-Tassazione_RAL!$E$25)+(SgrvEXT-Main!$B$18-Tassazione_RAL!$E$10+Tassazione_RAL!$E$15+Tassazione_RAL!$E$5-Tassazione_RAL!$E$25)),MAX(0,(Tassazione_RAL!$E$20-Tassazione_RAL!$E$10)+(SgrvEXT-Tassazione_RAL!$E$10+Tassazione_RAL!$E$15))))))+CB22 -> 53141.1731 | CC23: 57135.87978 | CD23: =(1-costFPA)*(IF(RAL>SgrvFP-SgrvFPN,MAX(0,IF($B$17>=$D23-4,MAX(0,(Tassazione_RAL!$E$19-Tassazione_RAL!$E$14)-(Tassazione_RAL!$E$20-Tassazione_RAL!$E$15)),IF(AND($B$18>0,$B$17+1=$D23-4),MAX(0,(Tassazione_RAL!$E$19-Tassazione_RAL!$E$9)-(Tassazione_RAL!$E$20-Tassazione_RAL!$E$10+Tassazione_RAL!$E$5-Tassazione_RAL!$E$25)),MAX(0,(Tassazione_RAL!$E$19-Tassazione_RAL!$E$9)-(Tassazione_RAL!$E$20-Tassazione_RAL!$E$10))))))+((CD22+IF(AND(CG23=0,CJ23=0,CG22<>0,CJ22<>0),CG22+CJ22,0))*(1+rateFPA*(1-plustaxFPA)))) -> 195295.5496 | CE23: =IF(RAL>SgrvFP-SgrvFPN,MAX(0,IF($B$17>=$D23-4,MAX(0,(Tassazione_RAL!$E$19-Tassazione_RAL!$E$14)-(Tassazione_RAL!$E$20-Tassazione_RAL!$E$15)),IF(AND($B$18>0,$B$17+1=$D23-4),MAX(0,(Tassazione_RAL!$E$19-Tassazione_RAL!$E$9)-(Tassazione_RAL!$E$20-Tassazione_RAL!$E$10+Tassazione_RAL!$E$5-Tassazione_RAL!$E$25)),MAX(0,(Tassazione_RAL!$E$19-Tassazione_RAL!$E$9)-(Tassazione_RAL!$E$20-Tassazione_RAL!$E$10))))))+CE22 -> 65063.8233 | CF23: 86542.55143 | CG23: 3392.165491 | CH23: 35280 | CI23: 9172.8 | CJ23: 4184.119472 | CK23: 43516.66667 | CL23: 4650.448335 | CM23: 313148.8874 | CN23: 270792.2168 | CP23: =IF(RAL>SgrvFP-SgrvFPN,MAX(0,(Tassazione_RAL!$E$20-Tassazione_RAL!$E$10)+(SgrvEXT-Tassazione_RAL!$E$10+Tassazione_RAL!$E$15)),0)+CP22*(1+rateETF) -> 101481.58 | CQ23: =IF(RAL>SgrvFP-SgrvFPN,MAX(0,(Tassazione_RAL!$E$20-Tassazione_RAL!$E$10)+(SgrvEXT-Tassazione_RAL!$E$10+Tassazione_RAL!$E$15)),0)+CQ22 -> 54301.6859 | CR23: 47179.8941 | CS23: =(1-costFPA)*(IF(RAL>SgrvFP-SgrvFPN,MAX(0,(Tassazione_RAL!$E$19-Tassazione_RAL!$E$9)-(Tassazione_RAL!$E$20-Tassazione_RAL!$E$10)),0)+((CS22+IF(AND(CV23=0,CY23=0,CV22<>0,CY22<>0),CV22+CY22,0))*(1+rateFPA*(1-plustaxFPA)))) -> 202871.7432 | CT23: =IF(RAL>SgrvFP-SgrvFPN,MAX(0,(Tassazione_RAL!$E$19-Tassazione_RAL!$E$9)-(Tassazione_RAL!$E$20-Tassazione_RAL!$E$10)),0)+CT22 -> 64548.0969 | CU23: 98472.91172 | CV23: 3392.165491 | CW23: 35280 | CX23: 9172.8 | CY23: 4184.119472 | CZ23: 43516.66667 | DA23: 4650.448335 | DB23: 311929.6082 | DC23: 271138.7077
A24: Costi di gestione FPA | B24: 0.008 | D24: 21 | E24: =IF(RAL>SgrvFP-SgrvFPN,MAX(0,IF($B$17>=$D24-4,MAX(0,Tassazione_RAL!$E$20-Tassazione_RAL!$E$15),IF(AND($B$18>0,$B$17+1=$D24-4),MAX(0,(Tassazione_RAL!$E$20-Tassazione_RAL!$E$10+Tassazione_RAL!$E$5-Tassazione_RAL!$E$25)+(SgrvEXT-Main!$B$18-Tassazione_RAL!$E$10+Tassazione_RAL!$E$15+Tassazione_RAL!$E$5-Tassazione_RAL!$E$25)),MAX(0,(Tassazione_RAL!$E$20-Tassazione_RAL!$E$10)+(SgrvEXT-Tassazione_RAL!$E$10+Tassazione_RAL!$E$15))))))+E23*(1+rateETF) -> 120835.1069 | F24: =IF(RAL>SgrvFP-SgrvFPN,MAX(0,IF($B$17>=$D24-4,MAX(0,Tassazione_RAL!$E$20-Tassazione_RAL!$E$15),IF(AND($B$18>0,$B$17+1=$D24-4),MAX(0,(Tassazione_RAL!$E$20-Tassazione_RAL!$E$10+Tassazione_RAL!$E$5-Tassazione_RAL!$E$25)+(SgrvEXT-Main!$B$18-Tassazione_RAL!$E$10+Tassazione_RAL!$E$15+Tassazione_RAL!$E$5-Tassazione_RAL!$E$25)),MAX(0,(Tassazione_RAL!$E$20-Tassazione_RAL!$E$10)+(SgrvEXT-Tassazione_RAL!$E$10+Tassazione_RAL!$E$15))))))+F23 -> 56200.3875 | G24: 64634.71937 | H24: =(1-costFPA)*(IF(RAL>SgrvFP-SgrvFPN,MAX(0,IF($B$17>=$D24-4,MAX(0,(Tassazione_RAL!$E$19-Tassazione_RAL!$E$14)-(Tassazione_RAL!$E$20-Tassazione_RAL!$E$15)),IF(AND($B$18>0,$B$17+1=$D24-4),MAX(0,(Tassazione_RAL!$E$19-Tassazione_RAL!$E$9)-(Tassazione_RAL!$E$20-Tassazione_RAL!$E$10+Tassazione_RAL!$E$5-Tassazione_RAL!$E$25)),MAX(0,(Tassazione_RAL!$E$19-Tassazione_RAL!$E$9)-(Tassazione_RAL!$E$20-Tassazione_RAL!$E$10))))))+H23*(1+rateFPA*(1-plustaxFPA))) -> 103320.2832 | I24: =IF(RAL>SgrvFP-SgrvFPN,MAX(0,IF($B$17>=$D24-4,MAX(0,(Tassazione_RAL!$E$19-Tassazione_RAL!$E$14)-(Tassazione_RAL!$E$20-Tassazione_RAL!$E$15)),IF(AND($B$18>0,$B$17+1=$D24-4),MAX(0,(Tassazione_RAL!$E$19-Tassazione_RAL!$E$9)-(Tassazione_RAL!$E$20-Tassazione_RAL!$E$10+Tassazione_RAL!$E$5-Tassazione_RAL!$E$25)),MAX(0,(Tassazione_RAL!$E$19-Tassazione_RAL!$E$9)-(Tassazione_RAL!$E$20-Tassazione_RAL!$E$10))))))+I23 -> 68137.5422 | J24: 52702.38175 | K24: 46214.64585 | L24: 36960 | M24: 10090.08 | N24: 57004.17627 | O24: 45588.88889 | P24: 14340.38947 | Q24: 327374.2122 | R24: 283306.0232 | T24: =IF(RAL>SgrvFP-SgrvFPN,MAX(0,(Tassazione_RAL!$E$20-Tassazione_RAL!$E$10)+(SgrvEXT-Tassazione_RAL!$E$10+Tassazione_RAL!$E$15)),0)+T23*(1+rateETF) -> 111441.5418 | U24: =IF(RAL>SgrvFP-SgrvFPN,MAX(0,(Tassazione_RAL!$E$20-Tassazione_RAL!$E$10)+(SgrvEXT-Tassazione_RAL!$E$10+Tassazione_RAL!$E$15)),0)+U23 -> 57360.9003 | V24: 54080.64154 | W24: =(1-costFPA)*(IF(RAL>SgrvFP-SgrvFPN,MAX(0,(Tassazione_RAL!$E$19-Tassazione_RAL!$E$9)-(Tassazione_RAL!$E$20-Tassazione_RAL!$E$10)),0)+W23*(1+(rateFPA*(1-plustaxFPA)))) -> 111240.5909 | X24: =IF(RAL>SgrvFP-SgrvFPN,MAX(0,(Tassazione_RAL!$E$19-Tassazione_RAL!$E$9)-(Tassazione_RAL!$E$20-Tassazione_RAL!$E$10)),0)+X23 -> 67621.8158 | Y24: 65140.34701 | Z24: 46214.64585 | AA24: 36960 | AB24: 10090.08 | AC24: 57004.17627 | AD24: 45588.88889 | AE24: 14340.38947 | AF24: 325900.9548 | AG24: 283531.3455 | AI24: =IF(RAL>SgrvFP,MAX(0,IF($B$17>=$D24-4,0,IF(AND($B$18>0,$B$17+1=$D24-4),MAX(0,(SgrvEXT-Main!$B$18-Tassazione_RAL!$E$10+Tassazione_RAL!$E$15+Tassazione_RAL!$E$5-Tassazione_RAL!$E$25)),MAX(0,(SgrvEXT-Tassazione_RAL!$E$10+Tassazione_RAL!$E$15))))))+AI23*(1+rateETF) -> 89041.06201 | AJ24: =IF(RAL>SgrvFP,MAX(0,IF($B$17>=$D24-4,0,IF(AND($B$18>0,$B$17+1=$D24-4),MAX(0,(SgrvEXT-Main!$B$18-Tassazione_RAL!$E$10+Tassazione_RAL!$E$15+Tassazione_RAL!$E$5-Tassazione_RAL!$E$25)),MAX(0,(SgrvEXT-Tassazione_RAL!$E$10+Tassazione_RAL!$E$15))))))+AJ23 -> 36536.9197 | AK24: 52504.14231 | AL24: 163203.1667 | AM24: 108520.54 | AN24: 81943.34974 | AO24: 74995.54511 | AP24: 45588.88889 | AQ24: 43915.94646 | AR24: 327239.7739 | AS24: 282146.4669 | AU24: =IF(RAL>SgrvFP,MAX(0,SgrvEXT-Tassazione_RAL!$E$10+Tassazione_RAL!$E$15,0)+AU23*(1+rateETF)) -> 60233.62456 | AV24: =IF(RAL>SgrvFP,MAX(0,(SgrvEXT-Tassazione_RAL!$E$10+Tassazione_RAL!$E$15)),0)+AV23 -> 33802.1761 | AW24: 26431.44846 | AX24: 186910.3315 | AY24: 113620.54 | AZ24: 109451.0894 | BA24: 74995.54511 | BB24: 45588.88889 | BC24: 43915.94646 | BD24: 322139.5011 | BE24: 280695.7488 | BG24: =IF(RAL>SgrvFP-SgrvFPN,MAX(0,SgrvFP-SgrvFPN+Tassazione_RAL!$E$10-Tassazione_RAL!$E$20+(SgrvEXT-Tassazione_RAL!$E$10+Tassazione_RAL!$E$15)),0)+BG23*(1+rateETF) -> 207218.339 | BH24: =IF(RAL>SgrvFP-SgrvFPN,MAX(0,SgrvFP-SgrvFPN+Tassazione_RAL!$E$10-Tassazione_RAL!$E$20+(SgrvEXT-Tassazione_RAL!$E$10+Tassazione_RAL!$E$15)),0)+BH23 -> 101423.9919 | BI24: 105794.3471 | BJ24: 46214.64585 | BK24: 36960 | BL24: 10090.08 | BM24: 57004.17627 | BN24: 45588.88889 | BO24: 14340.38947 | BP24: 253432.9849 | BQ24: 269305.7464 | BS24: =IF(RAL>SgrvFP-SgrvFPN,MAX(0,SgrvFP+Tassazione_RAL!$E$10-Tassazione_RAL!$E$5+(SgrvEXT-Tassazione_RAL!$E$10+Tassazione_RAL!$E$15)),0)+BS23*(1+rateETF) -> 238922.8861 | BT24: =IF(RAL>SgrvFP-SgrvFPN,MAX(0,SgrvFP+Tassazione_RAL!$E$10-Tassazione_RAL!$E$5+(SgrvEXT-Tassazione_RAL!$E$10+Tassazione_RAL!$E$15)),0)+BT23 -> 116009.9919 | BU24: 122912.8942 | BV24: 47298.47222 | BW24: 45588.88889 | BX24: 1709.583333 | BY24: 243006.9695 | CA24: =IF(RAL>SgrvFP-SgrvFPN,MAX(0,IF($B$17>=$D24-4,MAX(0,Tassazione_RAL!$E$20-Tassazione_RAL!$E$15),IF(AND($B$18>0,$B$17+1=$D24-4),MAX(0,(Tassazione_RAL!$E$20-Tassazione_RAL!$E$10+Tassazione_RAL!$E$5-Tassazione_RAL!$E$25)+(SgrvEXT-Main!$B$18-Tassazione_RAL!$E$10+Tassazione_RAL!$E$15+Tassazione_RAL!$E$5-Tassazione_RAL!$E$25)),MAX(0,(Tassazione_RAL!$E$20-Tassazione_RAL!$E$10)+(SgrvEXT-Tassazione_RAL!$E$10+Tassazione_RAL!$E$15))))))+CA23*(1+rateETF) -> 120835.1069 | CB24: =IF(RAL>SgrvFP-SgrvFPN,MAX(0,IF($B$17>=$D24-4,MAX(0,Tassazione_RAL!$E$20-Tassazione_RAL!$E$15),IF(AND($B$18>0,$B$17+1=$D24-4),MAX(0,(Tassazione_RAL!$E$20-Tassazione_RAL!$E$10+Tassazione_RAL!$E$5-Tassazione_RAL!$E$25)+(SgrvEXT-Main!$B$18-Tassazione_RAL!$E$10+Tassazione_RAL!$E$15+Tassazione_RAL!$E$5-Tassazione_RAL!$E$25)),MAX(0,(Tassazione_RAL!$E$20-Tassazione_RAL!$E$10)+(SgrvEXT-Tassazione_RAL!$E$10+Tassazione_RAL!$E$15))))))+CB23 -> 56200.3875 | CC24: 64634.71937 | CD24: =(1-costFPA)*(IF(RAL>SgrvFP-SgrvFPN,MAX(0,IF($B$17>=$D24-4,MAX(0,(Tassazione_RAL!$E$19-Tassazione_RAL!$E$14)-(Tassazione_RAL!$E$20-Tassazione_RAL!$E$15)),IF(AND($B$18>0,$B$17+1=$D24-4),MAX(0,(Tassazione_RAL!$E$19-Tassazione_RAL!$E$9)-(Tassazione_RAL!$E$20-Tassazione_RAL!$E$10+Tassazione_RAL!$E$5-Tassazione_RAL!$E$25)),MAX(0,(Tassazione_RAL!$E$19-Tassazione_RAL!$E$9)-(Tassazione_RAL!$E$20-Tassazione_RAL!$E$10))))))+((CD23+IF(AND(CG24=0,CJ24=0,CG23<>0,CJ23<>0),CG23+CJ23,0))*(1+rateFPA*(1-plustaxFPA)))) -> 207215.0885 | CE24: =IF(RAL>SgrvFP-SgrvFPN,MAX(0,IF($B$17>=$D24-4,MAX(0,(Tassazione_RAL!$E$19-Tassazione_RAL!$E$14)-(Tassazione_RAL!$E$20-Tassazione_RAL!$E$15)),IF(AND($B$18>0,$B$17+1=$D24-4),MAX(0,(Tassazione_RAL!$E$19-Tassazione_RAL!$E$9)-(Tassazione_RAL!$E$20-Tassazione_RAL!$E$10+Tassazione_RAL!$E$5-Tassazione_RAL!$E$25)),MAX(0,(Tassazione_RAL!$E$19-Tassazione_RAL!$E$9)-(Tassazione_RAL!$E$20-Tassazione_RAL!$E$10))))))+CE23 -> 68137.5422 | CF24: 99627.35326 | CG24: 5141.252128 | CH24: 36960 | CI24: 10090.08 | CJ24: 6341.557684 | CK24: 45588.88889 | CL24: 4759.235441 | CM24: 339533.0052 | CN24: 293653.165 | CP24: =IF(RAL>SgrvFP-SgrvFPN,MAX(0,(Tassazione_RAL!$E$20-Tassazione_RAL!$E$10)+(SgrvEXT-Tassazione_RAL!$E$10+Tassazione_RAL!$E$15)),0)+CP23*(1+rateETF) -> 111441.5418 | CQ24: =IF(RAL>SgrvFP-SgrvFPN,MAX(0,(Tassazione_RAL!$E$20-Tassazione_RAL!$E$10)+(SgrvEXT-Tassazione_RAL!$E$10+Tassazione_RAL!$E$15)),0)+CQ23 -> 57360.9003 | CR24: 54080.64154 | CS24: =(1-costFPA)*(IF(RAL>SgrvFP-SgrvFPN,MAX(0,(Tassazione_RAL!$E$19-Tassazione_RAL!$E$9)-(Tassazione_RAL!$E$20-Tassazione_RAL!$E$10)),0)+((CS23+IF(AND(CV24=0,CY24=0,CV23<>0,CY23<>0),CV23+CY23,0))*(1+rateFPA*(1-plustaxFPA)))) -> 215135.3962 | CT24: =IF(RAL>SgrvFP-SgrvFPN,MAX(0,(Tassazione_RAL!$E$19-Tassazione_RAL!$E$9)-(Tassazione_RAL!$E$20-Tassazione_RAL!$E$10)),0)+CT23 -> 67621.8158 | CU24: 112065.3185 | CV24: 5141.252128 | CW24: 36960 | CX24: 10090.08 | CY24: 6341.557684 | CZ24: 45588.88889 | DA24: 4759.235441 | DB24: 338059.7479 | DC24: 293878.4873
A25: Costi di gestione FPN | B25: 0.0008 | D25: 22 | E25: =IF(RAL>SgrvFP-SgrvFPN,MAX(0,IF($B$17>=$D25-4,MAX(0,Tassazione_RAL!$E$20-Tassazione_RAL!$E$15),IF(AND($B$18>0,$B$17+1=$D25-4),MAX(0,(Tassazione_RAL!$E$20-Tassazione_RAL!$E$10+Tassazione_RAL!$E$5-Tassazione_RAL!$E$25)+(SgrvEXT-Main!$B$18-Tassazione_RAL!$E$10+Tassazione_RAL!$E$15+Tassazione_RAL!$E$5-Tassazione_RAL!$E$25)),MAX(0,(Tassazione_RAL!$E$20-Tassazione_RAL!$E$10)+(SgrvEXT-Tassazione_RAL!$E$10+Tassazione_RAL!$E$15))))))+E24*(1+rateETF) -> 132111.1085 | F25: =IF(RAL>SgrvFP-SgrvFPN,MAX(0,IF($B$17>=$D25-4,MAX(0,Tassazione_RAL!$E$20-Tassazione_RAL!$E$15),IF(AND($B$18>0,$B$17+1=$D25-4),MAX(0,(Tassazione_RAL!$E$20-Tassazione_RAL!$E$10+Tassazione_RAL!$E$5-Tassazione_RAL!$E$25)+(SgrvEXT-Main!$B$18-Tassazione_RAL!$E$10+Tassazione_RAL!$E$15+Tassazione_RAL!$E$5-Tassazione_RAL!$E$25)),MAX(0,(Tassazione_RAL!$E$20-Tassazione_RAL!$E$10)+(SgrvEXT-Tassazione_RAL!$E$10+Tassazione_RAL!$E$15))))))+F24 -> 59259.6019 | G25: 72851.50664 | H25: =(1-costFPA)*(IF(RAL>SgrvFP-SgrvFPN,MAX(0,IF($B$17>=$D25-4,MAX(0,(Tassazione_RAL!$E$19-Tassazione_RAL!$E$14)-(Tassazione_RAL!$E$20-Tassazione_RAL!$E$15)),IF(AND($B$18>0,$B$17+1=$D25-4),MAX(0,(Tassazione_RAL!$E$19-Tassazione_RAL!$E$9)-(Tassazione_RAL!$E$20-Tassazione_RAL!$E$10+Tassazione_RAL!$E$5-Tassazione_RAL!$E$25)),MAX(0,(Tassazione_RAL!$E$19-Tassazione_RAL!$E$9)-(Tassazione_RAL!$E$20-Tassazione_RAL!$E$10))))))+H24*(1+rateFPA*(1-plustaxFPA))) -> 111062.2651 | I25: =IF(RAL>SgrvFP-SgrvFPN,MAX(0,IF($B$17>=$D25-4,MAX(0,(Tassazione_RAL!$E$19-Tassazione_RAL!$E$14)-(Tassazione_RAL!$E$20-Tassazione_RAL!$E$15)),IF(AND($B$18>0,$B$17+1=$D25-4),MAX(0,(Tassazione_RAL!$E$19-Tassazione_RAL!$E$9)-(Tassazione_RAL!$E$20-Tassazione_RAL!$E$10+Tassazione_RAL!$E$5-Tassazione_RAL!$E$25)),MAX(0,(Tassazione_RAL!$E$19-Tassazione_RAL!$E$9)-(Tassazione_RAL!$E$20-Tassazione_RAL!$E$10))))))+I24 -> 71211.2611 | J25: 59624.84073 | K25: 48852.84434 | L25: 38640 | M25: 11051.04 | N25: 60258.30337 | O25: 47661.11111 | P25: 15822.49805 | Q25: 352284.5213 | R25: 304940.7593 | T25: =IF(RAL>SgrvFP-SgrvFPN,MAX(0,(Tassazione_RAL!$E$20-Tassazione_RAL!$E$10)+(SgrvEXT-Tassazione_RAL!$E$10+Tassazione_RAL!$E$15)),0)+T24*(1+rateETF) -> 122078.7811 | U25: =IF(RAL>SgrvFP-SgrvFPN,MAX(0,(Tassazione_RAL!$E$20-Tassazione_RAL!$E$10)+(SgrvEXT-Tassazione_RAL!$E$10+Tassazione_RAL!$E$15)),0)+U24 -> 60420.1147 | V25: 61658.66639 | W25: =(1-costFPA)*(IF(RAL>SgrvFP-SgrvFPN,MAX(0,(Tassazione_RAL!$E$19-Tassazione_RAL!$E$9)-(Tassazione_RAL!$E$20-Tassazione_RAL!$E$10)),0)+W24*(1+(rateFPA*(1-plustaxFPA)))) -> 119342.3166 | X25: =IF(RAL>SgrvFP-SgrvFPN,MAX(0,(Tassazione_RAL!$E$19-Tassazione_RAL!$E$9)-(Tassazione_RAL!$E$20-Tassazione_RAL!$E$10)),0)+X24 -> 70695.5347 | Y25: 72593.4666 | Z25: 48852.84434 | AA25: 38640 | AB25: 11051.04 | AC25: 60258.30337 | AD25: 47661.11111 | AE25: 15822.49805 | AF25: 350532.2454 | AG25: 305030.4953 | AI25: =IF(RAL>SgrvFP,MAX(0,IF($B$17>=$D25-4,0,IF(AND($B$18>0,$B$17+1=$D25-4),MAX(0,(SgrvEXT-Main!$B$18-Tassazione_RAL!$E$10+Tassazione_RAL!$E$15+Tassazione_RAL!$E$5-Tassazione_RAL!$E$25)),MAX(0,(SgrvEXT-Tassazione_RAL!$E$10+Tassazione_RAL!$E$15))))))+AI24*(1+rateETF) -> 97084.21753 | AJ25: =IF(RAL>SgrvFP,MAX(0,IF($B$17>=$D25-4,0,IF(AND($B$18>0,$B$17+1=$D25-4),MAX(0,(SgrvEXT-Main!$B$18-Tassazione_RAL!$E$10+Tassazione_RAL!$E$15+Tassazione_RAL!$E$5-Tassazione_RAL!$E$25)),MAX(0,(SgrvEXT-Tassazione_RAL!$E$10+Tassazione_RAL!$E$15))))))+AJ24 -> 38525.283 | AK25: 58558.93453 | AL25: 175739.1798 | AM25: 113685.11 | AN25: 92877.96191 | AO25: 80457.52021 | AP25: 47661.11111 | AQ25: 48940.64798 | AR25: 353280.9176 | AS25: 305006.2203 | AU25: =IF(RAL>SgrvFP,MAX(0,SgrvEXT-Tassazione_RAL!$E$10+Tassazione_RAL!$E$15,0)+AU24*(1+rateETF)) -> 66317.87433 | AV25: =IF(RAL>SgrvFP,MAX(0,(SgrvEXT-Tassazione_RAL!$E$10+Tassazione_RAL!$E$15)),0)+AV24 -> 35790.5394 | AW25: 30527.33493 | AX25: 200523.1344 | AY25: 118785.11 | AZ25: 121974.0816 | BA25: 80457.52021 | BB25: 47661.11111 | BC25: 48940.64798 | BD25: 347298.5289 | BE25: 303114.9174 | BG25: =IF(RAL>SgrvFP-SgrvFPN,MAX(0,SgrvFP-SgrvFPN+Tassazione_RAL!$E$10-Tassazione_RAL!$E$20+(SgrvEXT-Tassazione_RAL!$E$10+Tassazione_RAL!$E$15)),0)+BG24*(1+rateETF) -> 226371.2683 | BH25: =IF(RAL>SgrvFP-SgrvFPN,MAX(0,SgrvFP-SgrvFPN+Tassazione_RAL!$E$10-Tassazione_RAL!$E$20+(SgrvEXT-Tassazione_RAL!$E$10+Tassazione_RAL!$E$15)),0)+BH24 -> 106486.0741 | BI25: 119885.1942 | BJ25: 48852.84434 | BK25: 38640 | BL25: 11051.04 | BM25: 60258.30337 | BN25: 47661.11111 | BO25: 15822.49805 | BP25: 275224.1126 | BQ25: 290236.9275 | BS25: =IF(RAL>SgrvFP-SgrvFPN,MAX(0,SgrvFP+Tassazione_RAL!$E$10-Tassazione_RAL!$E$5+(SgrvEXT-Tassazione_RAL!$E$10+Tassazione_RAL!$E$15)),0)+BS24*(1+rateETF) -> 260894.7246 | BT25: =IF(RAL>SgrvFP-SgrvFPN,MAX(0,SgrvFP+Tassazione_RAL!$E$10-Tassazione_RAL!$E$5+(SgrvEXT-Tassazione_RAL!$E$10+Tassazione_RAL!$E$15)),0)+BT24 -> 121735.0741 | BU25: 139159.6505 | BV25: 49448.40278 | BW25: 47661.11111 | BX25: 1787.291667 | BY25: 262392.8984 | CA25: =IF(RAL>SgrvFP-SgrvFPN,MAX(0,IF($B$17>=$D25-4,MAX(0,Tassazione_RAL!$E$20-Tassazione_RAL!$E$15),IF(AND($B$18>0,$B$17+1=$D25-4),MAX(0,(Tassazione_RAL!$E$20-Tassazione_RAL!$E$10+Tassazione_RAL!$E$5-Tassazione_RAL!$E$25)+(SgrvEXT-Main!$B$18-Tassazione_RAL!$E$10+Tassazione_RAL!$E$15+Tassazione_RAL!$E$5-Tassazione_RAL!$E$25)),MAX(0,(Tassazione_RAL!$E$20-Tassazione_RAL!$E$10)+(SgrvEXT-Tassazione_RAL!$E$10+Tassazione_RAL!$E$15))))))+CA24*(1+rateETF) -> 132111.1085 | CB25: =IF(RAL>SgrvFP-SgrvFPN,MAX(0,IF($B$17>=$D25-4,MAX(0,Tassazione_RAL!$E$20-Tassazione_RAL!$E$15),IF(AND($B$18>0,$B$17+1=$D25-4),MAX(0,(Tassazione_RAL!$E$20-Tassazione_RAL!$E$10+Tassazione_RAL!$E$5-Tassazione_RAL!$E$25)+(SgrvEXT-Main!$B$18-Tassazione_RAL!$E$10+Tassazione_RAL!$E$15+Tassazione_RAL!$E$5-Tassazione_RAL!$E$25)),MAX(0,(Tassazione_RAL!$E$20-Tassazione_RAL!$E$10)+(SgrvEXT-Tassazione_RAL!$E$10+Tassazione_RAL!$E$15))))))+CB24 -> 59259.6019 | CC25: 72851.50664 | CD25: =(1-costFPA)*(IF(RAL>SgrvFP-SgrvFPN,MAX(0,IF($B$17>=$D25-4,MAX(0,(Tassazione_RAL!$E$19-Tassazione_RAL!$E$14)-(Tassazione_RAL!$E$20-Tassazione_RAL!$E$15)),IF(AND($B$18>0,$B$17+1=$D25-4),MAX(0,(Tassazione_RAL!$E$19-Tassazione_RAL!$E$9)-(Tassazione_RAL!$E$20-Tassazione_RAL!$E$10+Tassazione_RAL!$E$5-Tassazione_RAL!$E$25)),MAX(0,(Tassazione_RAL!$E$19-Tassazione_RAL!$E$9)-(Tassazione_RAL!$E$20-Tassazione_RAL!$E$10))))))+((CD24+IF(AND(CG25=0,CJ25=0,CG24<>0,CJ24<>0),CG24+CJ24,0))*(1+rateFPA*(1-plustaxFPA)))) -> 219676.0182 | CE25: =IF(RAL>SgrvFP-SgrvFPN,MAX(0,IF($B$17>=$D25-4,MAX(0,(Tassazione_RAL!$E$19-Tassazione_RAL!$E$14)-(Tassazione_RAL!$E$20-Tassazione_RAL!$E$15)),IF(AND($B$18>0,$B$17+1=$D25-4),MAX(0,(Tassazione_RAL!$E$19-Tassazione_RAL!$E$9)-(Tassazione_RAL!$E$20-Tassazione_RAL!$E$10+Tassazione_RAL!$E$5-Tassazione_RAL!$E$25)),MAX(0,(Tassazione_RAL!$E$19-Tassazione_RAL!$E$9)-(Tassazione_RAL!$E$20-Tassazione_RAL!$E$10))))))+CE24 -> 71211.2611 | CF25: 113510.7642 | CG25: 6926.654589 | CH25: 38640 | CI25: 11051.04 | CJ25: 8543.790217 | CK25: 47661.11111 | CL25: 4924.115941 | CM25: 367257.5715 | CN25: 317657.4067 | CP25: =IF(RAL>SgrvFP-SgrvFPN,MAX(0,(Tassazione_RAL!$E$20-Tassazione_RAL!$E$10)+(SgrvEXT-Tassazione_RAL!$E$10+Tassazione_RAL!$E$15)),0)+CP24*(1+rateETF) -> 122078.7811 | CQ25: =IF(RAL>SgrvFP-SgrvFPN,MAX(0,(Tassazione_RAL!$E$20-Tassazione_RAL!$E$10)+(SgrvEXT-Tassazione_RAL!$E$10+Tassazione_RAL!$E$15)),0)+CQ24 -> 60420.1147 | CR25: 61658.66639 | CS25: =(1-costFPA)*(IF(RAL>SgrvFP-SgrvFPN,MAX(0,(Tassazione_RAL!$E$19-Tassazione_RAL!$E$9)-(Tassazione_RAL!$E$20-Tassazione_RAL!$E$10)),0)+((CS24+IF(AND(CV25=0,CY25=0,CV24<>0,CY24<>0),CV24+CY24,0))*(1+rateFPA*(1-plustaxFPA)))) -> 227956.0697 | CT25: =IF(RAL>SgrvFP-SgrvFPN,MAX(0,(Tassazione_RAL!$E$19-Tassazione_RAL!$E$9)-(Tassazione_RAL!$E$20-Tassazione_RAL!$E$10)),0)+CT24 -> 70695.5347 | CU25: 126479.3901 | CV25: 6926.654589 | CW25: 38640 | CX25: 11051.04 | CY25: 8543.790217 | CZ25: 47661.11111 | DA25: 4924.115941 | DB25: 365505.2956 | DC25: 317747.1427
D26: 23 | E26: =IF(RAL>SgrvFP-SgrvFPN,MAX(0,IF($B$17>=$D26-4,MAX(0,Tassazione_RAL!$E$20-Tassazione_RAL!$E$15),IF(AND($B$18>0,$B$17+1=$D26-4),MAX(0,(Tassazione_RAL!$E$20-Tassazione_RAL!$E$10+Tassazione_RAL!$E$5-Tassazione_RAL!$E$25)+(SgrvEXT-Main!$B$18-Tassazione_RAL!$E$10+Tassazione_RAL!$E$15+Tassazione_RAL!$E$5-Tassazione_RAL!$E$25)),MAX(0,(Tassazione_RAL!$E$20-Tassazione_RAL!$E$10)+(SgrvEXT-Tassazione_RAL!$E$10+Tassazione_RAL!$E$15))))))+E25*(1+rateETF) -> 144153.8783 | F26: =IF(RAL>SgrvFP-SgrvFPN,MAX(0,IF($B$17>=$D26-4,MAX(0,Tassazione_RAL!$E$20-Tassazione_RAL!$E$15),IF(AND($B$18>0,$B$17+1=$D26-4),MAX(0,(Tassazione_RAL!$E$20-Tassazione_RAL!$E$10+Tassazione_RAL!$E$5-Tassazione_RAL!$E$25)+(SgrvEXT-Main!$B$18-Tassazione_RAL!$E$10+Tassazione_RAL!$E$15+Tassazione_RAL!$E$5-Tassazione_RAL!$E$25)),MAX(0,(Tassazione_RAL!$E$20-Tassazione_RAL!$E$10)+(SgrvEXT-Tassazione_RAL!$E$10+Tassazione_RAL!$E$15))))))+F25 -> 62318.8163 | G26: 81835.06202 | H26: =(1-costFPA)*(IF(RAL>SgrvFP-SgrvFPN,MAX(0,IF($B$17>=$D26-4,MAX(0,(Tassazione_RAL!$E$19-Tassazione_RAL!$E$14)-(Tassazione_RAL!$E$20-Tassazione_RAL!$E$15)),IF(AND($B$18>0,$B$17+1=$D26-4),MAX(0,(Tassazione_RAL!$E$19-Tassazione_RAL!$E$9)-(Tassazione_RAL!$E$20-Tassazione_RAL!$E$10+Tassazione_RAL!$E$5-Tassazione_RAL!$E$25)),MAX(0,(Tassazione_RAL!$E$19-Tassazione_RAL!$E$9)-(Tassazione_RAL!$E$20-Tassazione_RAL!$E$10))))))+H25*(1+rateFPA*(1-plustaxFPA))) -> 119155.8911 | I26: =IF(RAL>SgrvFP-SgrvFPN,MAX(0,IF($B$17>=$D26-4,MAX(0,(Tassazione_RAL!$E$19-Tassazione_RAL!$E$14)-(Tassazione_RAL!$E$20-Tassazione_RAL!$E$15)),IF(AND($B$18>0,$B$17+1=$D26-4),MAX(0,(Tassazione_RAL!$E$19-Tassazione_RAL!$E$9)-(Tassazione_RAL!$E$20-Tassazione_RAL!$E$10+Tassazione_RAL!$E$5-Tassazione_RAL!$E$25)),MAX(0,(Tassazione_RAL!$E$19-Tassazione_RAL!$E$9)-(Tassazione_RAL!$E$20-Tassazione_RAL!$E$10))))))+I25 -> 74284.98 | J26: 67066.01249 | K26: 51545.81905 | L26: 40320 | M26: 12055.68 | N26: 63579.99506 | O26: 49733.33333 | P26: 17389.21394 | Q26: 378435.5836 | R26: 327638.9726 | T26: =IF(RAL>SgrvFP-SgrvFPN,MAX(0,(Tassazione_RAL!$E$20-Tassazione_RAL!$E$10)+(SgrvEXT-Tassazione_RAL!$E$10+Tassazione_RAL!$E$15)),0)+T25*(1+rateETF) -> 133439.3526 | U26: =IF(RAL>SgrvFP-SgrvFPN,MAX(0,(Tassazione_RAL!$E$20-Tassazione_RAL!$E$10)+(SgrvEXT-Tassazione_RAL!$E$10+Tassazione_RAL!$E$15)),0)+U25 -> 63479.3291 | V26: 69960.0235 | W26: =(1-costFPA)*(IF(RAL>SgrvFP-SgrvFPN,MAX(0,(Tassazione_RAL!$E$19-Tassazione_RAL!$E$9)-(Tassazione_RAL!$E$20-Tassazione_RAL!$E$10)),0)+W25*(1+(rateFPA*(1-plustaxFPA)))) -> 127812.0263 | X26: =IF(RAL>SgrvFP-SgrvFPN,MAX(0,(Tassazione_RAL!$E$19-Tassazione_RAL!$E$9)-(Tassazione_RAL!$E$20-Tassazione_RAL!$E$10)),0)+X25 -> 73769.2536 | Y26: 80589.40181 | Z26: 51545.81905 | AA26: 40320 | AB26: 12055.68 | AC26: 63579.99506 | AD26: 49733.33333 | AE26: 17389.21394 | AF26: 376377.193 | AG26: 327577.419 | AI26: =IF(RAL>SgrvFP,MAX(0,IF($B$17>=$D26-4,0,IF(AND($B$18>0,$B$17+1=$D26-4),MAX(0,(SgrvEXT-Main!$B$18-Tassazione_RAL!$E$10+Tassazione_RAL!$E$15+Tassazione_RAL!$E$5-Tassazione_RAL!$E$25)),MAX(0,(SgrvEXT-Tassazione_RAL!$E$10+Tassazione_RAL!$E$15))))))+AI25*(1+rateETF) -> 105674.3076 | AJ26: =IF(RAL>SgrvFP,MAX(0,IF($B$17>=$D26-4,0,IF(AND($B$18>0,$B$17+1=$D26-4),MAX(0,(SgrvEXT-Main!$B$18-Tassazione_RAL!$E$10+Tassazione_RAL!$E$15+Tassazione_RAL!$E$5-Tassazione_RAL!$E$25)),MAX(0,(SgrvEXT-Tassazione_RAL!$E$10+Tassazione_RAL!$E$15))))))+AJ25 -> 40513.6463 | AK26: 65160.66132 | AL26: 188844.5841 | AM26: 118849.68 | AN26: 104652.487 | AO26: 86167.58062 | AP26: 49733.33333 | AQ26: 54331.30184 | AR26: 380686.4724 | AS26: 329093.1677 | AU26: =IF(RAL>SgrvFP,MAX(0,SgrvEXT-Tassazione_RAL!$E$10+Tassazione_RAL!$E$15,0)+AU25*(1+rateETF)) -> 72815.85309 | AV26: =IF(RAL>SgrvFP,MAX(0,(SgrvEXT-Tassazione_RAL!$E$10+Tassazione_RAL!$E$15)),0)+AV25 -> 37778.9027 | AW26: 35036.95039 | AX26: 214754.2368 | AY26: 123949.68 | AZ26: 135409.1316 | BA26: 86167.58062 | BB26: 49733.33333 | BC26: 54331.30184 | BD26: 373737.6705 | BE26: 326711.9144 | BG26: =IF(RAL>SgrvFP-SgrvFPN,MAX(0,SgrvFP-SgrvFPN+Tassazione_RAL!$E$10-Tassazione_RAL!$E$20+(SgrvEXT-Tassazione_RAL!$E$10+Tassazione_RAL!$E$15)),0)+BG25*(1+rateETF) -> 246826.5967 | BH26: =IF(RAL>SgrvFP-SgrvFPN,MAX(0,SgrvFP-SgrvFPN+Tassazione_RAL!$E$10-Tassazione_RAL!$E$20+(SgrvEXT-Tassazione_RAL!$E$10+Tassazione_RAL!$E$15)),0)+BH25 -> 111548.1563 | BI26: 135278.4404 | BJ26: 51545.81905 | BK26: 40320 | BL26: 12055.68 | BM26: 63579.99506 | BN26: 49733.33333 | BO26: 17389.21394 | BP26: 298372.4158 | BQ26: 312274.1638 | BS26: =IF(RAL>SgrvFP-SgrvFPN,MAX(0,SgrvFP+Tassazione_RAL!$E$10-Tassazione_RAL!$E$5+(SgrvEXT-Tassazione_RAL!$E$10+Tassazione_RAL!$E$15)),0)+BS25*(1+rateETF) -> 284360.6481 | BT26: =IF(RAL>SgrvFP-SgrvFPN,MAX(0,SgrvFP+Tassazione_RAL!$E$10-Tassazione_RAL!$E$5+(SgrvEXT-Tassazione_RAL!$E$10+Tassazione_RAL!$E$15)),0)+BT25 -> 127460.1563 | BU26: 156900.4918 | BV26: 51598.33333 | BW26: 49733.33333 | BX26: 1865 | BY26: 282884.4502 | CA26: =IF(RAL>SgrvFP-SgrvFPN,MAX(0,IF($B$17>=$D26-4,MAX(0,Tassazione_RAL!$E$20-Tassazione_RAL!$E$15),IF(AND($B$18>0,$B$17+1=$D26-4),MAX(0,(Tassazione_RAL!$E$20-Tassazione_RAL!$E$10+Tassazione_RAL!$E$5-Tassazione_RAL!$E$25)+(SgrvEXT-Main!$B$18-Tassazione_RAL!$E$10+Tassazione_RAL!$E$15+Tassazione_RAL!$E$5-Tassazione_RAL!$E$25)),MAX(0,(Tassazione_RAL!$E$20-Tassazione_RAL!$E$10)+(SgrvEXT-Tassazione_RAL!$E$10+Tassazione_RAL!$E$15))))))+CA25*(1+rateETF) -> 144153.8783 | CB26: =IF(RAL>SgrvFP-SgrvFPN,MAX(0,IF($B$17>=$D26-4,MAX(0,Tassazione_RAL!$E$20-Tassazione_RAL!$E$15),IF(AND($B$18>0,$B$17+1=$D26-4),MAX(0,(Tassazione_RAL!$E$20-Tassazione_RAL!$E$10+Tassazione_RAL!$E$5-Tassazione_RAL!$E$25)+(SgrvEXT-Main!$B$18-Tassazione_RAL!$E$10+Tassazione_RAL!$E$15+Tassazione_RAL!$E$5-Tassazione_RAL!$E$25)),MAX(0,(Tassazione_RAL!$E$20-Tassazione_RAL!$E$10)+(SgrvEXT-Tassazione_RAL!$E$10+Tassazione_RAL!$E$15))))))+CB25 -> 62318.8163 | CC26: 81835.06202 | CD26: =(1-costFPA)*(IF(RAL>SgrvFP-SgrvFPN,MAX(0,IF($B$17>=$D26-4,MAX(0,(Tassazione_RAL!$E$19-Tassazione_RAL!$E$14)-(Tassazione_RAL!$E$20-Tassazione_RAL!$E$15)),IF(AND($B$18>0,$B$17+1=$D26-4),MAX(0,(Tassazione_RAL!$E$19-Tassazione_RAL!$E$9)-(Tassazione_RAL!$E$20-Tassazione_RAL!$E$10+Tassazione_RAL!$E$5-Tassazione_RAL!$E$25)),MAX(0,(Tassazione_RAL!$E$19-Tassazione_RAL!$E$9)-(Tassazione_RAL!$E$20-Tassazione_RAL!$E$10))))))+((CD25+IF(AND(CG26=0,CJ26=0,CG25<>0,CJ25<>0),CG25+CJ25,0))*(1+rateFPA*(1-plustaxFPA)))) -> 232702.9287 | CE26: =IF(RAL>SgrvFP-SgrvFPN,MAX(0,IF($B$17>=$D26-4,MAX(0,(Tassazione_RAL!$E$19-Tassazione_RAL!$E$14)-(Tassazione_RAL!$E$20-Tassazione_RAL!$E$15)),IF(AND($B$18>0,$B$17+1=$D26-4),MAX(0,(Tassazione_RAL!$E$19-Tassazione_RAL!$E$9)-(Tassazione_RAL!$E$20-Tassazione_RAL!$E$10+Tassazione_RAL!$E$5-Tassazione_RAL!$E$25)),MAX(0,(Tassazione_RAL!$E$19-Tassazione_RAL!$E$9)-(Tassazione_RAL!$E$20-Tassazione_RAL!$E$10))))))+CE25 -> 74284.98 | CF26: 128229.0574 | CG26: 8749.126889 | CH26: 40320 | CI26: 12055.68 | CJ26: 10791.74712 | CK26: 49733.33333 | CL26: 5146.254486 | CM26: 396397.6811 | CN26: 342868.8648 | CP26: =IF(RAL>SgrvFP-SgrvFPN,MAX(0,(Tassazione_RAL!$E$20-Tassazione_RAL!$E$10)+(SgrvEXT-Tassazione_RAL!$E$10+Tassazione_RAL!$E$15)),0)+CP25*(1+rateETF) -> 133439.3526 | CQ26: =IF(RAL>SgrvFP-SgrvFPN,MAX(0,(Tassazione_RAL!$E$20-Tassazione_RAL!$E$10)+(SgrvEXT-Tassazione_RAL!$E$10+Tassazione_RAL!$E$15)),0)+CQ25 -> 63479.3291 | CR26: 69960.0235 | CS26: =(1-costFPA)*(IF(RAL>SgrvFP-SgrvFPN,MAX(0,(Tassazione_RAL!$E$19-Tassazione_RAL!$E$9)-(Tassazione_RAL!$E$20-Tassazione_RAL!$E$10)),0)+((CS25+IF(AND(CV26=0,CY26=0,CV25<>0,CY25<>0),CV25+CY25,0))*(1+rateFPA*(1-plustaxFPA)))) -> 241359.0639 | CT26: =IF(RAL>SgrvFP-SgrvFPN,MAX(0,(Tassazione_RAL!$E$19-Tassazione_RAL!$E$9)-(Tassazione_RAL!$E$20-Tassazione_RAL!$E$10)),0)+CT25 -> 73769.2536 | CU26: 141752.4467 | CV26: 8749.126889 | CW26: 40320 | CX26: 12055.68 | CY26: 10791.74712 | CZ26: 49733.33333 | DA26: 5146.254486 | DB26: 394339.2905 | DC26: 342807.3112
A27: Anni dopo trasferimento | B27: 8 | D27: 24 | E27: =IF(RAL>SgrvFP-SgrvFPN,MAX(0,IF($B$17>=$D27-4,MAX(0,Tassazione_RAL!$E$20-Tassazione_RAL!$E$15),IF(AND($B$18>0,$B$17+1=$D27-4),MAX(0,(Tassazione_RAL!$E$20-Tassazione_RAL!$E$10+Tassazione_RAL!$E$5-Tassazione_RAL!$E$25)+(SgrvEXT-Main!$B$18-Tassazione_RAL!$E$10+Tassazione_RAL!$E$15+Tassazione_RAL!$E$5-Tassazione_RAL!$E$25)),MAX(0,(Tassazione_RAL!$E$20-Tassazione_RAL!$E$10)+(SgrvEXT-Tassazione_RAL!$E$10+Tassazione_RAL!$E$15))))))+E26*(1+rateETF) -> 157015.5564 | F27: =IF(RAL>SgrvFP-SgrvFPN,MAX(0,IF($B$17>=$D27-4,MAX(0,Tassazione_RAL!$E$20-Tassazione_RAL!$E$15),IF(AND($B$18>0,$B$17+1=$D27-4),MAX(0,(Tassazione_RAL!$E$20-Tassazione_RAL!$E$10+Tassazione_RAL!$E$5-Tassazione_RAL!$E$25)+(SgrvEXT-Main!$B$18-Tassazione_RAL!$E$10+Tassazione_RAL!$E$15+Tassazione_RAL!$E$5-Tassazione_RAL!$E$25)),MAX(0,(Tassazione_RAL!$E$20-Tassazione_RAL!$E$10)+(SgrvEXT-Tassazione_RAL!$E$10+Tassazione_RAL!$E$15))))))+F26 -> 65378.0307 | G27: 91637.52575 | H27: =(1-costFPA)*(IF(RAL>SgrvFP-SgrvFPN,MAX(0,IF($B$17>=$D27-4,MAX(0,(Tassazione_RAL!$E$19-Tassazione_RAL!$E$14)-(Tassazione_RAL!$E$20-Tassazione_RAL!$E$15)),IF(AND($B$18>0,$B$17+1=$D27-4),MAX(0,(Tassazione_RAL!$E$19-Tassazione_RAL!$E$9)-(Tassazione_RAL!$E$20-Tassazione_RAL!$E$10+Tassazione_RAL!$E$5-Tassazione_RAL!$E$25)),MAX(0,(Tassazione_RAL!$E$19-Tassazione_RAL!$E$9)-(Tassazione_RAL!$E$20-Tassazione_RAL!$E$10))))))+H26*(1+rateFPA*(1-plustaxFPA))) -> 127617.1333 | I27: =IF(RAL>SgrvFP-SgrvFPN,MAX(0,IF($B$17>=$D27-4,MAX(0,(Tassazione_RAL!$E$19-Tassazione_RAL!$E$14)-(Tassazione_RAL!$E$20-Tassazione_RAL!$E$15)),IF(AND($B$18>0,$B$17+1=$D27-4),MAX(0,(Tassazione_RAL!$E$19-Tassazione_RAL!$E$9)-(Tassazione_RAL!$E$20-Tassazione_RAL!$E$10+Tassazione_RAL!$E$5-Tassazione_RAL!$E$25)),MAX(0,(Tassazione_RAL!$E$19-Tassazione_RAL!$E$9)-(Tassazione_RAL!$E$20-Tassazione_RAL!$E$10))))))+I26 -> 77358.6989 | J27: 75049.45719 | K27: 54294.70729 | L27: 42000 | M27: 13104 | N27: 66970.65416 | O27: 51805.55556 | P27: 19042.29381 | Q27: 405898.0512 | R27: 351459.7476 | T27: =IF(RAL>SgrvFP-SgrvFPN,MAX(0,(Tassazione_RAL!$E$20-Tassazione_RAL!$E$10)+(SgrvEXT-Tassazione_RAL!$E$10+Tassazione_RAL!$E$15)),0)+T26*(1+rateETF) -> 145572.443 | U27: =IF(RAL>SgrvFP-SgrvFPN,MAX(0,(Tassazione_RAL!$E$20-Tassazione_RAL!$E$10)+(SgrvEXT-Tassazione_RAL!$E$10+Tassazione_RAL!$E$15)),0)+U26 -> 66538.5435 | V27: 79033.89948 | W27: =(1-costFPA)*(IF(RAL>SgrvFP-SgrvFPN,MAX(0,(Tassazione_RAL!$E$19-Tassazione_RAL!$E$9)-(Tassazione_RAL!$E$20-Tassazione_RAL!$E$10)),0)+W26*(1+(rateFPA*(1-plustaxFPA)))) -> 136666.4339 | X27: =IF(RAL>SgrvFP-SgrvFPN,MAX(0,(Tassazione_RAL!$E$19-Tassazione_RAL!$E$9)-(Tassazione_RAL!$E$20-Tassazione_RAL!$E$10)),0)+X26 -> 76842.9725 | Y27: 89152.80757 | Z27: 54294.70729 | AA27: 42000 | AB27: 13104 | AC27: 66970.65416 | AD27: 51805.55556 | AE27: 19042.29381 | AF27: 403504.2383 | AG27: 351229.8136 | AI27: =IF(RAL>SgrvFP,MAX(0,IF($B$17>=$D27-4,0,IF(AND($B$18>0,$B$17+1=$D27-4),MAX(0,(SgrvEXT-Main!$B$18-Tassazione_RAL!$E$10+Tassazione_RAL!$E$15+Tassazione_RAL!$E$5-Tassazione_RAL!$E$25)),MAX(0,(SgrvEXT-Tassazione_RAL!$E$10+Tassazione_RAL!$E$15))))))+AI26*(1+rateETF) -> 114848.5238 | AJ27: =IF(RAL>SgrvFP,MAX(0,IF($B$17>=$D27-4,0,IF(AND($B$18>0,$B$17+1=$D27-4),MAX(0,(SgrvEXT-Main!$B$18-Tassazione_RAL!$E$10+Tassazione_RAL!$E$15+Tassazione_RAL!$E$5-Tassazione_RAL!$E$25)),MAX(0,(SgrvEXT-Tassazione_RAL!$E$10+Tassazione_RAL!$E$15))))))+AJ26 -> 42502.0096 | AK27: 72346.51424 | AL27: 202545.2417 | AM27: 124014.25 | AN27: 117305.0741 | AO27: 92136.99449 | AP27: 51805.55556 | AQ27: 60104.52974 | AR27: 409530.76 | AS27: 354474.7513 | AU27: =IF(RAL>SgrvFP,MAX(0,SgrvEXT-Tassazione_RAL!$E$10+Tassazione_RAL!$E$15,0)+AU26*(1+rateETF)) -> 79755.6944 | AV27: =IF(RAL>SgrvFP,MAX(0,(SgrvEXT-Tassazione_RAL!$E$10+Tassazione_RAL!$E$15)),0)+AV26 -> 39767.266 | AW27: 39988.4284 | AX27: 229631.7222 | AY27: 129114.25 | AZ27: 149797.6654 | BA27: 92136.99449 | BB27: 51805.55556 | BC27: 60104.52974 | BD27: 401524.4111 | BE27: 351549.8675 | BG27: =IF(RAL>SgrvFP-SgrvFPN,MAX(0,SgrvFP-SgrvFPN+Tassazione_RAL!$E$10-Tassazione_RAL!$E$20+(SgrvEXT-Tassazione_RAL!$E$10+Tassazione_RAL!$E$15)),0)+BG26*(1+rateETF) -> 268672.8875 | BH27: =IF(RAL>SgrvFP-SgrvFPN,MAX(0,SgrvFP-SgrvFPN+Tassazione_RAL!$E$10-Tassazione_RAL!$E$20+(SgrvEXT-Tassazione_RAL!$E$10+Tassazione_RAL!$E$15)),0)+BH26 -> 116610.2385 | BI27: 152062.649 | BJ27: 54294.70729 | BK27: 42000 | BL27: 13104 | BM27: 66970.65416 | BN27: 51805.55556 | BO27: 19042.29381 | BP27: 322967.5948 | BQ27: 335486.3208 | BS27: =IF(RAL>SgrvFP-SgrvFPN,MAX(0,SgrvFP+Tassazione_RAL!$E$10-Tassazione_RAL!$E$5+(SgrvEXT-Tassazione_RAL!$E$10+Tassazione_RAL!$E$15)),0)+BS26*(1+rateETF) -> 309422.2543 | BT27: =IF(RAL>SgrvFP-SgrvFPN,MAX(0,SgrvFP+Tassazione_RAL!$E$10-Tassazione_RAL!$E$5+(SgrvEXT-Tassazione_RAL!$E$10+Tassazione_RAL!$E$15)),0)+BT26 -> 133185.2385 | BU27: 176237.0158 | BV27: 53748.26389 | BW27: 51805.55556 | BX27: 1942.708333 | BY27: 304556.8073 | CA27: =IF(RAL>SgrvFP-SgrvFPN,MAX(0,IF($B$17>=$D27-4,MAX(0,Tassazione_RAL!$E$20-Tassazione_RAL!$E$15),IF(AND($B$18>0,$B$17+1=$D27-4),MAX(0,(Tassazione_RAL!$E$20-Tassazione_RAL!$E$10+Tassazione_RAL!$E$5-Tassazione_RAL!$E$25)+(SgrvEXT-Main!$B$18-Tassazione_RAL!$E$10+Tassazione_RAL!$E$15+Tassazione_RAL!$E$5-Tassazione_RAL!$E$25)),MAX(0,(Tassazione_RAL!$E$20-Tassazione_RAL!$E$10)+(SgrvEXT-Tassazione_RAL!$E$10+Tassazione_RAL!$E$15))))))+CA26*(1+rateETF) -> 157015.5564 | CB27: =IF(RAL>SgrvFP-SgrvFPN,MAX(0,IF($B$17>=$D27-4,MAX(0,Tassazione_RAL!$E$20-Tassazione_RAL!$E$15),IF(AND($B$18>0,$B$17+1=$D27-4),MAX(0,(Tassazione_RAL!$E$20-Tassazione_RAL!$E$10+Tassazione_RAL!$E$5-Tassazione_RAL!$E$25)+(SgrvEXT-Main!$B$18-Tassazione_RAL!$E$10+Tassazione_RAL!$E$15+Tassazione_RAL!$E$5-Tassazione_RAL!$E$25)),MAX(0,(Tassazione_RAL!$E$20-Tassazione_RAL!$E$10)+(SgrvEXT-Tassazione_RAL!$E$10+Tassazione_RAL!$E$15))))))+CB26 -> 65378.0307 | CC27: 91637.52575 | CD27: =(1-costFPA)*(IF(RAL>SgrvFP-SgrvFPN,MAX(0,IF($B$17>=$D27-4,MAX(0,(Tassazione_RAL!$E$19-Tassazione_RAL!$E$14)-(Tassazione_RAL!$E$20-Tassazione_RAL!$E$15)),IF(AND($B$18>0,$B$17+1=$D27-4),MAX(0,(Tassazione_RAL!$E$19-Tassazione_RAL!$E$9)-(Tassazione_RAL!$E$20-Tassazione_RAL!$E$10+Tassazione_RAL!$E$5-Tassazione_RAL!$E$25)),MAX(0,(Tassazione_RAL!$E$19-Tassazione_RAL!$E$9)-(Tassazione_RAL!$E$20-Tassazione_RAL!$E$10))))))+((CD26+IF(AND(CG27=0,CJ27=0,CG26<>0,CJ26<>0),CG26+CJ26,0))*(1+rateFPA*(1-plustaxFPA)))) -> 246321.5273 | CE27: =IF(RAL>SgrvFP-SgrvFPN,MAX(0,IF($B$17>=$D27-4,MAX(0,(Tassazione_RAL!$E$19-Tassazione_RAL!$E$14)-(Tassazione_RAL!$E$20-Tassazione_RAL!$E$15)),IF(AND($B$18>0,$B$17+1=$D27-4),MAX(0,(Tassazione_RAL!$E$19-Tassazione_RAL!$E$9)-(Tassazione_RAL!$E$20-Tassazione_RAL!$E$10+Tassazione_RAL!$E$5-Tassazione_RAL!$E$25)),MAX(0,(Tassazione_RAL!$E$19-Tassazione_RAL!$E$9)-(Tassazione_RAL!$E$20-Tassazione_RAL!$E$10))))))+CE26 -> 77358.6989 | CF27: 143820.1536 | CG27: 10609.4387 | CH27: 42000 | CI27: 13104 | CJ27: 13086.37776 | CK27: 51805.55556 | CL27: 5426.839911 | CM27: 427032.9002 | CN27: 369355.2232 | CP27: =IF(RAL>SgrvFP-SgrvFPN,MAX(0,(Tassazione_RAL!$E$20-Tassazione_RAL!$E$10)+(SgrvEXT-Tassazione_RAL!$E$10+Tassazione_RAL!$E$15)),0)+CP26*(1+rateETF) -> 145572.443 | CQ27: =IF(RAL>SgrvFP-SgrvFPN,MAX(0,(Tassazione_RAL!$E$20-Tassazione_RAL!$E$10)+(SgrvEXT-Tassazione_RAL!$E$10+Tassazione_RAL!$E$15)),0)+CQ26 -> 66538.5435 | CR27: 79033.89948 | CS27: =(1-costFPA)*(IF(RAL>SgrvFP-SgrvFPN,MAX(0,(Tassazione_RAL!$E$19-Tassazione_RAL!$E$9)-(Tassazione_RAL!$E$20-Tassazione_RAL!$E$10)),0)+((CS26+IF(AND(CV27=0,CY27=0,CV26<>0,CY26<>0),CV26+CY26,0))*(1+rateFPA*(1-plustaxFPA)))) -> 255370.8279 | CT27: =IF(RAL>SgrvFP-SgrvFPN,MAX(0,(Tassazione_RAL!$E$19-Tassazione_RAL!$E$9)-(Tassazione_RAL!$E$20-Tassazione_RAL!$E$10)),0)+CT26 -> 76842.9725 | CU27: 157923.504 | CV27: 10609.4387 | CW27: 42000 | CX27: 13104 | CY27: 13086.37776 | CZ27: 51805.55556 | DA27: 5426.839911 | DB27: 424639.0873 | DC27: 369125.2892
D28: 25 | E28: =IF(RAL>SgrvFP-SgrvFPN,MAX(0,IF($B$17>=$D28-4,MAX(0,Tassazione_RAL!$E$20-Tassazione_RAL!$E$15),IF(AND($B$18>0,$B$17+1=$D28-4),MAX(0,(Tassazione_RAL!$E$20-Tassazione_RAL!$E$10+Tassazione_RAL!$E$5-Tassazione_RAL!$E$25)+(SgrvEXT-Main!$B$18-Tassazione_RAL!$E$10+Tassazione_RAL!$E$15+Tassazione_RAL!$E$5-Tassazione_RAL!$E$25)),MAX(0,(Tassazione_RAL!$E$20-Tassazione_RAL!$E$10)+(SgrvEXT-Tassazione_RAL!$E$10+Tassazione_RAL!$E$15))))))+E27*(1+rateETF) -> 170751.8287 | F28: =IF(RAL>SgrvFP-SgrvFPN,MAX(0,IF($B$17>=$D28-4,MAX(0,Tassazione_RAL!$E$20-Tassazione_RAL!$E$15),IF(AND($B$18>0,$B$17+1=$D28-4),MAX(0,(Tassazione_RAL!$E$20-Tassazione_RAL!$E$10+Tassazione_RAL!$E$5-Tassazione_RAL!$E$25)+(SgrvEXT-Main!$B$18-Tassazione_RAL!$E$10+Tassazione_RAL!$E$15+Tassazione_RAL!$E$5-Tassazione_RAL!$E$25)),MAX(0,(Tassazione_RAL!$E$20-Tassazione_RAL!$E$10)+(SgrvEXT-Tassazione_RAL!$E$10+Tassazione_RAL!$E$15))))))+F27 -> 68437.2451 | G28: 102314.5836 | H28: =(1-costFPA)*(IF(RAL>SgrvFP-SgrvFPN,MAX(0,IF($B$17>=$D28-4,MAX(0,(Tassazione_RAL!$E$19-Tassazione_RAL!$E$14)-(Tassazione_RAL!$E$20-Tassazione_RAL!$E$15)),IF(AND($B$18>0,$B$17+1=$D28-4),MAX(0,(Tassazione_RAL!$E$19-Tassazione_RAL!$E$9)-(Tassazione_RAL!$E$20-Tassazione_RAL!$E$10+Tassazione_RAL!$E$5-Tassazione_RAL!$E$25)),MAX(0,(Tassazione_RAL!$E$19-Tassazione_RAL!$E$9)-(Tassazione_RAL!$E$20-Tassazione_RAL!$E$10))))))+H27*(1+rateFPA*(1-plustaxFPA))) -> 136462.6888 | I28: =IF(RAL>SgrvFP-SgrvFPN,MAX(0,IF($B$17>=$D28-4,MAX(0,(Tassazione_RAL!$E$19-Tassazione_RAL!$E$14)-(Tassazione_RAL!$E$20-Tassazione_RAL!$E$15)),IF(AND($B$18>0,$B$17+1=$D28-4),MAX(0,(Tassazione_RAL!$E$19-Tassazione_RAL!$E$9)-(Tassazione_RAL!$E$20-Tassazione_RAL!$E$10+Tassazione_RAL!$E$5-Tassazione_RAL!$E$25)),MAX(0,(Tassazione_RAL!$E$19-Tassazione_RAL!$E$9)-(Tassazione_RAL!$E$20-Tassazione_RAL!$E$10))))))+I27 -> 80432.4178 | J28: 83599.80512 | K28: 57100.66996 | L28: 43680 | M28: 14196 | N28: 70431.71262 | O28: 53877.77778 | P28: 20783.53082 | Q28: 434746.9001 | R28: 376465.6998 | T28: =IF(RAL>SgrvFP-SgrvFPN,MAX(0,(Tassazione_RAL!$E$20-Tassazione_RAL!$E$10)+(SgrvEXT-Tassazione_RAL!$E$10+Tassazione_RAL!$E$15)),0)+T27*(1+rateETF) -> 158530.5835 | U28: =IF(RAL>SgrvFP-SgrvFPN,MAX(0,(Tassazione_RAL!$E$20-Tassazione_RAL!$E$10)+(SgrvEXT-Tassazione_RAL!$E$10+Tassazione_RAL!$E$15)),0)+U27 -> 69597.7579 | V28: 88932.8256 | W28: =(1-costFPA)*(IF(RAL>SgrvFP-SgrvFPN,MAX(0,(Tassazione_RAL!$E$19-Tassazione_RAL!$E$9)-(Tassazione_RAL!$E$20-Tassazione_RAL!$E$10)),0)+W27*(1+(rateFPA*(1-plustaxFPA)))) -> 145923.0126 | X28: =IF(RAL>SgrvFP-SgrvFPN,MAX(0,(Tassazione_RAL!$E$19-Tassazione_RAL!$E$9)-(Tassazione_RAL!$E$20-Tassazione_RAL!$E$10)),0)+X27 -> 79916.6914 | Y28: 98309.45865 | Z28: 57100.66996 | AA28: 43680 | AB28: 14196 | AC28: 70431.71262 | AD28: 53877.77778 | AE28: 20783.53082 | AF28: 431985.9787 | AG28: 376048.7966 | AI28: =IF(RAL>SgrvFP,MAX(0,IF($B$17>=$D28-4,0,IF(AND($B$18>0,$B$17+1=$D28-4),MAX(0,(SgrvEXT-Main!$B$18-Tassazione_RAL!$E$10+Tassazione_RAL!$E$15+Tassazione_RAL!$E$5-Tassazione_RAL!$E$25)),MAX(0,(SgrvEXT-Tassazione_RAL!$E$10+Tassazione_RAL!$E$15))))))+AI27*(1+rateETF) -> 124646.5868 | AJ28: =IF(RAL>SgrvFP,MAX(0,IF($B$17>=$D28-4,0,IF(AND($B$18>0,$B$17+1=$D28-4),MAX(0,(SgrvEXT-Main!$B$18-Tassazione_RAL!$E$10+Tassazione_RAL!$E$15+Tassazione_RAL!$E$5-Tassazione_RAL!$E$25)),MAX(0,(SgrvEXT-Tassazione_RAL!$E$10+Tassazione_RAL!$E$15))))))+AJ27 -> 44490.3729 | AK28: 80156.21386 | AL28: 216868.1891 | AM28: 129178.82 | AN28: 130875.6053 | AO28: 98377.54177 | AP28: 53877.77778 | AQ28: 66277.70837 | AR28: 439892.3176 | AS28: 381222.2143 | AU28: =IF(RAL>SgrvFP,MAX(0,SgrvEXT-Tassazione_RAL!$E$10+Tassazione_RAL!$E$15,0)+AU27*(1+rateETF)) -> 87167.44491 | AV28: =IF(RAL>SgrvFP,MAX(0,(SgrvEXT-Tassazione_RAL!$E$10+Tassazione_RAL!$E$15)),0)+AV27 -> 41755.6293 | AW28: 45411.81561 | AX28: 245184.9495 | AY28: 134278.82 | AZ28: 165182.9908 | BA28: 98377.54177 | BB28: 53877.77778 | BC28: 66277.70837 | BD28: 430729.9362 | BE28: 377695.3652 | BG28: =IF(RAL>SgrvFP-SgrvFPN,MAX(0,SgrvFP-SgrvFPN+Tassazione_RAL!$E$10-Tassazione_RAL!$E$20+(SgrvEXT-Tassazione_RAL!$E$10+Tassazione_RAL!$E$15)),0)+BG27*(1+rateETF) -> 292004.7261 | BH28: =IF(RAL>SgrvFP-SgrvFPN,MAX(0,SgrvFP-SgrvFPN+Tassazione_RAL!$E$10-Tassazione_RAL!$E$20+(SgrvEXT-Tassazione_RAL!$E$10+Tassazione_RAL!$E$15)),0)+BH27 -> 121672.3207 | BI28: 170332.4054 | BJ28: 57100.66996 | BK28: 43680 | BL28: 14196 | BM28: 70431.71262 | BN28: 53877.77778 | BO28: 20783.53082 | BP28: 349105.396 | BQ28: 359946.7973 | BS28: =IF(RAL>SgrvFP-SgrvFPN,MAX(0,SgrvFP+Tassazione_RAL!$E$10-Tassazione_RAL!$E$5+(SgrvEXT-Tassazione_RAL!$E$10+Tassazione_RAL!$E$15)),0)+BS27*(1+rateETF) -> 336188.0498 | BT28: =IF(RAL>SgrvFP-SgrvFPN,MAX(0,SgrvFP+Tassazione_RAL!$E$10-Tassazione_RAL!$E$5+(SgrvEXT-Tassazione_RAL!$E$10+Tassazione_RAL!$E$15)),0)+BT27 -> 138910.3207 | BU28: 197277.7291 | BV28: 55898.19444 | BW28: 53877.77778 | BX28: 2020.416667 | BY28: 327490.2644 | CA28: =IF(RAL>SgrvFP-SgrvFPN,MAX(0,IF($B$17>=$D28-4,MAX(0,Tassazione_RAL!$E$20-Tassazione_RAL!$E$15),IF(AND($B$18>0,$B$17+1=$D28-4),MAX(0,(Tassazione_RAL!$E$20-Tassazione_RAL!$E$10+Tassazione_RAL!$E$5-Tassazione_RAL!$E$25)+(SgrvEXT-Main!$B$18-Tassazione_RAL!$E$10+Tassazione_RAL!$E$15+Tassazione_RAL!$E$5-Tassazione_RAL!$E$25)),MAX(0,(Tassazione_RAL!$E$20-Tassazione_RAL!$E$10)+(SgrvEXT-Tassazione_RAL!$E$10+Tassazione_RAL!$E$15))))))+CA27*(1+rateETF) -> 170751.8287 | CB28: =IF(RAL>SgrvFP-SgrvFPN,MAX(0,IF($B$17>=$D28-4,MAX(0,Tassazione_RAL!$E$20-Tassazione_RAL!$E$15),IF(AND($B$18>0,$B$17+1=$D28-4),MAX(0,(Tassazione_RAL!$E$20-Tassazione_RAL!$E$10+Tassazione_RAL!$E$5-Tassazione_RAL!$E$25)+(SgrvEXT-Main!$B$18-Tassazione_RAL!$E$10+Tassazione_RAL!$E$15+Tassazione_RAL!$E$5-Tassazione_RAL!$E$25)),MAX(0,(Tassazione_RAL!$E$20-Tassazione_RAL!$E$10)+(SgrvEXT-Tassazione_RAL!$E$10+Tassazione_RAL!$E$15))))))+CB27 -> 68437.2451 | CC28: 102314.5836 | CD28: =(1-costFPA)*(IF(RAL>SgrvFP-SgrvFPN,MAX(0,IF($B$17>=$D28-4,MAX(0,(Tassazione_RAL!$E$19-Tassazione_RAL!$E$14)-(Tassazione_RAL!$E$20-Tassazione_RAL!$E$15)),IF(AND($B$18>0,$B$17+1=$D28-4),MAX(0,(Tassazione_RAL!$E$19-Tassazione_RAL!$E$9)-(Tassazione_RAL!$E$20-Tassazione_RAL!$E$10+Tassazione_RAL!$E$5-Tassazione_RAL!$E$25)),MAX(0,(Tassazione_RAL!$E$19-Tassazione_RAL!$E$9)-(Tassazione_RAL!$E$20-Tassazione_RAL!$E$10))))))+((CD27+IF(AND(CG28=0,CJ28=0,CG27<>0,CJ27<>0),CG27+CJ27,0))*(1+rateFPA*(1-plustaxFPA)))) -> 260558.6886 | CE28: =IF(RAL>SgrvFP-SgrvFPN,MAX(0,IF($B$17>=$D28-4,MAX(0,(Tassazione_RAL!$E$19-Tassazione_RAL!$E$14)-(Tassazione_RAL!$E$20-Tassazione_RAL!$E$15)),IF(AND($B$18>0,$B$17+1=$D28-4),MAX(0,(Tassazione_RAL!$E$19-Tassazione_RAL!$E$9)-(Tassazione_RAL!$E$20-Tassazione_RAL!$E$10+Tassazione_RAL!$E$5-Tassazione_RAL!$E$25)),MAX(0,(Tassazione_RAL!$E$19-Tassazione_RAL!$E$9)-(Tassazione_RAL!$E$20-Tassazione_RAL!$E$10))))))+CE27 -> 80432.4178 | CF28: 160323.696 | CG28: 12508.37568 | CH28: 43680 | CI28: 14196 | CJ28: 15428.65121 | CK28: 53877.77778 | CL28: 5767.085733 | CM28: 459247.5442 | CN28: 397188.1558 | CP28: =IF(RAL>SgrvFP-SgrvFPN,MAX(0,(Tassazione_RAL!$E$20-Tassazione_RAL!$E$10)+(SgrvEXT-Tassazione_RAL!$E$10+Tassazione_RAL!$E$15)),0)+CP27*(1+rateETF) -> 158530.5835 | CQ28: =IF(RAL>SgrvFP-SgrvFPN,MAX(0,(Tassazione_RAL!$E$20-Tassazione_RAL!$E$10)+(SgrvEXT-Tassazione_RAL!$E$10+Tassazione_RAL!$E$15)),0)+CQ27 -> 69597.7579 | CR28: 88932.8256 | CS28: =(1-costFPA)*(IF(RAL>SgrvFP-SgrvFPN,MAX(0,(Tassazione_RAL!$E$19-Tassazione_RAL!$E$9)-(Tassazione_RAL!$E$20-Tassazione_RAL!$E$10)),0)+((CS27+IF(AND(CV28=0,CY28=0,CV27<>0,CY27<>0),CV27+CY27,0))*(1+rateFPA*(1-plustaxFPA)))) -> 270019.0124 | CT28: =IF(RAL>SgrvFP-SgrvFPN,MAX(0,(Tassazione_RAL!$E$19-Tassazione_RAL!$E$9)-(Tassazione_RAL!$E$20-Tassazione_RAL!$E$10)),0)+CT27 -> 79916.6914 | CU28: 175033.3495 | CV28: 12508.37568 | CW28: 43680 | CX28: 14196 | CY28: 15428.65121 | CZ28: 53877.77778 | DA28: 5767.085733 | DB28: 456486.6228 | DC28: 396771.2526
D29: 26 | E29: =IF(RAL>SgrvFP-SgrvFPN,MAX(0,IF($B$17>=$D29-4,MAX(0,Tassazione_RAL!$E$20-Tassazione_RAL!$E$15),IF(AND($B$18>0,$B$17+1=$D29-4),MAX(0,(Tassazione_RAL!$E$20-Tassazione_RAL!$E$10+Tassazione_RAL!$E$5-Tassazione_RAL!$E$25)+(SgrvEXT-Main!$B$18-Tassazione_RAL!$E$10+Tassazione_RAL!$E$15+Tassazione_RAL!$E$5-Tassazione_RAL!$E$25)),MAX(0,(Tassazione_RAL!$E$20-Tassazione_RAL!$E$10)+(SgrvEXT-Tassazione_RAL!$E$10+Tassazione_RAL!$E$15))))))+E28*(1+rateETF) -> 185422.1674 | F29: =IF(RAL>SgrvFP-SgrvFPN,MAX(0,IF($B$17>=$D29-4,MAX(0,Tassazione_RAL!$E$20-Tassazione_RAL!$E$15),IF(AND($B$18>0,$B$17+1=$D29-4),MAX(0,(Tassazione_RAL!$E$20-Tassazione_RAL!$E$10+Tassazione_RAL!$E$5-Tassazione_RAL!$E$25)+(SgrvEXT-Main!$B$18-Tassazione_RAL!$E$10+Tassazione_RAL!$E$15+Tassazione_RAL!$E$5-Tassazione_RAL!$E$25)),MAX(0,(Tassazione_RAL!$E$20-Tassazione_RAL!$E$10)+(SgrvEXT-Tassazione_RAL!$E$10+Tassazione_RAL!$E$15))))))+F28 -> 71496.4595 | G29: 113925.7079 | H29: =(1-costFPA)*(IF(RAL>SgrvFP-SgrvFPN,MAX(0,IF($B$17>=$D29-4,MAX(0,(Tassazione_RAL!$E$19-Tassazione_RAL!$E$14)-(Tassazione_RAL!$E$20-Tassazione_RAL!$E$15)),IF(AND($B$18>0,$B$17+1=$D29-4),MAX(0,(Tassazione_RAL!$E$19-Tassazione_RAL!$E$9)-(Tassazione_RAL!$E$20-Tassazione_RAL!$E$10+Tassazione_RAL!$E$5-Tassazione_RAL!$E$25)),MAX(0,(Tassazione_RAL!$E$19-Tassazione_RAL!$E$9)-(Tassazione_RAL!$E$20-Tassazione_RAL!$E$10))))))+H28*(1+rateFPA*(1-plustaxFPA))) -> 145710.0133 | I29: =IF(RAL>SgrvFP-SgrvFPN,MAX(0,IF($B$17>=$D29-4,MAX(0,(Tassazione_RAL!$E$19-Tassazione_RAL!$E$14)-(Tassazione_RAL!$E$20-Tassazione_RAL!$E$15)),IF(AND($B$18>0,$B$17+1=$D29-4),MAX(0,(Tassazione_RAL!$E$19-Tassazione_RAL!$E$9)-(Tassazione_RAL!$E$20-Tassazione_RAL!$E$10+Tassazione_RAL!$E$5-Tassazione_RAL!$E$25)),MAX(0,(Tassazione_RAL!$E$19-Tassazione_RAL!$E$9)-(Tassazione_RAL!$E$20-Tassazione_RAL!$E$10))))))+I28 -> 83506.1367 | J29: 92742.80527 | K29: 59964.8921 | L29: 45360 | M29: 15331.68 | N29: 73964.63212 | O29: 55950 | P29: 22614.75535 | Q29: 465061.705 | R29: 402723.195 | T29: =IF(RAL>SgrvFP-SgrvFPN,MAX(0,(Tassazione_RAL!$E$20-Tassazione_RAL!$E$10)+(SgrvEXT-Tassazione_RAL!$E$10+Tassazione_RAL!$E$15)),0)+T28*(1+rateETF) -> 172369.8776 | U29: =IF(RAL>SgrvFP-SgrvFPN,MAX(0,(Tassazione_RAL!$E$20-Tassazione_RAL!$E$10)+(SgrvEXT-Tassazione_RAL!$E$10+Tassazione_RAL!$E$15)),0)+U28 -> 72656.9723 | V29: 99712.90528 | W29: =(1-costFPA)*(IF(RAL>SgrvFP-SgrvFPN,MAX(0,(Tassazione_RAL!$E$19-Tassazione_RAL!$E$9)-(Tassazione_RAL!$E$20-Tassazione_RAL!$E$10)),0)+W28*(1+(rateFPA*(1-plustaxFPA)))) -> 155600.0292 | X29: =IF(RAL>SgrvFP-SgrvFPN,MAX(0,(Tassazione_RAL!$E$19-Tassazione_RAL!$E$9)-(Tassazione_RAL!$E$20-Tassazione_RAL!$E$10)),0)+X28 -> 82990.4103 | Y29: 108086.3005 | Z29: 59964.8921 | AA29: 45360 | AB29: 15331.68 | AC29: 73964.63212 | AD29: 55950 | AE29: 22614.75535 | AF29: 461899.431 | AG29: 402099.1179 | AI29: =IF(RAL>SgrvFP,MAX(0,IF($B$17>=$D29-4,0,IF(AND($B$18>0,$B$17+1=$D29-4),MAX(0,(SgrvEXT-Main!$B$18-Tassazione_RAL!$E$10+Tassazione_RAL!$E$15+Tassazione_RAL!$E$5-Tassazione_RAL!$E$25)),MAX(0,(SgrvEXT-Tassazione_RAL!$E$10+Tassazione_RAL!$E$15))))))+AI28*(1+rateETF) -> 135110.918 | AJ29: =IF(RAL>SgrvFP,MAX(0,IF($B$17>=$D29-4,0,IF(AND($B$18>0,$B$17+1=$D29-4),MAX(0,(SgrvEXT-Main!$B$18-Tassazione_RAL!$E$10+Tassazione_RAL!$E$15+Tassazione_RAL!$E$5-Tassazione_RAL!$E$25)),MAX(0,(SgrvEXT-Tassazione_RAL!$E$10+Tassazione_RAL!$E$15))))))+AJ28 -> 46478.7362 | AK29: 88632.18176 | AL29: 231841.6911 | AM29: 134343.39 | AN29: 145405.774 | AO29: 104901.5374 | AP29: 55950 | AQ29: 72869.00367 | AR29: 471854.1465 | AS29: 409410.8215 | AU29: =IF(RAL>SgrvFP,MAX(0,SgrvEXT-Tassazione_RAL!$E$10+Tassazione_RAL!$E$15,0)+AU28*(1+rateETF)) -> 95083.19447 | AV29: =IF(RAL>SgrvFP,MAX(0,(SgrvEXT-Tassazione_RAL!$E$10+Tassazione_RAL!$E$15)),0)+AV28 -> 43743.9926 | AW29: 51339.20187 | AX29: 261444.6112 | AY29: 139443.39 | AZ29: 181610.3824 | BA29: 104901.5374 | BB29: 55950 | BC29: 72869.00367 | BD29: 461429.3431 | BE29: 405218.6513 | BG29: =IF(RAL>SgrvFP-SgrvFPN,MAX(0,SgrvFP-SgrvFPN+Tassazione_RAL!$E$10-Tassazione_RAL!$E$20+(SgrvEXT-Tassazione_RAL!$E$10+Tassazione_RAL!$E$15)),0)+BG28*(1+rateETF) -> 316923.1296 | BH29: =IF(RAL>SgrvFP-SgrvFPN,MAX(0,SgrvFP-SgrvFPN+Tassazione_RAL!$E$10-Tassazione_RAL!$E$20+(SgrvEXT-Tassazione_RAL!$E$10+Tassazione_RAL!$E$15)),0)+BH28 -> 126734.4029 | BI29: 190188.7267 | BJ29: 59964.8921 | BK29: 45360 | BL29: 15331.68 | BM29: 73964.63212 | BN29: 55950 | BO29: 22614.75535 | BP29: 376888.0217 | BQ29: 385733.8306 | BS29: =IF(RAL>SgrvFP-SgrvFPN,MAX(0,SgrvFP+Tassazione_RAL!$E$10-Tassazione_RAL!$E$5+(SgrvEXT-Tassazione_RAL!$E$10+Tassazione_RAL!$E$15)),0)+BS28*(1+rateETF) -> 364773.9194 | BT29: =IF(RAL>SgrvFP-SgrvFPN,MAX(0,SgrvFP+Tassazione_RAL!$E$10-Tassazione_RAL!$E$5+(SgrvEXT-Tassazione_RAL!$E$10+Tassazione_RAL!$E$15)),0)+BT28 -> 144635.4029 | BU29: 220138.5165 | BV29: 58048.125 | BW29: 55950 | BX29: 2098.125 | BY29: 351770.5764 | CA29: =IF(RAL>SgrvFP-SgrvFPN,MAX(0,IF($B$17>=$D29-4,MAX(0,Tassazione_RAL!$E$20-Tassazione_RAL!$E$15),IF(AND($B$18>0,$B$17+1=$D29-4),MAX(0,(Tassazione_RAL!$E$20-Tassazione_RAL!$E$10+Tassazione_RAL!$E$5-Tassazione_RAL!$E$25)+(SgrvEXT-Main!$B$18-Tassazione_RAL!$E$10+Tassazione_RAL!$E$15+Tassazione_RAL!$E$5-Tassazione_RAL!$E$25)),MAX(0,(Tassazione_RAL!$E$20-Tassazione_RAL!$E$10)+(SgrvEXT-Tassazione_RAL!$E$10+Tassazione_RAL!$E$15))))))+CA28*(1+rateETF) -> 185422.1674 | CB29: =IF(RAL>SgrvFP-SgrvFPN,MAX(0,IF($B$17>=$D29-4,MAX(0,Tassazione_RAL!$E$20-Tassazione_RAL!$E$15),IF(AND($B$18>0,$B$17+1=$D29-4),MAX(0,(Tassazione_RAL!$E$20-Tassazione_RAL!$E$10+Tassazione_RAL!$E$5-Tassazione_RAL!$E$25)+(SgrvEXT-Main!$B$18-Tassazione_RAL!$E$10+Tassazione_RAL!$E$15+Tassazione_RAL!$E$5-Tassazione_RAL!$E$25)),MAX(0,(Tassazione_RAL!$E$20-Tassazione_RAL!$E$10)+(SgrvEXT-Tassazione_RAL!$E$10+Tassazione_RAL!$E$15))))))+CB28 -> 71496.4595 | CC29: 113925.7079 | CD29: =(1-costFPA)*(IF(RAL>SgrvFP-SgrvFPN,MAX(0,IF($B$17>=$D29-4,MAX(0,(Tassazione_RAL!$E$19-Tassazione_RAL!$E$14)-(Tassazione_RAL!$E$20-Tassazione_RAL!$E$15)),IF(AND($B$18>0,$B$17+1=$D29-4),MAX(0,(Tassazione_RAL!$E$19-Tassazione_RAL!$E$9)-(Tassazione_RAL!$E$20-Tassazione_RAL!$E$10+Tassazione_RAL!$E$5-Tassazione_RAL!$E$25)),MAX(0,(Tassazione_RAL!$E$19-Tassazione_RAL!$E$9)-(Tassazione_RAL!$E$20-Tassazione_RAL!$E$10))))))+((CD28+IF(AND(CG29=0,CJ29=0,CG28<>0,CJ28<>0),CG28+CJ28,0))*(1+rateFPA*(1-plustaxFPA)))) -> 275442.508 | CE29: =IF(RAL>SgrvFP-SgrvFPN,MAX(0,IF($B$17>=$D29-4,MAX(0,(Tassazione_RAL!$E$19-Tassazione_RAL!$E$14)-(Tassazione_RAL!$E$20-Tassazione_RAL!$E$15)),IF(AND($B$18>0,$B$17+1=$D29-4),MAX(0,(Tassazione_RAL!$E$19-Tassazione_RAL!$E$9)-(Tassazione_RAL!$E$20-Tassazione_RAL!$E$10+Tassazione_RAL!$E$5-Tassazione_RAL!$E$25)),MAX(0,(Tassazione_RAL!$E$19-Tassazione_RAL!$E$9)-(Tassazione_RAL!$E$20-Tassazione_RAL!$E$10))))))+CE28 -> 83506.1367 | CF29: 177781.1281 | CG29: 14446.73978 | CH29: 45360 | CI29: 15331.68 | CJ29: 17819.55667 | CK29: 55950 | CL29: 6168.230665 | CM29: 493130.9719 | CN29: 426443.5699 | CP29: =IF(RAL>SgrvFP-SgrvFPN,MAX(0,(Tassazione_RAL!$E$20-Tassazione_RAL!$E$10)+(SgrvEXT-Tassazione_RAL!$E$10+Tassazione_RAL!$E$15)),0)+CP28*(1+rateETF) -> 172369.8776 | CQ29: =IF(RAL>SgrvFP-SgrvFPN,MAX(0,(Tassazione_RAL!$E$20-Tassazione_RAL!$E$10)+(SgrvEXT-Tassazione_RAL!$E$10+Tassazione_RAL!$E$15)),0)+CQ28 -> 72656.9723 | CR29: 99712.90528 | CS29: =(1-costFPA)*(IF(RAL>SgrvFP-SgrvFPN,MAX(0,(Tassazione_RAL!$E$19-Tassazione_RAL!$E$9)-(Tassazione_RAL!$E$20-Tassazione_RAL!$E$10)),0)+((CS28+IF(AND(CV29=0,CY29=0,CV28<>0,CY28<>0),CV28+CY28,0))*(1+rateFPA*(1-plustaxFPA)))) -> 285332.5239 | CT29: =IF(RAL>SgrvFP-SgrvFPN,MAX(0,(Tassazione_RAL!$E$19-Tassazione_RAL!$E$9)-(Tassazione_RAL!$E$20-Tassazione_RAL!$E$10)),0)+CT28 -> 82990.4103 | CU29: 193124.6233 | CV29: 14446.73978 | CW29: 45360 | CX29: 15331.68 | CY29: 17819.55667 | CZ29: 55950 | DA29: 6168.230665 | DB29: 489968.6979 | DC29: 425819.4928
D30: 27 | E30: =IF(RAL>SgrvFP-SgrvFPN,MAX(0,IF($B$17>=$D30-4,MAX(0,Tassazione_RAL!$E$20-Tassazione_RAL!$E$15),IF(AND($B$18>0,$B$17+1=$D30-4),MAX(0,(Tassazione_RAL!$E$20-Tassazione_RAL!$E$10+Tassazione_RAL!$E$5-Tassazione_RAL!$E$25)+(SgrvEXT-Main!$B$18-Tassazione_RAL!$E$10+Tassazione_RAL!$E$15+Tassazione_RAL!$E$5-Tassazione_RAL!$E$25)),MAX(0,(Tassazione_RAL!$E$20-Tassazione_RAL!$E$10)+(SgrvEXT-Tassazione_RAL!$E$10+Tassazione_RAL!$E$15))))))+E29*(1+rateETF) -> 201090.0892 | F30: =IF(RAL>SgrvFP-SgrvFPN,MAX(0,IF($B$17>=$D30-4,MAX(0,Tassazione_RAL!$E$20-Tassazione_RAL!$E$15),IF(AND($B$18>0,$B$17+1=$D30-4),MAX(0,(Tassazione_RAL!$E$20-Tassazione_RAL!$E$10+Tassazione_RAL!$E$5-Tassazione_RAL!$E$25)+(SgrvEXT-Main!$B$18-Tassazione_RAL!$E$10+Tassazione_RAL!$E$15+Tassazione_RAL!$E$5-Tassazione_RAL!$E$25)),MAX(0,(Tassazione_RAL!$E$20-Tassazione_RAL!$E$10)+(SgrvEXT-Tassazione_RAL!$E$10+Tassazione_RAL!$E$15))))))+F29 -> 74555.6739 | G30: 126534.4153 | H30: =(1-costFPA)*(IF(RAL>SgrvFP-SgrvFPN,MAX(0,IF($B$17>=$D30-4,MAX(0,(Tassazione_RAL!$E$19-Tassazione_RAL!$E$14)-(Tassazione_RAL!$E$20-Tassazione_RAL!$E$15)),IF(AND($B$18>0,$B$17+1=$D30-4),MAX(0,(Tassazione_RAL!$E$19-Tassazione_RAL!$E$9)-(Tassazione_RAL!$E$20-Tassazione_RAL!$E$10+Tassazione_RAL!$E$5-Tassazione_RAL!$E$25)),MAX(0,(Tassazione_RAL!$E$19-Tassazione_RAL!$E$9)-(Tassazione_RAL!$E$20-Tassazione_RAL!$E$10))))))+H29*(1+rateFPA*(1-plustaxFPA))) -> 155377.3554 | I30: =IF(RAL>SgrvFP-SgrvFPN,MAX(0,IF($B$17>=$D30-4,MAX(0,(Tassazione_RAL!$E$19-Tassazione_RAL!$E$14)-(Tassazione_RAL!$E$20-Tassazione_RAL!$E$15)),IF(AND($B$18>0,$B$17+1=$D30-4),MAX(0,(Tassazione_RAL!$E$19-Tassazione_RAL!$E$9)-(Tassazione_RAL!$E$20-Tassazione_RAL!$E$10+Tassazione_RAL!$E$5-Tassazione_RAL!$E$25)),MAX(0,(Tassazione_RAL!$E$19-Tassazione_RAL!$E$9)-(Tassazione_RAL!$E$20-Tassazione_RAL!$E$10))))))+I29 -> 86579.8556 | J30: 102505.3762 | K30: 62888.58332 | L30: 47040 | M30: 16511.04 | N30: 77570.90469 | O30: 58022.22222 | P30: 24537.83578 | Q30: 496926.9326 | R30: 430302.5845 | T30: =IF(RAL>SgrvFP-SgrvFPN,MAX(0,(Tassazione_RAL!$E$20-Tassazione_RAL!$E$10)+(SgrvEXT-Tassazione_RAL!$E$10+Tassazione_RAL!$E$15)),0)+T29*(1+rateETF) -> 187150.2437 | U30: =IF(RAL>SgrvFP-SgrvFPN,MAX(0,(Tassazione_RAL!$E$20-Tassazione_RAL!$E$10)+(SgrvEXT-Tassazione_RAL!$E$10+Tassazione_RAL!$E$15)),0)+U29 -> 75716.1867 | V30: 111434.057 | W30: =(1-costFPA)*(IF(RAL>SgrvFP-SgrvFPN,MAX(0,(Tassazione_RAL!$E$19-Tassazione_RAL!$E$9)-(Tassazione_RAL!$E$20-Tassazione_RAL!$E$10)),0)+W29*(1+(rateFPA*(1-plustaxFPA)))) -> 165716.5801 | X30: =IF(RAL>SgrvFP-SgrvFPN,MAX(0,(Tassazione_RAL!$E$19-Tassazione_RAL!$E$9)-(Tassazione_RAL!$E$20-Tassazione_RAL!$E$10)),0)+X29 -> 86064.1292 | Y30: 118511.5024 | Z30: 62888.58332 | AA30: 47040 | AB30: 16511.04 | AC30: 77570.90469 | AD30: 58022.22222 | AE30: 24537.83578 | AF30: 493326.3118 | AG30: 429449.3852 | AI30: =IF(RAL>SgrvFP,MAX(0,IF($B$17>=$D30-4,0,IF(AND($B$18>0,$B$17+1=$D30-4),MAX(0,(SgrvEXT-Main!$B$18-Tassazione_RAL!$E$10+Tassazione_RAL!$E$15+Tassazione_RAL!$E$5-Tassazione_RAL!$E$25)),MAX(0,(SgrvEXT-Tassazione_RAL!$E$10+Tassazione_RAL!$E$15))))))+AI29*(1+rateETF) -> 146286.8237 | AJ30: =IF(RAL>SgrvFP,MAX(0,IF($B$17>=$D30-4,0,IF(AND($B$18>0,$B$17+1=$D30-4),MAX(0,(SgrvEXT-Main!$B$18-Tassazione_RAL!$E$10+Tassazione_RAL!$E$15+Tassazione_RAL!$E$5-Tassazione_RAL!$E$25)),MAX(0,(SgrvEXT-Tassazione_RAL!$E$10+Tassazione_RAL!$E$15))))))+AJ29 -> 48467.0995 | AK30: 97819.72418 | AL30: 247495.2962 | AM30: 139507.96 | AN30: 160939.1673 | AO30: 111721.8559 | AP30: 58022.22222 | AQ30: 79897.40668 | AR30: 505503.9757 | AS30: 439120.0921 | AU30: =IF(RAL>SgrvFP,MAX(0,SgrvEXT-Tassazione_RAL!$E$10+Tassazione_RAL!$E$15,0)+AU29*(1+rateETF)) -> 103537.215 | AV30: =IF(RAL>SgrvFP,MAX(0,(SgrvEXT-Tassazione_RAL!$E$10+Tassazione_RAL!$E$15)),0)+AV29 -> 45732.3559 | AW30: 57804.85909 | AX30: 278442.7939 | AY30: 144607.96 | AZ30: 199127.1714 | BA30: 111721.8559 | BB30: 58022.22222 | BC30: 79897.40668 | BD30: 493701.8648 | BE30: 434193.8314 | BG30: =IF(RAL>SgrvFP-SgrvFPN,MAX(0,SgrvFP-SgrvFPN+Tassazione_RAL!$E$10-Tassazione_RAL!$E$20+(SgrvEXT-Tassazione_RAL!$E$10+Tassazione_RAL!$E$15)),0)+BG29*(1+rateETF) -> 343535.9846 | BH30: =IF(RAL>SgrvFP-SgrvFPN,MAX(0,SgrvFP-SgrvFPN+Tassazione_RAL!$E$10-Tassazione_RAL!$E$20+(SgrvEXT-Tassazione_RAL!$E$10+Tassazione_RAL!$E$15)),0)+BH29 -> 131796.4851 | BI30: 211739.4995 | BJ30: 62888.58332 | BK30: 47040 | BL30: 16511.04 | BM30: 77570.90469 | BN30: 58022.22222 | BO30: 24537.83578 | BP30: 406424.568 | BQ30: 412930.8211 | BS30: =IF(RAL>SgrvFP-SgrvFPN,MAX(0,SgrvFP+Tassazione_RAL!$E$10-Tassazione_RAL!$E$5+(SgrvEXT-Tassazione_RAL!$E$10+Tassazione_RAL!$E$15)),0)+BS29*(1+rateETF) -> 395303.6282 | BT30: =IF(RAL>SgrvFP-SgrvFPN,MAX(0,SgrvFP+Tassazione_RAL!$E$10-Tassazione_RAL!$E$5+(SgrvEXT-Tassazione_RAL!$E$10+Tassazione_RAL!$E$15)),0)+BT29 -> 150360.4851 | BU30: 244943.1431 | BV30: 60198.05556 | BW30: 58022.22222 | BX30: 2175.833333 | BY30: 377489.3293 | CA30: =IF(RAL>SgrvFP-SgrvFPN,MAX(0,IF($B$17>=$D30-4,MAX(0,Tassazione_RAL!$E$20-Tassazione_RAL!$E$15),IF(AND($B$18>0,$B$17+1=$D30-4),MAX(0,(Tassazione_RAL!$E$20-Tassazione_RAL!$E$10+Tassazione_RAL!$E$5-Tassazione_RAL!$E$25)+(SgrvEXT-Main!$B$18-Tassazione_RAL!$E$10+Tassazione_RAL!$E$15+Tassazione_RAL!$E$5-Tassazione_RAL!$E$25)),MAX(0,(Tassazione_RAL!$E$20-Tassazione_RAL!$E$10)+(SgrvEXT-Tassazione_RAL!$E$10+Tassazione_RAL!$E$15))))))+CA29*(1+rateETF) -> 201090.0892 | CB30: =IF(RAL>SgrvFP-SgrvFPN,MAX(0,IF($B$17>=$D30-4,MAX(0,Tassazione_RAL!$E$20-Tassazione_RAL!$E$15),IF(AND($B$18>0,$B$17+1=$D30-4),MAX(0,(Tassazione_RAL!$E$20-Tassazione_RAL!$E$10+Tassazione_RAL!$E$5-Tassazione_RAL!$E$25)+(SgrvEXT-Main!$B$18-Tassazione_RAL!$E$10+Tassazione_RAL!$E$15+Tassazione_RAL!$E$5-Tassazione_RAL!$E$25)),MAX(0,(Tassazione_RAL!$E$20-Tassazione_RAL!$E$10)+(SgrvEXT-Tassazione_RAL!$E$10+Tassazione_RAL!$E$15))))))+CB29 -> 74555.6739 | CC30: 126534.4153 | CD30: =(1-costFPA)*(IF(RAL>SgrvFP-SgrvFPN,MAX(0,IF($B$17>=$D30-4,MAX(0,(Tassazione_RAL!$E$19-Tassazione_RAL!$E$14)-(Tassazione_RAL!$E$20-Tassazione_RAL!$E$15)),IF(AND($B$18>0,$B$17+1=$D30-4),MAX(0,(Tassazione_RAL!$E$19-Tassazione_RAL!$E$9)-(Tassazione_RAL!$E$20-Tassazione_RAL!$E$10+Tassazione_RAL!$E$5-Tassazione_RAL!$E$25)),MAX(0,(Tassazione_RAL!$E$19-Tassazione_RAL!$E$9)-(Tassazione_RAL!$E$20-Tassazione_RAL!$E$10))))))+((CD29+IF(AND(CG30=0,CJ30=0,CG29<>0,CJ29<>0),CG29+CJ29,0))*(1+rateFPA*(1-plustaxFPA)))) -> 324734.2029 | CE30: =IF(RAL>SgrvFP-SgrvFPN,MAX(0,IF($B$17>=$D30-4,MAX(0,(Tassazione_RAL!$E$19-Tassazione_RAL!$E$14)-(Tassazione_RAL!$E$20-Tassazione_RAL!$E$15)),IF(AND($B$18>0,$B$17+1=$D30-4),MAX(0,(Tassazione_RAL!$E$19-Tassazione_RAL!$E$9)-(Tassazione_RAL!$E$20-Tassazione_RAL!$E$10+Tassazione_RAL!$E$5-Tassazione_RAL!$E$25)),MAX(0,(Tassazione_RAL!$E$19-Tassazione_RAL!$E$9)-(Tassazione_RAL!$E$20-Tassazione_RAL!$E$10))))))+CE29 -> 86579.8556 | CF30: 196235.7761 | CG30: 0 | CH30: 47040 | CI30: 16511.04 | CJ30: 0 | CK30: 58022.22222 | CL30: 6631.539138 | CM30: 525824.2921 | CN30: 455905.645 | CP30: =IF(RAL>SgrvFP-SgrvFPN,MAX(0,(Tassazione_RAL!$E$20-Tassazione_RAL!$E$10)+(SgrvEXT-Tassazione_RAL!$E$10+Tassazione_RAL!$E$15)),0)+CP29*(1+rateETF) -> 187150.2437 | CQ30: =IF(RAL>SgrvFP-SgrvFPN,MAX(0,(Tassazione_RAL!$E$20-Tassazione_RAL!$E$10)+(SgrvEXT-Tassazione_RAL!$E$10+Tassazione_RAL!$E$15)),0)+CQ29 -> 75716.1867 | CR30: 111434.057 | CS30: =(1-costFPA)*(IF(RAL>SgrvFP-SgrvFPN,MAX(0,(Tassazione_RAL!$E$19-Tassazione_RAL!$E$9)-(Tassazione_RAL!$E$20-Tassazione_RAL!$E$10)),0)+((CS29+IF(AND(CV30=0,CY30=0,CV29<>0,CY29<>0),CV29+CY29,0))*(1+rateFPA*(1-plustaxFPA)))) -> 335073.4277 | CT30: =IF(RAL>SgrvFP-SgrvFPN,MAX(0,(Tassazione_RAL!$E$19-Tassazione_RAL!$E$9)-(Tassazione_RAL!$E$20-Tassazione_RAL!$E$10)),0)+CT29 -> 86064.1292 | CU30: 212241.9024 | CV30: 0 | CW30: 47040 | CX30: 16511.04 | CY30: 0 | CZ30: 58022.22222 | DA30: 6631.539138 | DB30: 522223.6713 | DC30: 455052.4458
D31: 28 | E31: =IF(RAL>SgrvFP-SgrvFPN,MAX(0,IF($B$17>=$D31-4,MAX(0,Tassazione_RAL!$E$20-Tassazione_RAL!$E$15),IF(AND($B$18>0,$B$17+1=$D31-4),MAX(0,(Tassazione_RAL!$E$20-Tassazione_RAL!$E$10+Tassazione_RAL!$E$5-Tassazione_RAL!$E$25)+(SgrvEXT-Main!$B$18-Tassazione_RAL!$E$10+Tassazione_RAL!$E$15+Tassazione_RAL!$E$5-Tassazione_RAL!$E$25)),MAX(0,(Tassazione_RAL!$E$20-Tassazione_RAL!$E$10)+(SgrvEXT-Tassazione_RAL!$E$10+Tassazione_RAL!$E$15))))))+E30*(1+rateETF) -> 217823.4297 | F31: =IF(RAL>SgrvFP-SgrvFPN,MAX(0,IF($B$17>=$D31-4,MAX(0,Tassazione_RAL!$E$20-Tassazione_RAL!$E$15),IF(AND($B$18>0,$B$17+1=$D31-4),MAX(0,(Tassazione_RAL!$E$20-Tassazione_RAL!$E$10+Tassazione_RAL!$E$5-Tassazione_RAL!$E$25)+(SgrvEXT-Main!$B$18-Tassazione_RAL!$E$10+Tassazione_RAL!$E$15+Tassazione_RAL!$E$5-Tassazione_RAL!$E$25)),MAX(0,(Tassazione_RAL!$E$20-Tassazione_RAL!$E$10)+(SgrvEXT-Tassazione_RAL!$E$10+Tassazione_RAL!$E$15))))))+F30 -> 77614.8883 | G31: 140208.5414 | H31: =(1-costFPA)*(IF(RAL>SgrvFP-SgrvFPN,MAX(0,IF($B$17>=$D31-4,MAX(0,(Tassazione_RAL!$E$19-Tassazione_RAL!$E$14)-(Tassazione_RAL!$E$20-Tassazione_RAL!$E$15)),IF(AND($B$18>0,$B$17+1=$D31-4),MAX(0,(Tassazione_RAL!$E$19-Tassazione_RAL!$E$9)-(Tassazione_RAL!$E$20-Tassazione_RAL!$E$10+Tassazione_RAL!$E$5-Tassazione_RAL!$E$25)),MAX(0,(Tassazione_RAL!$E$19-Tassazione_RAL!$E$9)-(Tassazione_RAL!$E$20-Tassazione_RAL!$E$10))))))+H30*(1+rateFPA*(1-plustaxFPA))) -> 165483.7924 | I31: =IF(RAL>SgrvFP-SgrvFPN,MAX(0,IF($B$17>=$D31-4,MAX(0,(Tassazione_RAL!$E$19-Tassazione_RAL!$E$14)-(Tassazione_RAL!$E$20-Tassazione_RAL!$E$15)),IF(AND($B$18>0,$B$17+1=$D31-4),MAX(0,(Tassazione_RAL!$E$19-Tassazione_RAL!$E$9)-(Tassazione_RAL!$E$20-Tassazione_RAL!$E$10+Tassazione_RAL!$E$5-Tassazione_RAL!$E$25)),MAX(0,(Tassazione_RAL!$E$19-Tassazione_RAL!$E$9)-(Tassazione_RAL!$E$20-Tassazione_RAL!$E$10))))))+I30 -> 89653.5745 | J31: 112915.659 | K31: 65872.97837 | L31: 48720 | M31: 17734.08 | N31: 81252.05335 | O31: 60094.44444 | P31: 26554.67931 | Q31: 530432.2538 | R31: 459278.4536 | T31: =IF(RAL>SgrvFP-SgrvFPN,MAX(0,(Tassazione_RAL!$E$20-Tassazione_RAL!$E$10)+(SgrvEXT-Tassazione_RAL!$E$10+Tassazione_RAL!$E$15)),0)+T30*(1+rateETF) -> 202935.6746 | U31: =IF(RAL>SgrvFP-SgrvFPN,MAX(0,(Tassazione_RAL!$E$20-Tassazione_RAL!$E$10)+(SgrvEXT-Tassazione_RAL!$E$10+Tassazione_RAL!$E$15)),0)+U30 -> 78775.4011 | V31: 124160.2735 | W31: =(1-costFPA)*(IF(RAL>SgrvFP-SgrvFPN,MAX(0,(Tassazione_RAL!$E$19-Tassazione_RAL!$E$9)-(Tassazione_RAL!$E$20-Tassazione_RAL!$E$10)),0)+W30*(1+(rateFPA*(1-plustaxFPA)))) -> 176292.6293 | X31: =IF(RAL>SgrvFP-SgrvFPN,MAX(0,(Tassazione_RAL!$E$19-Tassazione_RAL!$E$9)-(Tassazione_RAL!$E$20-Tassazione_RAL!$E$10)),0)+X30 -> 89137.8481 | Y31: 129614.5133 | Z31: 65872.97837 | AA31: 48720 | AB31: 17734.08 | AC31: 81252.05335 | AD31: 60094.44444 | AE31: 26554.67931 | AF31: 526353.3356 | AG31: 458172.3041 | AI31: =IF(RAL>SgrvFP,MAX(0,IF($B$17>=$D31-4,0,IF(AND($B$18>0,$B$17+1=$D31-4),MAX(0,(SgrvEXT-Main!$B$18-Tassazione_RAL!$E$10+Tassazione_RAL!$E$15+Tassazione_RAL!$E$5-Tassazione_RAL!$E$25)),MAX(0,(SgrvEXT-Tassazione_RAL!$E$10+Tassazione_RAL!$E$15))))))+AI30*(1+rateETF) -> 158222.691 | AJ31: =IF(RAL>SgrvFP,MAX(0,IF($B$17>=$D31-4,0,IF(AND($B$18>0,$B$17+1=$D31-4),MAX(0,(SgrvEXT-Main!$B$18-Tassazione_RAL!$E$10+Tassazione_RAL!$E$15+Tassazione_RAL!$E$5-Tassazione_RAL!$E$25)),MAX(0,(SgrvEXT-Tassazione_RAL!$E$10+Tassazione_RAL!$E$15))))))+AJ30 -> 50455.4628 | AK31: 107767.2282 | AL31: 263859.8949 | AM31: 144672.53 | AN31: 177521.3521 | AO31: 118851.9562 | AP31: 60094.44444 | AQ31: 87382.77102 | AR31: 540934.542 | AS31: 470434.0472 | AU31: =IF(RAL>SgrvFP,MAX(0,SgrvEXT-Tassazione_RAL!$E$10+Tassazione_RAL!$E$15,0)+AU30*(1+rateETF)) -> 112566.1089 | AV31: =IF(RAL>SgrvFP,MAX(0,(SgrvEXT-Tassazione_RAL!$E$10+Tassazione_RAL!$E$15)),0)+AV30 -> 47720.7192 | AW31: 64845.38971 | AX31: 296213.0416 | AY31: 149772.53 | AZ31: 217782.8386 | BA31: 118851.9562 | BB31: 60094.44444 | BC31: 87382.77102 | BD31: 527631.1067 | BE31: 464699.0906 | BG31: =IF(RAL>SgrvFP-SgrvFPN,MAX(0,SgrvFP-SgrvFPN+Tassazione_RAL!$E$10-Tassazione_RAL!$E$20+(SgrvEXT-Tassazione_RAL!$E$10+Tassazione_RAL!$E$15)),0)+BG30*(1+rateETF) -> 371958.5138 | BH31: =IF(RAL>SgrvFP-SgrvFPN,MAX(0,SgrvFP-SgrvFPN+Tassazione_RAL!$E$10-Tassazione_RAL!$E$20+(SgrvEXT-Tassazione_RAL!$E$10+Tassazione_RAL!$E$15)),0)+BH30 -> 136858.5673 | BI31: 235099.9465 | BJ31: 65872.97837 | BK31: 48720 | BL31: 17734.08 | BM31: 81252.05335 | BN31: 60094.44444 | BO31: 26554.67931 | BP31: 437831.4922 | BQ31: 441626.6809 | BS31: =IF(RAL>SgrvFP-SgrvFPN,MAX(0,SgrvFP+Tassazione_RAL!$E$10-Tassazione_RAL!$E$5+(SgrvEXT-Tassazione_RAL!$E$10+Tassazione_RAL!$E$15)),0)+BS30*(1+rateETF) -> 427909.3571 | BT31: =IF(RAL>SgrvFP-SgrvFPN,MAX(0,SgrvFP+Tassazione_RAL!$E$10-Tassazione_RAL!$E$5+(SgrvEXT-Tassazione_RAL!$E$10+Tassazione_RAL!$E$15)),0)+BT30 -> 156085.5673 | BU31: 271823.7898 | BV31: 62347.98611 | BW31: 60094.44444 | BX31: 2253.541667 | BY31: 404744.3371 | CA31: =IF(RAL>SgrvFP-SgrvFPN,MAX(0,IF($B$17>=$D31-4,MAX(0,Tassazione_RAL!$E$20-Tassazione_RAL!$E$15),IF(AND($B$18>0,$B$17+1=$D31-4),MAX(0,(Tassazione_RAL!$E$20-Tassazione_RAL!$E$10+Tassazione_RAL!$E$5-Tassazione_RAL!$E$25)+(SgrvEXT-Main!$B$18-Tassazione_RAL!$E$10+Tassazione_RAL!$E$15+Tassazione_RAL!$E$5-Tassazione_RAL!$E$25)),MAX(0,(Tassazione_RAL!$E$20-Tassazione_RAL!$E$10)+(SgrvEXT-Tassazione_RAL!$E$10+Tassazione_RAL!$E$15))))))+CA30*(1+rateETF) -> 217823.4297 | CB31: =IF(RAL>SgrvFP-SgrvFPN,MAX(0,IF($B$17>=$D31-4,MAX(0,Tassazione_RAL!$E$20-Tassazione_RAL!$E$15),IF(AND($B$18>0,$B$17+1=$D31-4),MAX(0,(Tassazione_RAL!$E$20-Tassazione_RAL!$E$10+Tassazione_RAL!$E$5-Tassazione_RAL!$E$25)+(SgrvEXT-Main!$B$18-Tassazione_RAL!$E$10+Tassazione_RAL!$E$15+Tassazione_RAL!$E$5-Tassazione_RAL!$E$25)),MAX(0,(Tassazione_RAL!$E$20-Tassazione_RAL!$E$10)+(SgrvEXT-Tassazione_RAL!$E$10+Tassazione_RAL!$E$15))))))+CB30 -> 77614.8883 | CC31: 140208.5414 | CD31: =(1-costFPA)*(IF(RAL>SgrvFP-SgrvFPN,MAX(0,IF($B$17>=$D31-4,MAX(0,(Tassazione_RAL!$E$19-Tassazione_RAL!$E$14)-(Tassazione_RAL!$E$20-Tassazione_RAL!$E$15)),IF(AND($B$18>0,$B$17+1=$D31-4),MAX(0,(Tassazione_RAL!$E$19-Tassazione_RAL!$E$9)-(Tassazione_RAL!$E$20-Tassazione_RAL!$E$10+Tassazione_RAL!$E$5-Tassazione_RAL!$E$25)),MAX(0,(Tassazione_RAL!$E$19-Tassazione_RAL!$E$9)-(Tassazione_RAL!$E$20-Tassazione_RAL!$E$10))))))+((CD30+IF(AND(CG31=0,CJ31=0,CG30<>0,CJ30<>0),CG30+CJ30,0))*(1+rateFPA*(1-plustaxFPA)))) -> 342532.9025 | CE31: =IF(RAL>SgrvFP-SgrvFPN,MAX(0,IF($B$17>=$D31-4,MAX(0,(Tassazione_RAL!$E$19-Tassazione_RAL!$E$14)-(Tassazione_RAL!$E$20-Tassazione_RAL!$E$15)),IF(AND($B$18>0,$B$17+1=$D31-4),MAX(0,(Tassazione_RAL!$E$19-Tassazione_RAL!$E$9)-(Tassazione_RAL!$E$20-Tassazione_RAL!$E$10+Tassazione_RAL!$E$5-Tassazione_RAL!$E$25)),MAX(0,(Tassazione_RAL!$E$19-Tassazione_RAL!$E$9)-(Tassazione_RAL!$E$20-Tassazione_RAL!$E$10))))))+CE30 -> 89653.5745 | CF31: 217992.9677 | CG31: 1678.656 | CH31: 48720 | CI31: 17734.08 | CJ31: 2070.564444 | CK31: 60094.44444 | CL31: 6631.539138 | CM31: 564105.5526 | CN31: 489067.7966 | CP31: =IF(RAL>SgrvFP-SgrvFPN,MAX(0,(Tassazione_RAL!$E$20-Tassazione_RAL!$E$10)+(SgrvEXT-Tassazione_RAL!$E$10+Tassazione_RAL!$E$15)),0)+CP30*(1+rateETF) -> 202935.6746 | CQ31: =IF(RAL>SgrvFP-SgrvFPN,MAX(0,(Tassazione_RAL!$E$20-Tassazione_RAL!$E$10)+(SgrvEXT-Tassazione_RAL!$E$10+Tassazione_RAL!$E$15)),0)+CQ30 -> 78775.4011 | CR31: 124160.2735 | CS31: =(1-costFPA)*(IF(RAL>SgrvFP-SgrvFPN,MAX(0,(Tassazione_RAL!$E$19-Tassazione_RAL!$E$9)-(Tassazione_RAL!$E$20-Tassazione_RAL!$E$10)),0)+((CS30+IF(AND(CV31=0,CY31=0,CV30<>0,CY30<>0),CV30+CY30,0))*(1+rateFPA*(1-plustaxFPA)))) -> 353341.7394 | CT31: =IF(RAL>SgrvFP-SgrvFPN,MAX(0,(Tassazione_RAL!$E$19-Tassazione_RAL!$E$9)-(Tassazione_RAL!$E$20-Tassazione_RAL!$E$10)),0)+CT30 -> 89137.8481 | CU31: 234691.8221 | CV31: 1678.656 | CW31: 48720 | CX31: 17734.08 | CY31: 2070.564444 | CZ31: 60094.44444 | DA31: 6631.539138 | DB31: 560026.6344 | DC31: 487961.6472
D32: 29 | E32: =IF(RAL>SgrvFP-SgrvFPN,MAX(0,IF($B$17>=$D32-4,MAX(0,Tassazione_RAL!$E$20-Tassazione_RAL!$E$15),IF(AND($B$18>0,$B$17+1=$D32-4),MAX(0,(Tassazione_RAL!$E$20-Tassazione_RAL!$E$10+Tassazione_RAL!$E$5-Tassazione_RAL!$E$25)+(SgrvEXT-Main!$B$18-Tassazione_RAL!$E$10+Tassazione_RAL!$E$15+Tassazione_RAL!$E$5-Tassazione_RAL!$E$25)),MAX(0,(Tassazione_RAL!$E$20-Tassazione_RAL!$E$10)+(SgrvEXT-Tassazione_RAL!$E$10+Tassazione_RAL!$E$15))))))+E31*(1+rateETF) -> 235694.6373 | F32: =IF(RAL>SgrvFP-SgrvFPN,MAX(0,IF($B$17>=$D32-4,MAX(0,Tassazione_RAL!$E$20-Tassazione_RAL!$E$15),IF(AND($B$18>0,$B$17+1=$D32-4),MAX(0,(Tassazione_RAL!$E$20-Tassazione_RAL!$E$10+Tassazione_RAL!$E$5-Tassazione_RAL!$E$25)+(SgrvEXT-Main!$B$18-Tassazione_RAL!$E$10+Tassazione_RAL!$E$15+Tassazione_RAL!$E$5-Tassazione_RAL!$E$25)),MAX(0,(Tassazione_RAL!$E$20-Tassazione_RAL!$E$10)+(SgrvEXT-Tassazione_RAL!$E$10+Tassazione_RAL!$E$15))))))+F31 -> 80674.1027 | G32: 155020.5346 | H32: =(1-costFPA)*(IF(RAL>SgrvFP-SgrvFPN,MAX(0,IF($B$17>=$D32-4,MAX(0,(Tassazione_RAL!$E$19-Tassazione_RAL!$E$14)-(Tassazione_RAL!$E$20-Tassazione_RAL!$E$15)),IF(AND($B$18>0,$B$17+1=$D32-4),MAX(0,(Tassazione_RAL!$E$19-Tassazione_RAL!$E$9)-(Tassazione_RAL!$E$20-Tassazione_RAL!$E$10+Tassazione_RAL!$E$5-Tassazione_RAL!$E$25)),MAX(0,(Tassazione_RAL!$E$19-Tassazione_RAL!$E$9)-(Tassazione_RAL!$E$20-Tassazione_RAL!$E$10))))))+H31*(1+rateFPA*(1-plustaxFPA))) -> 176049.2682 | I32: =IF(RAL>SgrvFP-SgrvFPN,MAX(0,IF($B$17>=$D32-4,MAX(0,(Tassazione_RAL!$E$19-Tassazione_RAL!$E$14)-(Tassazione_RAL!$E$20-Tassazione_RAL!$E$15)),IF(AND($B$18>0,$B$17+1=$D32-4),MAX(0,(Tassazione_RAL!$E$19-Tassazione_RAL!$E$9)-(Tassazione_RAL!$E$20-Tassazione_RAL!$E$10+Tassazione_RAL!$E$5-Tassazione_RAL!$E$25)),MAX(0,(Tassazione_RAL!$E$19-Tassazione_RAL!$E$9)-(Tassazione_RAL!$E$20-Tassazione_RAL!$E$10))))))+I31 -> 92727.2934 | J32: 124003.0731 | K32: 68919.33763 | L32: 50400 | M32: 19000.8 | N32: 85009.63273 | O32: 62166.66667 | P32: 28667.23269 | Q32: 565672.8759 | R32: 489729.8871 | T32: =IF(RAL>SgrvFP-SgrvFPN,MAX(0,(Tassazione_RAL!$E$20-Tassazione_RAL!$E$10)+(SgrvEXT-Tassazione_RAL!$E$10+Tassazione_RAL!$E$15)),0)+T31*(1+rateETF) -> 219794.5149 | U32: =IF(RAL>SgrvFP-SgrvFPN,MAX(0,(Tassazione_RAL!$E$20-Tassazione_RAL!$E$10)+(SgrvEXT-Tassazione_RAL!$E$10+Tassazione_RAL!$E$15)),0)+U31 -> 81834.6155 | V32: 137959.8994 | W32: =(1-costFPA)*(IF(RAL>SgrvFP-SgrvFPN,MAX(0,(Tassazione_RAL!$E$19-Tassazione_RAL!$E$9)-(Tassazione_RAL!$E$20-Tassazione_RAL!$E$10)),0)+W31*(1+(rateFPA*(1-plustaxFPA)))) -> 187349.0472 | X32: =IF(RAL>SgrvFP-SgrvFPN,MAX(0,(Tassazione_RAL!$E$19-Tassazione_RAL!$E$9)-(Tassazione_RAL!$E$20-Tassazione_RAL!$E$10)),0)+X31 -> 92211.567 | Y32: 141426.1195 | Z32: 68919.33763 | AA32: 50400 | AB32: 19000.8 | AC32: 85009.63273 | AD32: 62166.66667 | AE32: 28667.23269 | AF32: 561072.5325 | AG32: 488344.9327 | AI32: =IF(RAL>SgrvFP,MAX(0,IF($B$17>=$D32-4,0,IF(AND($B$18>0,$B$17+1=$D32-4),MAX(0,(SgrvEXT-Main!$B$18-Tassazione_RAL!$E$10+Tassazione_RAL!$E$15+Tassazione_RAL!$E$5-Tassazione_RAL!$E$25)),MAX(0,(SgrvEXT-Tassazione_RAL!$E$10+Tassazione_RAL!$E$15))))))+AI31*(1+rateETF) -> 170970.1973 | AJ32: =IF(RAL>SgrvFP,MAX(0,IF($B$17>=$D32-4,0,IF(AND($B$18>0,$B$17+1=$D32-4),MAX(0,(SgrvEXT-Main!$B$18-Tassazione_RAL!$E$10+Tassazione_RAL!$E$15+Tassazione_RAL!$E$5-Tassazione_RAL!$E$25)),MAX(0,(SgrvEXT-Tassazione_RAL!$E$10+Tassazione_RAL!$E$15))))))+AJ31 -> 52443.8261 | AK32: 118526.3712 | AL32: 280967.7808 | AM32: 149837.1 | AN32: 195199.9651 | AO32: 126305.9088 | AP32: 62166.66667 | AQ32: 95345.85208 | AR32: 578243.8869 | AS32: 503441.4719 | AU32: =IF(RAL>SgrvFP,MAX(0,SgrvEXT-Tassazione_RAL!$E$10+Tassazione_RAL!$E$15,0)+AU31*(1+rateETF)) -> 122208.9676 | AV32: =IF(RAL>SgrvFP,MAX(0,(SgrvEXT-Tassazione_RAL!$E$10+Tassazione_RAL!$E$15)),0)+AV31 -> 49709.0825 | AW32: 72499.88512 | AX32: 314790.4217 | AY32: 154937.1 | AZ32: 237629.1124 | BA32: 126305.9088 | BB32: 62166.66667 | BC32: 95345.85208 | BD32: 563305.2981 | BE32: 496816.9243 | BG32: =IF(RAL>SgrvFP-SgrvFPN,MAX(0,SgrvFP-SgrvFPN+Tassazione_RAL!$E$10-Tassazione_RAL!$E$20+(SgrvEXT-Tassazione_RAL!$E$10+Tassazione_RAL!$E$15)),0)+BG31*(1+rateETF) -> 402313.7749 | BH32: =IF(RAL>SgrvFP-SgrvFPN,MAX(0,SgrvFP-SgrvFPN+Tassazione_RAL!$E$10-Tassazione_RAL!$E$20+(SgrvEXT-Tassazione_RAL!$E$10+Tassazione_RAL!$E$15)),0)+BH31 -> 141920.6495 | BI32: 260393.1254 | BJ32: 68919.33763 | BK32: 50400 | BL32: 19000.8 | BM32: 85009.63273 | BN32: 62166.66667 | BO32: 28667.23269 | BP32: 471233.1126 | BQ32: 471916.2039 | BS32: =IF(RAL>SgrvFP-SgrvFPN,MAX(0,SgrvFP+Tassazione_RAL!$E$10-Tassazione_RAL!$E$5+(SgrvEXT-Tassazione_RAL!$E$10+Tassazione_RAL!$E$15)),0)+BS31*(1+rateETF) -> 462732.2756 | BT32: =IF(RAL>SgrvFP-SgrvFPN,MAX(0,SgrvFP+Tassazione_RAL!$E$10-Tassazione_RAL!$E$5+(SgrvEXT-Tassazione_RAL!$E$10+Tassazione_RAL!$E$15)),0)+BT31 -> 161810.6495 | BU32: 300921.6261 | BV32: 64497.91667 | BW32: 62166.66667 | BX32: 2331.25 | BY32: 433640.0653 | CA32: =IF(RAL>SgrvFP-SgrvFPN,MAX(0,IF($B$17>=$D32-4,MAX(0,Tassazione_RAL!$E$20-Tassazione_RAL!$E$15),IF(AND($B$18>0,$B$17+1=$D32-4),MAX(0,(Tassazione_RAL!$E$20-Tassazione_RAL!$E$10+Tassazione_RAL!$E$5-Tassazione_RAL!$E$25)+(SgrvEXT-Main!$B$18-Tassazione_RAL!$E$10+Tassazione_RAL!$E$15+Tassazione_RAL!$E$5-Tassazione_RAL!$E$25)),MAX(0,(Tassazione_RAL!$E$20-Tassazione_RAL!$E$10)+(SgrvEXT-Tassazione_RAL!$E$10+Tassazione_RAL!$E$15))))))+CA31*(1+rateETF) -> 235694.6373 | CB32: =IF(RAL>SgrvFP-SgrvFPN,MAX(0,IF($B$17>=$D32-4,MAX(0,Tassazione_RAL!$E$20-Tassazione_RAL!$E$15),IF(AND($B$18>0,$B$17+1=$D32-4),MAX(0,(Tassazione_RAL!$E$20-Tassazione_RAL!$E$10+Tassazione_RAL!$E$5-Tassazione_RAL!$E$25)+(SgrvEXT-Main!$B$18-Tassazione_RAL!$E$10+Tassazione_RAL!$E$15+Tassazione_RAL!$E$5-Tassazione_RAL!$E$25)),MAX(0,(Tassazione_RAL!$E$20-Tassazione_RAL!$E$10)+(SgrvEXT-Tassazione_RAL!$E$10+Tassazione_RAL!$E$15))))))+CB31 -> 80674.1027 | CC32: 155020.5346 | CD32: =(1-costFPA)*(IF(RAL>SgrvFP-SgrvFPN,MAX(0,IF($B$17>=$D32-4,MAX(0,(Tassazione_RAL!$E$19-Tassazione_RAL!$E$14)-(Tassazione_RAL!$E$20-Tassazione_RAL!$E$15)),IF(AND($B$18>0,$B$17+1=$D32-4),MAX(0,(Tassazione_RAL!$E$19-Tassazione_RAL!$E$9)-(Tassazione_RAL!$E$20-Tassazione_RAL!$E$10+Tassazione_RAL!$E$5-Tassazione_RAL!$E$25)),MAX(0,(Tassazione_RAL!$E$19-Tassazione_RAL!$E$9)-(Tassazione_RAL!$E$20-Tassazione_RAL!$E$10))))))+((CD31+IF(AND(CG32=0,CJ32=0,CG31<>0,CJ31<>0),CG31+CJ31,0))*(1+rateFPA*(1-plustaxFPA)))) -> 361140.0267 | CE32: =IF(RAL>SgrvFP-SgrvFPN,MAX(0,IF($B$17>=$D32-4,MAX(0,(Tassazione_RAL!$E$19-Tassazione_RAL!$E$14)-(Tassazione_RAL!$E$20-Tassazione_RAL!$E$15)),IF(AND($B$18>0,$B$17+1=$D32-4),MAX(0,(Tassazione_RAL!$E$19-Tassazione_RAL!$E$9)-(Tassazione_RAL!$E$20-Tassazione_RAL!$E$10+Tassazione_RAL!$E$5-Tassazione_RAL!$E$25)),MAX(0,(Tassazione_RAL!$E$19-Tassazione_RAL!$E$9)-(Tassazione_RAL!$E$20-Tassazione_RAL!$E$10))))))+CE31 -> 92727.2934 | CF32: 240942.6722 | CG32: 3392.165491 | CH32: 50400 | CI32: 19000.8 | CJ32: 4184.119472 | CK32: 62166.66667 | CL32: 6685.373814 | CM32: 604410.949 | CN32: 523966.0444 | CP32: =IF(RAL>SgrvFP-SgrvFPN,MAX(0,(Tassazione_RAL!$E$20-Tassazione_RAL!$E$10)+(SgrvEXT-Tassazione_RAL!$E$10+Tassazione_RAL!$E$15)),0)+CP31*(1+rateETF) -> 219794.5149 | CQ32: =IF(RAL>SgrvFP-SgrvFPN,MAX(0,(Tassazione_RAL!$E$20-Tassazione_RAL!$E$10)+(SgrvEXT-Tassazione_RAL!$E$10+Tassazione_RAL!$E$15)),0)+CQ31 -> 81834.6155 | CR32: 137959.8994 | CS32: =(1-costFPA)*(IF(RAL>SgrvFP-SgrvFPN,MAX(0,(Tassazione_RAL!$E$19-Tassazione_RAL!$E$9)-(Tassazione_RAL!$E$20-Tassazione_RAL!$E$10)),0)+((CS31+IF(AND(CV32=0,CY32=0,CV31<>0,CY31<>0),CV31+CY31,0))*(1+rateFPA*(1-plustaxFPA)))) -> 372439.8058 | CT32: =IF(RAL>SgrvFP-SgrvFPN,MAX(0,(Tassazione_RAL!$E$19-Tassazione_RAL!$E$9)-(Tassazione_RAL!$E$20-Tassazione_RAL!$E$10)),0)+CT31 -> 92211.567 | CU32: 258365.7186 | CV32: 3392.165491 | CW32: 50400 | CX32: 19000.8 | CY32: 4184.119472 | CZ32: 62166.66667 | DA32: 6685.373814 | DB32: 599810.6056 | DC32: 522581.09
D33: 30 | E33: =IF(RAL>SgrvFP-SgrvFPN,MAX(0,IF($B$17>=$D33-4,MAX(0,Tassazione_RAL!$E$20-Tassazione_RAL!$E$15),IF(AND($B$18>0,$B$17+1=$D33-4),MAX(0,(Tassazione_RAL!$E$20-Tassazione_RAL!$E$10+Tassazione_RAL!$E$5-Tassazione_RAL!$E$25)+(SgrvEXT-Main!$B$18-Tassazione_RAL!$E$10+Tassazione_RAL!$E$15+Tassazione_RAL!$E$5-Tassazione_RAL!$E$25)),MAX(0,(Tassazione_RAL!$E$20-Tassazione_RAL!$E$10)+(SgrvEXT-Tassazione_RAL!$E$10+Tassazione_RAL!$E$15))))))+E32*(1+rateETF) -> 254781.087 | F33: =IF(RAL>SgrvFP-SgrvFPN,MAX(0,IF($B$17>=$D33-4,MAX(0,Tassazione_RAL!$E$20-Tassazione_RAL!$E$15),IF(AND($B$18>0,$B$17+1=$D33-4),MAX(0,(Tassazione_RAL!$E$20-Tassazione_RAL!$E$10+Tassazione_RAL!$E$5-Tassazione_RAL!$E$25)+(SgrvEXT-Main!$B$18-Tassazione_RAL!$E$10+Tassazione_RAL!$E$15+Tassazione_RAL!$E$5-Tassazione_RAL!$E$25)),MAX(0,(Tassazione_RAL!$E$20-Tassazione_RAL!$E$10)+(SgrvEXT-Tassazione_RAL!$E$10+Tassazione_RAL!$E$15))))))+F32 -> 83733.3171 | G33: 171047.7699 | H33: =(1-costFPA)*(IF(RAL>SgrvFP-SgrvFPN,MAX(0,IF($B$17>=$D33-4,MAX(0,(Tassazione_RAL!$E$19-Tassazione_RAL!$E$14)-(Tassazione_RAL!$E$20-Tassazione_RAL!$E$15)),IF(AND($B$18>0,$B$17+1=$D33-4),MAX(0,(Tassazione_RAL!$E$19-Tassazione_RAL!$E$9)-(Tassazione_RAL!$E$20-Tassazione_RAL!$E$10+Tassazione_RAL!$E$5-Tassazione_RAL!$E$25)),MAX(0,(Tassazione_RAL!$E$19-Tassazione_RAL!$E$9)-(Tassazione_RAL!$E$20-Tassazione_RAL!$E$10))))))+H32*(1+rateFPA*(1-plustaxFPA))) -> 187094.6326 | I33: =IF(RAL>SgrvFP-SgrvFPN,MAX(0,IF($B$17>=$D33-4,MAX(0,(Tassazione_RAL!$E$19-Tassazione_RAL!$E$14)-(Tassazione_RAL!$E$20-Tassazione_RAL!$E$15)),IF(AND($B$18>0,$B$17+1=$D33-4),MAX(0,(Tassazione_RAL!$E$19-Tassazione_RAL!$E$9)-(Tassazione_RAL!$E$20-Tassazione_RAL!$E$10+Tassazione_RAL!$E$5-Tassazione_RAL!$E$25)),MAX(0,(Tassazione_RAL!$E$19-Tassazione_RAL!$E$9)-(Tassazione_RAL!$E$20-Tassazione_RAL!$E$10))))))+I32 -> 95801.0123 | J33: 135798.374 | K33: 72028.94765 | L33: 52080 | M33: 20311.2 | N33: 88845.22973 | O33: 64238.88889 | P33: 30877.48315 | Q33: 602749.897 | R33: 521740.7518 | T33: =IF(RAL>SgrvFP-SgrvFPN,MAX(0,(Tassazione_RAL!$E$20-Tassazione_RAL!$E$10)+(SgrvEXT-Tassazione_RAL!$E$10+Tassazione_RAL!$E$15)),0)+T32*(1+rateETF) -> 237799.7563 | U33: =IF(RAL>SgrvFP-SgrvFPN,MAX(0,(Tassazione_RAL!$E$20-Tassazione_RAL!$E$10)+(SgrvEXT-Tassazione_RAL!$E$10+Tassazione_RAL!$E$15)),0)+U32 -> 84893.8299 | V33: 152905.9264 | W33: =(1-costFPA)*(IF(RAL>SgrvFP-SgrvFPN,MAX(0,(Tassazione_RAL!$E$19-Tassazione_RAL!$E$9)-(Tassazione_RAL!$E$20-Tassazione_RAL!$E$10)),0)+W32*(1+(rateFPA*(1-plustaxFPA)))) -> 198907.6525 | X33: =IF(RAL>SgrvFP-SgrvFPN,MAX(0,(Tassazione_RAL!$E$19-Tassazione_RAL!$E$9)-(Tassazione_RAL!$E$20-Tassazione_RAL!$E$10)),0)+X32 -> 95285.2859 | Y33: 153978.5056 | Z33: 72028.94765 | AA33: 52080 | AB33: 20311.2 | AC33: 88845.22973 | AD33: 64238.88889 | AE33: 30877.48315 | AF33: 597581.5862 | AG33: 520048.9532 | AI33: =IF(RAL>SgrvFP,MAX(0,IF($B$17>=$D33-4,0,IF(AND($B$18>0,$B$17+1=$D33-4),MAX(0,(SgrvEXT-Main!$B$18-Tassazione_RAL!$E$10+Tassazione_RAL!$E$15+Tassazione_RAL!$E$5-Tassazione_RAL!$E$25)),MAX(0,(SgrvEXT-Tassazione_RAL!$E$10+Tassazione_RAL!$E$15))))))+AI32*(1+rateETF) -> 184584.534 | AJ33: =IF(RAL>SgrvFP,MAX(0,IF($B$17>=$D33-4,0,IF(AND($B$18>0,$B$17+1=$D33-4),MAX(0,(SgrvEXT-Main!$B$18-Tassazione_RAL!$E$10+Tassazione_RAL!$E$15+Tassazione_RAL!$E$5-Tassazione_RAL!$E$25)),MAX(0,(SgrvEXT-Tassazione_RAL!$E$10+Tassazione_RAL!$E$15))))))+AJ32 -> 54432.1894 | AK33: 130152.3446 | AL33: 298852.7145 | AM33: 155001.67 | AN33: 214024.8064 | AO33: 134098.4232 | AP33: 64238.88889 | AQ33: 103808.348 | AR33: 617535.6717 | AS33: 538236.1926 | AU33: =IF(RAL>SgrvFP,MAX(0,SgrvEXT-Tassazione_RAL!$E$10+Tassazione_RAL!$E$15,0)+AU32*(1+rateETF)) -> 132507.5407 | AV33: =IF(RAL>SgrvFP,MAX(0,(SgrvEXT-Tassazione_RAL!$E$10+Tassazione_RAL!$E$15)),0)+AV32 -> 51697.4458 | AW33: 80810.09492 | AX33: 334211.5946 | AY33: 160101.67 | AZ33: 258720.0706 | BA33: 134098.4232 | BB33: 64238.88889 | BC33: 103808.348 | BD33: 600817.5585 | BE33: 530634.3819 | BG33: =IF(RAL>SgrvFP-SgrvFPN,MAX(0,SgrvFP-SgrvFPN+Tassazione_RAL!$E$10-Tassazione_RAL!$E$20+(SgrvEXT-Tassazione_RAL!$E$10+Tassazione_RAL!$E$15)),0)+BG32*(1+rateETF) -> 434733.1938 | BH33: =IF(RAL>SgrvFP-SgrvFPN,MAX(0,SgrvFP-SgrvFPN+Tassazione_RAL!$E$10-Tassazione_RAL!$E$20+(SgrvEXT-Tassazione_RAL!$E$10+Tassazione_RAL!$E$15)),0)+BH32 -> 146982.7317 | BI33: 287750.4621 | BJ33: 72028.94765 | BK33: 52080 | BL33: 20311.2 | BM33: 88845.22973 | BN33: 64238.88889 | BO33: 30877.48315 | BP33: 506762.1415 | BQ33: 503900.4624 | BS33: =IF(RAL>SgrvFP-SgrvFPN,MAX(0,SgrvFP+Tassazione_RAL!$E$10-Tassazione_RAL!$E$5+(SgrvEXT-Tassazione_RAL!$E$10+Tassazione_RAL!$E$15)),0)+BS32*(1+rateETF) -> 499923.1525 | BT33: =IF(RAL>SgrvFP-SgrvFPN,MAX(0,SgrvFP+Tassazione_RAL!$E$10-Tassazione_RAL!$E$5+(SgrvEXT-Tassazione_RAL!$E$10+Tassazione_RAL!$E$15)),0)+BT32 -> 167535.7317 | BU33: 332387.4208 | BV33: 66647.84722 | BW33: 64238.88889 | BX33: 2408.958333 | BY33: 464288.0827 | CA33: =IF(RAL>SgrvFP-SgrvFPN,MAX(0,IF($B$17>=$D33-4,MAX(0,Tassazione_RAL!$E$20-Tassazione_RAL!$E$15),IF(AND($B$18>0,$B$17+1=$D33-4),MAX(0,(Tassazione_RAL!$E$20-Tassazione_RAL!$E$10+Tassazione_RAL!$E$5-Tassazione_RAL!$E$25)+(SgrvEXT-Main!$B$18-Tassazione_RAL!$E$10+Tassazione_RAL!$E$15+Tassazione_RAL!$E$5-Tassazione_RAL!$E$25)),MAX(0,(Tassazione_RAL!$E$20-Tassazione_RAL!$E$10)+(SgrvEXT-Tassazione_RAL!$E$10+Tassazione_RAL!$E$15))))))+CA32*(1+rateETF) -> 254781.087 | CB33: =IF(RAL>SgrvFP-SgrvFPN,MAX(0,IF($B$17>=$D33-4,MAX(0,Tassazione_RAL!$E$20-Tassazione_RAL!$E$15),IF(AND($B$18>0,$B$17+1=$D33-4),MAX(0,(Tassazione_RAL!$E$20-Tassazione_RAL!$E$10+Tassazione_RAL!$E$5-Tassazione_RAL!$E$25)+(SgrvEXT-Main!$B$18-Tassazione_RAL!$E$10+Tassazione_RAL!$E$15+Tassazione_RAL!$E$5-Tassazione_RAL!$E$25)),MAX(0,(Tassazione_RAL!$E$20-Tassazione_RAL!$E$10)+(SgrvEXT-Tassazione_RAL!$E$10+Tassazione_RAL!$E$15))))))+CB32 -> 83733.3171 | CC33: 171047.7699 | CD33: =(1-costFPA)*(IF(RAL>SgrvFP-SgrvFPN,MAX(0,IF($B$17>=$D33-4,MAX(0,(Tassazione_RAL!$E$19-Tassazione_RAL!$E$14)-(Tassazione_RAL!$E$20-Tassazione_RAL!$E$15)),IF(AND($B$18>0,$B$17+1=$D33-4),MAX(0,(Tassazione_RAL!$E$19-Tassazione_RAL!$E$9)-(Tassazione_RAL!$E$20-Tassazione_RAL!$E$10+Tassazione_RAL!$E$5-Tassazione_RAL!$E$25)),MAX(0,(Tassazione_RAL!$E$19-Tassazione_RAL!$E$9)-(Tassazione_RAL!$E$20-Tassazione_RAL!$E$10))))))+((CD32+IF(AND(CG33=0,CJ33=0,CG32<>0,CJ32<>0),CG32+CJ32,0))*(1+rateFPA*(1-plustaxFPA)))) -> 380592.2948 | CE33: =IF(RAL>SgrvFP-SgrvFPN,MAX(0,IF($B$17>=$D33-4,MAX(0,(Tassazione_RAL!$E$19-Tassazione_RAL!$E$14)-(Tassazione_RAL!$E$20-Tassazione_RAL!$E$15)),IF(AND($B$18>0,$B$17+1=$D33-4),MAX(0,(Tassazione_RAL!$E$19-Tassazione_RAL!$E$9)-(Tassazione_RAL!$E$20-Tassazione_RAL!$E$10+Tassazione_RAL!$E$5-Tassazione_RAL!$E$25)),MAX(0,(Tassazione_RAL!$E$19-Tassazione_RAL!$E$9)-(Tassazione_RAL!$E$20-Tassazione_RAL!$E$10))))))+CE32 -> 95801.0123 | CF33: 265139.054 | CG33: 5141.252128 | CH33: 52080 | CI33: 20311.2 | CJ33: 6341.557684 | CK33: 64238.88889 | CL33: 6794.16092 | CM33: 646856.1917 | CN33: 560699.1591 | CP33: =IF(RAL>SgrvFP-SgrvFPN,MAX(0,(Tassazione_RAL!$E$20-Tassazione_RAL!$E$10)+(SgrvEXT-Tassazione_RAL!$E$10+Tassazione_RAL!$E$15)),0)+CP32*(1+rateETF) -> 237799.7563 | CQ33: =IF(RAL>SgrvFP-SgrvFPN,MAX(0,(Tassazione_RAL!$E$20-Tassazione_RAL!$E$10)+(SgrvEXT-Tassazione_RAL!$E$10+Tassazione_RAL!$E$15)),0)+CQ32 -> 84893.8299 | CR33: 152905.9264 | CS33: =(1-costFPA)*(IF(RAL>SgrvFP-SgrvFPN,MAX(0,(Tassazione_RAL!$E$19-Tassazione_RAL!$E$9)-(Tassazione_RAL!$E$20-Tassazione_RAL!$E$10)),0)+((CS32+IF(AND(CV33=0,CY33=0,CV32<>0,CY32<>0),CV32+CY32,0))*(1+rateFPA*(1-plustaxFPA)))) -> 392405.3148 | CT33: =IF(RAL>SgrvFP-SgrvFPN,MAX(0,(Tassazione_RAL!$E$19-Tassazione_RAL!$E$9)-(Tassazione_RAL!$E$20-Tassazione_RAL!$E$10)),0)+CT32 -> 95285.2859 | CU33: 283319.1856 | CV33: 5141.252128 | CW33: 52080 | CX33: 20311.2 | CY33: 6341.557684 | CZ33: 64238.88889 | DA33: 6794.16092 | DB33: 641687.8809 | DC33: 559007.3605
D34: 31 | E34: =IF(RAL>SgrvFP-SgrvFPN,MAX(0,IF($B$17>=$D34-4,MAX(0,Tassazione_RAL!$E$20-Tassazione_RAL!$E$15),IF(AND($B$18>0,$B$17+1=$D34-4),MAX(0,(Tassazione_RAL!$E$20-Tassazione_RAL!$E$10+Tassazione_RAL!$E$5-Tassazione_RAL!$E$25)+(SgrvEXT-Main!$B$18-Tassazione_RAL!$E$10+Tassazione_RAL!$E$15+Tassazione_RAL!$E$5-Tassazione_RAL!$E$25)),MAX(0,(Tassazione_RAL!$E$20-Tassazione_RAL!$E$10)+(SgrvEXT-Tassazione_RAL!$E$10+Tassazione_RAL!$E$15))))))+E33*(1+rateETF) -> 275165.4154 | F34: =IF(RAL>SgrvFP-SgrvFPN,MAX(0,IF($B$17>=$D34-4,MAX(0,Tassazione_RAL!$E$20-Tassazione_RAL!$E$15),IF(AND($B$18>0,$B$17+1=$D34-4),MAX(0,(Tassazione_RAL!$E$20-Tassazione_RAL!$E$10+Tassazione_RAL!$E$5-Tassazione_RAL!$E$25)+(SgrvEXT-Main!$B$18-Tassazione_RAL!$E$10+Tassazione_RAL!$E$15+Tassazione_RAL!$E$5-Tassazione_RAL!$E$25)),MAX(0,(Tassazione_RAL!$E$20-Tassazione_RAL!$E$10)+(SgrvEXT-Tassazione_RAL!$E$10+Tassazione_RAL!$E$15))))))+F33 -> 86792.5315 | G34: 188372.8839 | H34: =(1-costFPA)*(IF(RAL>SgrvFP-SgrvFPN,MAX(0,IF($B$17>=$D34-4,MAX(0,(Tassazione_RAL!$E$19-Tassazione_RAL!$E$14)-(Tassazione_RAL!$E$20-Tassazione_RAL!$E$15)),IF(AND($B$18>0,$B$17+1=$D34-4),MAX(0,(Tassazione_RAL!$E$19-Tassazione_RAL!$E$9)-(Tassazione_RAL!$E$20-Tassazione_RAL!$E$10+Tassazione_RAL!$E$5-Tassazione_RAL!$E$25)),MAX(0,(Tassazione_RAL!$E$19-Tassazione_RAL!$E$9)-(Tassazione_RAL!$E$20-Tassazione_RAL!$E$10))))))+H33*(1+rateFPA*(1-plustaxFPA))) -> 198641.6822 | I34: =IF(RAL>SgrvFP-SgrvFPN,MAX(0,IF($B$17>=$D34-4,MAX(0,(Tassazione_RAL!$E$19-Tassazione_RAL!$E$14)-(Tassazione_RAL!$E$20-Tassazione_RAL!$E$15)),IF(AND($B$18>0,$B$17+1=$D34-4),MAX(0,(Tassazione_RAL!$E$19-Tassazione_RAL!$E$9)-(Tassazione_RAL!$E$20-Tassazione_RAL!$E$10+Tassazione_RAL!$E$5-Tassazione_RAL!$E$25)),MAX(0,(Tassazione_RAL!$E$19-Tassazione_RAL!$E$9)-(Tassazione_RAL!$E$20-Tassazione_RAL!$E$10))))))+I33 -> 98874.7312 | J34: 148333.7144 | K34: 75203.12167 | L34: 53760 | M34: 21665.28 | N34: 92760.46423 | O34: 66311.11111 | P34: 33187.45912 | Q34: 641770.6835 | R34: 555399.9963 | T34: =IF(RAL>SgrvFP-SgrvFPN,MAX(0,(Tassazione_RAL!$E$20-Tassazione_RAL!$E$10)+(SgrvEXT-Tassazione_RAL!$E$10+Tassazione_RAL!$E$15)),0)+T33*(1+rateETF) -> 257029.3541 | U34: =IF(RAL>SgrvFP-SgrvFPN,MAX(0,(Tassazione_RAL!$E$20-Tassazione_RAL!$E$10)+(SgrvEXT-Tassazione_RAL!$E$10+Tassazione_RAL!$E$15)),0)+U33 -> 87953.0443 | V34: 169076.3098 | W34: =(1-costFPA)*(IF(RAL>SgrvFP-SgrvFPN,MAX(0,(Tassazione_RAL!$E$19-Tassazione_RAL!$E$9)-(Tassazione_RAL!$E$20-Tassazione_RAL!$E$10)),0)+W33*(1+(rateFPA*(1-plustaxFPA)))) -> 210991.2548 | X34: =IF(RAL>SgrvFP-SgrvFPN,MAX(0,(Tassazione_RAL!$E$19-Tassazione_RAL!$E$9)-(Tassazione_RAL!$E$20-Tassazione_RAL!$E$10)),0)+X33 -> 98359.0048 | Y34: 167305.3184 | Z34: 75203.12167 | AA34: 53760 | AB34: 21665.28 | AC34: 92760.46423 | AD34: 66311.11111 | AE34: 33187.45912 | AF34: 635984.1948 | AG34: 553370.9605 | AI34: =IF(RAL>SgrvFP,MAX(0,IF($B$17>=$D34-4,0,IF(AND($B$18>0,$B$17+1=$D34-4),MAX(0,(SgrvEXT-Main!$B$18-Tassazione_RAL!$E$10+Tassazione_RAL!$E$15+Tassazione_RAL!$E$5-Tassazione_RAL!$E$25)),MAX(0,(SgrvEXT-Tassazione_RAL!$E$10+Tassazione_RAL!$E$15))))))+AI33*(1+rateETF) -> 199124.6456 | AJ34: =IF(RAL>SgrvFP,MAX(0,IF($B$17>=$D34-4,0,IF(AND($B$18>0,$B$17+1=$D34-4),MAX(0,(SgrvEXT-Main!$B$18-Tassazione_RAL!$E$10+Tassazione_RAL!$E$15+Tassazione_RAL!$E$5-Tassazione_RAL!$E$25)),MAX(0,(SgrvEXT-Tassazione_RAL!$E$10+Tassazione_RAL!$E$15))))))+AJ33 -> 56420.5527 | AK34: 142704.0929 | AL34: 317549.9897 | AM34: 160166.24 | AN34: 234047.9382 | AO34: 142244.877 | AP34: 66311.11111 | AQ34: 112792.9423 | AR34: 658919.5123 | AS34: 574917.3718 | AU34: =IF(RAL>SgrvFP,MAX(0,SgrvEXT-Tassazione_RAL!$E$10+Tassazione_RAL!$E$15,0)+AU33*(1+rateETF)) -> 143506.4168 | AV34: =IF(RAL>SgrvFP,MAX(0,(SgrvEXT-Tassazione_RAL!$E$10+Tassazione_RAL!$E$15)),0)+AV33 -> 53685.8091 | AW34: 89820.60768 | AX34: 354514.8857 | AY34: 165266.24 | AZ34: 281112.2475 | BA34: 142244.877 | BB34: 66311.11111 | BC34: 112792.9423 | BD34: 640266.1795 | BE34: 566243.3257 | BG34: =IF(RAL>SgrvFP-SgrvFPN,MAX(0,SgrvFP-SgrvFPN+Tassazione_RAL!$E$10-Tassazione_RAL!$E$20+(SgrvEXT-Tassazione_RAL!$E$10+Tassazione_RAL!$E$15)),0)+BG33*(1+rateETF) -> 469357.1332 | BH34: =IF(RAL>SgrvFP-SgrvFPN,MAX(0,SgrvFP-SgrvFPN+Tassazione_RAL!$E$10-Tassazione_RAL!$E$20+(SgrvEXT-Tassazione_RAL!$E$10+Tassazione_RAL!$E$15)),0)+BH33 -> 152044.8139 | BI34: 317312.3193 | BJ34: 75203.12167 | BK34: 53760 | BL34: 21665.28 | BM34: 92760.46423 | BN34: 66311.11111 | BO34: 33187.45912 | BP34: 544560.2549 | BQ34: 537687.2303 | BS34: =IF(RAL>SgrvFP-SgrvFPN,MAX(0,SgrvFP+Tassazione_RAL!$E$10-Tassazione_RAL!$E$5+(SgrvEXT-Tassazione_RAL!$E$10+Tassazione_RAL!$E$15)),0)+BS33*(1+rateETF) -> 539643.0091 | BT34: =IF(RAL>SgrvFP-SgrvFPN,MAX(0,SgrvFP+Tassazione_RAL!$E$10-Tassazione_RAL!$E$5+(SgrvEXT-Tassazione_RAL!$E$10+Tassazione_RAL!$E$15)),0)+BT33 -> 173260.8139 | BU34: 366382.1952 | BV34: 68797.77778 | BW34: 66311.11111 | BX34: 2486.666667 | BY34: 496807.545 | CA34: =IF(RAL>SgrvFP-SgrvFPN,MAX(0,IF($B$17>=$D34-4,MAX(0,Tassazione_RAL!$E$20-Tassazione_RAL!$E$15),IF(AND($B$18>0,$B$17+1=$D34-4),MAX(0,(Tassazione_RAL!$E$20-Tassazione_RAL!$E$10+Tassazione_RAL!$E$5-Tassazione_RAL!$E$25)+(SgrvEXT-Main!$B$18-Tassazione_RAL!$E$10+Tassazione_RAL!$E$15+Tassazione_RAL!$E$5-Tassazione_RAL!$E$25)),MAX(0,(Tassazione_RAL!$E$20-Tassazione_RAL!$E$10)+(SgrvEXT-Tassazione_RAL!$E$10+Tassazione_RAL!$E$15))))))+CA33*(1+rateETF) -> 275165.4154 | CB34: =IF(RAL>SgrvFP-SgrvFPN,MAX(0,IF($B$17>=$D34-4,MAX(0,Tassazione_RAL!$E$20-Tassazione_RAL!$E$15),IF(AND($B$18>0,$B$17+1=$D34-4),MAX(0,(Tassazione_RAL!$E$20-Tassazione_RAL!$E$10+Tassazione_RAL!$E$5-Tassazione_RAL!$E$25)+(SgrvEXT-Main!$B$18-Tassazione_RAL!$E$10+Tassazione_RAL!$E$15+Tassazione_RAL!$E$5-Tassazione_RAL!$E$25)),MAX(0,(Tassazione_RAL!$E$20-Tassazione_RAL!$E$10)+(SgrvEXT-Tassazione_RAL!$E$10+Tassazione_RAL!$E$15))))))+CB33 -> 86792.5315 | CC34: 188372.8839 | CD34: =(1-costFPA)*(IF(RAL>SgrvFP-SgrvFPN,MAX(0,IF($B$17>=$D34-4,MAX(0,(Tassazione_RAL!$E$19-Tassazione_RAL!$E$14)-(Tassazione_RAL!$E$20-Tassazione_RAL!$E$15)),IF(AND($B$18>0,$B$17+1=$D34-4),MAX(0,(Tassazione_RAL!$E$19-Tassazione_RAL!$E$9)-(Tassazione_RAL!$E$20-Tassazione_RAL!$E$10+Tassazione_RAL!$E$5-Tassazione_RAL!$E$25)),MAX(0,(Tassazione_RAL!$E$19-Tassazione_RAL!$E$9)-(Tassazione_RAL!$E$20-Tassazione_RAL!$E$10))))))+((CD33+IF(AND(CG34=0,CJ34=0,CG33<>0,CJ33<>0),CG33+CJ33,0))*(1+rateFPA*(1-plustaxFPA)))) -> 400928.0934 | CE34: =IF(RAL>SgrvFP-SgrvFPN,MAX(0,IF($B$17>=$D34-4,MAX(0,(Tassazione_RAL!$E$19-Tassazione_RAL!$E$14)-(Tassazione_RAL!$E$20-Tassazione_RAL!$E$15)),IF(AND($B$18>0,$B$17+1=$D34-4),MAX(0,(Tassazione_RAL!$E$19-Tassazione_RAL!$E$9)-(Tassazione_RAL!$E$20-Tassazione_RAL!$E$10+Tassazione_RAL!$E$5-Tassazione_RAL!$E$25)),MAX(0,(Tassazione_RAL!$E$19-Tassazione_RAL!$E$9)-(Tassazione_RAL!$E$20-Tassazione_RAL!$E$10))))))+CE33 -> 98874.7312 | CF34: 290638.7377 | CG34: 6926.654589 | CH34: 53760 | CI34: 21665.28 | CJ34: 8543.790217 | CK34: 66311.11111 | CL34: 6959.04142 | CM34: 691563.9536 | CN34: 599371.7716 | CP34: =IF(RAL>SgrvFP-SgrvFPN,MAX(0,(Tassazione_RAL!$E$20-Tassazione_RAL!$E$10)+(SgrvEXT-Tassazione_RAL!$E$10+Tassazione_RAL!$E$15)),0)+CP33*(1+rateETF) -> 257029.3541 | CQ34: =IF(RAL>SgrvFP-SgrvFPN,MAX(0,(Tassazione_RAL!$E$20-Tassazione_RAL!$E$10)+(SgrvEXT-Tassazione_RAL!$E$10+Tassazione_RAL!$E$15)),0)+CQ33 -> 87953.0443 | CR34: 169076.3098 | CS34: =(1-costFPA)*(IF(RAL>SgrvFP-SgrvFPN,MAX(0,(Tassazione_RAL!$E$19-Tassazione_RAL!$E$9)-(Tassazione_RAL!$E$20-Tassazione_RAL!$E$10)),0)+((CS33+IF(AND(CV34=0,CY34=0,CV33<>0,CY33<>0),CV33+CY33,0))*(1+rateFPA*(1-plustaxFPA)))) -> 413277.666 | CT34: =IF(RAL>SgrvFP-SgrvFPN,MAX(0,(Tassazione_RAL!$E$19-Tassazione_RAL!$E$9)-(Tassazione_RAL!$E$20-Tassazione_RAL!$E$10)),0)+CT33 -> 98359.0048 | CU34: 309610.3417 | CV34: 6926.654589 | CW34: 53760 | CX34: 21665.28 | CY34: 8543.790217 | CZ34: 66311.11111 | DA34: 6959.04142 | DB34: 685777.4649 | DC34: 597342.7357
D35: 32 | E35: =IF(RAL>SgrvFP-SgrvFPN,MAX(0,IF($B$17>=$D35-4,MAX(0,Tassazione_RAL!$E$20-Tassazione_RAL!$E$15),IF(AND($B$18>0,$B$17+1=$D35-4),MAX(0,(Tassazione_RAL!$E$20-Tassazione_RAL!$E$10+Tassazione_RAL!$E$5-Tassazione_RAL!$E$25)+(SgrvEXT-Main!$B$18-Tassazione_RAL!$E$10+Tassazione_RAL!$E$15+Tassazione_RAL!$E$5-Tassazione_RAL!$E$25)),MAX(0,(Tassazione_RAL!$E$20-Tassazione_RAL!$E$10)+(SgrvEXT-Tassazione_RAL!$E$10+Tassazione_RAL!$E$15))))))+E34*(1+rateETF) -> 296935.878 | F35: =IF(RAL>SgrvFP-SgrvFPN,MAX(0,IF($B$17>=$D35-4,MAX(0,Tassazione_RAL!$E$20-Tassazione_RAL!$E$15),IF(AND($B$18>0,$B$17+1=$D35-4),MAX(0,(Tassazione_RAL!$E$20-Tassazione_RAL!$E$10+Tassazione_RAL!$E$5-Tassazione_RAL!$E$25)+(SgrvEXT-Main!$B$18-Tassazione_RAL!$E$10+Tassazione_RAL!$E$15+Tassazione_RAL!$E$5-Tassazione_RAL!$E$25)),MAX(0,(Tassazione_RAL!$E$20-Tassazione_RAL!$E$10)+(SgrvEXT-Tassazione_RAL!$E$10+Tassazione_RAL!$E$15))))))+F34 -> 89851.7459 | G35: 207084.1321 | H35: =(1-costFPA)*(IF(RAL>SgrvFP-SgrvFPN,MAX(0,IF($B$17>=$D35-4,MAX(0,(Tassazione_RAL!$E$19-Tassazione_RAL!$E$14)-(Tassazione_RAL!$E$20-Tassazione_RAL!$E$15)),IF(AND($B$18>0,$B$17+1=$D35-4),MAX(0,(Tassazione_RAL!$E$19-Tassazione_RAL!$E$9)-(Tassazione_RAL!$E$20-Tassazione_RAL!$E$10+Tassazione_RAL!$E$5-Tassazione_RAL!$E$25)),MAX(0,(Tassazione_RAL!$E$19-Tassazione_RAL!$E$9)-(Tassazione_RAL!$E$20-Tassazione_RAL!$E$10))))))+H34*(1+rateFPA*(1-plustaxFPA))) -> 210713.204 | I35: =IF(RAL>SgrvFP-SgrvFPN,MAX(0,IF($B$17>=$D35-4,MAX(0,(Tassazione_RAL!$E$19-Tassazione_RAL!$E$14)-(Tassazione_RAL!$E$20-Tassazione_RAL!$E$15)),IF(AND($B$18>0,$B$17+1=$D35-4),MAX(0,(Tassazione_RAL!$E$19-Tassazione_RAL!$E$9)-(Tassazione_RAL!$E$20-Tassazione_RAL!$E$10+Tassazione_RAL!$E$5-Tassazione_RAL!$E$25)),MAX(0,(Tassazione_RAL!$E$19-Tassazione_RAL!$E$9)-(Tassazione_RAL!$E$20-Tassazione_RAL!$E$10))))))+I34 -> 101948.4501 | J35: 161642.7071 | K35: 78443.20023 | L35: 55440 | M35: 23063.04 | N35: 96756.9897 | O35: 68383.33333 | P35: 35599.23119 | Q35: 682849.2719 | R35: 590801.9716 | T35: =IF(RAL>SgrvFP-SgrvFPN,MAX(0,(Tassazione_RAL!$E$20-Tassazione_RAL!$E$10)+(SgrvEXT-Tassazione_RAL!$E$10+Tassazione_RAL!$E$15)),0)+T34*(1+rateETF) -> 277566.5646 | U35: =IF(RAL>SgrvFP-SgrvFPN,MAX(0,(Tassazione_RAL!$E$20-Tassazione_RAL!$E$10)+(SgrvEXT-Tassazione_RAL!$E$10+Tassazione_RAL!$E$15)),0)+U34 -> 91012.2587 | V35: 186554.3059 | W35: =(1-costFPA)*(IF(RAL>SgrvFP-SgrvFPN,MAX(0,(Tassazione_RAL!$E$19-Tassazione_RAL!$E$9)-(Tassazione_RAL!$E$20-Tassazione_RAL!$E$10)),0)+W34*(1+(rateFPA*(1-plustaxFPA)))) -> 223623.6995 | X35: =IF(RAL>SgrvFP-SgrvFPN,MAX(0,(Tassazione_RAL!$E$19-Tassazione_RAL!$E$9)-(Tassazione_RAL!$E$20-Tassazione_RAL!$E$10)),0)+X34 -> 101432.7237 | Y35: 181441.7324 | Z35: 78443.20023 | AA35: 55440 | AB35: 23063.04 | AC35: 96756.9897 | AD35: 68383.33333 | AE35: 35599.23119 | AF35: 676390.4541 | AG35: 588402.7695 | AI35: =IF(RAL>SgrvFP,MAX(0,IF($B$17>=$D35-4,0,IF(AND($B$18>0,$B$17+1=$D35-4),MAX(0,(SgrvEXT-Main!$B$18-Tassazione_RAL!$E$10+Tassazione_RAL!$E$15+Tassazione_RAL!$E$5-Tassazione_RAL!$E$25)),MAX(0,(SgrvEXT-Tassazione_RAL!$E$10+Tassazione_RAL!$E$15))))))+AI34*(1+rateETF) -> 214653.4848 | AJ35: =IF(RAL>SgrvFP,MAX(0,IF($B$17>=$D35-4,0,IF(AND($B$18>0,$B$17+1=$D35-4),MAX(0,(SgrvEXT-Main!$B$18-Tassazione_RAL!$E$10+Tassazione_RAL!$E$15+Tassazione_RAL!$E$5-Tassazione_RAL!$E$25)),MAX(0,(SgrvEXT-Tassazione_RAL!$E$10+Tassazione_RAL!$E$15))))))+AJ34 -> 58408.916 | AK35: 156244.5688 | AL35: 337096.5034 | AM35: 165330.81 | AN35: 255323.7876 | AO35: 150761.3463 | AP35: 68383.33333 | AQ35: 122323.3491 | AR35: 702511.3346 | AS35: 613589.8195 | AU35: =IF(RAL>SgrvFP,MAX(0,SgrvEXT-Tassazione_RAL!$E$10+Tassazione_RAL!$E$15,0)+AU34*(1+rateETF)) -> 155253.2164 | AV35: =IF(RAL>SgrvFP,MAX(0,(SgrvEXT-Tassazione_RAL!$E$10+Tassazione_RAL!$E$15)),0)+AV34 -> 55674.1724 | AW35: 99579.04403 | AX35: 375740.3613 | AY35: 170430.81 | AZ35: 304864.7448 | BA35: 150761.3463 | BB35: 68383.33333 | BC35: 122323.3491 | BD35: 681754.924 | BE35: =AV35+AW35*(1-26%)+(AX35+BA35)*(1-IF($D35>15,MAX(9%,15%-(($D35-15)*0.3%)),15%)) -> 603740.7035 | BG35: =IF(RAL>SgrvFP-SgrvFPN,MAX(0,SgrvFP-SgrvFPN+Tassazione_RAL!$E$10-Tassazione_RAL!$E$20+(SgrvEXT-Tassazione_RAL!$E$10+Tassazione_RAL!$E$15)),0)+BG34*(1+rateETF) -> 506335.5005 | BH35: =IF(RAL>SgrvFP-SgrvFPN,MAX(0,SgrvFP-SgrvFPN+Tassazione_RAL!$E$10-Tassazione_RAL!$E$20+(SgrvEXT-Tassazione_RAL!$E$10+Tassazione_RAL!$E$15)),0)+BH34 -> 157106.8961 | BI35: 349228.6044 | BJ35: 78443.20023 | BK35: 55440 | BL35: 23063.04 | BM35: 96756.9897 | BN35: 68383.33333 | BO35: 35599.23119 | BP35: 584778.7007 | BQ35: 573391.4345 | BS35: =IF(RAL>SgrvFP-SgrvFPN,MAX(0,SgrvFP+Tassazione_RAL!$E$10-Tassazione_RAL!$E$5+(SgrvEXT-Tassazione_RAL!$E$10+Tassazione_RAL!$E$15)),0)+BS34*(1+rateETF) -> 582063.8159 | BT35: =IF(RAL>SgrvFP-SgrvFPN,MAX(0,SgrvFP+Tassazione_RAL!$E$10-Tassazione_RAL!$E$5+(SgrvEXT-Tassazione_RAL!$E$10+Tassazione_RAL!$E$15)),0)+BT34 -> 178985.8961 | BU35: 403077.9198 | BV35: 70947.70833 | BW35: 68383.33333 | BX35: 2564.375 | BY35: =BT35+BU35*(1-26%)+(BV35*TFR_N/TFR) -> 531325.7105 | CA35: =IF(RAL>SgrvFP-SgrvFPN,MAX(0,IF($B$17>=$D35-4,MAX(0,Tassazione_RAL!$E$20-Tassazione_RAL!$E$15),IF(AND($B$18>0,$B$17+1=$D35-4),MAX(0,(Tassazione_RAL!$E$20-Tassazione_RAL!$E$10+Tassazione_RAL!$E$5-Tassazione_RAL!$E$25)+(SgrvEXT-Main!$B$18-Tassazione_RAL!$E$10+Tassazione_RAL!$E$15+Tassazione_RAL!$E$5-Tassazione_RAL!$E$25)),MAX(0,(Tassazione_RAL!$E$20-Tassazione_RAL!$E$10)+(SgrvEXT-Tassazione_RAL!$E$10+Tassazione_RAL!$E$15))))))+CA34*(1+rateETF) -> 296935.878 | CB35: =IF(RAL>SgrvFP-SgrvFPN,MAX(0,IF($B$17>=$D35-4,MAX(0,Tassazione_RAL!$E$20-Tassazione_RAL!$E$15),IF(AND($B$18>0,$B$17+1=$D35-4),MAX(0,(Tassazione_RAL!$E$20-Tassazione_RAL!$E$10+Tassazione_RAL!$E$5-Tassazione_RAL!$E$25)+(SgrvEXT-Main!$B$18-Tassazione_RAL!$E$10+Tassazione_RAL!$E$15+Tassazione_RAL!$E$5-Tassazione_RAL!$E$25)),MAX(0,(Tassazione_RAL!$E$20-Tassazione_RAL!$E$10)+(SgrvEXT-Tassazione_RAL!$E$10+Tassazione_RAL!$E$15))))))+CB34 -> 89851.7459 | CC35: 207084.1321 | CD35: =(1-costFPA)*(IF(RAL>SgrvFP-SgrvFPN,MAX(0,IF($B$17>=$D35-4,MAX(0,(Tassazione_RAL!$E$19-Tassazione_RAL!$E$14)-(Tassazione_RAL!$E$20-Tassazione_RAL!$E$15)),IF(AND($B$18>0,$B$17+1=$D35-4),MAX(0,(Tassazione_RAL!$E$19-Tassazione_RAL!$E$9)-(Tassazione_RAL!$E$20-Tassazione_RAL!$E$10+Tassazione_RAL!$E$5-Tassazione_RAL!$E$25)),MAX(0,(Tassazione_RAL!$E$19-Tassazione_RAL!$E$9)-(Tassazione_RAL!$E$20-Tassazione_RAL!$E$10))))))+((CD34+IF(AND(CG35=0,CJ35=0,CG34<>0,CJ34<>0),CG34+CJ34,0))*(1+rateFPA*(1-plustaxFPA)))) -> 422187.553 | CE35: =IF(RAL>SgrvFP-SgrvFPN,MAX(0,IF($B$17>=$D35-4,MAX(0,(Tassazione_RAL!$E$19-Tassazione_RAL!$E$14)-(Tassazione_RAL!$E$20-Tassazione_RAL!$E$15)),IF(AND($B$18>0,$B$17+1=$D35-4),MAX(0,(Tassazione_RAL!$E$19-Tassazione_RAL!$E$9)-(Tassazione_RAL!$E$20-Tassazione_RAL!$E$10+Tassazione_RAL!$E$5-Tassazione_RAL!$E$25)),MAX(0,(Tassazione_RAL!$E$19-Tassazione_RAL!$E$9)-(Tassazione_RAL!$E$20-Tassazione_RAL!$E$10))))))+CE34 -> 101948.4501 | CF35: 317500.92 | CG35: 8749.126889 | CH35: 55440 | CI35: 23063.04 | CJ35: 10791.74712 | CK35: 68383.33333 | CL35: 7181.179965 | CM35: 738664.305 | CN35: 640094.7318 | CP35: =IF(RAL>SgrvFP-SgrvFPN,MAX(0,(Tassazione_RAL!$E$20-Tassazione_RAL!$E$10)+(SgrvEXT-Tassazione_RAL!$E$10+Tassazione_RAL!$E$15)),0)+CP34*(1+rateETF) -> 277566.5646 | CQ35: =IF(RAL>SgrvFP-SgrvFPN,MAX(0,(Tassazione_RAL!$E$20-Tassazione_RAL!$E$10)+(SgrvEXT-Tassazione_RAL!$E$10+Tassazione_RAL!$E$15)),0)+CQ34 -> 91012.2587 | CR35: 186554.3059 | CS35: =(1-costFPA)*(IF(RAL>SgrvFP-SgrvFPN,MAX(0,(Tassazione_RAL!$E$19-Tassazione_RAL!$E$9)-(Tassazione_RAL!$E$20-Tassazione_RAL!$E$10)),0)+((CS34+IF(AND(CV35=0,CY35=0,CV34<>0,CY34<>0),CV34+CY34,0))*(1+rateFPA*(1-plustaxFPA)))) -> 435098.0486 | CT35: =IF(RAL>SgrvFP-SgrvFPN,MAX(0,(Tassazione_RAL!$E$19-Tassazione_RAL!$E$9)-(Tassazione_RAL!$E$20-Tassazione_RAL!$E$10)),0)+CT34 -> 101432.7237 | CU35: 337299.9453 | CV35: 8749.126889 | CW35: 55440 | CX35: 23063.04 | CY35: 10791.74712 | CZ35: 68383.33333 | DA35: 7181.179965 | DB35: 732205.4872 | DC35: 637695.5297
D36: 33 | E36: =IF(RAL>SgrvFP-SgrvFPN,MAX(0,IF($B$17>=$D36-4,MAX(0,Tassazione_RAL!$E$20-Tassazione_RAL!$E$15),IF(AND($B$18>0,$B$17+1=$D36-4),MAX(0,(Tassazione_RAL!$E$20-Tassazione_RAL!$E$10+Tassazione_RAL!$E$5-Tassazione_RAL!$E$25)+(SgrvEXT-Main!$B$18-Tassazione_RAL!$E$10+Tassazione_RAL!$E$15+Tassazione_RAL!$E$5-Tassazione_RAL!$E$25)),MAX(0,(Tassazione_RAL!$E$20-Tassazione_RAL!$E$10)+(SgrvEXT-Tassazione_RAL!$E$10+Tassazione_RAL!$E$15))))))+E35*(1+rateETF) -> 320186.7321 | F36: =IF(RAL>SgrvFP-SgrvFPN,MAX(0,IF($B$17>=$D36-4,MAX(0,Tassazione_RAL!$E$20-Tassazione_RAL!$E$15),IF(AND($B$18>0,$B$17+1=$D36-4),MAX(0,(Tassazione_RAL!$E$20-Tassazione_RAL!$E$10+Tassazione_RAL!$E$5-Tassazione_RAL!$E$25)+(SgrvEXT-Main!$B$18-Tassazione_RAL!$E$10+Tassazione_RAL!$E$15+Tassazione_RAL!$E$5-Tassazione_RAL!$E$25)),MAX(0,(Tassazione_RAL!$E$20-Tassazione_RAL!$E$10)+(SgrvEXT-Tassazione_RAL!$E$10+Tassazione_RAL!$E$15))))))+F35 -> 92910.9603 | G36: =E35*(rateETF)+G35 -> 227275.7718 | H36: =(1-costFPA)*(IF(RAL>SgrvFP-SgrvFPN,MAX(0,IF($B$17>=$D36-4,MAX(0,(Tassazione_RAL!$E$19-Tassazione_RAL!$E$14)-(Tassazione_RAL!$E$20-Tassazione_RAL!$E$15)),IF(AND($B$18>0,$B$17+1=$D36-4),MAX(0,(Tassazione_RAL!$E$19-Tassazione_RAL!$E$9)-(Tassazione_RAL!$E$20-Tassazione_RAL!$E$10+Tassazione_RAL!$E$5-Tassazione_RAL!$E$25)),MAX(0,(Tassazione_RAL!$E$19-Tassazione_RAL!$E$9)-(Tassazione_RAL!$E$20-Tassazione_RAL!$E$10))))))+H35*(1+rateFPA*(1-plustaxFPA))) -> 223333.0196 | I36: =IF(RAL>SgrvFP-SgrvFPN,MAX(0,IF($B$17>=$D36-4,MAX(0,(Tassazione_RAL!$E$19-Tassazione_RAL!$E$14)-(Tassazione_RAL!$E$20-Tassazione_RAL!$E$15)),IF(AND($B$18>0,$B$17+1=$D36-4),MAX(0,(Tassazione_RAL!$E$19-Tassazione_RAL!$E$9)-(Tassazione_RAL!$E$20-Tassazione_RAL!$E$10+Tassazione_RAL!$E$5-Tassazione_RAL!$E$25)),MAX(0,(Tassazione_RAL!$E$19-Tassazione_RAL!$E$9)-(Tassazione_RAL!$E$20-Tassazione_RAL!$E$10))))))+I35 -> 105022.169 | J36: 175760.4918 | K36: =(1-costFPN)*(SgrvFPN+K35*(1+(rateFPN*(1-plustaxFPN)))+RAL*$B$6) -> 81750.55169 | L36: =SgrvFPN+L35+RAL*$B$6 -> 57120 | M36: =L35*rateFPN+M35 -> 24504.48 | N36: =(1-costFPN)*(TFR-RAL*0.5%+N35*(1+(rateFPN*(1-plustaxFPN)))) -> 100836.494 | O36: =TFR-RAL*0.5%+O35 -> 70455.55556 | P36: =N35*rateFPN+P35 -> 38114.91292 | Q36: 726106.7974 | R36: 628046.7704 | T36: =IF(RAL>SgrvFP-SgrvFPN,MAX(0,(Tassazione_RAL!$E$20-Tassazione_RAL!$E$10)+(SgrvEXT-Tassazione_RAL!$E$10+Tassazione_RAL!$E$15)),0)+T35*(1+rateETF) -> 299500.3054 | U36: =IF(RAL>SgrvFP-SgrvFPN,MAX(0,(Tassazione_RAL!$E$20-Tassazione_RAL!$E$10)+(SgrvEXT-Tassazione_RAL!$E$10+Tassazione_RAL!$E$15)),0)+U35 -> 94071.4731 | V36: =T35*(rateETF)+V35 -> 205428.8323 | W36: =(1-costFPA)*(IF(RAL>SgrvFP-SgrvFPN,MAX(0,(Tassazione_RAL!$E$19-Tassazione_RAL!$E$9)-(Tassazione_RAL!$E$20-Tassazione_RAL!$E$10)),0)+W35*(1+(rateFPA*(1-plustaxFPA)))) -> 236829.9155 | X36: =IF(RAL>SgrvFP-SgrvFPN,MAX(0,(Tassazione_RAL!$E$19-Tassazione_RAL!$E$9)-(Tassazione_RAL!$E$20-Tassazione_RAL!$E$10)),0)+X35 -> 104506.4426 | Y36: =W35*(rateFPA)+Y35 -> 196424.5203 | Z36: =(1-costFPN)*(SgrvFPN+Z35*(1+(rateFPN*(1-plustaxFPN)))+RAL*$B$6) -> 81750.55169 | AA36: =SgrvFPN+AA35+RAL*$B$6 -> 57120 | AB36: =AA35*rateFPN+AB35 -> 24504.48 | AC36: =(1-costFPN)*(RAL/13.5-RAL*0.5%+AC35*(1+(rateFPN*(1-plustaxFPN)))) -> 100836.494 | AD36: =RAL/13.5-RAL*0.5%+AD35 -> 70455.55556 | AE36: =AC35*rateFPN+AE35 -> 38114.91292 | AF36: 718917.2666 | AG36: 625241.7419 | AI36: =IF(RAL>SgrvFP,MAX(0,IF($B$17>=$D36-4,0,IF(AND($B$18>0,$B$17+1=$D36-4),MAX(0,(SgrvEXT-Main!$B$18-Tassazione_RAL!$E$10+Tassazione_RAL!$E$15+Tassazione_RAL!$E$5-Tassazione_RAL!$E$25)),MAX(0,(SgrvEXT-Tassazione_RAL!$E$10+Tassazione_RAL!$E$15))))))+AI35*(1+rateETF) -> 231238.2851 | AJ36: =IF(RAL>SgrvFP,MAX(0,IF($B$17>=$D36-4,0,IF(AND($B$18>0,$B$17+1=$D36-4),MAX(0,(SgrvEXT-Main!$B$18-Tassazione_RAL!$E$10+Tassazione_RAL!$E$15+Tassazione_RAL!$E$5-Tassazione_RAL!$E$25)),MAX(0,(SgrvEXT-Tassazione_RAL!$E$10+Tassazione_RAL!$E$15))))))+AJ35 -> 60397.2793 | AK36: 170841.0058 | AL36: 357530.8284 | AM36: 170495.38 | AN36: 277909.2533 | AO36: =(1-costFPA)*(TFR-RAL*0.5%+AO35*(1+(rateFPA*(1-plustaxFPA)))) -> 159664.6375 | AP36: =TFR-RAL*0.5%+AP35 -> 70455.55556 | AQ36: =AO35*rateFPA+AQ35 -> 132424.3593 | AR36: 748433.7509 | AS36: 654364.3247 | AU36: =IF(RAL>SgrvFP,MAX(0,SgrvEXT-Tassazione_RAL!$E$10+Tassazione_RAL!$E$15,0)+AU35*(1+rateETF)) -> 167798.7984 | AV36: =IF(RAL>SgrvFP,MAX(0,(SgrvEXT-Tassazione_RAL!$E$10+Tassazione_RAL!$E$15)),0)+AV35 -> 57662.5357 | AW36: 110136.2627 | AX36: =(1-costFPA)*(IF(RAL>SgrvFP,MAX(0,SgrvFP),0)+AX35*(1+(rateFPA*(1-plustaxFPA)))) -> 397929.9073 | AY36: =IF(RAL>SgrvFP,MAX(0,SgrvFP),0)+AY35 -> 175595.38 | AZ36: 330039.349 | BA36: =(1-costFPA)*(TFR-RAL*0.5%+BA35*(1+(rateFPA*(1-plustaxFPA)))) -> 159664.6375 | BB36: =TFR-RAL*0.5%+BB35 -> 70455.55556 | BC36: =BA35*rateFPA+BC35 -> 132424.3593 | BD36: 725393.3432 | BE36: 643228.8385 | BG36: =IF(RAL>SgrvFP-SgrvFPN,MAX(0,SgrvFP-SgrvFPN+Tassazione_RAL!$E$10-Tassazione_RAL!$E$20+(SgrvEXT-Tassazione_RAL!$E$10+Tassazione_RAL!$E$15)),0)+BG35*(1+rateETF) -> 545828.3967 | BH36: =IF(RAL>SgrvFP-SgrvFPN,MAX(0,SgrvFP-SgrvFPN+Tassazione_RAL!$E$10-Tassazione_RAL!$E$20+(SgrvEXT-Tassazione_RAL!$E$10+Tassazione_RAL!$E$15)),0)+BH35 -> 162168.9783 | BI36: =BG35*rateETF+BI35 -> 383659.4184 | BJ36: =(1-costFPN)*(SgrvFPN+BJ35*(1+(rateFPN*(1-plustaxFPN)))+RAL*$B$6) -> 81750.55169 | BK36: =SgrvFPN+BK35+RAL*$B$6 -> 57120 | BL36: =BK35*rateFPN+BL35 -> 24504.48 | BM36: =(1-costFPN)*(TFR-RAL*0.5%+BM35*(1+(rateFPN*(1-plustaxFPN)))) -> 100836.494 | BN36: =TFR-RAL*0.5%+BN35 -> 70455.55556 | BO36: =BM35*rateFPN+BO35 -> 38114.91292 | BP36: 627578.9484 | BQ36: 611135.6372 | BS36: =IF(RAL>SgrvFP-SgrvFPN,MAX(0,SgrvFP+Tassazione_RAL!$E$10-Tassazione_RAL!$E$5+(SgrvEXT-Tassazione_RAL!$E$10+Tassazione_RAL!$E$15)),0)+BS35*(1+rateETF) -> 627369.2376 | BT36: =IF(RAL>SgrvFP-SgrvFPN,MAX(0,SgrvFP+Tassazione_RAL!$E$10-Tassazione_RAL!$E$5+(SgrvEXT-Tassazione_RAL!$E$10+Tassazione_RAL!$E$15)),0)+BT35 -> 184710.9783 | BU36: =BS35*rateETF+BU35 -> 442658.2593 | BV36: =BV35+((TFR-RAL*0.5%)*(1+INFL*75%+1.5%)) -> 73097.63889 | BW36: =TFR-RAL*0.5%+BW35 -> 70455.55556 | BX36: =(TFR-RAL*0.5%)*(INFL*75%+1.5%)+BX35 -> 2642.083333 | BY36: 567978.491 | CA36: =IF(RAL>SgrvFP-SgrvFPN,MAX(0,IF($B$17>=$D36-4,MAX(0,Tassazione_RAL!$E$20-Tassazione_RAL!$E$15),IF(AND($B$18>0,$B$17+1=$D36-4),MAX(0,(Tassazione_RAL!$E$20-Tassazione_RAL!$E$10+Tassazione_RAL!$E$5-Tassazione_RAL!$E$25)+(SgrvEXT-Main!$B$18-Tassazione_RAL!$E$10+Tassazione_RAL!$E$15+Tassazione_RAL!$E$5-Tassazione_RAL!$E$25)),MAX(0,(Tassazione_RAL!$E$20-Tassazione_RAL!$E$10)+(SgrvEXT-Tassazione_RAL!$E$10+Tassazione_RAL!$E$15))))))+CA35*(1+rateETF) -> 320186.7321 | CB36: =IF(RAL>SgrvFP-SgrvFPN,MAX(0,IF($B$17>=$D36-4,MAX(0,Tassazione_RAL!$E$20-Tassazione_RAL!$E$15),IF(AND($B$18>0,$B$17+1=$D36-4),MAX(0,(Tassazione_RAL!$E$20-Tassazione_RAL!$E$10+Tassazione_RAL!$E$5-Tassazione_RAL!$E$25)+(SgrvEXT-Main!$B$18-Tassazione_RAL!$E$10+Tassazione_RAL!$E$15+Tassazione_RAL!$E$5-Tassazione_RAL!$E$25)),MAX(0,(Tassazione_RAL!$E$20-Tassazione_RAL!$E$10)+(SgrvEXT-Tassazione_RAL!$E$10+Tassazione_RAL!$E$15))))))+CB35 -> 92910.9603 | CC36: 227275.7718 | CD36: =(1-costFPA)*(IF(RAL>SgrvFP-SgrvFPN,MAX(0,IF($B$17>=$D36-4,MAX(0,(Tassazione_RAL!$E$19-Tassazione_RAL!$E$14)-(Tassazione_RAL!$E$20-Tassazione_RAL!$E$15)),IF(AND($B$18>0,$B$17+1=$D36-4),MAX(0,(Tassazione_RAL!$E$19-Tassazione_RAL!$E$9)-(Tassazione_RAL!$E$20-Tassazione_RAL!$E$10+Tassazione_RAL!$E$5-Tassazione_RAL!$E$25)),MAX(0,(Tassazione_RAL!$E$19-Tassazione_RAL!$E$9)-(Tassazione_RAL!$E$20-Tassazione_RAL!$E$10))))))+((CD35+IF(AND(CG36=0,CJ36=0,CG35<>0,CJ35<>0),CG35+CJ35,0))*(1+rateFPA*(1-plustaxFPA)))) -> 444412.6266 | CE36: =IF(RAL>SgrvFP-SgrvFPN,MAX(0,IF($B$17>=$D36-4,MAX(0,(Tassazione_RAL!$E$19-Tassazione_RAL!$E$14)-(Tassazione_RAL!$E$20-Tassazione_RAL!$E$15)),IF(AND($B$18>0,$B$17+1=$D36-4),MAX(0,(Tassazione_RAL!$E$19-Tassazione_RAL!$E$9)-(Tassazione_RAL!$E$20-Tassazione_RAL!$E$10+Tassazione_RAL!$E$5-Tassazione_RAL!$E$25)),MAX(0,(Tassazione_RAL!$E$19-Tassazione_RAL!$E$9)-(Tassazione_RAL!$E$20-Tassazione_RAL!$E$10))))))+CE35 -> 105022.169 | CF36: 345787.4861 | CG36: =((1-costFPN)*(SgrvFPN+CG35*(1+(rateFPN*(1-plustaxFPN)))+RAL*$B$6))*MIN(MOD($D36,annitrasfFP+1),1) -> 10609.4387 | CH36: 57120 | CI36: 24504.48 | CJ36: =((1-costFPN)*(TFR-RAL*0.5%+CJ35*(1+(rateFPN*(1-plustaxFPN)))))*MIN(MOD($D36,annitrasfFP+1),1) -> 13086.37776 | CK36: 70455.55556 | CL36: 7461.765391 | CM36: 788295.1752 | CN36: 682985.4899 | CP36: =IF(RAL>SgrvFP-SgrvFPN,MAX(0,(Tassazione_RAL!$E$20-Tassazione_RAL!$E$10)+(SgrvEXT-Tassazione_RAL!$E$10+Tassazione_RAL!$E$15)),0)+CP35*(1+rateETF) -> 299500.3054 | CQ36: =IF(RAL>SgrvFP-SgrvFPN,MAX(0,(Tassazione_RAL!$E$20-Tassazione_RAL!$E$10)+(SgrvEXT-Tassazione_RAL!$E$10+Tassazione_RAL!$E$15)),0)+CQ35 -> 94071.4731 | CR36: 205428.8323 | CS36: =(1-costFPA)*(IF(RAL>SgrvFP-SgrvFPN,MAX(0,(Tassazione_RAL!$E$19-Tassazione_RAL!$E$9)-(Tassazione_RAL!$E$20-Tassazione_RAL!$E$10)),0)+((CS35+IF(AND(CV36=0,CY36=0,CV35<>0,CY35<>0),CV35+CY35,0))*(1+rateFPA*(1-plustaxFPA)))) -> 457909.5225 | CT36: =IF(RAL>SgrvFP-SgrvFPN,MAX(0,(Tassazione_RAL!$E$19-Tassazione_RAL!$E$9)-(Tassazione_RAL!$E$20-Tassazione_RAL!$E$10)),0)+CT35 -> 104506.4426 | CU36: 366451.5146 | CV36: =(1-costFPN)*(SgrvFPN+CV35*(1+(rateFPN*(1-plustaxFPN)))+RAL*$B$6)*MIN(MOD($D36,annitrasfFP+1),1) -> 10609.4387 | CW36: 57120 | CX36: 24504.48 | CY36: =((1-costFPN)*(RAL/13.5-RAL*0.5%+CY35*(1+(rateFPN*(1-plustaxFPN)))))*MIN(MOD($D36,annitrasfFP+1),1) -> 13086.37776 | CZ36: 70455.55556 | DA36: 7461.765391 | DB36: 781105.6444 | DC36: 680180.4614
D37: 34 | E37: =IF(RAL>SgrvFP-SgrvFPN,MAX(0,IF($B$17>=$D37-4,MAX(0,Tassazione_RAL!$E$20-Tassazione_RAL!$E$15),IF(AND($B$18>0,$B$17+1=$D37-4),MAX(0,(Tassazione_RAL!$E$20-Tassazione_RAL!$E$10+Tassazione_RAL!$E$5-Tassazione_RAL!$E$25)+(SgrvEXT-Main!$B$18-Tassazione_RAL!$E$10+Tassazione_RAL!$E$15+Tassazione_RAL!$E$5-Tassazione_RAL!$E$25)),MAX(0,(Tassazione_RAL!$E$20-Tassazione_RAL!$E$10)+(SgrvEXT-Tassazione_RAL!$E$10+Tassazione_RAL!$E$15))))))+E36*(1+rateETF) -> 345018.6443 | F37: =IF(RAL>SgrvFP-SgrvFPN,MAX(0,IF($B$17>=$D37-4,MAX(0,Tassazione_RAL!$E$20-Tassazione_RAL!$E$15),IF(AND($B$18>0,$B$17+1=$D37-4),MAX(0,(Tassazione_RAL!$E$20-Tassazione_RAL!$E$10+Tassazione_RAL!$E$5-Tassazione_RAL!$E$25)+(SgrvEXT-Main!$B$18-Tassazione_RAL!$E$10+Tassazione_RAL!$E$15+Tassazione_RAL!$E$5-Tassazione_RAL!$E$25)),MAX(0,(Tassazione_RAL!$E$20-Tassazione_RAL!$E$10)+(SgrvEXT-Tassazione_RAL!$E$10+Tassazione_RAL!$E$15))))))+F36 -> 95970.1747 | G37: 249048.4696 | H37: =(1-costFPA)*(IF(RAL>SgrvFP-SgrvFPN,MAX(0,IF($B$17>=$D37-4,MAX(0,(Tassazione_RAL!$E$19-Tassazione_RAL!$E$14)-(Tassazione_RAL!$E$20-Tassazione_RAL!$E$15)),IF(AND($B$18>0,$B$17+1=$D37-4),MAX(0,(Tassazione_RAL!$E$19-Tassazione_RAL!$E$9)-(Tassazione_RAL!$E$20-Tassazione_RAL!$E$10+Tassazione_RAL!$E$5-Tassazione_RAL!$E$25)),MAX(0,(Tassazione_RAL!$E$19-Tassazione_RAL!$E$9)-(Tassazione_RAL!$E$20-Tassazione_RAL!$E$10))))))+H36*(1+rateFPA*(1-plustaxFPA))) -> 236526.0328 | I37: =IF(RAL>SgrvFP-SgrvFPN,MAX(0,IF($B$17>=$D37-4,MAX(0,(Tassazione_RAL!$E$19-Tassazione_RAL!$E$14)-(Tassazione_RAL!$E$20-Tassazione_RAL!$E$15)),IF(AND($B$18>0,$B$17+1=$D37-4),MAX(0,(Tassazione_RAL!$E$19-Tassazione_RAL!$E$9)-(Tassazione_RAL!$E$20-Tassazione_RAL!$E$10+Tassazione_RAL!$E$5-Tassazione_RAL!$E$25)),MAX(0,(Tassazione_RAL!$E$19-Tassazione_RAL!$E$9)-(Tassazione_RAL!$E$20-Tassazione_RAL!$E$10))))))+I36 -> 108095.8879 | J37: 190723.8041 | K37: 85126.57281 | L37: 58800 | M37: 25989.6 | N37: 105000.6999 | O37: 72527.77778 | P37: 40736.66176 | Q37: 771671.9498 | R37: 667240.5903 | T37: =IF(RAL>SgrvFP-SgrvFPN,MAX(0,(Tassazione_RAL!$E$20-Tassazione_RAL!$E$10)+(SgrvEXT-Tassazione_RAL!$E$10+Tassazione_RAL!$E$15)),0)+T36*(1+rateETF) -> 322925.5406 | U37: =IF(RAL>SgrvFP-SgrvFPN,MAX(0,(Tassazione_RAL!$E$20-Tassazione_RAL!$E$10)+(SgrvEXT-Tassazione_RAL!$E$10+Tassazione_RAL!$E$15)),0)+U36 -> 97130.6875 | V37: 225794.8531 | W37: =(1-costFPA)*(IF(RAL>SgrvFP-SgrvFPN,MAX(0,(Tassazione_RAL!$E$19-Tassazione_RAL!$E$9)-(Tassazione_RAL!$E$20-Tassazione_RAL!$E$10)),0)+W36*(1+(rateFPA*(1-plustaxFPA)))) -> 250635.9636 | X37: =IF(RAL>SgrvFP-SgrvFPN,MAX(0,(Tassazione_RAL!$E$19-Tassazione_RAL!$E$9)-(Tassazione_RAL!$E$20-Tassazione_RAL!$E$10)),0)+X36 -> 107580.1615 | Y37: 212292.1246 | Z37: 85126.57281 | AA37: 58800 | AB37: 25989.6 | AC37: 105000.6999 | AD37: 72527.77778 | AE37: 40736.66176 | AF37: 763688.777 | AG37: 663991.1342 | AI37: =IF(RAL>SgrvFP,MAX(0,IF($B$17>=$D37-4,0,IF(AND($B$18>0,$B$17+1=$D37-4),MAX(0,(SgrvEXT-Main!$B$18-Tassazione_RAL!$E$10+Tassazione_RAL!$E$15+Tassazione_RAL!$E$5-Tassazione_RAL!$E$25)),MAX(0,(SgrvEXT-Tassazione_RAL!$E$10+Tassazione_RAL!$E$15))))))+AI36*(1+rateETF) -> 248950.8518 | AJ37: =IF(RAL>SgrvFP,MAX(0,IF($B$17>=$D37-4,0,IF(AND($B$18>0,$B$17+1=$D37-4),MAX(0,(SgrvEXT-Main!$B$18-Tassazione_RAL!$E$10+Tassazione_RAL!$E$15+Tassazione_RAL!$E$5-Tassazione_RAL!$E$25)),MAX(0,(SgrvEXT-Tassazione_RAL!$E$10+Tassazione_RAL!$E$15))))))+AJ36 -> 62385.6426 | AK37: 186565.2092 | AL37: 378893.2893 | AM37: 175659.95 | AN37: 301863.8188 | AO37: 168972.32 | AP37: 72527.77778 | AQ37: 143121.89 | AR37: 796816.4611 | AS37: 697358.005 | AU37: =IF(RAL>SgrvFP,MAX(0,SgrvEXT-Tassazione_RAL!$E$10+Tassazione_RAL!$E$15,0)+AU36*(1+rateETF)) -> 181197.48 | AV37: =IF(RAL>SgrvFP,MAX(0,(SgrvEXT-Tassazione_RAL!$E$10+Tassazione_RAL!$E$15)),0)+AV36 -> 59650.899 | AW37: 121546.581 | AX37: 421127.3122 | AY37: 180759.95 | AZ37: 356700.6528 | BA37: 168972.32 | BB37: 72527.77778 | BC37: 143121.89 | BD37: 771297.1122 | BE37: 684815.7353 | BG37: =IF(RAL>SgrvFP-SgrvFPN,MAX(0,SgrvFP-SgrvFPN+Tassazione_RAL!$E$10-Tassazione_RAL!$E$20+(SgrvEXT-Tassazione_RAL!$E$10+Tassazione_RAL!$E$15)),0)+BG36*(1+rateETF) -> 588006.8099 | BH37: =IF(RAL>SgrvFP-SgrvFPN,MAX(0,SgrvFP-SgrvFPN+Tassazione_RAL!$E$10-Tassazione_RAL!$E$20+(SgrvEXT-Tassazione_RAL!$E$10+Tassazione_RAL!$E$15)),0)+BH36 -> 167231.0605 | BI37: 420775.7494 | BJ37: 85126.57281 | BK37: 58800 | BL37: 25989.6 | BM37: 105000.6999 | BN37: 72527.77778 | BO37: 40736.66176 | BP37: 673133.3827 | BQ37: 651050.5514 | BS37: =IF(RAL>SgrvFP-SgrvFPN,MAX(0,SgrvFP+Tassazione_RAL!$E$10-Tassazione_RAL!$E$5+(SgrvEXT-Tassazione_RAL!$E$10+Tassazione_RAL!$E$15)),0)+BS36*(1+rateETF) -> 675755.4279 | BT37: =IF(RAL>SgrvFP-SgrvFPN,MAX(0,SgrvFP+Tassazione_RAL!$E$10-Tassazione_RAL!$E$5+(SgrvEXT-Tassazione_RAL!$E$10+Tassazione_RAL!$E$15)),0)+BT36 -> 190436.0605 | BU37: 485319.3674 | BV37: 75247.56944 | BW37: 72527.77778 | BX37: 2719.791667 | BY37: 606911.0403 | CA37: =IF(RAL>SgrvFP-SgrvFPN,MAX(0,IF($B$17>=$D37-4,MAX(0,Tassazione_RAL!$E$20-Tassazione_RAL!$E$15),IF(AND($B$18>0,$B$17+1=$D37-4),MAX(0,(Tassazione_RAL!$E$20-Tassazione_RAL!$E$10+Tassazione_RAL!$E$5-Tassazione_RAL!$E$25)+(SgrvEXT-Main!$B$18-Tassazione_RAL!$E$10+Tassazione_RAL!$E$15+Tassazione_RAL!$E$5-Tassazione_RAL!$E$25)),MAX(0,(Tassazione_RAL!$E$20-Tassazione_RAL!$E$10)+(SgrvEXT-Tassazione_RAL!$E$10+Tassazione_RAL!$E$15))))))+CA36*(1+rateETF) -> 345018.6443 | CB37: =IF(RAL>SgrvFP-SgrvFPN,MAX(0,IF($B$17>=$D37-4,MAX(0,Tassazione_RAL!$E$20-Tassazione_RAL!$E$15),IF(AND($B$18>0,$B$17+1=$D37-4),MAX(0,(Tassazione_RAL!$E$20-Tassazione_RAL!$E$10+Tassazione_RAL!$E$5-Tassazione_RAL!$E$25)+(SgrvEXT-Main!$B$18-Tassazione_RAL!$E$10+Tassazione_RAL!$E$15+Tassazione_RAL!$E$5-Tassazione_RAL!$E$25)),MAX(0,(Tassazione_RAL!$E$20-Tassazione_RAL!$E$10)+(SgrvEXT-Tassazione_RAL!$E$10+Tassazione_RAL!$E$15))))))+CB36 -> 95970.1747 | CC37: 249048.4696 | CD37: =(1-costFPA)*(IF(RAL>SgrvFP-SgrvFPN,MAX(0,IF($B$17>=$D37-4,MAX(0,(Tassazione_RAL!$E$19-Tassazione_RAL!$E$14)-(Tassazione_RAL!$E$20-Tassazione_RAL!$E$15)),IF(AND($B$18>0,$B$17+1=$D37-4),MAX(0,(Tassazione_RAL!$E$19-Tassazione_RAL!$E$9)-(Tassazione_RAL!$E$20-Tassazione_RAL!$E$10+Tassazione_RAL!$E$5-Tassazione_RAL!$E$25)),MAX(0,(Tassazione_RAL!$E$19-Tassazione_RAL!$E$9)-(Tassazione_RAL!$E$20-Tassazione_RAL!$E$10))))))+((CD36+IF(AND(CG37=0,CJ37=0,CG36<>0,CJ36<>0),CG36+CJ36,0))*(1+rateFPA*(1-plustaxFPA)))) -> 467647.1728 | CE37: =IF(RAL>SgrvFP-SgrvFPN,MAX(0,IF($B$17>=$D37-4,MAX(0,(Tassazione_RAL!$E$19-Tassazione_RAL!$E$14)-(Tassazione_RAL!$E$20-Tassazione_RAL!$E$15)),IF(AND($B$18>0,$B$17+1=$D37-4),MAX(0,(Tassazione_RAL!$E$19-Tassazione_RAL!$E$9)-(Tassazione_RAL!$E$20-Tassazione_RAL!$E$10+Tassazione_RAL!$E$5-Tassazione_RAL!$E$25)),MAX(0,(Tassazione_RAL!$E$19-Tassazione_RAL!$E$9)-(Tassazione_RAL!$E$20-Tassazione_RAL!$E$10))))))+CE36 -> 108095.8879 | CF37: 375563.132 | CG37: 12508.37568 | CH37: 58800 | CI37: 25989.6 | CJ37: 15428.65121 | CK37: 72527.77778 | CL37: 7802.011212 | CM37: 840602.844 | CN37: 728168.5008 | CP37: =IF(RAL>SgrvFP-SgrvFPN,MAX(0,(Tassazione_RAL!$E$20-Tassazione_RAL!$E$10)+(SgrvEXT-Tassazione_RAL!$E$10+Tassazione_RAL!$E$15)),0)+CP36*(1+rateETF) -> 322925.5406 | CQ37: =IF(RAL>SgrvFP-SgrvFPN,MAX(0,(Tassazione_RAL!$E$20-Tassazione_RAL!$E$10)+(SgrvEXT-Tassazione_RAL!$E$10+Tassazione_RAL!$E$15)),0)+CQ36 -> 97130.6875 | CR37: 225794.8531 | CS37: =(1-costFPA)*(IF(RAL>SgrvFP-SgrvFPN,MAX(0,(Tassazione_RAL!$E$19-Tassazione_RAL!$E$9)-(Tassazione_RAL!$E$20-Tassazione_RAL!$E$10)),0)+((CS36+IF(AND(CV37=0,CY37=0,CV36<>0,CY36<>0),CV36+CY36,0))*(1+rateFPA*(1-plustaxFPA)))) -> 481757.1037 | CT37: =IF(RAL>SgrvFP-SgrvFPN,MAX(0,(Tassazione_RAL!$E$19-Tassazione_RAL!$E$9)-(Tassazione_RAL!$E$20-Tassazione_RAL!$E$10)),0)+CT36 -> 107580.1615 | CU37: 397131.4526 | CV37: 12508.37568 | CW37: 58800 | CX37: 25989.6 | CY37: 15428.65121 | CZ37: 72527.77778 | DA37: 7802.011212 | DB37: 832619.6711 | DC37: 724919.0446
D38: 35 | E38: =IF(RAL>SgrvFP-SgrvFPN,MAX(0,IF($B$17>=$D38-4,MAX(0,Tassazione_RAL!$E$20-Tassazione_RAL!$E$15),IF(AND($B$18>0,$B$17+1=$D38-4),MAX(0,(Tassazione_RAL!$E$20-Tassazione_RAL!$E$10+Tassazione_RAL!$E$5-Tassazione_RAL!$E$25)+(SgrvEXT-Main!$B$18-Tassazione_RAL!$E$10+Tassazione_RAL!$E$15+Tassazione_RAL!$E$5-Tassazione_RAL!$E$25)),MAX(0,(Tassazione_RAL!$E$20-Tassazione_RAL!$E$10)+(SgrvEXT-Tassazione_RAL!$E$10+Tassazione_RAL!$E$15))))))+E37*(1+rateETF) -> 371539.1265 | F38: =IF(RAL>SgrvFP-SgrvFPN,MAX(0,IF($B$17>=$D38-4,MAX(0,Tassazione_RAL!$E$20-Tassazione_RAL!$E$15),IF(AND($B$18>0,$B$17+1=$D38-4),MAX(0,(Tassazione_RAL!$E$20-Tassazione_RAL!$E$10+Tassazione_RAL!$E$5-Tassazione_RAL!$E$25)+(SgrvEXT-Main!$B$18-Tassazione_RAL!$E$10+Tassazione_RAL!$E$15+Tassazione_RAL!$E$5-Tassazione_RAL!$E$25)),MAX(0,(Tassazione_RAL!$E$20-Tassazione_RAL!$E$10)+(SgrvEXT-Tassazione_RAL!$E$10+Tassazione_RAL!$E$15))))))+F37 -> 99029.3891 | G38: 272509.7374 | H38: =(1-costFPA)*(IF(RAL>SgrvFP-SgrvFPN,MAX(0,IF($B$17>=$D38-4,MAX(0,(Tassazione_RAL!$E$19-Tassazione_RAL!$E$14)-(Tassazione_RAL!$E$20-Tassazione_RAL!$E$15)),IF(AND($B$18>0,$B$17+1=$D38-4),MAX(0,(Tassazione_RAL!$E$19-Tassazione_RAL!$E$9)-(Tassazione_RAL!$E$20-Tassazione_RAL!$E$10+Tassazione_RAL!$E$5-Tassazione_RAL!$E$25)),MAX(0,(Tassazione_RAL!$E$19-Tassazione_RAL!$E$9)-(Tassazione_RAL!$E$20-Tassazione_RAL!$E$10))))))+H37*(1+rateFPA*(1-plustaxFPA))) -> 250318.2784 | I38: =IF(RAL>SgrvFP-SgrvFPN,MAX(0,IF($B$17>=$D38-4,MAX(0,(Tassazione_RAL!$E$19-Tassazione_RAL!$E$14)-(Tassazione_RAL!$E$20-Tassazione_RAL!$E$15)),IF(AND($B$18>0,$B$17+1=$D38-4),MAX(0,(Tassazione_RAL!$E$19-Tassazione_RAL!$E$9)-(Tassazione_RAL!$E$20-Tassazione_RAL!$E$10+Tassazione_RAL!$E$5-Tassazione_RAL!$E$25)),MAX(0,(Tassazione_RAL!$E$19-Tassazione_RAL!$E$9)-(Tassazione_RAL!$E$20-Tassazione_RAL!$E$10))))))+I37 -> 111169.6068 | J38: 206571.0483 | K38: 88572.68937 | L38: 60480 | M38: 27518.4 | N38: 109251.3662 | O38: 74600 | P38: 43466.67996 | Q38: 819681.4604 | R38: 708496.1187 | T38: =IF(RAL>SgrvFP-SgrvFPN,MAX(0,(Tassazione_RAL!$E$20-Tassazione_RAL!$E$10)+(SgrvEXT-Tassazione_RAL!$E$10+Tassazione_RAL!$E$15)),0)+T37*(1+rateETF) -> 347943.6917 | U38: =IF(RAL>SgrvFP-SgrvFPN,MAX(0,(Tassazione_RAL!$E$20-Tassazione_RAL!$E$10)+(SgrvEXT-Tassazione_RAL!$E$10+Tassazione_RAL!$E$15)),0)+U37 -> 100189.9019 | V38: 247753.7898 | W38: =(1-costFPA)*(IF(RAL>SgrvFP-SgrvFPN,MAX(0,(Tassazione_RAL!$E$19-Tassazione_RAL!$E$9)-(Tassazione_RAL!$E$20-Tassazione_RAL!$E$10)),0)+W37*(1+(rateFPA*(1-plustaxFPA)))) -> 265069.0885 | X38: =IF(RAL>SgrvFP-SgrvFPN,MAX(0,(Tassazione_RAL!$E$19-Tassazione_RAL!$E$9)-(Tassazione_RAL!$E$20-Tassazione_RAL!$E$10)),0)+X37 -> 110653.8804 | Y38: 229084.7342 | Z38: 88572.68937 | AA38: 60480 | AB38: 27518.4 | AC38: 109251.3662 | AD38: 74600 | AE38: 43466.67996 | AF38: 810836.8358 | AG38: 704760.4675 | AI38: =IF(RAL>SgrvFP,MAX(0,IF($B$17>=$D38-4,0,IF(AND($B$18>0,$B$17+1=$D38-4),MAX(0,(SgrvEXT-Main!$B$18-Tassazione_RAL!$E$10+Tassazione_RAL!$E$15+Tassazione_RAL!$E$5-Tassazione_RAL!$E$25)),MAX(0,(SgrvEXT-Tassazione_RAL!$E$10+Tassazione_RAL!$E$15))))))+AI37*(1+rateETF) -> 267867.873 | AJ38: =IF(RAL>SgrvFP,MAX(0,IF($B$17>=$D38-4,0,IF(AND($B$18>0,$B$17+1=$D38-4),MAX(0,(SgrvEXT-Main!$B$18-Tassazione_RAL!$E$10+Tassazione_RAL!$E$15+Tassazione_RAL!$E$5-Tassazione_RAL!$E$25)),MAX(0,(SgrvEXT-Tassazione_RAL!$E$10+Tassazione_RAL!$E$15))))))+AJ37 -> 64374.0059 | AK38: 203493.8671 | AL38: 401226.0427 | AM38: 180824.52 | AN38: 327249.6692 | AO38: 178702.7616 | AP38: 74600 | AQ38: 154443.0354 | AR38: 847796.6772 | AS38: 742694.6794 | AU38: =IF(RAL>SgrvFP,MAX(0,SgrvEXT-Tassazione_RAL!$E$10+Tassazione_RAL!$E$15,0)+AU37*(1+rateETF)) -> 195507.272 | AV38: =IF(RAL>SgrvFP,MAX(0,(SgrvEXT-Tassazione_RAL!$E$10+Tassazione_RAL!$E$15)),0)+AV37 -> 61639.2623 | AW38: 133868.0097 | AX38: 445378.3534 | AY38: 185924.52 | AZ38: 384916.1827 | BA38: 178702.7616 | BB38: 74600 | BC38: 154443.0354 | BD38: 819588.387 | BE38: 728615.4041 | BG38: =IF(RAL>SgrvFP-SgrvFPN,MAX(0,SgrvFP-SgrvFPN+Tassazione_RAL!$E$10-Tassazione_RAL!$E$20+(SgrvEXT-Tassazione_RAL!$E$10+Tassazione_RAL!$E$15)),0)+BG37*(1+rateETF) -> 633053.3551 | BH38: =IF(RAL>SgrvFP-SgrvFPN,MAX(0,SgrvFP-SgrvFPN+Tassazione_RAL!$E$10-Tassazione_RAL!$E$20+(SgrvEXT-Tassazione_RAL!$E$10+Tassazione_RAL!$E$15)),0)+BH37 -> 172293.1427 | BI38: 460760.2124 | BJ38: 88572.68937 | BK38: 60480 | BL38: 27518.4 | BM38: 109251.3662 | BN38: 74600 | BO38: 43466.67996 | BP38: 721626.0445 | BQ38: 693275.5905 | BS38: =IF(RAL>SgrvFP-SgrvFPN,MAX(0,SgrvFP+Tassazione_RAL!$E$10-Tassazione_RAL!$E$5+(SgrvEXT-Tassazione_RAL!$E$10+Tassazione_RAL!$E$15)),0)+BS37*(1+rateETF) -> 727431.8792 | BT38: =IF(RAL>SgrvFP-SgrvFPN,MAX(0,SgrvFP+Tassazione_RAL!$E$10-Tassazione_RAL!$E$5+(SgrvEXT-Tassazione_RAL!$E$10+Tassazione_RAL!$E$15)),0)+BT37 -> 196161.1427 | BU38: 531270.7365 | BV38: 77397.5 | BW38: 74600 | BX38: 2797.5 | BY38: 648278.3827 | CA38: =IF(RAL>SgrvFP-SgrvFPN,MAX(0,IF($B$17>=$D38-4,MAX(0,Tassazione_RAL!$E$20-Tassazione_RAL!$E$15),IF(AND($B$18>0,$B$17+1=$D38-4),MAX(0,(Tassazione_RAL!$E$20-Tassazione_RAL!$E$10+Tassazione_RAL!$E$5-Tassazione_RAL!$E$25)+(SgrvEXT-Main!$B$18-Tassazione_RAL!$E$10+Tassazione_RAL!$E$15+Tassazione_RAL!$E$5-Tassazione_RAL!$E$25)),MAX(0,(Tassazione_RAL!$E$20-Tassazione_RAL!$E$10)+(SgrvEXT-Tassazione_RAL!$E$10+Tassazione_RAL!$E$15))))))+CA37*(1+rateETF) -> 371539.1265 | CB38: =IF(RAL>SgrvFP-SgrvFPN,MAX(0,IF($B$17>=$D38-4,MAX(0,Tassazione_RAL!$E$20-Tassazione_RAL!$E$15),IF(AND($B$18>0,$B$17+1=$D38-4),MAX(0,(Tassazione_RAL!$E$20-Tassazione_RAL!$E$10+Tassazione_RAL!$E$5-Tassazione_RAL!$E$25)+(SgrvEXT-Main!$B$18-Tassazione_RAL!$E$10+Tassazione_RAL!$E$15+Tassazione_RAL!$E$5-Tassazione_RAL!$E$25)),MAX(0,(Tassazione_RAL!$E$20-Tassazione_RAL!$E$10)+(SgrvEXT-Tassazione_RAL!$E$10+Tassazione_RAL!$E$15))))))+CB37 -> 99029.3891 | CC38: 272509.7374 | CD38: =(1-costFPA)*(IF(RAL>SgrvFP-SgrvFPN,MAX(0,IF($B$17>=$D38-4,MAX(0,(Tassazione_RAL!$E$19-Tassazione_RAL!$E$14)-(Tassazione_RAL!$E$20-Tassazione_RAL!$E$15)),IF(AND($B$18>0,$B$17+1=$D38-4),MAX(0,(Tassazione_RAL!$E$19-Tassazione_RAL!$E$9)-(Tassazione_RAL!$E$20-Tassazione_RAL!$E$10+Tassazione_RAL!$E$5-Tassazione_RAL!$E$25)),MAX(0,(Tassazione_RAL!$E$19-Tassazione_RAL!$E$9)-(Tassazione_RAL!$E$20-Tassazione_RAL!$E$10))))))+((CD37+IF(AND(CG38=0,CJ38=0,CG37<>0,CJ37<>0),CG37+CJ37,0))*(1+rateFPA*(1-plustaxFPA)))) -> 491937.0423 | CE38: =IF(RAL>SgrvFP-SgrvFPN,MAX(0,IF($B$17>=$D38-4,MAX(0,(Tassazione_RAL!$E$19-Tassazione_RAL!$E$14)-(Tassazione_RAL!$E$20-Tassazione_RAL!$E$15)),IF(AND($B$18>0,$B$17+1=$D38-4),MAX(0,(Tassazione_RAL!$E$19-Tassazione_RAL!$E$9)-(Tassazione_RAL!$E$20-Tassazione_RAL!$E$10+Tassazione_RAL!$E$5-Tassazione_RAL!$E$25)),MAX(0,(Tassazione_RAL!$E$19-Tassazione_RAL!$E$9)-(Tassazione_RAL!$E$20-Tassazione_RAL!$E$10))))))+CE37 -> 111169.6068 | CF38: 406895.4926 | CG38: 14446.73978 | CH38: 60480 | CI38: 27518.4 | CJ38: 17819.55667 | CK38: 74600 | CL38: 8203.156144 | CM38: 895742.4652 | CN38: 775775.6552 | CP38: =IF(RAL>SgrvFP-SgrvFPN,MAX(0,(Tassazione_RAL!$E$20-Tassazione_RAL!$E$10)+(SgrvEXT-Tassazione_RAL!$E$10+Tassazione_RAL!$E$15)),0)+CP37*(1+rateETF) -> 347943.6917 | CQ38: =IF(RAL>SgrvFP-SgrvFPN,MAX(0,(Tassazione_RAL!$E$20-Tassazione_RAL!$E$10)+(SgrvEXT-Tassazione_RAL!$E$10+Tassazione_RAL!$E$15)),0)+CQ37 -> 100189.9019 | CR38: 247753.7898 | CS38: =(1-costFPA)*(IF(RAL>SgrvFP-SgrvFPN,MAX(0,(Tassazione_RAL!$E$19-Tassazione_RAL!$E$9)-(Tassazione_RAL!$E$20-Tassazione_RAL!$E$10)),0)+((CS37+IF(AND(CV38=0,CY38=0,CV37<>0,CY37<>0),CV37+CY37,0))*(1+rateFPA*(1-plustaxFPA)))) -> 506687.8524 | CT38: =IF(RAL>SgrvFP-SgrvFPN,MAX(0,(Tassazione_RAL!$E$19-Tassazione_RAL!$E$9)-(Tassazione_RAL!$E$20-Tassazione_RAL!$E$10)),0)+CT37 -> 110653.8804 | CU38: 429409.1785 | CV38: 14446.73978 | CW38: 60480 | CX38: 27518.4 | CY38: 17819.55667 | CZ38: 74600 | DA38: 8203.156144 | DB38: 886897.8406 | DC38: 772040.0041
D39: 36 | E39: =IF(RAL>SgrvFP-SgrvFPN,MAX(0,IF($B$17>=$D39-4,MAX(0,Tassazione_RAL!$E$20-Tassazione_RAL!$E$15),IF(AND($B$18>0,$B$17+1=$D39-4),MAX(0,(Tassazione_RAL!$E$20-Tassazione_RAL!$E$10+Tassazione_RAL!$E$5-Tassazione_RAL!$E$25)+(SgrvEXT-Main!$B$18-Tassazione_RAL!$E$10+Tassazione_RAL!$E$15+Tassazione_RAL!$E$5-Tassazione_RAL!$E$25)),MAX(0,(Tassazione_RAL!$E$20-Tassazione_RAL!$E$10)+(SgrvEXT-Tassazione_RAL!$E$10+Tassazione_RAL!$E$15))))))+E38*(1+rateETF) -> 399863.0015 | F39: =IF(RAL>SgrvFP-SgrvFPN,MAX(0,IF($B$17>=$D39-4,MAX(0,Tassazione_RAL!$E$20-Tassazione_RAL!$E$15),IF(AND($B$18>0,$B$17+1=$D39-4),MAX(0,(Tassazione_RAL!$E$20-Tassazione_RAL!$E$10+Tassazione_RAL!$E$5-Tassazione_RAL!$E$25)+(SgrvEXT-Main!$B$18-Tassazione_RAL!$E$10+Tassazione_RAL!$E$15+Tassazione_RAL!$E$5-Tassazione_RAL!$E$25)),MAX(0,(Tassazione_RAL!$E$20-Tassazione_RAL!$E$10)+(SgrvEXT-Tassazione_RAL!$E$10+Tassazione_RAL!$E$15))))))+F38 -> 102088.6035 | G39: 297774.398 | H39: =(1-costFPA)*(IF(RAL>SgrvFP-SgrvFPN,MAX(0,IF($B$17>=$D39-4,MAX(0,(Tassazione_RAL!$E$19-Tassazione_RAL!$E$14)-(Tassazione_RAL!$E$20-Tassazione_RAL!$E$15)),IF(AND($B$18>0,$B$17+1=$D39-4),MAX(0,(Tassazione_RAL!$E$19-Tassazione_RAL!$E$9)-(Tassazione_RAL!$E$20-Tassazione_RAL!$E$10+Tassazione_RAL!$E$5-Tassazione_RAL!$E$25)),MAX(0,(Tassazione_RAL!$E$19-Tassazione_RAL!$E$9)-(Tassazione_RAL!$E$20-Tassazione_RAL!$E$10))))))+H38*(1+rateFPA*(1-plustaxFPA))) -> 264736.9739 | I39: =IF(RAL>SgrvFP-SgrvFPN,MAX(0,IF($B$17>=$D39-4,MAX(0,(Tassazione_RAL!$E$19-Tassazione_RAL!$E$14)-(Tassazione_RAL!$E$20-Tassazione_RAL!$E$15)),IF(AND($B$18>0,$B$17+1=$D39-4),MAX(0,(Tassazione_RAL!$E$19-Tassazione_RAL!$E$9)-(Tassazione_RAL!$E$20-Tassazione_RAL!$E$10+Tassazione_RAL!$E$5-Tassazione_RAL!$E$25)),MAX(0,(Tassazione_RAL!$E$19-Tassazione_RAL!$E$9)-(Tassazione_RAL!$E$20-Tassazione_RAL!$E$10))))))+I38 -> 114243.3257 | J39: 223342.373 | K39: 92090.35674 | L39: 62160 | M39: 29090.88 | N39: 113590.2879 | O39: 76672.22222 | P39: 46307.21548 | Q39: 870280.62 | R39: 750521.6909 | T39: =IF(RAL>SgrvFP-SgrvFPN,MAX(0,(Tassazione_RAL!$E$20-Tassazione_RAL!$E$10)+(SgrvEXT-Tassazione_RAL!$E$10+Tassazione_RAL!$E$15)),0)+T38*(1+rateETF) -> 374663.0772 | U39: =IF(RAL>SgrvFP-SgrvFPN,MAX(0,(Tassazione_RAL!$E$20-Tassazione_RAL!$E$10)+(SgrvEXT-Tassazione_RAL!$E$10+Tassazione_RAL!$E$15)),0)+U38 -> 103249.1163 | V39: 271413.9609 | W39: =(1-costFPA)*(IF(RAL>SgrvFP-SgrvFPN,MAX(0,(Tassazione_RAL!$E$19-Tassazione_RAL!$E$9)-(Tassazione_RAL!$E$20-Tassazione_RAL!$E$10)),0)+W38*(1+(rateFPA*(1-plustaxFPA)))) -> 280157.7723 | X39: =IF(RAL>SgrvFP-SgrvFPN,MAX(0,(Tassazione_RAL!$E$19-Tassazione_RAL!$E$9)-(Tassazione_RAL!$E$20-Tassazione_RAL!$E$10)),0)+X38 -> 113727.5993 | Y39: 246844.3631 | Z39: 92090.35674 | AA39: 62160 | AB39: 29090.88 | AC39: 113590.2879 | AD39: 76672.22222 | AE39: 46307.21548 | AF39: 860501.4941 | AG39: 746208.4068 | AI39: =IF(RAL>SgrvFP,MAX(0,IF($B$17>=$D39-4,0,IF(AND($B$18>0,$B$17+1=$D39-4),MAX(0,(SgrvEXT-Main!$B$18-Tassazione_RAL!$E$10+Tassazione_RAL!$E$15+Tassazione_RAL!$E$5-Tassazione_RAL!$E$25)),MAX(0,(SgrvEXT-Tassazione_RAL!$E$10+Tassazione_RAL!$E$15))))))+AI38*(1+rateETF) -> 288071.2516 | AJ39: =IF(RAL>SgrvFP,MAX(0,IF($B$17>=$D39-4,0,IF(AND($B$18>0,$B$17+1=$D39-4),MAX(0,(SgrvEXT-Main!$B$18-Tassazione_RAL!$E$10+Tassazione_RAL!$E$15+Tassazione_RAL!$E$5-Tassazione_RAL!$E$25)),MAX(0,(SgrvEXT-Tassazione_RAL!$E$10+Tassazione_RAL!$E$15))))))+AJ38 -> 66362.3692 | AK39: 221708.8824 | AL39: 424573.1595 | AM39: 185989.09 | AN39: 354131.814 | AO39: 188875.1641 | AP39: 76672.22222 | AQ39: 166416.1205 | AR39: 901519.5752 | AS39: 788664.9167 | AU39: =IF(RAL>SgrvFP,MAX(0,SgrvEXT-Tassazione_RAL!$E$10+Tassazione_RAL!$E$15,0)+AU38*(1+rateETF)) -> 210790.1298 | AV39: =IF(RAL>SgrvFP,MAX(0,(SgrvEXT-Tassazione_RAL!$E$10+Tassazione_RAL!$E$15)),0)+AV38 -> 63627.6256 | AW39: 147162.5042 | AX39: 470730.8876 | AY39: 191089.09 | AZ39: 414756.5324 | BA39: 188875.1641 | BB39: 76672.22222 | BC39: 166416.1205 | BD39: 870396.1815 | BE39: 772769.3857 | BG39: =IF(RAL>SgrvFP-SgrvFPN,MAX(0,SgrvFP-SgrvFPN+Tassazione_RAL!$E$10-Tassazione_RAL!$E$20+(SgrvEXT-Tassazione_RAL!$E$10+Tassazione_RAL!$E$15)),0)+BG38*(1+rateETF) -> 681163.0655 | BH39: =IF(RAL>SgrvFP-SgrvFPN,MAX(0,SgrvFP-SgrvFPN+Tassazione_RAL!$E$10-Tassazione_RAL!$E$20+(SgrvEXT-Tassazione_RAL!$E$10+Tassazione_RAL!$E$15)),0)+BH38 -> 177355.2249 | BI39: 503807.8406 | BJ39: 92090.35674 | BK39: 62160 | BL39: 29090.88 | BM39: 113590.2879 | BN39: 76672.22222 | BO39: 46307.21548 | BP39: 773253.4222 | BQ39: 737342.4136 | BS39: =IF(RAL>SgrvFP-SgrvFPN,MAX(0,SgrvFP+Tassazione_RAL!$E$10-Tassazione_RAL!$E$5+(SgrvEXT-Tassazione_RAL!$E$10+Tassazione_RAL!$E$15)),0)+BS38*(1+rateETF) -> 782622.3292 | BT39: =IF(RAL>SgrvFP-SgrvFPN,MAX(0,SgrvFP+Tassazione_RAL!$E$10-Tassazione_RAL!$E$5+(SgrvEXT-Tassazione_RAL!$E$10+Tassazione_RAL!$E$15)),0)+BT38 -> 201886.2249 | BU39: 580736.1043 | BV39: 79547.43056 | BW39: 76672.22222 | BX39: 2875.208333 | BY39: 692246.0842 | CA39: =IF(RAL>SgrvFP-SgrvFPN,MAX(0,IF($B$17>=$D39-4,MAX(0,Tassazione_RAL!$E$20-Tassazione_RAL!$E$15),IF(AND($B$18>0,$B$17+1=$D39-4),MAX(0,(Tassazione_RAL!$E$20-Tassazione_RAL!$E$10+Tassazione_RAL!$E$5-Tassazione_RAL!$E$25)+(SgrvEXT-Main!$B$18-Tassazione_RAL!$E$10+Tassazione_RAL!$E$15+Tassazione_RAL!$E$5-Tassazione_RAL!$E$25)),MAX(0,(Tassazione_RAL!$E$20-Tassazione_RAL!$E$10)+(SgrvEXT-Tassazione_RAL!$E$10+Tassazione_RAL!$E$15))))))+CA38*(1+rateETF) -> 399863.0015 | CB39: =IF(RAL>SgrvFP-SgrvFPN,MAX(0,IF($B$17>=$D39-4,MAX(0,Tassazione_RAL!$E$20-Tassazione_RAL!$E$15),IF(AND($B$18>0,$B$17+1=$D39-4),MAX(0,(Tassazione_RAL!$E$20-Tassazione_RAL!$E$10+Tassazione_RAL!$E$5-Tassazione_RAL!$E$25)+(SgrvEXT-Main!$B$18-Tassazione_RAL!$E$10+Tassazione_RAL!$E$15+Tassazione_RAL!$E$5-Tassazione_RAL!$E$25)),MAX(0,(Tassazione_RAL!$E$20-Tassazione_RAL!$E$10)+(SgrvEXT-Tassazione_RAL!$E$10+Tassazione_RAL!$E$15))))))+CB38 -> 102088.6035 | CC39: 297774.398 | CD39: =(1-costFPA)*(IF(RAL>SgrvFP-SgrvFPN,MAX(0,IF($B$17>=$D39-4,MAX(0,(Tassazione_RAL!$E$19-Tassazione_RAL!$E$14)-(Tassazione_RAL!$E$20-Tassazione_RAL!$E$15)),IF(AND($B$18>0,$B$17+1=$D39-4),MAX(0,(Tassazione_RAL!$E$19-Tassazione_RAL!$E$9)-(Tassazione_RAL!$E$20-Tassazione_RAL!$E$10+Tassazione_RAL!$E$5-Tassazione_RAL!$E$25)),MAX(0,(Tassazione_RAL!$E$19-Tassazione_RAL!$E$9)-(Tassazione_RAL!$E$20-Tassazione_RAL!$E$10))))))+((CD38+IF(AND(CG39=0,CJ39=0,CG38<>0,CJ38<>0),CG38+CJ38,0))*(1+rateFPA*(1-plustaxFPA)))) -> 551062.0142 | CE39: =IF(RAL>SgrvFP-SgrvFPN,MAX(0,IF($B$17>=$D39-4,MAX(0,(Tassazione_RAL!$E$19-Tassazione_RAL!$E$14)-(Tassazione_RAL!$E$20-Tassazione_RAL!$E$15)),IF(AND($B$18>0,$B$17+1=$D39-4),MAX(0,(Tassazione_RAL!$E$19-Tassazione_RAL!$E$9)-(Tassazione_RAL!$E$20-Tassazione_RAL!$E$10+Tassazione_RAL!$E$5-Tassazione_RAL!$E$25)),MAX(0,(Tassazione_RAL!$E$19-Tassazione_RAL!$E$9)-(Tassazione_RAL!$E$20-Tassazione_RAL!$E$10))))))+CE38 -> 114243.3257 | CF39: 439855.2744 | CG39: 0 | CH39: 62160 | CI39: 29090.88 | CJ39: 0 | CK39: 76672.22222 | CL39: 8666.464617 | CM39: 950925.0157 | CN39: 823908.0909 | CP39: =IF(RAL>SgrvFP-SgrvFPN,MAX(0,(Tassazione_RAL!$E$20-Tassazione_RAL!$E$10)+(SgrvEXT-Tassazione_RAL!$E$10+Tassazione_RAL!$E$15)),0)+CP38*(1+rateETF) -> 374663.0772 | CQ39: =IF(RAL>SgrvFP-SgrvFPN,MAX(0,(Tassazione_RAL!$E$20-Tassazione_RAL!$E$10)+(SgrvEXT-Tassazione_RAL!$E$10+Tassazione_RAL!$E$15)),0)+CQ38 -> 103249.1163 | CR39: 271413.9609 | CS39: =(1-costFPA)*(IF(RAL>SgrvFP-SgrvFPN,MAX(0,(Tassazione_RAL!$E$19-Tassazione_RAL!$E$9)-(Tassazione_RAL!$E$20-Tassazione_RAL!$E$10)),0)+((CS38+IF(AND(CV39=0,CY39=0,CV38<>0,CY38<>0),CV38+CY38,0))*(1+rateFPA*(1-plustaxFPA)))) -> 566482.8126 | CT39: =IF(RAL>SgrvFP-SgrvFPN,MAX(0,(Tassazione_RAL!$E$19-Tassazione_RAL!$E$9)-(Tassazione_RAL!$E$20-Tassazione_RAL!$E$10)),0)+CT38 -> 113727.5993 | CU39: 463357.2646 | CV39: 0 | CW39: 62160 | CX39: 29090.88 | CY39: 0 | CZ39: 76672.22222 | DA39: 8666.464617 | DB39: 941145.8898 | DC39: 819594.8068
D40: 37 | E40: =IF(RAL>SgrvFP-SgrvFPN,MAX(0,IF($B$17>=$D40-4,MAX(0,Tassazione_RAL!$E$20-Tassazione_RAL!$E$15),IF(AND($B$18>0,$B$17+1=$D40-4),MAX(0,(Tassazione_RAL!$E$20-Tassazione_RAL!$E$10+Tassazione_RAL!$E$5-Tassazione_RAL!$E$25)+(SgrvEXT-Main!$B$18-Tassazione_RAL!$E$10+Tassazione_RAL!$E$15+Tassazione_RAL!$E$5-Tassazione_RAL!$E$25)),MAX(0,(Tassazione_RAL!$E$20-Tassazione_RAL!$E$10)+(SgrvEXT-Tassazione_RAL!$E$10+Tassazione_RAL!$E$15))))))+E39*(1+rateETF) -> 430112.9 | F40: =IF(RAL>SgrvFP-SgrvFPN,MAX(0,IF($B$17>=$D40-4,MAX(0,Tassazione_RAL!$E$20-Tassazione_RAL!$E$15),IF(AND($B$18>0,$B$17+1=$D40-4),MAX(0,(Tassazione_RAL!$E$20-Tassazione_RAL!$E$10+Tassazione_RAL!$E$5-Tassazione_RAL!$E$25)+(SgrvEXT-Main!$B$18-Tassazione_RAL!$E$10+Tassazione_RAL!$E$15+Tassazione_RAL!$E$5-Tassazione_RAL!$E$25)),MAX(0,(Tassazione_RAL!$E$20-Tassazione_RAL!$E$10)+(SgrvEXT-Tassazione_RAL!$E$10+Tassazione_RAL!$E$15))))))+F39 -> 105147.8179 | G40: 324965.0821 | H40: =(1-costFPA)*(IF(RAL>SgrvFP-SgrvFPN,MAX(0,IF($B$17>=$D40-4,MAX(0,(Tassazione_RAL!$E$19-Tassazione_RAL!$E$14)-(Tassazione_RAL!$E$20-Tassazione_RAL!$E$15)),IF(AND($B$18>0,$B$17+1=$D40-4),MAX(0,(Tassazione_RAL!$E$19-Tassazione_RAL!$E$9)-(Tassazione_RAL!$E$20-Tassazione_RAL!$E$10+Tassazione_RAL!$E$5-Tassazione_RAL!$E$25)),MAX(0,(Tassazione_RAL!$E$19-Tassazione_RAL!$E$9)-(Tassazione_RAL!$E$20-Tassazione_RAL!$E$10))))))+H39*(1+rateFPA*(1-plustaxFPA))) -> 279810.5729 | I40: =IF(RAL>SgrvFP-SgrvFPN,MAX(0,IF($B$17>=$D40-4,MAX(0,(Tassazione_RAL!$E$19-Tassazione_RAL!$E$14)-(Tassazione_RAL!$E$20-Tassazione_RAL!$E$15)),IF(AND($B$18>0,$B$17+1=$D40-4),MAX(0,(Tassazione_RAL!$E$19-Tassazione_RAL!$E$9)-(Tassazione_RAL!$E$20-Tassazione_RAL!$E$10+Tassazione_RAL!$E$5-Tassazione_RAL!$E$25)),MAX(0,(Tassazione_RAL!$E$19-Tassazione_RAL!$E$9)-(Tassazione_RAL!$E$20-Tassazione_RAL!$E$10))))))+I39 -> 117317.0446 | J40: 241079.7502 | K40: 95681.0605 | L40: 63840 | M40: 30707.04 | N40: 118019.2975 | O40: 78744.44444 | P40: 49260.56297 | Q40: 923623.8309 | R40: 794716.9258 | T40: =IF(RAL>SgrvFP-SgrvFPN,MAX(0,(Tassazione_RAL!$E$20-Tassazione_RAL!$E$10)+(SgrvEXT-Tassazione_RAL!$E$10+Tassazione_RAL!$E$15)),0)+T39*(1+rateETF) -> 403199.3808 | U40: =IF(RAL>SgrvFP-SgrvFPN,MAX(0,(Tassazione_RAL!$E$20-Tassazione_RAL!$E$10)+(SgrvEXT-Tassazione_RAL!$E$10+Tassazione_RAL!$E$15)),0)+U39 -> 106308.3307 | V40: 296891.0501 | W40: =(1-costFPA)*(IF(RAL>SgrvFP-SgrvFPN,MAX(0,(Tassazione_RAL!$E$19-Tassazione_RAL!$E$9)-(Tassazione_RAL!$E$20-Tassazione_RAL!$E$10)),0)+W39*(1+(rateFPA*(1-plustaxFPA)))) -> 295931.7907 | X40: =IF(RAL>SgrvFP-SgrvFPN,MAX(0,(Tassazione_RAL!$E$19-Tassazione_RAL!$E$9)-(Tassazione_RAL!$E$20-Tassazione_RAL!$E$10)),0)+X39 -> 116801.3182 | Y40: 265614.9339 | Z40: 95681.0605 | AA40: 63840 | AB40: 30707.04 | AC40: 118019.2975 | AD40: 78744.44444 | AE40: 49260.56297 | AF40: 912831.5296 | AG40: 789772.9632 | AI40: =IF(RAL>SgrvFP,MAX(0,IF($B$17>=$D40-4,0,IF(AND($B$18>0,$B$17+1=$D40-4),MAX(0,(SgrvEXT-Main!$B$18-Tassazione_RAL!$E$10+Tassazione_RAL!$E$15+Tassazione_RAL!$E$5-Tassazione_RAL!$E$25)),MAX(0,(SgrvEXT-Tassazione_RAL!$E$10+Tassazione_RAL!$E$15))))))+AI39*(1+rateETF) -> 309648.4601 | AJ40: =IF(RAL>SgrvFP,MAX(0,IF($B$17>=$D40-4,0,IF(AND($B$18>0,$B$17+1=$D40-4),MAX(0,(SgrvEXT-Main!$B$18-Tassazione_RAL!$E$10+Tassazione_RAL!$E$15+Tassazione_RAL!$E$5-Tassazione_RAL!$E$25)),MAX(0,(SgrvEXT-Tassazione_RAL!$E$10+Tassazione_RAL!$E$15))))))+AJ39 -> 68350.7325 | AK40: 241297.7276 | AL40: 448980.7127 | AM40: 191153.66 | AN40: 382578.2157 | AO40: 199509.6016 | AP40: 78744.44444 | AQ40: 179070.7565 | AR40: 958138.7743 | AS40: 837037.2369 | AU40: =IF(RAL>SgrvFP,MAX(0,SgrvEXT-Tassazione_RAL!$E$10+Tassazione_RAL!$E$15,0)+AU39*(1+rateETF)) -> 227112.2219 | AV40: =IF(RAL>SgrvFP,MAX(0,(SgrvEXT-Tassazione_RAL!$E$10+Tassazione_RAL!$E$15)),0)+AV39 -> 65615.9889 | AW40: 161496.233 | AX40: 497234.9451 | AY40: 196253.66 | AZ40: 446295.5019 | BA40: 199509.6016 | BB40: 78744.44444 | BC40: 179070.7565 | BD40: 923856.7686 | BE40: 819160.7388 | BG40: =IF(RAL>SgrvFP-SgrvFPN,MAX(0,SgrvFP-SgrvFPN+Tassazione_RAL!$E$10-Tassazione_RAL!$E$20+(SgrvEXT-Tassazione_RAL!$E$10+Tassazione_RAL!$E$15)),0)+BG39*(1+rateETF) -> 732544.2362 | BH40: =IF(RAL>SgrvFP-SgrvFPN,MAX(0,SgrvFP-SgrvFPN+Tassazione_RAL!$E$10-Tassazione_RAL!$E$20+(SgrvEXT-Tassazione_RAL!$E$10+Tassazione_RAL!$E$15)),0)+BH39 -> 182417.3071 | BI40: 550126.9291 | BJ40: 95681.0605 | BK40: 63840 | BL40: 30707.04 | BM40: 118019.2975 | BN40: 78744.44444 | BO40: 49260.56297 | BP40: 828225.2967 | BQ40: 783978.5604 | BS40: =IF(RAL>SgrvFP-SgrvFPN,MAX(0,SgrvFP+Tassazione_RAL!$E$10-Tassazione_RAL!$E$5+(SgrvEXT-Tassazione_RAL!$E$10+Tassazione_RAL!$E$15)),0)+BS39*(1+rateETF) -> 841565.7298 | BT40: =IF(RAL>SgrvFP-SgrvFPN,MAX(0,SgrvFP+Tassazione_RAL!$E$10-Tassazione_RAL!$E$5+(SgrvEXT-Tassazione_RAL!$E$10+Tassazione_RAL!$E$15)),0)+BT39 -> 207611.3071 | BU40: 633954.4227 | BV40: 81697.36111 | BW40: 78744.44444 | BX40: 2952.916667 | BY40: 738990.969 | CA40: =IF(RAL>SgrvFP-SgrvFPN,MAX(0,IF($B$17>=$D40-4,MAX(0,Tassazione_RAL!$E$20-Tassazione_RAL!$E$15),IF(AND($B$18>0,$B$17+1=$D40-4),MAX(0,(Tassazione_RAL!$E$20-Tassazione_RAL!$E$10+Tassazione_RAL!$E$5-Tassazione_RAL!$E$25)+(SgrvEXT-Main!$B$18-Tassazione_RAL!$E$10+Tassazione_RAL!$E$15+Tassazione_RAL!$E$5-Tassazione_RAL!$E$25)),MAX(0,(Tassazione_RAL!$E$20-Tassazione_RAL!$E$10)+(SgrvEXT-Tassazione_RAL!$E$10+Tassazione_RAL!$E$15))))))+CA39*(1+rateETF) -> 430112.9 | CB40: =IF(RAL>SgrvFP-SgrvFPN,MAX(0,IF($B$17>=$D40-4,MAX(0,Tassazione_RAL!$E$20-Tassazione_RAL!$E$15),IF(AND($B$18>0,$B$17+1=$D40-4),MAX(0,(Tassazione_RAL!$E$20-Tassazione_RAL!$E$10+Tassazione_RAL!$E$5-Tassazione_RAL!$E$25)+(SgrvEXT-Main!$B$18-Tassazione_RAL!$E$10+Tassazione_RAL!$E$15+Tassazione_RAL!$E$5-Tassazione_RAL!$E$25)),MAX(0,(Tassazione_RAL!$E$20-Tassazione_RAL!$E$10)+(SgrvEXT-Tassazione_RAL!$E$10+Tassazione_RAL!$E$15))))))+CB39 -> 105147.8179 | CC40: 324965.0821 | CD40: =(1-costFPA)*(IF(RAL>SgrvFP-SgrvFPN,MAX(0,IF($B$17>=$D40-4,MAX(0,(Tassazione_RAL!$E$19-Tassazione_RAL!$E$14)-(Tassazione_RAL!$E$20-Tassazione_RAL!$E$15)),IF(AND($B$18>0,$B$17+1=$D40-4),MAX(0,(Tassazione_RAL!$E$19-Tassazione_RAL!$E$9)-(Tassazione_RAL!$E$20-Tassazione_RAL!$E$10+Tassazione_RAL!$E$5-Tassazione_RAL!$E$25)),MAX(0,(Tassazione_RAL!$E$19-Tassazione_RAL!$E$9)-(Tassazione_RAL!$E$20-Tassazione_RAL!$E$10))))))+((CD39+IF(AND(CG40=0,CJ40=0,CG39<>0,CJ39<>0),CG39+CJ39,0))*(1+rateFPA*(1-plustaxFPA)))) -> 579140.6225 | CE40: =IF(RAL>SgrvFP-SgrvFPN,MAX(0,IF($B$17>=$D40-4,MAX(0,(Tassazione_RAL!$E$19-Tassazione_RAL!$E$14)-(Tassazione_RAL!$E$20-Tassazione_RAL!$E$15)),IF(AND($B$18>0,$B$17+1=$D40-4),MAX(0,(Tassazione_RAL!$E$19-Tassazione_RAL!$E$9)-(Tassazione_RAL!$E$20-Tassazione_RAL!$E$10+Tassazione_RAL!$E$5-Tassazione_RAL!$E$25)),MAX(0,(Tassazione_RAL!$E$19-Tassazione_RAL!$E$9)-(Tassazione_RAL!$E$20-Tassazione_RAL!$E$10))))))+CE39 -> 117317.0446 | CF40: 476776.4294 | CG40: 1678.656 | CH40: 63840 | CI40: 30707.04 | CJ40: 2070.564444 | CK40: 78744.44444 | CL40: 8666.464617 | CM40: 1013002.743 | CN40: 875826.7825 | CP40: =IF(RAL>SgrvFP-SgrvFPN,MAX(0,(Tassazione_RAL!$E$20-Tassazione_RAL!$E$10)+(SgrvEXT-Tassazione_RAL!$E$10+Tassazione_RAL!$E$15)),0)+CP39*(1+rateETF) -> 403199.3808 | CQ40: =IF(RAL>SgrvFP-SgrvFPN,MAX(0,(Tassazione_RAL!$E$20-Tassazione_RAL!$E$10)+(SgrvEXT-Tassazione_RAL!$E$10+Tassazione_RAL!$E$15)),0)+CQ39 -> 106308.3307 | CR40: 296891.0501 | CS40: =(1-costFPA)*(IF(RAL>SgrvFP-SgrvFPN,MAX(0,(Tassazione_RAL!$E$19-Tassazione_RAL!$E$9)-(Tassazione_RAL!$E$20-Tassazione_RAL!$E$10)),0)+((CS39+IF(AND(CV40=0,CY40=0,CV39<>0,CY39<>0),CV39+CY39,0))*(1+rateFPA*(1-plustaxFPA)))) -> 595261.8404 | CT40: =IF(RAL>SgrvFP-SgrvFPN,MAX(0,(Tassazione_RAL!$E$19-Tassazione_RAL!$E$9)-(Tassazione_RAL!$E$20-Tassazione_RAL!$E$10)),0)+CT39 -> 116801.3182 | CU40: 501311.6131 | CV40: 1678.656 | CW40: 63840 | CX40: 30707.04 | CY40: 2070.564444 | CZ40: 78744.44444 | DA40: 8666.464617 | DB40: 1002210.442 | DC40: 870882.8199
D41: 38 | E41: =IF(RAL>SgrvFP-SgrvFPN,MAX(0,IF($B$17>=$D41-4,MAX(0,Tassazione_RAL!$E$20-Tassazione_RAL!$E$15),IF(AND($B$18>0,$B$17+1=$D41-4),MAX(0,(Tassazione_RAL!$E$20-Tassazione_RAL!$E$10+Tassazione_RAL!$E$5-Tassazione_RAL!$E$25)+(SgrvEXT-Main!$B$18-Tassazione_RAL!$E$10+Tassazione_RAL!$E$15+Tassazione_RAL!$E$5-Tassazione_RAL!$E$25)),MAX(0,(Tassazione_RAL!$E$20-Tassazione_RAL!$E$10)+(SgrvEXT-Tassazione_RAL!$E$10+Tassazione_RAL!$E$15))))))+E40*(1+rateETF) -> 462419.7916 | F41: =IF(RAL>SgrvFP-SgrvFPN,MAX(0,IF($B$17>=$D41-4,MAX(0,Tassazione_RAL!$E$20-Tassazione_RAL!$E$15),IF(AND($B$18>0,$B$17+1=$D41-4),MAX(0,(Tassazione_RAL!$E$20-Tassazione_RAL!$E$10+Tassazione_RAL!$E$5-Tassazione_RAL!$E$25)+(SgrvEXT-Main!$B$18-Tassazione_RAL!$E$10+Tassazione_RAL!$E$15+Tassazione_RAL!$E$5-Tassazione_RAL!$E$25)),MAX(0,(Tassazione_RAL!$E$20-Tassazione_RAL!$E$10)+(SgrvEXT-Tassazione_RAL!$E$10+Tassazione_RAL!$E$15))))))+F40 -> 108207.0323 | G41: 354212.7593 | H41: =(1-costFPA)*(IF(RAL>SgrvFP-SgrvFPN,MAX(0,IF($B$17>=$D41-4,MAX(0,(Tassazione_RAL!$E$19-Tassazione_RAL!$E$14)-(Tassazione_RAL!$E$20-Tassazione_RAL!$E$15)),IF(AND($B$18>0,$B$17+1=$D41-4),MAX(0,(Tassazione_RAL!$E$19-Tassazione_RAL!$E$9)-(Tassazione_RAL!$E$20-Tassazione_RAL!$E$10+Tassazione_RAL!$E$5-Tassazione_RAL!$E$25)),MAX(0,(Tassazione_RAL!$E$19-Tassazione_RAL!$E$9)-(Tassazione_RAL!$E$20-Tassazione_RAL!$E$10))))))+H40*(1+rateFPA*(1-plustaxFPA))) -> 295568.8213 | I41: =IF(RAL>SgrvFP-SgrvFPN,MAX(0,IF($B$17>=$D41-4,MAX(0,(Tassazione_RAL!$E$19-Tassazione_RAL!$E$14)-(Tassazione_RAL!$E$20-Tassazione_RAL!$E$15)),IF(AND($B$18>0,$B$17+1=$D41-4),MAX(0,(Tassazione_RAL!$E$19-Tassazione_RAL!$E$9)-(Tassazione_RAL!$E$20-Tassazione_RAL!$E$10+Tassazione_RAL!$E$5-Tassazione_RAL!$E$25)),MAX(0,(Tassazione_RAL!$E$19-Tassazione_RAL!$E$9)-(Tassazione_RAL!$E$20-Tassazione_RAL!$E$10))))))+I40 -> 120390.7635 | J41: 259827.0586 | K41: 99346.3171 | L41: 65520 | M41: 32366.88 | N41: 122540.2655 | O41: 80816.66667 | P41: 52329.0647 | Q41: 979875.1955 | R41: 841208.8918 | T41: =IF(RAL>SgrvFP-SgrvFPN,MAX(0,(Tassazione_RAL!$E$20-Tassazione_RAL!$E$10)+(SgrvEXT-Tassazione_RAL!$E$10+Tassazione_RAL!$E$15)),0)+T40*(1+rateETF) -> 433676.1531 | U41: =IF(RAL>SgrvFP-SgrvFPN,MAX(0,(Tassazione_RAL!$E$20-Tassazione_RAL!$E$10)+(SgrvEXT-Tassazione_RAL!$E$10+Tassazione_RAL!$E$15)),0)+U40 -> 109367.5451 | V41: 324308.608 | W41: =(1-costFPA)*(IF(RAL>SgrvFP-SgrvFPN,MAX(0,(Tassazione_RAL!$E$19-Tassazione_RAL!$E$9)-(Tassazione_RAL!$E$20-Tassazione_RAL!$E$10)),0)+W40*(1+(rateFPA*(1-plustaxFPA)))) -> 312422.272 | X41: =IF(RAL>SgrvFP-SgrvFPN,MAX(0,(Tassazione_RAL!$E$19-Tassazione_RAL!$E$9)-(Tassazione_RAL!$E$20-Tassazione_RAL!$E$10)),0)+X40 -> 119875.0371 | Y41: 285442.3639 | Z41: 99346.3171 | AA41: 65520 | AB41: 32366.88 | AC41: 122540.2655 | AD41: 80816.66667 | AE41: 52329.0647 | AF41: 967985.0077 | AG41: 835576.9727 | AI41: =IF(RAL>SgrvFP,MAX(0,IF($B$17>=$D41-4,0,IF(AND($B$18>0,$B$17+1=$D41-4),MAX(0,(SgrvEXT-Main!$B$18-Tassazione_RAL!$E$10+Tassazione_RAL!$E$15+Tassazione_RAL!$E$5-Tassazione_RAL!$E$25)),MAX(0,(SgrvEXT-Tassazione_RAL!$E$10+Tassazione_RAL!$E$15))))))+AI40*(1+rateETF) -> 332692.9186 | AJ41: =IF(RAL>SgrvFP,MAX(0,IF($B$17>=$D41-4,0,IF(AND($B$18>0,$B$17+1=$D41-4),MAX(0,(SgrvEXT-Main!$B$18-Tassazione_RAL!$E$10+Tassazione_RAL!$E$15+Tassazione_RAL!$E$5-Tassazione_RAL!$E$25)),MAX(0,(SgrvEXT-Tassazione_RAL!$E$10+Tassazione_RAL!$E$15))))))+AJ40 -> 70339.0958 | AK41: 262353.8228 | AL41: 474496.8677 | AM41: 196318.23 | AN41: 412659.9235 | AO41: 210627.0599 | AP41: 80816.66667 | AQ41: 192437.8998 | AR41: 1017816.846 | AS41: 887943.6988 | AU41: =IF(RAL>SgrvFP,MAX(0,SgrvEXT-Tassazione_RAL!$E$10+Tassazione_RAL!$E$15,0)+AU40*(1+rateETF)) -> 244544.2163 | AV41: =IF(RAL>SgrvFP,MAX(0,(SgrvEXT-Tassazione_RAL!$E$10+Tassazione_RAL!$E$15)),0)+AV40 -> 67604.3522 | AW41: 176939.8641 | AX41: 524942.8285 | AY41: 201418.23 | AZ41: 479610.2432 | BA41: 210627.0599 | BB41: 80816.66667 | BC41: 192437.8998 | BD41: 980114.1047 | BE41: 867908.4501 | BG41: =IF(RAL>SgrvFP-SgrvFPN,MAX(0,SgrvFP-SgrvFPN+Tassazione_RAL!$E$10-Tassazione_RAL!$E$20+(SgrvEXT-Tassazione_RAL!$E$10+Tassazione_RAL!$E$15)),0)+BG40*(1+rateETF) -> 787419.3264 | BH41: =IF(RAL>SgrvFP-SgrvFPN,MAX(0,SgrvFP-SgrvFPN+Tassazione_RAL!$E$10-Tassazione_RAL!$E$20+(SgrvEXT-Tassazione_RAL!$E$10+Tassazione_RAL!$E$15)),0)+BH40 -> 187479.3893 | BI41: 599939.9371 | BJ41: 99346.3171 | BK41: 65520 | BL41: 32366.88 | BM41: 122540.2655 | BN41: 80816.66667 | BO41: 52329.0647 | BP41: 886765.6435 | BQ41: 833351.7329 | BS41: =IF(RAL>SgrvFP-SgrvFPN,MAX(0,SgrvFP+Tassazione_RAL!$E$10-Tassazione_RAL!$E$5+(SgrvEXT-Tassazione_RAL!$E$10+Tassazione_RAL!$E$15)),0)+BS40*(1+rateETF) -> 904517.2816 | BT41: =IF(RAL>SgrvFP-SgrvFPN,MAX(0,SgrvFP+Tassazione_RAL!$E$10-Tassazione_RAL!$E$5+(SgrvEXT-Tassazione_RAL!$E$10+Tassazione_RAL!$E$15)),0)+BT40 -> 213336.3893 | BU41: 691180.8923 | BV41: 83847.29167 | BW41: 80816.66667 | BX41: 3030.625 | BY41: 788701.8859 | CA41: =IF(RAL>SgrvFP-SgrvFPN,MAX(0,IF($B$17>=$D41-4,MAX(0,Tassazione_RAL!$E$20-Tassazione_RAL!$E$15),IF(AND($B$18>0,$B$17+1=$D41-4),MAX(0,(Tassazione_RAL!$E$20-Tassazione_RAL!$E$10+Tassazione_RAL!$E$5-Tassazione_RAL!$E$25)+(SgrvEXT-Main!$B$18-Tassazione_RAL!$E$10+Tassazione_RAL!$E$15+Tassazione_RAL!$E$5-Tassazione_RAL!$E$25)),MAX(0,(Tassazione_RAL!$E$20-Tassazione_RAL!$E$10)+(SgrvEXT-Tassazione_RAL!$E$10+Tassazione_RAL!$E$15))))))+CA40*(1+rateETF) -> 462419.7916 | CB41: =IF(RAL>SgrvFP-SgrvFPN,MAX(0,IF($B$17>=$D41-4,MAX(0,Tassazione_RAL!$E$20-Tassazione_RAL!$E$15),IF(AND($B$18>0,$B$17+1=$D41-4),MAX(0,(Tassazione_RAL!$E$20-Tassazione_RAL!$E$10+Tassazione_RAL!$E$5-Tassazione_RAL!$E$25)+(SgrvEXT-Main!$B$18-Tassazione_RAL!$E$10+Tassazione_RAL!$E$15+Tassazione_RAL!$E$5-Tassazione_RAL!$E$25)),MAX(0,(Tassazione_RAL!$E$20-Tassazione_RAL!$E$10)+(SgrvEXT-Tassazione_RAL!$E$10+Tassazione_RAL!$E$15))))))+CB40 -> 108207.0323 | CC41: 354212.7593 | CD41: =(1-costFPA)*(IF(RAL>SgrvFP-SgrvFPN,MAX(0,IF($B$17>=$D41-4,MAX(0,(Tassazione_RAL!$E$19-Tassazione_RAL!$E$14)-(Tassazione_RAL!$E$20-Tassazione_RAL!$E$15)),IF(AND($B$18>0,$B$17+1=$D41-4),MAX(0,(Tassazione_RAL!$E$19-Tassazione_RAL!$E$9)-(Tassazione_RAL!$E$20-Tassazione_RAL!$E$10+Tassazione_RAL!$E$5-Tassazione_RAL!$E$25)),MAX(0,(Tassazione_RAL!$E$19-Tassazione_RAL!$E$9)-(Tassazione_RAL!$E$20-Tassazione_RAL!$E$10))))))+((CD40+IF(AND(CG41=0,CJ41=0,CG40<>0,CJ40<>0),CG40+CJ40,0))*(1+rateFPA*(1-plustaxFPA)))) -> 608494.5735 | CE41: =IF(RAL>SgrvFP-SgrvFPN,MAX(0,IF($B$17>=$D41-4,MAX(0,(Tassazione_RAL!$E$19-Tassazione_RAL!$E$14)-(Tassazione_RAL!$E$20-Tassazione_RAL!$E$15)),IF(AND($B$18>0,$B$17+1=$D41-4),MAX(0,(Tassazione_RAL!$E$19-Tassazione_RAL!$E$9)-(Tassazione_RAL!$E$20-Tassazione_RAL!$E$10+Tassazione_RAL!$E$5-Tassazione_RAL!$E$25)),MAX(0,(Tassazione_RAL!$E$19-Tassazione_RAL!$E$9)-(Tassazione_RAL!$E$20-Tassazione_RAL!$E$10))))))+CE40 -> 120390.7635 | CF41: 515578.8511 | CG41: 3392.165491 | CH41: 65520 | CI41: 32366.88 | CJ41: 4184.119472 | CK41: 80816.66667 | CL41: 8720.299293 | CM41: 1078490.65 | CN41: 930494.3783 | CP41: =IF(RAL>SgrvFP-SgrvFPN,MAX(0,(Tassazione_RAL!$E$20-Tassazione_RAL!$E$10)+(SgrvEXT-Tassazione_RAL!$E$10+Tassazione_RAL!$E$15)),0)+CP40*(1+rateETF) -> 433676.1531 | CQ41: =IF(RAL>SgrvFP-SgrvFPN,MAX(0,(Tassazione_RAL!$E$20-Tassazione_RAL!$E$10)+(SgrvEXT-Tassazione_RAL!$E$10+Tassazione_RAL!$E$15)),0)+CQ40 -> 109367.5451 | CR41: 324308.608 | CS41: =(1-costFPA)*(IF(RAL>SgrvFP-SgrvFPN,MAX(0,(Tassazione_RAL!$E$19-Tassazione_RAL!$E$9)-(Tassazione_RAL!$E$20-Tassazione_RAL!$E$10)),0)+((CS40+IF(AND(CV41=0,CY41=0,CV40<>0,CY40<>0),CV40+CY40,0))*(1+rateFPA*(1-plustaxFPA)))) -> 625348.0242 | CT41: =IF(RAL>SgrvFP-SgrvFPN,MAX(0,(Tassazione_RAL!$E$19-Tassazione_RAL!$E$9)-(Tassazione_RAL!$E$20-Tassazione_RAL!$E$10)),0)+CT40 -> 119875.0371 | CU41: 541194.1564 | CV41: 3392.165491 | CW41: 65520 | CX41: 32366.88 | CY41: 4184.119472 | CZ41: 80816.66667 | DA41: 8720.299293 | DB41: 1066600.462 | DC41: 924862.4593
